Workbook

Sheet INDEX (hidden)
A1: Index
A2: INDEX
A3: Model Specs
A4: 1. Information Sheet
A5: 2. Current Tariff Schedule
A6: 3. Continuity Schedule
A7: 4. Billing Det. for Def-Var
A8: 5. Allocating Def-Var Balances
A9: 6. Class A Consumption Data
A10: 6.1a GA Allocation
A11: 6.1 GA
A12: 6.2a CBR B_Allocation
A13: 6.2 CBR B
A14: 7. Calculation of Def-Var RR
A15: 8. STS-Tax Change
A16: 9. Shared Tax - RR
A17: 10. RTSR - Current Rates
A18: 11. RTSR-UTRs & Sub-Tx
A19: 12. RTSR-Historic Wholesale
A20: 13. RTSR-Current Wholesale
A21: 14. RTSR-Forecast Wholesale
A22: 15. RTSR-Rates to Forecast
A23: 16. Rev2Cost-GDPIPI
A24: 17. Regulatory Charges
A25: 18. Additional Rates
A26: 19. Final Tariff Schedule
A27: 20. Bill Impacts
A28: RATES
A29: BoD Reporting

Sheet Reference (hidden)
A1: Class | B1: Monthly Service Charge | C1: Distribution Volumetric Rate | D1: Unit | E1: Index | F1: BD | G1: Unit 2
A2: RESIDENTIAL SERVICE CLASSIFICATION | B2: R_F | C2: R_V | D2: $/kWh | E2: G | F2: R | G2: kWh
A3: GENERAL SERVICE LESS THAN 50 KW SERVICE CLASSIFICATION | B3: GSL_F | C3: GSL_V | D3: $/kWh | E3: G | F3: GSL | G3: kWh
A4: GENERAL SERVICE 50 TO 499 KW SERVICE CLASSIFICATION | B4: GS50_499_F | C4: GS50_499_V | D4: $/kW | E4: ERZ | F4: GS50_499 | G4: kW | K4: COS | L4: Monthly Service Charge | M4: Distribution Volumetric Rate | N4: Billed kWh | O4: Billed kW | P4: Billed Customers or Connections
A5: GENERAL SERVICE 50 TO 699 KW SERVICE CLASSIFICATION | B5: GS50_699_F | C5: GS50_699_V | D5: $/kW | E5: BRZ | F5: GS50_699 | G5: kW | I5: Alectra Utilities Corporation-Brampton Rate Zone | J5: BRZ | K5: 2015 | L5: 5 | M5: 6 | N5: 2 | O5: 3 | P5: =+N5 -> 2
A6: GENERAL SERVICE 50 TO 999 KW SERVICE CLASSIFICATION | B6: GS50_999_F | C6: GS50_999_V | D6: $/kW | E6: GRZ | F6: GS50_999 | G6: kW | I6: Alectra Utilities Corporation-EnerSource Rate Zone | J6: ERZ | K6: 2013 | L6: =+L5+2 -> 7 | M6: 8 | N6: 4 | O6: 5 | P6: =+P5+1 -> 3
A7: GENERAL SERVICE 50 to 4,999 kW SERVICE CLASSIFICATION | B7: GSG_F | C7: GSG_V | D7: $/kW | E7: HRZ | F7: GSG | G7: kW | I7: Alectra Utilities Corporation-Guelph Rate Zone | J7: GRZ | K7: 2016 | L7: 9 | M7: 10 | N7: 6 | O7: 7 | P7: =+P6+1 -> 4
A8: GENERAL SERVICE 50 to 4,999 kW SERVICE CLASSIFICATION | B8: GSG_F | C8: GSG_V | D8: $/kW | E8: PRZ | F8: GSG | G8: kW | I8: Alectra Utilities Corporation-Horizon Rate Zone | J8: HRZ | K8: 2019 | L8: 11 | M8: 12 | N8: 8 | O8: 9 | P8: =+P7+1 -> 5
A9: GENERAL SERVICE 500 TO 4,999 KW SERVICE CLASSIFICATION | B9: GS500_F | C9: GS500_V | D9: $/kW | E9: ERZ | F9: GS500 | G9: kW | I9: Alectra Utilities Corporation-PowerStream Rate Zone | J9: PRZ | K9: 2017 | L9: 13 | M9: 14 | N9: 10 | O9: 11 | P9: 6
A10: GENERAL SERVICE 700 TO 4,999 KW SERVICE CLASSIFICATION | B10: GS700_F | C10: GS700_V | D10: $/kW | E10: BRZ | F10: GS700 | G10: kW
A11: GENERAL SERVICE 1,000 TO 4,999 KW SERVICE CLASSIFICATION | B11: GS1000_F | C11: GS1000_V | D11: $/kW | E11: GRZ | F11: GS1000 | G11: kW
A12: LARGE USE SERVICE CLASSIFICATION | B12: LU_F | C12: LU_V | D12: $/kW | E12: G | F12: LU | G12: kW
A13: LARGE USE WITH DEDICATED ASSETS SERVICE CLASSIFICATION | B13: LUDA_F | C13: LUDA_V | D13: $/kW | E13: HRZ | F13: LUDA | G13: kW
A14: UNMETERED SCATTERED LOAD SERVICE CLASSIFICATION | B14: USL_F | C14: USL_V | D14: $/kWh | E14: G | F14: USL | G14: kWh
A15: STREET LIGHTING SERVICE CLASSIFICATION | B15: SL_F | C15: SL_V | D15: $/kW | E15: G | F15: SL | G15: kW
A16: SENTINEL LIGHTING SERVICE CLASSIFICATION | B16: SEN_F | C16: SEN_V | D16: $/kW | E16: GRZ | F16: SEN | G16: kW
A17: SENTINEL LIGHTING SERVICE CLASSIFICATION | B17: SEN_F | C17: SEN_V | D17: $/kW | E17: HRZ | F17: SEN | G17: kW
A18: SENTINEL LIGHTING SERVICE CLASSIFICATION | B18: SEN_F | C18: SEN_V | D18: $/kW | E18: PRZ | F18: SEN | G18: kW
A19: EMBEDDED DISTRIBUTOR SERVICE CLASSIFICATION | B19: ED_F | C19: ED_V | D19: $/kW | E19: BRZ | F19: ED | G19: kW
A20: DISTRIBUTED GENERATION [DGEN] SERVICE CLASSIFICATION | B20: DG_F | C20: DG_V | D20: $/kW | E20: BRZ | F20: DG | G20: kW
A21: ENERGY FROM WASTE SERVICE CLASSIFICATION | B21: EFW_F | C21: EFW_V | D21: $/kW | E21: BRZ | F21: EFW | G21: kW

Sheet Model Specs (hidden)
A1: Back to Index | K1: Lists:
B2: Model Specifications
K3: Yes
B4: Utility | C4: ='1. Info'!G18 -> 00:00:00 | D4: =VLOOKUP(C4,'Model Specs'!L:M,2,FALSE) ->  | K4: No
B6: Applying for Rates Effective | C6: ='1. Info'!G28 -> 2026-01-01 | K6: kWh
K7: kW
K8: kVA
B9: Line Loss Factor | C9: =VLOOKUP(C4,$K$45:$L$49,2,FALSE) -> 
K10: Alectra - PowerStream rate zone | L10: PowerStream rate zone | M10: PRZ | N10: 2017 | O10: 2019
K11: Alectra - Enersource rate zone | L11: Enersource rate zone | M11: ERZ | N11: 2013 | O11: 2019
K12: Alectra - Horizon rate zone | L12: Horizon rate zone | M12: HRZ | N12: 2019 | O12: 2019
K13: Alectra - Brampton rate zone | L13: Brampton rate zone | M13: BRZ | N13: 2015 | O13: 2019
C14: Rate Classes (select from the List) | K14: Alectra - Guelph rate zone | L14: Guelph rate zone | M14: GRZ | N14: 2016 | O14: 2019
B15: =IFERROR(VLOOKUP(C15,$K$16:$L$35,2,FALSE),"") -> R | C15: RESIDENTIAL SERVICE CLASSIFICATION
B16: GSL | C16: GENERAL SERVICE LESS THAN 50 KW SERVICE CLASSIFICATION | K16: RESIDENTIAL SERVICE CLASSIFICATION | L16: R | M16: R_TN | N16: R_TC
B17: GSG | C17: GENERAL SERVICE 50 to 4,999 kW SERVICE CLASSIFICATION | K17: GENERAL SERVICE LESS THAN 50 kW SERVICE CLASSIFICATION | L17: GSL | M17: GSL_TN | N17: GSL_TC
B18: LU | C18: LARGE USE SERVICE CLASSIFICATION | K18: GENERAL SERVICE 50 to 499 kW SERVICE CLASSIFICATION | L18: GS50_499 | M18: GS50_499_TN | N18: GS50_499_TC
B19: USL | C19: UNMETERED SCATTERED LOAD SERVICE CLASSIFICATION | K19: GENERAL SERVICE 50 to 699 KW SERVICE CLASSIFICATION | L19: GS50_699 | M19: GS50_699_TN | N19: GS50_699_TC
B20: SL | C20: STREET LIGHTING SERVICE CLASSIFICATION | K20: GENERAL SERVICE 50 to 999 KW SERVICE CLASSIFICATION Interval | L20: GS50_999I | M20: GS50_999I_TN | N20: GS50_999I_TC
B21: SEN | C21: SENTINEL LIGHTING SERVICE CLASSIFICATION | K21: GENERAL SERVICE 50 to 4,999 kW SERVICE CLASSIFICATION Interval | L21: GSGI | M21: GSGI_TN | N21: GSGI_TC
K22: GENERAL SERVICE 50 to 999 KW SERVICE CLASSIFICATION | L22: GS50_999 | M22: GS50_999_TN | N22: GS50_999_TC
K23: GENERAL SERVICE 50 to 4,999 kW SERVICE CLASSIFICATION | L23: GSG | M23: GSG_TN | N23: GSG_TC
K24: GENERAL SERVICE 500 to 4,999 kW SERVICE CLASSIFICATION | L24: GS500 | M24: GS500_TN | N24: GS500_TC
K25: GENERAL SERVICE 700 to 4,999 KW SERVICE CLASSIFICATION | L25: GS700 | M25: GS700_TN | N25: GS700_TC
K26: GENERAL SERVICE 1,000 to 4,999 KW SERVICE CLASSIFICATION | L26: GS1000 | M26: GS1000_TN | N26: GS1000_TC
K27: LARGE USE SERVICE CLASSIFICATION | L27: LU | M27: LU_TN | N27: LU_TC
K28: LARGE USE WITH DEDICATED ASSETS SERVICE CLASSIFICATION | L28: LUDA | M28: LUDA_TN | N28: LUDA_TC
K29: UNMETERED SCATTERED LOAD SERVICE CLASSIFICATION | L29: USL | M29: USL_TN | N29: USL_TC
K30: STREET LIGHTING SERVICE CLASSIFICATION | L30: SL | M30: SL_TN | N30: SL_TC
K31: STANDBY POWER SERVICE CLASSIFICATION | L31: SB | M31: SB | N31: SB
K32: SENTINEL LIGHTING SERVICE CLASSIFICATION | L32: SEN | M32: SEN_TN | N32: SEN_TC
K33: EMBEDDED DISTRIBUTOR SERVICE CLASSIFICATION | L33: ED | M33: ED_TN | N33: ED_TC
B34: Have one or more Class A customers | C34: Yes | K34: DISTRIBUTED GENERATION [DGEN] SERVICE CLASSIFICATION | L34: DG | M34: DG_TN | N34: DG_TC
K35: ENERGY FROM WASTE SERVICE CLASSIFICATION | L35: EFW | M35: EFW_TN | N35: EFW_TC
K39: Newer Disposed
K40: 2015
K41: 2016
K42: 2017
K43: 2018
K45: Brampton rate zone | L45: 1.0341
K46: Enersource rate zone | L46: 1.036
K47: Guelph rate zone | L47: 1.026
K48: Horizon rate zone | L48: 1.0379
K49: PowerStream rate zone | L49: 1.0369

Sheet 1. Info (hidden)
A1: Back to Index | V1: a
B2: 2027-2031 RTSR Workform
R10: Brampton Rate Zone
R11: Enersource Rate Zone
N12: Version | O12: 1 | R12: Guelph Rate Zone
R13: Horizon Rate Zone
F14: Utility Name | G14: Alectra Utilities Corporation | R14: Powerstream Rate Zone
F16: Service Territory
F18: Service Territory | L18: =VLOOKUP(G18,'Model Specs'!L:M,2,FALSE) -> 
F20: Assigned EB Number
F22: Name of Contact and Title
F24: Phone Number
F26: Email Address
F28: We are applying for rates effective | G28: 2026-01-01
F30: Rate-Setting Method | G30: Price Cap IR
B32: 1. Select the last Cost of Service rebasing year. | G32: =VLOOKUP(G18,'Model Specs'!$L$10:$N$14,3,FALSE) -> 
B33: To determine the first year the continuity schedules in tab 3 will be generated for input, answer the following questions: For all the the responses below, when selecting a year, select the year relating to the account balance. For example, if the 2019 balances that were reviewed in the 2021 rate application were to be selected, select 2019.
B34: 2. For Accounts 1588 and 1589, please indicate the year of the account balances that the accounts were last disposed on a final basis for information purposes. | G34: =YEAR(G28)-3 -> 2023
B36: Determine whether scenario a or b below applies, then select the appropriate year. a) If the account balances were last approved on a final basis, select the year of the year-end balances that were last approved for disposition on a final basis. | G36: =G34 -> 2023
B37: b) If the account balances were last approved on an interim basis, and
B38: i) there are no changes to the previously approved interim balances, select the year of the year-end balances that were last approved for diposition on an interim basis. ii) there are changes to the previously approved interim balances, select the year of the year-end balances that were last approved for disposition on a final basis.
B41: 3. For the remaining Group 1 DVAs, please indicate the year of the account balances that were last disposed on a final basis | G41: =+G34 -> 2023
B43: Determine whether scenario a or b below applies, then select the appropriate year. | G43: =+G34 -> 2023
B44: a) If the account balances were last approved on a final basis, select the year of the year-end balances that the balance was were last approved on a final basis.
B45: b) If the accounts were last approved on an interim basis, and
B46: i) there are no changes to the previously approved interim balances, select the year of the year-end balances that were last approved for diposition on an interim basis.
B47: ii) If there are changes to the previously approved interim balances, select the year of the year-end balances that were last approved for disposition on a final basis.
B49: 4. Select the earliest vintage year in which there is a balance in Account 1595. | G49: =VLOOKUP('1. Info'!L18,'Model Specs'!$M$10:$O$14,3,FALSE) -> 
B50: (e.g. If 2016 is the earliest vintage year in which there is a balance in a 1595 sub-account, select 2016.)
B52: 5. Did you have any Class A customers at any point during the period that the Account 1589 balance accumulated (i.e. from the year the balance selected in #2 above to the year requested for disposition)? | G52: Yes
B54: 6. Did you have any Class A customers at any point during the period where the balance in Account 1580, Sub-account CBR Class B accumulated (i.e. from the year selected in #3 above to the year requested for disposition)? | G54: Yes
B56: ="7. Retail Transmission Service Rates: " & G14 & " is:" -> 7. Retail Transmission Service Rates: Alectra Utilities Corporation is: | G56: Partially Embedded | J56: =IF(G56="Partially Embedded","Within","") -> Within | K56: Hydro One Networks Inc. | T56: =IF(G56="Partially Embedded","Distribution System(s)","") -> Distribution System(s)
B58: 8. Have you transitioned to fully fixed rates? | G58: Yes
C66: Notes
D68: Pale gray cells represent input cells.
D70: Pale blue cells represent drop-down lists.
D72: White cells contain fixed values, automatically generated values or formulae.

Sheet 2. Current Tariff Schedule (hidden)
C1: Alectra Utilities Corporation
C2: PowerStream Rate Zone
C3: TARIFF OF RATES AND CHARGES
C4: Effective and Implementation Date January 1, 2025
C5: This schedule supersedes and replaces all previously
C6: approved schedules of Rates, Charges and Loss Factors
C7: EB-2024-0006
C8: RESIDENTIAL SERVICE CLASSIFICATION
C9: This classification refers to an account taking electricity at 750 volts or less where the electricity is used exclusively in a separately metered living accommodation. Customers shall be residing in single-dwelling units that consist of a detached house or one unit of a semi-detached, duplex, triplex or quadruplex house, with a residential zoning. Separately metered dwellings within a town house complex or apartment building also qualify as residential customers. Multi-unit residential establishments such as apartment buildings supplied through one service (bulk metered) shall be classified as general service. Class B consumers are defined in accordance with O. Reg. 429/04. Further servicing details are available in the distributor’s Conditions of Service.
C11: APPLICATION
C13: The application of these rates and charges shall be in accordance with the Licence of the Distributor and any Code or Order of the Ontario Energy Board, and amendments thereto as approved by the Ontario Energy Board, which may be applicable to the administration of this schedule.
C15: No rates and charges for the distribution of electricity and charges to meet the costs of any work or service done or furnished for the purpose of the distribution of electricity shall be made except as permitted by this schedule, unless required by the Distributor’s Licence or a Code or Order of the Ontario Energy Board, and amendments thereto as approved by the Ontario Energy Board, or as specified herein.
C17: Unless specifically noted, this schedule does not contain any charges for the electricity commodity, be it under the Regulated Price Plan, a contract with a retailer or the wholesale market price, as applicable. In addition, the charges in the MONTHLY RATES AND CHARGES – Regulatory Component of this schedule do not apply to a customer that is an embedded wholesale market participant.
C19: It should be noted that this schedule does not list any charges, assessments or credits that are required by law to be invoiced by a distributor and that are not subject to Ontario Energy Board approval, such as the Global Adjustment and the HST.
C21: MONTHLY RATES AND CHARGES – Delivery Component
A23: R | B23: R_F | C23: Service Charge | E23: $ | F23: 33.3 | H23: F
A24: R | B24: R_ICMF24 | C24: Rate Rider for Recovery of Incremental Capital (2024) - in effect from January 1, 2025 until the effective date of the next cost of service based rate order - effective until | E24: $ | F24: 0.16 | H24: ICMV24
A25: R | B25: R_ICMF23 | C25: Rate Rider for Recovery of Incremental Capital (2023) - in effect until the effective date of the next cost of service based rate order | E25: $ | F25: 0.15 | H25: ICMV23
A26: R | B26: R_ICMF21 | C26: Rate Rider for Recovery of Incremental Capital (2021) - in effect until the effective date of the next cost of service based rate order | E26: $ | F26: 0.03 | H26: ICMV21
A27: R | B27: R_ICMF19 | C27: Rate Rider for Recovery of Incremental Capital (2019) - in effect from March 1, 2019 until the effective date of the next cost of service based rate order | E27: $ | F27: 0.18 | H27: ICMV19
A28: R | B28: R_ICMF18 | C28: Rate Rider for Recovery of Incremental Capital (2018) - in effect until the effective date of the next cost of service based rate order | E28: $ | F28: 0.11 | H28: ICMF18
A29: R | B29: R_SME | C29: Smart Metering Entity Charge - effective until December 31, 2027 | E29: $ | F29: 0.42 | H29: SME
A30: R | B30: R_LV | C30: Low Voltage Service Rate | E30: $/kWh | F30: 0.0007 | H30: LV
A31: R | B31: R_GAY1 | C31: Rate Rider for Disposition of Global Adjustment Account (2025) - effective until December 31, 2025 Applicable only for Non-RPP Customers | E31: $/kWh | F31: 0.0032 | H31: GAY1
A32: R | B32: R_DVAY1 | C32: Rate Rider for Disposition of Deferral/Variance Accounts (2025) - effective until December 31, 2025 | E32: $/kWh | F32: -0.0007 | H32: DVAY1
A33: R | B33: R_CBRY1 | C33: Rate Rider for Disposition of Capacity Based Recovery Account (2025) - effective until December 31, 2025 Applicable only for Class B Customers | E33: $/kWh | F33: 0.0002 | H33: CBRY1
A34: R | B34: R_TN | C34: Retail Transmission Rate - Network Service Rate | E34: $/kWh | F34: 0.0128 | H34: TN
A35: R | B35: R_TC | C35: Retail Transmission Rate - Line and Transformation Connection Service Rate | E35: $/kWh | F35: 0.0049 | H35: TC
C37: MONTHLY RATES AND CHARGES – Regulatory Component
B39: WMS | C39: Wholesale Market Service Rate (WMS) - not including CBR | E39: $/kWh | F39: 0.0041 | H39: WMS
B40: WMS | C40: Capacity Based Recovery (CBR) - Applicable for Class B Customers | E40: $/kWh | F40: 0.0004 | H40: CBR
B41: RRA | C41: Rural or Remote Electricity Rate Protection Charge (RRRP) | E41: $/kWh | F41: 0.0015 | H41: RRA
C42: Standard Supply Service - Administrative Charge (if applicable) | E42: $ | F42: 0.25 | H42: SSS
C43: GENERAL SERVICE LESS THAN 50 KW SERVICE CLASSIFICATION
C44: This classification refers to a non-residential account taking electricity at 750 volts or less wheose monthly average peak demand is less than, or is forecast to be less than, 50 kW. Class B consumers are defined in accordance with O. Reg. 429/04. Further servicing details are available in the distributor’s Conditions of Service.
C46: APPLICATION
C48: The application of these rates and charges shall be in accordance with the Licence of the Distributor and any Code or Order of the Ontario Energy Board, and amendments thereto as approved by the Ontario Energy Board, which may be applicable to the administration of this schedule.
C50: No rates and charges for the distribution of electricity and charges to meet the costs of any work or service done or furnished for the purpose of the distribution of electricity shall be made except as permitted by this schedule, unless required by the Distributor’s Licence or a Code or Order of the Ontario Energy Board, and amendments thereto as approved by the Ontario Energy Board, or as specified herein.
C52: Unless specifically noted, this schedule does not contain any charges for the electricity commodity, be it under the Regulated Price Plan, a contract with a retailer or the wholesale market price, as applicable. In addition, the charges in the MONTHLY RATES AND CHARGES – Regulatory Component of this schedule do not apply to a customer that is an embedded wholesale market participant.
C54: It should be noted that this schedule does not list any charges, assessments or credits that are required by law to be invoiced by a distributor and that are not subject to Ontario Energy Board approval, such as the Debt Retirement Charge, the Global Adjustment and the HST.
C56: MONTHLY RATES AND CHARGES – Delivery Component
A58: GSL | B58: GSL_F | C58: Service Charge | E58: $ | F58: 34.98 | H58: F
A59: GSL | B59: GSL_ICMF24 | C59: Rate Rider for Recovery of Incremental Capital (2024) - in effect from January 1, 2025 until the effective date of the next cost of service based rate order - effective until | E59: $ | F59: 0.17 | H59: ICMV24
A60: GSL | B60: GSL_ICMF23 | C60: Rate Rider for Recovery of Incremental Capital (2023) - in effect until the effective date of the next cost of service based rate order | E60: $ | F60: 0.16 | H60: ICMV23
A61: GSL | B61: GSL_ICMF21 | C61: Rate Rider for Recovery of Incremental Capital (2021) - in effect until the effective date of the next cost of service based rate order | E61: $ | F61: 0.03 | H61: ICMV21
A62: GSL | B62: GSL_ICMF19 | C62: Rate Rider for Recovery of Incremental Capital (2019) - in effect from March 1, 2019 until the effective date of the next cost of service based rate order | E62: $ | F62: 0.19 | H62: ICMV19
A63: GSL | B63: GSL_ICMF18 | C63: Rate Rider for Recovery of Incremental Capital (2018) - in effect until the effective date of the next cost of service based rate order | E63: $ | F63: 0.12 | H63: ICMF18
A64: GSL | B64: GSL_SME | C64: Smart Metering Entity Charge - effective until December 31, 2027 | E64: $ | F64: 0.42 | H64: SME
A65: GSL | B65: GSL_V | C65: Distribution Volumetric Rate | E65: $/kWh | F65: 0.0223 | H65: V
A66: GSL | B66: GSL_LV | C66: Low Voltage Service Rate | E66: $/kWh | F66: 0.0006 | H66: LV
A67: GSL | B67: GSL_GAY1 | C67: Rate Rider for Disposition of Global Adjustment Account (2025) - effective until December 31, 2025 Applicable only for Non-RPP Customers | E67: $/kWh | F67: 0.0032 | H67: GAY1
A68: GSL | B68: GSL_DVAY1 | C68: Rate Rider for Disposition of Deferral/Variance Accounts (2025) - effective until December 31, 2025 | E68: $/kWh | F68: -0.0005 | H68: DVAY1
A69: GSL | B69: GSL_CBRY1 | C69: Rate Rider for Disposition of Capacity Based Recovery Account (2025) - effective until December 31, 2025 Applicable only for Class B Customers | E69: $/kWh | F69: 0.0002 | H69: CBRY1
A70: GSL | B70: GSL_ICMV23 | C70: Rate Rider for Recovery of Incremental Capital (2023) - in effect until the effective date of the next cost of service based rate order | E70: $/kWh | F70: 0.0001 | H70: ICMV23
A71: GSL | B71: GSL_ICMV19 | C71: Rate Rider for Recovery of Incremental Capital (2019) - in effect from March 1, 2019 until the effective date of the next cost of service based rate order | E71: $/kWh | F71: 0.0001 | H71: ICMV19
A72: GSL | B72: GSL_ICMV18 | C72: Rate Rider for Recovery of Incremental Capital (2018) - in effect until the effective date of the next cost of service based rate order | E72: $/kWh | F72: 0.0001 | H72: ICMF18
A73: GSL | B73: GSL_LRVY1P | C73: Rate Rider for Disposition of Prospective Lost Revenue Adjustment Mechanism Variance Account (LRAMVA) (2025) - effective until December 31, 2025 | E73: $/kWh | F73: 0.0006 | H73: LRVY1
A74: GSL | B74: GSL_ICMV24 | C74: Rate Rider for Recovery of Incremental Capital (2024) - in effect from January 1, 2025 until the effective date of the next cost of service based rate order - effective until | E74: $/kWh | F74: 0.0001 | H74: ICMV24
A75: GSL | B75: GSL_TN | C75: Retail Transmission Rate - Network Service Rate | E75: $/kWh | F75: 0.0114 | H75: TN
A76: GSL | B76: GSL_TC | C76: Retail Transmission Rate - Line and Transformation Connection Service Rate | E76: $/kWh | F76: 0.0044 | H76: TC
C78: MONTHLY RATES AND CHARGES – Regulatory Component
C80: Wholesale Market Service Rate (WMS) - not including CBR | E80: $/kWh | F80: 0.0041 | H80: WMS
C81: Capacity Based Recovery (CBR) - Applicable for Class B Customers | E81: $/kWh | F81: 0.0004 | H81: CBR
C82: Rural or Remote Electricity Rate Protection Charge (RRRP) | E82: $/kWh | F82: 0.0015 | H82: RRA
C83: Standard Supply Service - Administrative Charge (if applicable) | E83: $ | F83: 0.25 | H83: SSS
C84: GENERAL SERVICE 50 TO 4,999 KW SERVICE CLASSIFICATION
C85: This classification refers to a non-residential account whose monthly average peak demand is equal to or greater than, or is forecast to be equal to or greater than, 50 kW but less than 5,000 kW, both regular and interval metered. Class A and Class B consumers are defined in accordance with O. Reg. 429/04. Further servicing details are available in the distributor’s Conditions of Service.
C87: APPLICATION
C89: The application of these rates and charges shall be in accordance with the Licence of the Distributor and any Code or Order of the Ontario Energy Board, and amendments thereto as approved by the Ontario Energy Board, which may be applicable to the administration of this schedule.
C91: No rates and charges for the distribution of electricity and charges to meet the costs of any work or service done or furnished for the purpose of the distribution of electricity shall be made except as permitted by this schedule, unless required by the Distributor’s Licence or a Code or Order of the Ontario Energy Board, and amendments thereto as approved by the Ontario Energy Board, or as specified herein.
C93: Unless specifically noted, this schedule does not contain any charges for the electricity commodity, be it under the Regulated Price Plan, a contract with a retailer or the wholesale market price, as applicable. In addition, the charges in the MONTHLY RATES AND CHARGES – Regulatory Component of this schedule do not apply to a customer that is an embedded wholesale market participant.
C95: The rate rider for the disposition of WMS Sub-Account CBR Class B is not applicable to wholesale market participant (WMP) customers. It is not applicable to WMP customers that transitioned between Class A and Class B during the variance account accumulation period, or to customers that were in Class A for the entire period. Customers that transitioned are to be charged or refunded their share of the variance disposed through customer specific billing adjustments. The rate rider is to be consistently applied for the entire period to the sunset date of the rate rider. In addition, this rate rider is applicable to all new non-RPP Class B customers.
C96: The rate rider for the disposition of Global Adjustment is only applicable to non-RPP Class B customers. It is not applicable to WMP customers that transitioned between Clas A and Class B during the variance account accumulation period, or to customers that were in Class A for the entire period. Customers that transitioned are to be charged or refunded their share of the variance disposed through customer specific billing adjustments. The rate rider is to be consistently applied for the entire period to the sunset date of the rate rider. In addition, this rate rider is applicable to all new non-RPP Class B customers.
C97: It should be noted that this schedule does not list any charges, assessments or credits that are required by law to be invoiced by a distributor and that are not subject to Ontario Energy Board approval, such as the Debt Retirement Charge, the Global Adjustment and the HST.
C101: MONTHLY RATES AND CHARGES – Delivery Component
A102: GSG
A103: GSG | B103: GSG_F | C103: Service Charge | E103: $ | F103: 171.51 | H103: F
A104: GSG | B104: GSG_ICMF24 | C104: Rate Rider for Recovery of Incremental Capital (2024) - in effect from January 1, 2025 until the effective date of the next cost of service based rate order - effective until | E104: $ | F104: 0.83 | H104: ICMV24
A105: GSG | B105: GSG_ICMF23 | C105: Rate Rider for Recovery of Incremental Capital (2023) - in effect until the effective date of the next cost of service based rate order | E105: $ | F105: 0.79 | H105: ICMV23
A106: GSG | B106: GSG_ICMF21 | C106: Rate Rider for Recovery of Incremental Capital (2021) - in effect until the effective date of the next cost of service based rate order | E106: $ | F106: 0.14 | H106: ICMV21
A107: GSG | B107: GSG_ICMF19 | C107: Rate Rider for Recovery of Incremental Capital (2019) - in effect from March 1, 2019 until the effective date of the next cost of service based rate order | E107: $ | F107: 0.95 | H107: ICMV19
A108: GSG | B108: GSG_ICMF18 | C108: Rate Rider for Recovery of Incremental Capital (2018) - in effect until the effective date of the next cost of service based rate order | E108: $ | F108: 0.57 | H108: ICMF18
A109: GSG | B109: GSG_V | C109: Distribution Volumetric Rate | E109: $/kW | F109: 5.1141 | H109: V
A110: GSG | B110: GSG_LV | C110: Low Voltage Service Rate | E110: $/kW | F110: 0.2306 | H110: LV
A111: GSG | B111: GSG_GAY1 | C111: Rate Rider for Disposition of Global Adjustment Account (2025) - effective until December 31, 2025 Applicable only for Non-RPP Customers | E111: $/kWh | F111: 0.0032 | H111: GAY1
A112: GSG | B112: GSG_DVAY1nonWMP | C112: Rate Rider for Disposition of Deferral/Variance Accounts (2025) - effective until December 31, 2025 Applicable only for Non-Wholesale Market Participants | E112: $/kW | F112: -0.5904 | H112: DVAY1nonWMP
A113: GSG | B113: GSG_DVAY1 | C113: Rate Rider for Disposition of Deferral/Variance Accounts (2025) - effective until December 31, 2025 | E113: $/kW | F113: 0.404 | H113: DVAY1
A114: GSG | B114: GSG_CBRY1 | C114: Rate Rider for Disposition of Capacity Based Recovery Account (2025) - effective until December 31, 2025 Applicable only for Class B Customers | E114: $/kW | F114: 0.0551 | H114: CBRY1
A115: GSG | B115: GSG_ICMV23 | C115: Rate Rider for Recovery of Incremental Capital (2023) - in effect until the effective date of the next cost of service based rate order | E115: $/kW | F115: 0.0236 | H115: ICMV23
A116: GSG | B116: GSG_ICMV21 | C116: Rate Rider for Recovery of Incremental Capital (2021) - in effect until the effective date of the next cost of service based rate order | E116: $/kW | F116: 0.0042 | H116: ICMV21
A117: GSG | B117: GSG_ICMV19 | C117: Rate Rider for Recovery of Incremental Capital (2019) - in effect from March 1, 2019 until the effective date of the next cost of service based rate order | E117: $/kW | F117: 0.0282 | H117: ICMV19
A118: GSG | B118: GSG_ICMV18 | C118: Rate Rider for Recovery of Incremental Capital (2018) - in effect until the effective date of the next cost of service based rate order | E118: $/kW | F118: 0.0168 | H118: ICMF18
A119: GSG | B119: GSG_LRVY1P | C119: Rate Rider for Disposition of Prospective Lost Revenue Adjustment Mechanism Variance Account (LRAMVA) (2025) - effective until December 31, 2025 | E119: $/kW | F119: 0.1991 | H119: LRVY1
A120: GSG | B120: GSG_ICMV24 | C120: Rate Rider for Recovery of Incremental Capital (2024) - in effect from January 1, 2025 until the effective date of the next cost of service based rate order - effective until | E120: $/kW | F120: 0.0248 | H120: ICMV24
A121: GSG | B121: GSG_TN | C121: Retail Transmission Rate - Network Service Rate | E121: $/kW | F121: 4.5754 | H121: TN
A122: GSG | B122: GSG_TC | C122: Retail Transmission Rate - Line and Transformation Connection Service Rate | E122: $/kW | F122: 1.6722 | H122: TC
A123: GSG | B123: GSGI_TN | C123: Retail Transmission Rate - Network Service Rate – Interval Metered | E123: $/kW | F123: 4.7963 | H123: I_TN
A124: GSG | B124: GSGI_TC | C124: Retail Transmission Rate - Line and Transformation Connection Service Rate – Interval Metered | E124: $/kW | F124: 1.8094 | H124: TC
C126: MONTHLY RATES AND CHARGES – Regulatory Component
C128: Wholesale Market Service Rate (WMS) - not including CBR | E128: $/kWh | F128: 0.0041 | H128: WMS
C129: Capacity Based Recovery (CBR) - Applicable for Class B Customers | E129: $/kWh | F129: 0.0004 | H129: CBR
C130: Rural or Remote Electricity Rate Protection Charge (RRRP) | E130: $/kWh | F130: 0.0015 | H130: RRA
C131: Standard Supply Service - Administrative Charge (if applicable) | E131: $ | F131: 0.25 | H131: SSS
C132: LARGE USE SERVICE CLASSIFICATION
C133: This classification refers to an account whose monthly average peak demand is equal to or greater than, or is forecast to be equal to or greater than, 5,000 kW. Class A and Class B consumers are defined in accordance with O. Reg. 429/04. Further servicing details are available in the distributor’s Conditions of Service.
C135: APPLICATION
C137: The application of these rates and charges shall be in accordance with the Licence of the Distributor and any Code or Order of the Ontario Energy Board, and amendments thereto as approved by the Ontario Energy Board, which may be applicable to the administration of this schedule.
C139: No rates and charges for the distribution of electricity and charges to meet the costs of any work or service done or furnished for the purpose of the distribution of electricity shall be made except as permitted by this schedule, unless required by the Distributor’s Licence or a Code or Order of the Ontario Energy Board, and amendments thereto as approved by the Ontario Energy Board, or as specified herein.
C141: Unless specifically noted, this schedule does not contain any charges for the electricity commodity, be it under the Regulated Price Plan, a contract with a retailer or the wholesale market price, as applicable. In addition, the charges in the MONTHLY RATES AND CHARGES – Regulatory Component of this schedule do not apply to a customer that is an embedded wholesale market participant.
C143: If included in the following listing of monthly rates and charges, the rate rider for the disposition of WMS - Sub-account CBR Class B is not applicable to wholesale market participants (WMP), customers that transitioned between Class A and Class B during the variance account accumulation period, or to customers that were in Class A for the entire period. Customers who transitioned are to be charged or refunded their share of the variance disposed through customer specific billing adjustments. This rate rider is to be consistently applied for the entire period to the sunset date of the rate rider. In addition, this rate rider is applicable to all new Class B customers.
C145: If included in the following listing of monthly rates and charges, the rate rider for the disposition of Global Adjustment is only applicable to non-RPP Class B customers. It is not applicable to wholesale market participants (WMP), customers that transitioned between Class A and Class B during the variance account accumulation period, or to customers that were in Class A for the entire period. Customers who transitioned are to be charged or refunded their share of the variance disposed through customer specific billing adjustments. This rate rider is to be consistently applied for the entire period to the sunset date of the rate rider. In addition, this rate rider is applicable to all new non-RPP Class B customers.
C147: It should be noted that this schedule does not list any charges, assessments or credits that are required by law to be invoiced by a distributor and that are not subject to Ontario Energy Board approval, such as the Global Adjustment and the HST.
C149: MONTHLY RATES AND CHARGES – Delivery Component
A151: LU | B151: LU_F | C151: Service Charge | E151: $ | F151: 7389.12 | H151: F
A152: LU | B152: LU_ICMF24 | C152: Rate Rider for Recovery of Incremental Capital (2024) - in effect from January 1, 2025 until the effective date of the next cost of service based rate order - effective until | E152: $ | F152: 35.86 | H152: ICMV24
A153: LU | B153: LU_ICMF23 | C153: Rate Rider for Recovery of Incremental Capital (2023) - in effect until the effective date of the next cost of service based rate order | E153: $ | F153: 34.17 | H153: ICMV23
A154: LU | B154: LU_ICMF21 | C154: Rate Rider for Recovery of Incremental Capital (2021) - in effect until the effective date of the next cost of service based rate order | E154: $ | F154: 6.12 | H154: ICMV21
A155: LU | B155: LU_ICMF19 | C155: Rate Rider for Recovery of Incremental Capital (2019) - in effect from March 1, 2019 until the effective date of the next cost of service based rate order | E155: $ | F155: 40.77 | H155: ICMV19
A156: LU | B156: LU_ICMF18 | C156: Rate Rider for Recovery of Incremental Capital (2018) - in effect until the effective date of the next cost of service based rate order | E156: $ | F156: 24.34 | H156: ICMF18
A157: LU | B157: LU_V | C157: Distribution Volumetric Rate | E157: $/kW | F157: 2.7276 | H157: V
A158: LU | B158: LU_LV | C158: Low Voltage Service Rate | E158: $/kW | F158: 0.2245 | H158: LV
A159: LU | B159: LU_DVAY1 | C159: Rate Rider for Disposition of Deferral/Variance Accounts (2025) - effective until December 31, 2025 | E159: $/kW | F159: -0.2978 | H159: DVAY1
A160: LU | B160: LU_ICMV23 | C160: Rate Rider for Recovery of Incremental Capital (2023) - in effect until the effective date of the next cost of service based rate order | E160: $/kW | F160: 0.0126 | H160: ICMV23
A161: LU | B161: LU_ICMV21 | C161: Rate Rider for Recovery of Incremental Capital (2021) - in effect until the effective date of the next cost of service based rate order | E161: $/kW | F161: 0.0023 | H161: ICMV21
A162: LU | B162: LU_ICMV19 | C162: Rate Rider for Recovery of Incremental Capital (2019) - in effect from March 1, 2019 until the effective date of the next cost of service based rate order | E162: $/kW | F162: 0.0151 | H162: ICMV19
A163: LU | B163: LU_ICMV18 | C163: Rate Rider for Recovery of Incremental Capital (2018) - in effect until the effective date of the next cost of service based rate order | E163: $/kW | F163: 0.009 | H163: ICMF18
A164: LU | B164: LU_LRVY1P | C164: Rate Rider for Disposition of Prospective Lost Revenue Adjustment Mechanism Variance Account (LRAMVA) (2025) - effective until December 31, 2025 | E164: $/kW | F164: 0.1496 | H164: LRVY1
A165: LU | B165: LU_ICMV24 | C165: Rate Rider for Recovery of Incremental Capital (2024) - in effect from January 1, 2025 until the effective date of the next cost of service based rate order - effective until | E165: $/kW | F165: 0.0132 | H165: ICMV24
A166: LU | B166: LU_TN | C166: Retail Transmission Rate - Network Service Rate | E166: $/kW | F166: 5.5279 | H166: TN
A167: LU | B167: LU_TC | C167: Retail Transmission Rate - Line and Transformation Connection Service Rate | E167: $/kW | F167: 1.7468 | H167: TC
C169: MONTHLY RATES AND CHARGES – Regulatory Component
C171: Wholesale Market Service Rate (WMS) - not including CBR | E171: $/kWh | F171: 0.0041 | H171: WMS
C172: Capacity Based Recovery (CBR) - Applicable for Class B Customers | E172: $/kWh | F172: 0.0004 | H172: CBR
C173: Rural or Remote Electricity Rate Protection Charge (RRRP) | E173: $/kWh | F173: 0.0015 | H173: RRA
C174: Standard Supply Service - Administrative Charge (if applicable) | E174: $ | F174: 0.25 | H174: SSS
C175: STANDBY POWER SERVICE CLASSIFICATION
C176: This classification refers to an account that has Load Displacement Generation and requires the distributor to provide back-up service. Further servicing details are available in the distributor’s Conditions of Service.
C178: APPLICATION
C180: The application of these rates and charges shall be in accordance with the Licence of the Distributor and any Code or Order of the Ontario Energy Board, and amendments thereto as approved by the Ontario Energy Board, which may be applicable to the administration of this schedule.
C182: No rates and charges for the distribution of electricity and charges to meet the costs of any work or service done or furnished for the purpose of the distribution of electricity shall be made except as permitted by this schedule, unless required by the Distributor’s Licence or a Code or Order of the Ontario Energy Board, and amendments thereto as approved by the Ontario Energy Board, or as specified herein.
C184: Unless specifically noted, this schedule does not contain any charges for the electricity commodity, be it under the Regulated Price Plan, a contract with a retailer or the wholesale market price, as applicable.
C186: It should be noted that this schedule does not list any charges, assessments or credits that are required by law to be invoiced by a distributor and that are not subject to Ontario Energy Board approval, such as the Debt Retirement Charge, the Global Adjustment and the HST.
C188: MONTHLY RATES AND CHARGES – Delivery Component - APPROVED ON AN INTERIM BASIS
A190: SB | B190: SB_V | C190: Standby Charge – for a month where standby power is not provided. The charge is applied to the contracted amount (e.g. nameplate rating of generation facility). | E190: $/kW | F190: 3.3758 | H190: 0
C191: UNMETERED SCATTERED LOAD SERVICE CLASSIFICATION
C192: This classification refers to an account taking electricity at 750 volts or less whose average monthly peak demand is less than, or is forecast to be less than, 50 kW and the consumption is unmetered. Such connections include cable TV power packs, bus shelters, telephone booths, traffic lights, railway crossings, etc. The customer will provide detailed manufacturer information/documentation with regard to electrical demand/consumption of the proposed unmetered load. Class B consumers are defined in accordance with O. Reg. 429/04. Further servicing details are available in the distributor’s Conditions of Service.
C194: APPLICATION
C196: The application of these rates and charges shall be in accordance with the Licence of the Distributor and any Code or Order of the Ontario Energy Board, and amendments thereto as approved by the Ontario Energy Board, which may be applicable to the administration of this schedule.
C198: No rates and charges for the distribution of electricity and charges to meet the costs of any work or service done or furnished for the purpose of the distribution of electricity shall be made except as permitted by this schedule, unless required by the Distributor’s Licence or a Code or Order of the Ontario Energy Board, and amendments thereto as approved by the Ontario Energy Board, or as specified herein.
C200: Unless specifically noted, this schedule does not contain any charges for the electricity commodity, be it under the Regulated Price Plan, a contract with a retailer or the wholesale market price, as applicable. In addition, the charges in the MONTHLY RATES AND CHARGES – Regulatory Component of this schedule do not apply to a customer that is an embedded wholesale market participant.
C202: It should be noted that this schedule does not list any charges, assessments or credits that are required by law to be invoiced by a distributor and that are not subject to Ontario Energy Board approval, such as the Debt Retirement Charge, the Global Adjustment and the HST.
A204: USL | C204: MONTHLY RATES AND CHARGES – Delivery Component
A205: USL
A206: USL | B206: USL_F | C206: Service Charge | E206: $ | F206: 10.46 | H206: F
A207: USL | B207: USL_ICMF24 | C207: Rate Rider for Recovery of Incremental Capital (2024) - in effect from January 1, 2025 until the effective date of the next cost of service based rate order - effective until | E207: $ | F207: 0.05 | H207: ICMV24
A208: USL | B208: USL_ICMF23 | C208: Rate Rider for Recovery of Incremental Capital (2023) - in effect until the effective date of the next cost of service based rate order | E208: $ | F208: 0.05 | H208: ICMV23
A209: USL | B209: USL_ICMF21 | C209: Rate Rider for Recovery of Incremental Capital (2021) - in effect until the effective date of the next cost of service based rate order | E209: $ | F209: 0.01 | H209: ICMV21
A210: USL | B210: USL_ICMF19 | C210: Rate Rider for Recovery of Incremental Capital (2019) - in effect from March 1, 2019 until the effective date of the next cost of service based rate order | E210: $ | F210: 0.06 | H210: ICMV19
A211: USL | B211: USL_ICMF18 | C211: Rate Rider for Recovery of Incremental Capital (2018) - in effect until the effective date of the next cost of service based rate order | E211: $ | F211: 0.03 | H211: ICMF18
A212: USL | B212: USL_V | C212: Distribution Volumetric Rate | E212: $/kWh | F212: 0.0237 | H212: V
A213: USL | B213: USL_LV | C213: Low Voltage Service Rate | E213: $/kWh | F213: 0.0006 | H213: LV
A214: USL | B214: USL_GAY1 | C214: Rate Rider for Disposition of Global Adjustment Account (2025) - effective until December 31, 2025 Applicable only for Non-RPP Customers | E214: $/kWh | F214: 0.0032 | H214: GAY1
A215: USL | B215: USL_DVAY1 | C215: Rate Rider for Disposition of Deferral/Variance Accounts (2025) - effective until December 31, 2025 | E215: $/kWh | F215: -0.0005 | H215: DVAY1
A216: USL | B216: USL_CBRY1 | C216: Rate Rider for Disposition of Capacity Based Recovery Account (2025) - effective until December 31, 2025 Applicable only for Class B Customers | E216: $/kWh | F216: 0.0002 | H216: CBRY1
A217: USL | B217: USL_ICMV23 | C217: Rate Rider for Recovery of Incremental Capital (2023) - in effect until the effective date of the next cost of service based rate order | E217: $/kWh | F217: 0.0001 | H217: ICMV23
A218: USL | B218: USL_ICMV19 | C218: Rate Rider for Recovery of Incremental Capital (2019) - in effect from March 1, 2019 until the effective date of the next cost of service based rate order | E218: $/kWh | F218: 0.0001 | H218: ICMV19
A219: USL | B219: USL_ICMV18 | C219: Rate Rider for Recovery of Incremental Capital (2018) - in effect until the effective date of the next cost of service based rate order | E219: $/kWh | F219: 0.0001 | H219: ICMF18
A220: USL | B220: USL_LRVY1P | C220: Rate Rider for Disposition of Prospective Lost Revenue Adjustment Mechanism Variance Account (LRAMVA) (2025) - effective until December 31, 2025 | E220: $/kWh | F220: 0.0008 | H220: LRVY1
A221: USL | B221: USL_ICMV24 | C221: Rate Rider for Recovery of Incremental Capital (2024) - in effect from January 1, 2025 until the effective date of the next cost of service based rate order - effective until | E221: $/kWh | F221: 0.0001 | H221: ICMV24
A222: USL | B222: USL_TN | C222: Retail Transmission Rate - Network Service Rate | E222: $/kWh | F222: 0.0109 | H222: TN
A223: USL | B223: USL_TC | C223: Retail Transmission Rate - Line and Transformation Connection Service Rate | E223: $/kWh | F223: 0.0046 | H223: TC
C225: MONTHLY RATES AND CHARGES – Regulatory Component
C227: Wholesale Market Service Rate (WMS) - not including CBR | E227: $/kWh | F227: 0.0041 | H227: WMS
C228: Capacity Based Recovery (CBR) - Applicable for Class B Customers | E228: $/kWh | F228: 0.0004 | H228: CBR
C229: Rural or Remote Electricity Rate Protection Charge (RRRP) | E229: $/kWh | F229: 0.0015 | H229: RRA
C230: Standard Supply Service - Administrative Charge (if applicable) | E230: $ | F230: 0.25 | H230: SSS
C231: SENTINEL LIGHTING SERVICE CLASSIFICATION
C232: This classification refers to an unmetered lighting load supplied to a sentinel light. Class B consumers are defined in accordance with O. Reg. 429/04. Further servicing details are available in the distributor’s Conditions of Service.
C234: APPLICATION
C236: The application of these rates and charges shall be in accordance with the Licence of the Distributor and any Code or Order of the Ontario Energy Board, and amendments thereto as approved by the Ontario Energy Board, which may be applicable to the administration of this schedule.
C238: No rates and charges for the distribution of electricity and charges to meet the costs of any work or service done or furnished for the purpose of the distribution of electricity shall be made except as permitted by this schedule, unless required by the Distributor’s Licence or a Code or Order of the Ontario Energy Board, and amendments thereto as approved by the Ontario Energy Board, or as specified herein.
C240: Unless specifically noted, this schedule does not contain any charges for the electricity commodity, be it under the Regulated Price Plan, a contract with a retailer or the wholesale market price, as applicable. In addition, the charges in the MONTHLY RATES AND CHARGES – Regulatory Component of this schedule do not apply to a customer that is an embedded wholesale market participant.
C242: It should be noted that this schedule does not list any charges, assessments or credits that are required by law to be invoiced by a distributor and that are not subject to Ontario Energy Board approval, such as the Global Adjustment and the HST.
C244: MONTHLY RATES AND CHARGES – Delivery Component
A246: SEN | B246: SEN_F | C246: Service Charge (per Connection) | E246: $ | F246: 5.09 | H246: F
A247: SEN | B247: SEN_ICMF24 | C247: Rate Rider for Recovery of Incremental Capital (2024) - in effect from January 1, 2025 until the effective date of the next cost of service based rate order - effective until | E247: $ | F247: 0.02 | H247: ICMV24
A248: SEN | B248: SEN_ICMF23 | C248: Rate Rider for Recovery of Incremental Capital (2023) - in effect until the effective date of the next cost of service based rate order | E248: $ | F248: 0.02 | H248: ICMV23
A249: SEN | B249: SEN_ICMF19 | C249: Rate Rider for Recovery of Incremental Capital (2019) - in effect from March 1, 2019 until the effective date of the next cost of service based rate order | E249: $ | F249: 0.03 | H249: ICMV19
A250: SEN | B250: SEN_ICMF18 | C250: Rate Rider for Recovery of Incremental Capital (2018) - in effect until the effective date of the next cost of service based rate order | E250: $ | F250: 0.02 | H250: ICMF18
A251: SEN | B251: SEN_V | C251: Distribution Volumetric Rate | E251: $/kW | F251: 12.0068 | H251: V
A252: SEN | B252: SEN_LV | C252: Low Voltage Service Rate | E252: $/kW | F252: 0.159 | H252: LV
A253: SEN | B253: SEN_GAY1 | C253: Rate Rider for Disposition of Global Adjustment Account (2025) - effective until December 31, 2025 Applicable only for Non-RPP Customers | E253: $/kWh | F253: 0.0032 | H253: GAY1
A254: SEN | B254: SEN_DVAY1 | C254: Rate Rider for Disposition of Deferral/Variance Accounts (2025) - effective until December 31, 2025 | E254: $/kW | F254: -0.1786 | H254: DVAY1
A255: SEN | B255: SEN_CBRY1 | C255: Rate Rider for Disposition of Capacity Based Recovery Account (2025) - effective until December 31, 2025 Applicable only for Class B Customers | E255: $/kW | F255: 0.0587 | H255: CBRY1
A256: SEN | B256: SEN_ICMV23 | C256: Rate Rider for Recovery of Incremental Capital (2023) - in effect until the effective date of the next cost of service based rate order | E256: $/kW | F256: 0.0555 | H256: ICMV23
A257: SEN | B257: SEN_ICMV21 | C257: Rate Rider for Recovery of Incremental Capital (2021) - in effect until the effective date of the next cost of service based rate order | E257: $/kW | F257: 0.0099 | H257: ICMV21
A258: SEN | B258: SEN_ICMV19 | C258: Rate Rider for Recovery of Incremental Capital (2019) - in effect from March 1, 2019 until the effective date of the next cost of service based rate order | E258: $/kW | F258: 0.0663 | H258: ICMV19
A259: SEN | B259: SEN_ICMV18 | C259: Rate Rider for Recovery of Incremental Capital (2018) - in effect until the effective date of the next cost of service based rate order | E259: $/kW | F259: 0.0396 | H259: ICMF18
A260: SEN | B260: SEN_LRVY1P | C260: Rate Rider for Disposition of Prospective Lost Revenue Adjustment Mechanism Variance Account (LRAMVA) (2025) - effective until December 31, 2025 | E260: $/kW | F260: 1.3343 | H260: LRVY1
A261: SEN | B261: SEN_ICMV24 | C261: Rate Rider for Recovery of Incremental Capital (2024) - in effect from January 1, 2025 until the effective date of the next cost of service based rate order - effective until | E261: $/kW | F261: 0.0583 | H261: ICMV24
... 105 more rows

Sheet 3. Continuity Schedule (hidden)
A1: Back to Index | B1: Back to Index | AY1: FALSE
C2: ='1. Info'!B2 -> 2027-2031 RTSR Workform | AY2: FALSE
AY3: FALSE
AY4: FALSE
AY5: FALSE
AY6: FALSE
AY7: FALSE
AY8: FALSE
AY9: FALSE
AY10: TRUE
AY11: TRUE
C12: Please complete the following continuity schedule for the following Deferral/Variance Accounts. Enter information into green cells only. Column CE shoudl match the latest 2.1.7 RRR filing. When inputting balances in the continuity schedule, Account 1580 RSVA - Wholesale Market Service Charge is to exclude any amounts relating to CBR. The CBR amounts are to be entered separately in the Class A and Class B 1580 sub-accounts. Only Class B amounts are to be disposed. Class A amounts are not to be disposed. If you have received approval to dispose of balances from prior years, the starting point for entries in the schedule below will be the balance sheet date as per your general ledger for which you received approval. For example, if in the 2020 EDR process (CoS or IRM) you received approval for the December 31, 2014 balances, the starting point for your entries below should be the 2013 year. This will allow for the correct starting point for the 2014 opening balance columns for both principal and interest. Please refer to the footnotes for further instructions.
E15: 24 | F15: =1+E15 -> 25 | G15: =1+F15 -> 26 | H15: 27 | I15: 28 | J15: 29 | K15: 30 | L15: 31 | M15: 32 | N15: 33 | O15: 34 | P15: 35 | Q15: 36 | R15: 37 | S15: 38 | T15: 39 | U15: 40 | V15: 41 | W15: 42 | X15: 43 | Y15: 44 | Z15: 45 | AA15: 46 | AB15: 47 | AC15: 48 | AD15: 49 | AE15: 50 | AF15: 51 | AG15: 52 | AH15: 53 | AI15: 54 | AJ15: 55 | AK15: 56 | AL15: 57 | AM15: 58 | AN15: 59 | AO15: 60 | AP15: 61 | AQ15: 62 | AR15: 63 | AS15: 64
E16: =+O16-1 -> 2022 | O16: ='1. Info'!G34 -> 2023 | Y16: =+O16+1 -> 2024 | AI16: =+Y16+1 -> 2025 | AM16: ="Projected Interest on Dec-31-"&AI16-1&" Balances" -> Projected Interest on Dec-31-2024 Balances | AR16: 2.1.7 RRR
C17: Account Descriptions | D17: Account Number | E17: ="Opening Principal Amounts as of Jan 1, "&E16 -> Opening Principal Amounts as of Jan 1, 2022 | F17: ="Transactions2 Debit / (Credit) during "&E16 -> Transactions2 Debit / (Credit) during 2022 | G17: ="OEB-Approved Disposition during "&E16 -> OEB-Approved Disposition during 2022 | H17: ="Principal Adjustments1 during "&E16 -> Principal Adjustments1 during 2022 | I17: ="Closing Principal Balance as of Dec 31, "&E16 -> Closing Principal Balance as of Dec 31, 2022 | J17: ="Opening Interest Amounts as of Jan 1, "&E16 -> Opening Interest Amounts as of Jan 1, 2022 | K17: ="Interest Jan 1 to Dec 31, "&E16 -> Interest Jan 1 to Dec 31, 2022 | L17: ="OEB-Approved Disposition during "&E16 -> OEB-Approved Disposition during 2022 | M17: ="Interest Adjustments1 during "&E16 -> Interest Adjustments1 during 2022 | N17: ="Closing Interest Amounts as of Dec 31, "&E16 -> Closing Interest Amounts as of Dec 31, 2022 | O17: ="Opening Principal Amounts as of Jan 1, "&O16 -> Opening Principal Amounts as of Jan 1, 2023 | P17: ="Transactions2 Debit / (Credit) during "&O16 -> Transactions2 Debit / (Credit) during 2023 | Q17: ="OEB-Approved Disposition during "&O16 -> OEB-Approved Disposition during 2023 | R17: ="Principal Adjustments1 during "&O16 -> Principal Adjustments1 during 2023 | S17: ="Closing Principal Balance as of Dec 31, "&O16 -> Closing Principal Balance as of Dec 31, 2023 | T17: ="Opening Interest Amounts as of Jan 1, "&O16 -> Opening Interest Amounts as of Jan 1, 2023 | U17: ="Interest Jan 1 to Dec 31, "&O16 -> Interest Jan 1 to Dec 31, 2023 | V17: ="OEB-Approved Disposition during "&O16 -> OEB-Approved Disposition during 2023 | W17: ="Interest Adjustments1 during "&O16 -> Interest Adjustments1 during 2023 | X17: ="Closing Interest Amounts as of Dec 31, "&O16 -> Closing Interest Amounts as of Dec 31, 2023 | Y17: ="Opening Principal Amounts as of Jan 1, "&Y16 -> Opening Principal Amounts as of Jan 1, 2024 | Z17: ="Transactions2 Debit / (Credit) during "&Y16 -> Transactions2 Debit / (Credit) during 2024 | AA17: ="OEB-Approved Disposition during "&Y16 -> OEB-Approved Disposition during 2024 | AB17: ="Principal Adjustments1 during "&Y16 -> Principal Adjustments1 during 2024 | AC17: ="Closing Principal Balance as of Dec 31, "&Y16 -> Closing Principal Balance as of Dec 31, 2024 | AD17: ="Opening Interest Amounts as of Jan 1, "&Y16 -> Opening Interest Amounts as of Jan 1, 2024 | AE17: ="Interest Jan 1 to Dec 31, "&Y16 -> Interest Jan 1 to Dec 31, 2024 | AF17: ="OEB-Approved Disposition during "&Y16 -> OEB-Approved Disposition during 2024 | AG17: ="Interest Adjustments1 during "&Y16 -> Interest Adjustments1 during 2024 | AH17: ="Closing Interest Amounts as of Dec 31, "&Y16 -> Closing Interest Amounts as of Dec 31, 2024 | AI17: ="Principal Disposition during "&AI16&" - instructed by OEB" -> Principal Disposition during 2025 - instructed by OEB | AJ17: ="Interest Disposition during "&AI16&" - instructed by OEB" -> Interest Disposition during 2025 - instructed by OEB | AK17: ="Closing Principal Balances as of Dec 31, "&AI16-1&" Adjusted for Dispositions during "&AI16 -> Closing Principal Balances as of Dec 31, 2024 Adjusted for Dispositions during 2025 | AL17: ="Closing Interest Balances as of Dec 31, "&AI16-1&" Adjusted for Dispositions during "&AJ16 -> Closing Interest Balances as of Dec 31, 2024 Adjusted for Dispositions during | AM17: ="Projected Interest from January 1, "&AI16&" to December 31, "&AI16&" on December 31, "&AI16-1&" balance adjusted for disposition during "&AI16&" 3" -> Projected Interest from January 1, 2025 to December 31, 2025 on December 31, 2024 balance adjusted for disposition during 2025 3 | AN17: ="Projected Interest from January 1, "&AI16&" to April 30, "&AI16&" on December 31, "&AI16-1&" balance adjusted for disposition during "&AI16&" 3" -> Projected Interest from January 1, 2025 to April 30, 2025 on December 31, 2024 balance adjusted for disposition during 2025 3 | AO17: Total Interest | AP17: Dispose of Account? (Y/N) | AQ17: Total Claim | AR17: ="As of Dec 31-"&AI16-1 -> As of Dec 31-2024 | AS17: ="Variance RRR vs. "&AI16-1&" Balance (Principal + Interest)" -> Variance RRR vs. 2024 Balance (Principal + Interest)
AQ19: Claim before Forecasted Transactions | AZ19: Principal | BA19: CC | BB19: 1595 Residual | BC19: Power & GA | BD19: EB | BE19: Disposition
C20: Group 1 Accounts
C21: LV Variance Account | D21: 1550 | E21: 8673797.29 | F21: 1573750.86 | G21: 4280794.47 | H21: 0 | I21: =E21+F21-G21+SUM(H21:H21) -> 5966753.68 | J21: 53715.43 | K21: 106735.64 | L21: 41497.14958 | M21: 0 | N21: =J21+K21-L21+M21 -> 118953.9204 | O21: =I21 -> 5966753.68 | P21: 962493.24 | Q21: 4393002.82 | R21: 0 | S21: =O21+P21-Q21+SUM(R21:R21) -> 2536244.1 | T21: =N21 -> 118953.9204 | U21: 120453.78 | V21: 78003.49765 | W21: 0 | X21: =T21+U21-V21+W21 -> 161404.2028 | Y21: =S21 -> 2536244.1 | AA21: 1573750.86 | AC21: =Y21+Z21-AA21+SUM(AB21:AB21) -> 962493.24 | AD21: =X21 -> 161404.2028 | AF21: 120346.1537 | AH21: =AD21+AE21-AF21+AG21 -> 41058.04911 | AI21: 962493.24 | AJ21: 90578.32631 | AK21: =AC21-AI21 -> 0 | AL21: =AH21-AJ21 -> -49520.2772 | AM21: 0 | AO21: =AL21+AM21+AN21 -> -49520.2772 | AQ21: =SUM(AK21:AN21) -> -49520.2772 | AR21: 968136.95 | AS21: =AR21-SUM(AC21,AH21) -> -35414.33911 | AT21: =IF(ABS(AS21)>1,"Please provide an explanation of the variance in the Manager's Summary","") -> Please provide an explanation of the variance in the Manager's Summary
C22: Smart Metering Entity Charge Variance Account | D22: 1551 | E22: -251190.36 | F22: -989128.01 | G22: -46984.84 | H22: 0 | I22: =E22+F22-G22+SUM(H22:H22) -> -1193333.53 | J22: -1072.97 | K22: -19163.51 | L22: -866.575738 | M22: 0 | N22: =J22+K22-L22+M22 -> -19369.90426 | O22: =I22 -> -1193333.53 | P22: -588369.2 | Q22: -204205.52 | R22: 0 | S22: -1577497.21 | T22: =N22 -> -19369.90426 | U22: -58884.34 | V22: -3264.371924 | W22: 0 | X22: -74989.87234 | Y22: =S22 -> -1577497.21 | AA22: -989128.01 | AC22: -588369.2 | AD22: =X22 -> -74989.87234 | AF22: -66007.04044 | AH22: -8982.831895 | AI22: -588369.2 | AJ22: -39254.42724 | AK22: =AC22-AI22 -> 0 | AL22: =AH22-AJ22 -> 30271.59534 | AM22: 0 | AO22: =AL22+AM22+AN22 -> 30271.59534 | AQ22: =SUM(AK22:AN22) -> 30271.59534 | AR22: -962339.53 | AS22: =AR22-SUM(AC22,AH22) -> -364987.4981 | AT22: =IF(ABS(AS22)>1,"Please provide an explanation of the variance in the Manager's Summary","") -> Please provide an explanation of the variance in the Manager's Summary
C23: RSVA - Wholesale Market Service Charge | D23: 1580 | E23: 2949449.997 | F23: 19834786.7 | G23: -4185736.593 | H23: 0 | I23: =E23+F23-G23+SUM(H23:H23) -> 26969973.29 | J23: -26095.28 | K23: 423480.86 | L23: -43190.58448 | M23: 0 | N23: =J23+K23-L23+M23 -> 440576.1645 | O23: 26969973.29 | P23: -8959193.9 | Q23: 7135186.59 | R23: 0 | S23: 10875592.8 | T23: 440576.1645 | U23: 876324.4184 | V23: 123944.7237 | W23: 0 | X23: 1192955.859 | Y23: 10875592.8 | AA23: 19834786.7 | AC23: -8959193.9 | AD23: 1192955.859 | AF23: 1317296.43 | AH23: -124340.5706 | AI23: -8959193.9 | AJ23: -585291.0967 | AK23: 0 | AL23: 460950.5262 | AM23: 0 | AO23: 460950.5262 | AQ23: =SUM(AK23:AN23) -> 460950.5262 | AR23: -8012854.47 | AS23: 1070680.001 | AT23: Please provide an explanation of the variance in the Manager's Summary | BC23: =AH23+AC23-AB23 -> -9083534.471
C24: Variance WMS – Sub-account CBR Class A | D24: 1580 | E24: -0.48 | F24: 0.41 | G24: -0.41 | H24: 0 | I24: =E24+F24-G24+SUM(H24:H24) -> 0.34 | J24: -2.842170943e-14 | K24: 0 | L24: -0.0026835 | M24: 0 | N24: =J24+K24-L24+M24 -> 0.0026835 | O24: 0.34 | P24: 0 | Q24: -0.07 | R24: 0 | S24: 0.41 | T24: 0.0026835 | U24: 0 | V24: 0.00163525 | W24: 0 | X24: 0.00104825 | Y24: 0.41 | AA24: 0.41 | AC24: 0 | AD24: 0.00104825 | AF24: 0.02173275 | AH24: -0.0206845 | AI24: 0 | AJ24: -0.0206845 | AK24: 0 | AL24: 0 | AM24: 0 | AO24: 0 | AQ24: 0 | AR24: 0 | AS24: 0.0206845
C25: Variance WMS – Sub-account CBR Class B | D25: 1580 | E25: -1328877.822 | F25: -882875.88 | G25: -376862.4523 | H25: 0 | I25: =E25+F25-G25+SUM(H25:H25) -> -1834891.25 | J25: -7736.76 | K25: -35215.77 | L25: -5749.081728 | M25: 0 | N25: =J25+K25-L25+M25 -> -37203.44827 | O25: -1834891.25 | P25: 1084275.01 | Q25: -952015.37 | R25: 0 | S25: 201399.13 | T25: -37203.44827 | U25: -68577.52844 | V25: -16244.10844 | W25: 0 | X25: -89536.86827 | Y25: 201399.13 | AA25: -882875.88 | AC25: 1084275.01 | AD25: -89536.86827 | AF25: -65500.42798 | AH25: -24036.44029 | AI25: 1084275.01 | AJ25: 31749.50897 | AK25: 0 | AL25: -55785.94926 | AM25: 0 | AO25: -55785.94926 | AQ25: -55785.94926 | AR25: 4360792.93 | AS25: 3300554.36 | AT25: Please provide an explanation of the variance in the Manager's Summary
C26: RSVA - Retail Transmission Network Charge | D26: 1584 | E26: 15989352.59 | F26: 11662439.37 | G26: 78319.64 | H26: 0 | I26: 27573472.32 | J26: 22848.91 | K26: 457871.98 | L26: -12733.80078 | M26: 0 | N26: 493454.6908 | O26: 27573472.32 | P26: 4967408.1 | Q26: 15911032.95 | R26: 0 | S26: 16629847.47 | T26: 493454.6908 | U26: 747695.29 | V26: 273850.4292 | W26: 0 | X26: 967299.5516 | Y26: 16629847.47 | AA26: 11662439.37 | AC26: 4967408.1 | AD26: 967299.5516 | AF26: 807974.3278 | AH26: 159325.2238 | AI26: 4967408.1 | AJ26: 414898.3705 | AK26: 0 | AL26: -255573.1467 | AM26: 0 | AO26: -255573.1467 | AQ26: -255573.1467 | AR26: 8454265.41 | AS26: 3327532.086 | AT26: Please provide an explanation of the variance in the Manager's Summary
C27: RSVA - Retail Transmission Connection Charge | D27: 1586 | E27: -2012575.59 | F27: 1958763.42 | G27: -1115955.57 | H27: 0 | I27: 1062143.4 | J27: -18440.74 | K27: 12533.91 | L27: -14129.89712 | M27: 0 | N27: 8223.067124 | O27: 1062143.4 | P27: 2722800 | Q27: -896620.02 | R27: 0 | S27: 4681563.42 | T27: 8223.067124 | U27: 163124.38 | V27: -17737.72768 | W27: 0 | X27: 189085.1748 | Y27: 4681563.42 | AA27: 1958763.42 | AC27: 2722800 | AD27: 189085.1748 | AF27: 124780.4093 | AH27: 64304.76546 | AI27: 2722800 | AJ27: 204392.8255 | AK27: 0 | AL27: -140088.06 | AM27: 0 | AO27: -140088.06 | AQ27: =SUM(AK27:AN27) -> -140088.06 | AR27: 2556882.27 | AS27: -230222.4955 | AT27: Please provide an explanation of the variance in the Manager's Summary
C28: RSVA - Power | D28: 1588 | E28: 5798945.871 | F28: 935848.46 | G28: 3900274.777 | H28: 940777.6791 | I28: 3775297.233 | J28: 10028.5169 | K28: 53003.87 | L28: 4408.009848 | M28: 0 | N28: 58624.37706 | O28: 3775297.233 | P28: -3046159.45 | Q28: 1898671.094 | R28: -563178.5399 | S28: -1732711.851 | T28: 58624.37706 | U28: -71940.03 | V28: 34053.10668 | W28: 0 | X28: -47368.75963 | Y28: -1732711.851 | AA28: 1876626.139 | AC28: -3609337.99 | AD28: -47368.75963 | AF28: 119247.0591 | AH28: -166615.8187 | AI28: -3609337.99 | AJ28: -352316.2583 | AK28: 0 | AL28: 185700.4396 | AM28: 0 | AO28: 185700.4396 | AQ28: =SUM(AK28:AN28) -> 185700.4396 | AR28: -3742554.31 | AS28: 33399.4986 | AT28: Please provide an explanation of the variance in the Manager's Summary | BC28: =AH28+AC28-AB28 -> -3775953.809
C29: RSVA - Global Adjustment | D29: 1589 | E29: -7934624.444 | F29: -3715809.93 | G29: 599064.9276 | H29: 2417294.885 | I29: -9832204.417 | J29: 38225.03 | K29: -250233.18 | L29: 67676.83782 | M29: 0 | N29: -279684.9878 | O29: -9832204.417 | P29: 10554043.72 | Q29: -8533689.372 | R29: -2565639.106 | S29: 6689889.569 | T29: -279684.9878 | U29: 454106.28 | V29: -157243.8062 | W29: 0 | X29: 331665.0983 | Y29: 6689889.569 | AA29: -1298515.045 | AC29: 7988404.614 | AD29: 331665.0983 | AF29: -187951.2657 | AH29: 519616.364 | AI29: 7988404.614 | AJ29: 930619.7814 | AK29: 0 | AL29: -411003.4174 | AM29: 0 | AO29: -411003.4174 | AQ29: -411003.4174 | AR29: 27066119 | AS29: 18558098.02 | AT29: Please provide an explanation of the variance in the Manager's Summary | BC29: =AH29+AC29-AB29 -> 8508020.978
C30: Disposition and Recovery/Refund of Regulatory Balances (2016 and pre-2016)3 | D30: 1595 | E30: 44560.3 | F30: 209.09 | G30: 44769.39 | H30: 0 | I30: 0 | J30: 10542.17 | K30: 255.19 | L30: 10797.35673 | M30: 0 | N30: 0.003266041109 | O30: 0 | P30: 0 | Q30: 0 | R30: 0 | S30: =O30+P30-Q30+SUM(R30:R30) -> 0 | T30: 0.003266041109 | U30: 0 | V30: 0 | W30: 0 | X30: 0.003266041109 | Y30: 0 | AA30: 0 | AC30: =Y30+Z30-AA30+SUM(AB30:AB30) -> 0 | AD30: 0.003266041109 | AF30: 0 | AH30: 0.003266041109 | AI30: 0 | AJ30: 0 | AK30: 0 | AL30: 0.003266041109 | AM30: 0 | AO30: 0.003266041109 | AP30: No | AQ30: =IF(AP30="YES",SUM(AK30:AN30),0) -> 0 | AR30: 0 | AS30: =AR30-SUM(AC30,AH30) -> -0.003266041109 | BB30: =SUM(AK30:AM34,AK36:AM37) -> 395536.595
C31: Disposition and Recovery/Refund of Regulatory Balances (2017)3 | D31: 1595 | E31: 0 | F31: 0 | G31: 0 | H31: 0 | I31: 0 | J31: 0 | K31: 0 | L31: 0 | M31: 0 | N31: 0 | O31: 0 | P31: 0 | Q31: 0 | R31: 0 | S31: 0 | T31: 0 | U31: 0 | V31: 0 | W31: 0 | X31: 0 | Y31: 0 | AA31: 0 | AC31: 0 | AD31: 0 | AF31: 0 | AH31: 0 | AI31: 0 | AJ31: 0 | AK31: 0 | AL31: 0 | AM31: 0 | AO31: 0 | AP31: No | AQ31: 0 | AR31: 0 | AS31: 0
C32: Disposition and Recovery/Refund of Regulatory Balances (2018)3 | D32: 1595 | E32: 1131708.47 | F32: -817.86 | G32: 0 | H32: 0 | I32: 1130890.61 | J32: -728025.98 | K32: 21657.37 | L32: 0 | M32: 0 | N32: -706368.61 | O32: 1130890.61 | P32: 817.86 | Q32: 1131708.47 | R32: 0 | S32: 2.328306437e-10 | T32: -706368.61 | U32: -4710.04 | V32: -711078.6457 | W32: 0 | X32: -0.00433825003 | Y32: 2.328306437e-10 | AA32: 0 | AC32: 2.328306437e-10 | AD32: -0.00433825003 | AF32: 0 | AH32: -0.00433825003 | AI32: 0 | AJ32: 0 | AK32: 2.328306437e-10 | AL32: -0.00433825003 | AM32: 7.636845112e-12 | AO32: -0.004338250022 | AP32: No | AQ32: 0 | AR32: 0 | AS32: 0.004338249797
C33: Disposition and Recovery/Refund of Regulatory Balances (2019)3 | D33: 1595 | E33: -737586.13 | F33: 395.63 | G33: 0 | H33: 0 | I33: -737190.5 | J33: -172884.11 | K33: -14117.4 | L33: 0 | M33: 0 | N33: -187001.51 | O33: -737190.5 | P33: -395.63 | Q33: -737586.13 | R33: 0 | S33: 0 | T33: -187001.51 | U33: 3072.05 | V33: -183929.4623 | W33: 0 | X33: 0.002296749968 | Y33: 0 | AA33: 0 | AC33: 0 | AD33: 0.002296749968 | AF33: 0 | AH33: 0.002296749968 | AI33: 0 | AJ33: 0 | AK33: 0 | AL33: 0.002296749968 | AM33: 0 | AO33: 0.002296749968 | AP33: No | AQ33: 0 | AR33: -3.492459655e-10 | AS33: -0.002296750317
C34: Disposition and Recovery/Refund of Regulatory Balances (2020)3 | D34: 1595 | E34: -62702.51693 | F34: -20282.06 | G34: 0 | H34: 0 | I34: =E34+F34-G34+SUM(H34:H34) -> -82984.57693 | J34: -504023.92 | K34: -1558.28 | L34: 0 | M34: 0 | N34: =J34+K34-L34+M34 -> -505582.2 | O34: -82984.57693 | P34: 110.35 | Q34: 0 | R34: 0 | S34: -82874.22693 | T34: -505582.2 | U34: -4180.45 | V34: 0 | W34: 0 | X34: -509762.65 | Y34: -82874.22693 | AA34: -82984.57693 | AC34: 110.35 | AD34: -509762.65 | AF34: -509768.7719 | AH34: 6.121905957 | AI34: 0 | AJ34: 0 | AK34: 110.35 | AL34: 6.121905957 | AM34: 3.61948 | AO34: =AL34+AM34+AN34 -> 9.741385957 | AP34: No | AQ34: 0 | AR34: -7.275957614e-11 | AS34: -116.471906 | AT34: =IF(ABS(AS34)>1,"Please provide an explanation of the variance in the Manager's Summary","") -> Please provide an explanation of the variance in the Manager's Summary
C35: Disposition and Recovery/Refund of Regulatory Balances (2021)3 | D35: 1595 | E35: -493866.77 | F35: -150437.4 | G35: 0 | H35: 0 | I35: =E35+F35-G35+SUM(H35:H35) -> -644304.17 | J35: 634786.55 | K35: -12783.77 | L35: 0 | M35: 0 | N35: =J35+K35-L35+M35 -> 622002.78 | O35: -644304.17 | P35: -6740.9 | Q35: 0 | R35: 0 | S35: -651045.07 | T35: 622002.78 | U35: -32728.78 | V35: 0 | W35: 0 | X35: 589274 | Y35: -651045.07 | AA35: 0 | AC35: -651045.07 | AD35: 589274 | AF35: 0 | AH35: 589274 | AI35: -651045.07 | AJ35: 555777.7311 | AK35: 0 | AL35: 33496.26885 | AM35: 0 | AO35: =AL35+AM35+AN35 -> 33496.26885 | AP35: No | AQ35: 0 | AR35: -94440.74 | AS35: -32669.67 | AT35: =IF(ABS(AS35)>1,"Please provide an explanation of the variance in the Manager's Summary","") -> Please provide an explanation of the variance in the Manager's Summary
C36: Disposition and Recovery/Refund of Regulatory Balances (2022)3 | D36: 1595 | E36: 0 | F36: -6561561.54 | G36: -6701531.284 | H36: 0 | I36: =E36+F36-G36+SUM(H36:H36) -> 139969.7445 | J36: 0 | K36: 45345.46 | L36: -151655.5845 | M36: 0 | N36: =J36+K36-L36+M36 -> 197001.0445 | O36: 139969.7445 | P36: -73207.28 | Q36: 0 | R36: 0 | S36: 66762.46449 | T36: 197001.0445 | U36: 3316.12 | V36: 0 | W36: 0 | X36: 200317.1645 | Y36: =S36 -> 66762.46449 | AA36: 0 | AC36: =Y36+Z36-AA36+SUM(AB36:AB36) -> 66762.46449 | AD36: =X36 -> 200317.1645 | AF36: 0 | AH36: 200317.1645 | AI36: 0 | AJ36: 0 | AK36: 66762.46449 | AL36: 200317.1645 | AM36: 2189.808835 | AO36: =AL36+AM36+AN36 -> 202506.9733 | AP36: Yes | AQ36: 269269.4378 | AR36: 270368.89 | AS36: 3289.261038 | AT36: =IF(ABS(AS36)>1,"Please provide an explanation of the variance in the Manager's Summary","") -> Please provide an explanation of the variance in the Manager's Summary
C37: Disposition and Recovery/Refund of Regulatory Balances (2023)3 | D37: 1595 | E37: 0 | F37: 0 | G37: 0 | H37: 0 | I37: =E37+F37-G37+SUM(H37:H37) -> 0 | J37: 0 | K37: 0 | L37: 0 | M37: 0 | N37: =J37+K37-L37+M37 -> 0 | O37: =I37 -> 0 | P37: -25630419.4 | Q37: -25605189.41 | R37: 0 | S37: -25229.99346 | T37: 0 | U37: 594570.69 | V37: 442366.0882 | W37: 0 | X37: 152204.6018 | Y37: -25229.99346 | AA37: 0 | AC37: -25229.99346 | AD37: 152204.6018 | AF37: 0 | AH37: 152204.6018 | AI37: 0 | AJ37: 0 | AK37: -25229.99346 | AL37: 152204.6018 | AM37: -827.5437854 | AO37: =AL37+AM37+AN37 -> 151377.0581 | AP37: No | AQ37: =IF(AP37="YES",SUM(AK37:AN37),0) -> 0 | AR37: -103373.39 | AS37: =AR37-SUM(AC37,AH37) -> -230347.9984
C38: Disposition and Recovery/Refund of Regulatory Balances (2024)3 | D38: 1595 | E38: 0 | F38: 0 | G38: 0 | H38: 0 | I38: =E38+F38-G38+SUM(H38:H38) -> 0 | J38: 0 | K38: 0 | L38: 0 | M38: 0 | N38: =J38+K38-L38+M38 -> 0 | O38: =I38 -> 0 | P38: 0 | Q38: 0 | R38: 0 | S38: =O38+P38-Q38+SUM(R38:R38) -> 0 | T38: =N38 -> 0 | U38: 0 | V38: 0 | W38: 0 | X38: =T38+U38-V38+W38 -> 0 | Y38: =S38 -> 0 | AA38: -43976450.83 | AC38: =Y38+Z38-AA38+SUM(AB38:AB38) -> 43976450.83 | AD38: =X38 -> 0 | AF38: -1953925.204 | AH38: =AD38+AE38-AF38+AG38 -> 1953925.204 | AI38: 0 | AJ38: 0 | AK38: =AC38-AI38 -> 43976450.83 | AL38: =AH38-AJ38 -> 1953925.204 | AM38: 1442427.587 | AO38: =AL38+AM38+AN38 -> 3396352.791 | AP38: No | AQ38: 0 | AR38: 49725.55 | AS38: -45880650.48
C39: Disposition and Recovery/Refund of Regulatory Balances (2025)3 Not to be disposed of until two years after rate rider has expired and that balance has been audited. Refer to the Filing Requirements for disposition eligibility. | D39: 1595
A41: =A25 -> 0 | B41: =B25 -> 0 | C41: RSVA - Global Adjustment requested for disposition | D41: 1589 | E41: =E29 -> -7934624.444 | F41: =F29 -> -3715809.93 | G41: 599064.9276 | H41: 2417294.885 | I41: -9832204.417 | J41: =J29 -> 38225.03 | K41: -250233.18 | L41: 67676.83782 | M41: 0 | N41: -279684.9878 | O41: -9832204.417 | P41: 10554043.72 | Q41: -8533689.372 | R41: -2565639.106 | S41: 6689889.569 | T41: -279684.9878 | U41: 454106.28 | V41: -157243.8062 | W41: 0 | X41: 331665.0983 | Y41: 6689889.569 | Z41: 0 | AA41: =AA29 -> -1298515.045 | AB41: 0 | AC41: 7988404.614 | AD41: 331665.0983 | AE41: 0 | AF41: =AF29 -> -187951.2657 | AG41: 0 | AH41: 519616.364 | AI41: 7988404.614 | AJ41: 930619.7814 | AK41: 0 | AL41: -411003.4174 | AM41: 0 | AN41: 0 | AO41: -411003.4174 | AQ41: =AQ29 -> -411003.4174 | AR41: =AR29 -> 27066119 | AS41: =AR41-SUM(AC41,AH41) -> 18558098.02 | BE41: =AQ41 -> -411003.4174
A42: =SUM(A17:A31)-A25 -> 0 | B42: =SUM(B17:B31)-B25 -> 0 | C42: Total Group 1 Balance excluding Account 1589 - Global Adjustment requested for disposition | E42: =E43-E29 -> 29701014.85 | F42: =F43-F29 -> 27361091.19 | G42: =G43-G29 -> -4122912.872 | H42: =H43-H29 -> 940777.6791 | I42: 62125796.59 | J42: =J43-J29 -> -726358.1831 | K42: =K43-K29 -> 1038045.55 | L42: =L43-L29 -> -171623.0108 | M42: =M43-M29 -> 0 | N42: 483310.3777 | O42: 62125796.59 | P42: =P43-P29 -> -28566581.2 | Q42: =Q43-Q29 -> 2073985.407 | R42: =R43-R29 -> -563178.5399 | S42: 30922051.44 | T42: 483310.3777 | U42: =U43-U29 -> 2267535.56 | V42: =V43-V29 -> 19963.531 | W42: =W43-W29 -> 0 | X42: 2730882.407 | Y42: 30922051.44 | Z42: 0 | AA42: -9025072.394 | AB42: 0 | AC42: 39947123.84 | AD42: 2730882.407 | AE42: 0 | AF42: -105557.0424 | AG42: 0 | AH42: 2836439.449 | AI42: -4070969.81 | AJ42: 320534.9595 | AK42: =AK43-AK29 -> 44018093.65 | AL42: 2515904.49 | AM42: 1443793.472 | AN42: 0 | AO42: 3959697.961 | AQ42: =AQ43-AQ29 -> 445224.5657 | AR42: -616183.37 | AS42: =AS43-AS29 -> -40109633.73
A43: =SUM(A41,A42) -> 0 | B43: =SUM(B41,B42) -> 0 | C43: Total Group 1 Balance requested for disposition | E43: =SUM(E21:E38) -> 21766390.4 | F43: =SUM(F21:F38) -> 23645281.26 | G43: -3523847.945 | H43: 3358072.564 | I43: 52293592.17 | J43: -688133.1531 | K43: 787812.37 | L43: -103946.173 | M43: 0 | N43: 203625.3899 | O43: =SUM(O21:O38) -> 52293592.17 | P43: =SUM(P21:P38) -> -18012537.48 | Q43: -6459703.965 | R43: -3128817.646 | S43: 37611941.01 | T43: 203625.3899 | U43: 2721641.84 | V43: -137280.2752 | W43: 0 | X43: 3062547.505 | Y43: =SUM(Y21:Y38) -> 37611941.01 | Z43: =SUM(Z21:Z38) -> 0 | AA43: -10323587.44 | AB43: 0 | AC43: 47935528.45 | AD43: 3062547.505 | AE43: 0 | AF43: -293508.3081 | AG43: 0 | AH43: 3356055.813 | AI43: =SUM(AI21:AI38) -> 3917434.804 | AJ43: =SUM(AJ21:AJ38) -> 1251154.741 | AK43: 44018093.65 | AL43: 2104901.072 | AM43: =SUM(AM21:AM38) -> 1443793.472 | AN43: =SUM(AN21:AN38) -> 0 | AO43: =SUM(AO21:AO38) -> 3548694.544 | AQ43: =SUM(AQ21:AQ37) -> 34221.14827 | AR43: =SUM(AR21:AR38)-AR25 -> 26449935.63 | AS43: =SUM(AS21:AS38)-AS23 -> -21551535.71 | AZ43: =AB43 -> 0 | BA43: =AM43 -> 1443793.472 | BD43: =AQ43 -> 34221.14827
A45: 29 | C45: LRAM Variance Account (only input amounts if applying for disposition of this account) | D45: 1568 | E45: 8962735.57 | F45: 4302972.58 | G45: 3523847.945 | H45: 0 | I45: =E45+F45-G45+SUM(H45:H45) -> 9741860.206 | J45: 138064.7357 | K45: 131914.76 | L45: 103946.173 | M45: 0 | N45: =J45+K45-L45+M45 -> 166033.3227 | O45: =I45 -> 9741860.206 | P45: 3533003.41 | Q45: 6459703.965 | R45: 0 | S45: =O45+P45-Q45+SUM(R45:R45) -> 6815159.651 | T45: =N45 -> 166033.3227 | U45: 264755.26 | V45: 137280.2752 | W45: 0 | X45: =T45+U45-V45+W45 -> 293508.3075 | Y45: =S45 -> 6815159.651 | AA45: 10323587.44 | AC45: =Y45+Z45-AA45+SUM(AB45:AB45) -> -3508427.788 | AD45: =X45 -> 293508.3075 | AF45: 293508.3081 | AH45: =AD45+AE45-AF45+AG45 -> -0.0005813472671 | AI45: 3406011.504 | AJ45: 0 | AK45: =AC45-AI45 -> -6914439.292 | AL45: =AH45-AJ45 -> -0.0005813472671 | AO45: =AL45+AM45+AN45 -> -0.0005813472671 | AQ45: =SUM(AK45:AN45) -> -6914439.292 | AR45: 5.820766091e-11 | AS45: =AR45-SUM(AC45,AH45) -> 3508427.788 | AT45: Please provide an explanation of the variance in the Manager's Summary
C47: Total including Account 1568 | E47: =SUM(E43,E45) -> 30729125.98 | F47: 27948253.84 | G47: 0 | H47: 3358072.564 | I47: 62035452.38 | J47: -550068.4174 | K47: 919727.13 | L47: 0 | M47: 0 | N47: 369658.7126 | O47: 62035452.38 | P47: =SUM(P43,P45) -> -14479534.07 | Q47: 0 | R47: -3128817.646 | S47: 44427100.66 | T47: 369658.7126 | U47: =SUM(U43,U45) -> 2986397.1 | V47: 0 | W47: 0 | X47: 3356055.813 | Y47: 44427100.66 | Z47: 0 | AA47: 0 | AB47: 0 | AC47: 44427100.66 | AD47: 3356055.813 | AE47: 0 | AF47: 0 | AG47: 0 | AH47: 3356055.813 | AI47: =SUM(AI43,AI45) -> 7323446.308 | AJ47: 1251154.741 | AK47: 37103654.36 | AL47: 2104901.072 | AM47: 1443793.472 | AN47: 0 | AO47: 3548694.543 | AQ47: =SUM(AQ43,AQ45) -> -6880218.144 | AR47: =SUM(AR43,AR45) -> 26449935.63 | AS47: =ROUND(AS43+AS45,2) -> -18043107.92
C50: For all OEB-Approved dispositions, please ensure that the disposition amount has the same sign (e.g: debit balances are to have a positive figure and credit balance are to have a negative figure) as per the related OEB decision.
B53: 1 | C53: Please provide explanations for the nature of the adjustments. If the adjustment relates to previously OEB-Approved disposed balances, please provide amounts for adjustments and include supporting documentations.
B54: 2 | C54: For RSVA accounts only, report the net variance to the account during the year. For all other accounts, record the transactions during the year.
B55: 3 | C55: If the LDC’s rate year begins on January 1, 2017, the projected interest is recorded from January 1, 2016 to December 31, 2016 on the December 31, 2015 balances adjusted for the disposed balances approved by the OEB in the 2016 rate decision. If the LDC’s rate year begins on May 1, 2017, the projected interest is recorded from January 1, 2016 to April 30, 2017 on the December 31, 2015 balances adjusted for the disposed interest balances approved by the OEB in the 2016 rate decision.
B56: 4 | C56: Include Account 1595 as part of Group 1 accounts (lines 30-36) for review and disposition if the recovery (or refund) period has been completed. If the recovery (or refund) period has not been completed, do not include the respective balance in Account 1595 for disposition at this time.
C58: Account 1595 - adjustments (2016):
C59: These were required due to a comprehensive review of all the dispositions during 2015 and 2016. It was determined that there were a number of reporting errors. Past recovery billings were applied to the wrong year or there was transposition errors whereby billings were applied to interest rather than principal or vice versa.

Sheet 4. Billing Det. for Def-Var (hidden)
A1: Back to Index | K1: Yes
B2: =+'1. Info'!B2 -> 2027-2031 RTSR Workform | H2: Data on this worksheet has been populated using your most recent RRR filing.
H3: If you have identified any issues, please contact the OEB.
H4: Have you confirmed the accuracy of the data below?
H6: If a distributor uses the actual GA price to bill non-RPP Class B customers for an entire rate class, it must exclude these customers from the allocation of the GA balance and the calculation of the resulting rate riders. These rate classes are not to be charged/refunded the general GA rate rider as they did not contribute to the GA balance.
H12: Please contact the OEB to make adjustments to the IRM rate generator for this situation.
B14: ="Information from the most recent RRR ("&'3. Continuity Schedule'!AI16-1&" for "&'3. Continuity Schedule'!AI16+1&" IRM)" -> Information from the most recent RRR (2024 for 2026 IRM) | D14: 4 | E14: =+D14+1 -> 5 | F14: =+E14+1 -> 6 | G14: 7 | H14: 8 | I14: 9 | M14: source: LRAMVA Workform | N14: =+I14+3 -> 12
D15: Total Metered kWh | E15: Total Metered kW | F15: Metered kWh for Non-RPP Customers (excluding WMP) | G15: Metered kW for Non-RPP Customers (excluding WMP) | H15: Metered kWh for Wholesale Market Participants (WMP) | I15: Metered kW for Wholesale Market Participants (WMP) | J15: Total Metered kWh less WMP consumption (if applicable) | K15: Total Metered kW less WMP consumption (if applicable) | L15: 1595 Recovery Proportion (2022) 1 | M15: 1568 LRAM Variance Account Class Allocation ($ amounts) | N15: Number of Customers for Residential and GS<50 classes3
B16: Rate Class | C16: Unit
A17: =IF(B17="","",'1. Info'!$L$18&"_"&VLOOKUP(B17,Reference!A:F,6,FALSE)) ->  | B17: =IF('Model Specs'!C15=0,"",'Model Specs'!C15) -> RESIDENTIAL SERVICE CLASSIFICATION | C17: =IF(A17="","",VLOOKUP(B17,Reference!A:G,7,FALSE)) ->  | D17: 3025132486 | E17: 0 | F17: 21296144.45 | G17: 0 | H17: 0 | I17: 0 | J17: =IFERROR(D17-H17,0) -> 3025132486 | K17: =IFERROR(E17-I17,"") -> 0 | L17: 0.332775736 | M17: 0 | N17: 351734
A18: =IF(B18="","",'1. Info'!$L$18&"_"&VLOOKUP(B18,Reference!A:F,6,FALSE)) ->  | B18: =IF('Model Specs'!C16=0,"",'Model Specs'!C16) -> GENERAL SERVICE LESS THAN 50 KW SERVICE CLASSIFICATION | C18: =IF(A18="","",VLOOKUP(B18,Reference!A:G,7,FALSE)) ->  | D18: 1027917567 | E18: 0 | F18: 123500813.1 | G18: 0 | H18: 0 | I18: 0 | J18: =IFERROR(D18-H18,0) -> 1027917567 | K18: 0 | L18: 0.1147567551 | M18: 526883.2597 | N18: 34478
A19: =IF(B19="","",'1. Info'!$L$18&"_"&VLOOKUP(B19,Reference!A:F,6,FALSE)) ->  | B19: =IF('Model Specs'!C17=0,"",'Model Specs'!C17) -> GENERAL SERVICE 50 to 4,999 kW SERVICE CLASSIFICATION | C19: =IF(A19="","",VLOOKUP(B19,Reference!A:G,7,FALSE)) ->  | D19: 4810217506 | E19: 12300261.72 | F19: 4313695626 | G19: 11047785.63 | H19: 24955018.11 | I19: 58718.57437 | J19: 4785262488 | K19: 12241543.15 | L19: 0.5326035949 | M19: 2457291.32 | N19: 4551
A20: =IF(B20="","",'1. Info'!$L$18&"_"&VLOOKUP(B20,Reference!A:F,6,FALSE)) ->  | B20: =IF('Model Specs'!C18=0,"",'Model Specs'!C18) -> LARGE USE SERVICE CLASSIFICATION | C20: =IF(A20="","",VLOOKUP(B20,Reference!A:G,7,FALSE)) ->  | D20: 234289032.2 | E20: 434330.5732 | F20: 234289032.2 | G20: 434330.5732 | H20: 0 | I20: 0 | J20: 234289032.2 | K20: 434330.5732 | L20: 0.01376167426 | M20: 40931.08786 | N20: 3
A21: =IF(B21="","",'1. Info'!$L$18&"_"&VLOOKUP(B21,Reference!A:F,6,FALSE)) ->  | B21: =IF('Model Specs'!C19=0,"",'Model Specs'!C19) -> UNMETERED SCATTERED LOAD SERVICE CLASSIFICATION | C21: =IF(A21="","",VLOOKUP(B21,Reference!A:G,7,FALSE)) ->  | D21: 15207734.59 | E21: 0 | F21: 83565.00764 | G21: 0 | H21: 0 | I21: 0 | J21: 15207734.59 | K21: 0 | L21: 0.001637258758 | M21: 11775.14043 | N21: 3167
A22: =IF(B22="","",'1. Info'!$L$18&"_"&VLOOKUP(B22,Reference!A:F,6,FALSE)) ->  | B22: =IF('Model Specs'!C20=0,"",'Model Specs'!C20) -> STREET LIGHTING SERVICE CLASSIFICATION | C22: =IF(A22="","",VLOOKUP(B22,Reference!A:G,7,FALSE)) ->  | D22: 39805164.43 | E22: 111703.6733 | F22: 39209557.14 | G22: 110032.26 | H22: 0 | I22: 0 | J22: 39805164.43 | K22: 111703.6733 | L22: 0.004437039055 | M22: 375877.5093 | N22: 102061
A23: =IF(B23="","",'1. Info'!$L$18&"_"&VLOOKUP(B23,Reference!A:F,6,FALSE)) ->  | B23: =IF('Model Specs'!C21=0,"",'Model Specs'!C21) -> SENTINEL LIGHTING SERVICE CLASSIFICATION | C23: =IF(A23="","",VLOOKUP(B23,Reference!A:G,7,FALSE)) ->  | D23: 230494.7439 | E23: 625.9954229 | F23: 63186.85656 | G23: 171.6077439 | H23: 0 | I23: 0 | J23: 230494.7439 | K23: 625.9954229 | L23: 2.794193271e-05 | M23: 881.9588626 | N23: 139
A24: =IF(B24="","",'1. Info'!$L$18&"_"&VLOOKUP(B24,Reference!A:F,6,FALSE)) ->  | B24: =IF('Model Specs'!C22=0,"",'Model Specs'!C22) ->  | C24: =IF(A24="","",VLOOKUP(B24,Reference!A:G,7,FALSE)) ->  | J24: 0 | L24: 0
A25: =IF(B25="","",'1. Info'!$L$18&"_"&VLOOKUP(B25,Reference!A:F,6,FALSE)) ->  | B25: =IF('Model Specs'!C23=0,"",'Model Specs'!C23) ->  | C25: =IF(A25="","",VLOOKUP(B25,Reference!A:G,7,FALSE)) ->  | J25: 0 | K25: =IFERROR(E25-I25,"") ->  | L25: 0
A26: =IF(B26="","",'1. Info'!$L$18&"_"&VLOOKUP(B26,Reference!A:F,6,FALSE)) ->  | B26: =IF('Model Specs'!C24=0,"",'Model Specs'!C24) ->  | C26: =IF(A26="","",VLOOKUP(B26,Reference!A:G,7,FALSE)) ->  | J26: =IFERROR(D26-H26,0) -> 0 | K26: =IFERROR(E26-I26,"") ->  | L26: 0
C28: Total | D28: =SUM(D17:D27) -> 9152799985 | E28: 12846921.96 | F28: 4732137925 | G28: 11592320.07 | H28: 24955018.11 | I28: 58718.57437 | J28: 9127844967 | K28: 12788203.39 | L28: 1 | M28: 3413640.277 | N28: 496133
B31: Threshold Test | M31: 1568 Account Balance from Continuity Schedule | N31: ='3. Continuity Schedule'!AQ45 -> -6914439.292
B32: Total Claim (including Account 1568) | D32: =+'3. Continuity Schedule'!AQ47 -> -6880218.144 | M32: =IF(N31=M28,"Total Balance of Account 1568 in Column R matches the amount entered on the Continuity Schedule","Total Balance of Account 1568 in Column T DOES NOT MATCH the amount entered on the Continuity Schedule") -> Total Balance of Account 1568 in Column T DOES NOT MATCH the amount entered on the Continuity Schedule
B33: Total Claim for Threshold Test (All Group 1 Accounts) | D33: =+'3. Continuity Schedule'!AQ43 -> 34221.14827
B34: Threshold Test (Total claim per kWh) 2 | D34: =IFERROR(D33/D28,"") -> 3.738872075e-06
B35: Exceeds Threshold? | D35: =IF(D34="","",IF(OR(D34>0.001,D34<-0.001),"Yes","No")) -> No
B36: ELECT TO DISPOSE of the Group 1 Account Balances? | D36: Yes
B39: As per Section 3.2.5 of the 2017 Filing Requirements for Electricity Distribution Rate Applications, an applicant may elect to dispose of the Group 1 account balances below the threshold.
B40: 1 Residual Account balance to be allocated to rate classes in proportion to the recovery share as established when rate riders were implemented.
B41: 2 The Threshold Test does not include the amount in 1568.
B42: 3 The proportion of customers for the Residential and GS<50 Classes will be used to allocate Account 1551.

Sheet 5. Allocating Def-Var Balances (hidden)
A1: Back to Index
B2: =+'1. Info'!B2 -> 2027-2031 RTSR Workform
B11: No input required. This workshseet allocates the deferral/variance account balances (Group 1 and 1568) to the appropriate classes as per EDDVAR dated July 31, 2009
B13: Allocation of Group 1 Accounts (including Account 1568)
C14: % of Total kWh | D14: % of Total non-RPP kWh | E14: % of Customer Numbers ** | F14: % of Total kWh adjusted for WMP | I14: allocated based on Total less WMP | L14: allocated based on Total less WMP | M14: 1595_(2022) | N14: 1568
B15: Rate Class | G15: 1550 | H15: 1551 | I15: 1580 | J15: 1584 | K15: 1586 | L15: 1588
B16: ='4. Billing Det. for Def-Var'!B17 -> RESIDENTIAL SERVICE CLASSIFICATION | C16: =IF(B16="","",IFERROR('4. Billing Det. for Def-Var'!D17/'4. Billing Det. for Def-Var'!D$28,"")) -> 0.3305144318 | D16: =IF(B16="","",IFERROR('4. Billing Det. for Def-Var'!F17/'4. Billing Det. for Def-Var'!F$28,"")) -> 0.004500322009 | E16: =IF(B16="","",IFERROR('4. Billing Det. for Def-Var'!N17/SUM('4. Billing Det. for Def-Var'!$N$17:$N$18),"")) -> 0.9107277868 | F16: =IF(B16="","",IFERROR('4. Billing Det. for Def-Var'!J17/'4. Billing Det. for Def-Var'!J$28,"")) -> 0.3314180398 | G16: =IF(B16="","",IFERROR(G$27*C16,"")) -> -16367.16628 | H16: =IF(B16="","",IFERROR(H$27*E16,"")) -> 27569.18303 | I16: =IF(B16="","",IFERROR(I$27*F16,"")) -> 134278.8499 | J16: =IF(B16="","",IFERROR(J$27*$C16,"")) -> -84470.61338 | K16: =IF(B16="","",IFERROR(K$27*$C16,"")) -> -46301.12555 | L16: =IF(B16="","",IFERROR(L$27*$F16,"")) -> 61544.47567 | M16: =IF(B16="","",'4. Billing Det. for Def-Var'!L17*M$27) -> 0 | N16: =IF(B16="","",'4. Billing Det. for Def-Var'!M17) -> 0
B17: ='4. Billing Det. for Def-Var'!B18 -> GENERAL SERVICE LESS THAN 50 KW SERVICE CLASSIFICATION | C17: =IF(B17="","",IFERROR('4. Billing Det. for Def-Var'!D18/'4. Billing Det. for Def-Var'!D$28,"")) -> 0.1123063509 | D17: =IF(B17="","",IFERROR('4. Billing Det. for Def-Var'!F18/'4. Billing Det. for Def-Var'!F$28,"")) -> 0.02609831224 | E17: =IF(B17="","",IFERROR('4. Billing Det. for Def-Var'!N18/SUM('4. Billing Det. for Def-Var'!$N$17:$N$18),"")) -> 0.08927221319 | F17: =IF(B17="","",IFERROR('4. Billing Det. for Def-Var'!J18/'4. Billing Det. for Def-Var'!J$28,"")) -> 0.1126133902 | G17: -5561.441627 | H17: 2702.412313 | I17: 45626.95659 | J17: -28702.4875 | K17: -15732.77882 | L17: 20912.35606 | M17: =IF(B17="","",'4. Billing Det. for Def-Var'!L18*M$27) -> 0 | N17: =IF(B17="","",'4. Billing Det. for Def-Var'!M18) -> 526883.2597
B18: ='4. Billing Det. for Def-Var'!B19 -> GENERAL SERVICE 50 to 4,999 kW SERVICE CLASSIFICATION | C18: =IF(B18="","",IFERROR('4. Billing Det. for Def-Var'!D19/'4. Billing Det. for Def-Var'!D$28,"")) -> 0.5255460093 | D18: =IF(B18="","",IFERROR('4. Billing Det. for Def-Var'!F19/'4. Billing Det. for Def-Var'!F$28,"")) -> 0.9115743655 | E18: =IF(B18="","",IFERROR('4. Billing Det. for Def-Var'!N19/'4. Billing Det. for Def-Var'!N$28,""))*0 -> 0 | F18: =IF(B18="","",IFERROR('4. Billing Det. for Def-Var'!J19/'4. Billing Det. for Def-Var'!J$28,"")) -> 0.5242488786 | G18: -26025.18406 | H18: 0 | I18: 212407.0751 | J18: -134315.4474 | K18: -73622.72088 | L18: 97353.2472 | M18: =IF(B18="","",'4. Billing Det. for Def-Var'!L19*M$27) -> 0 | N18: =IF(B18="","",'4. Billing Det. for Def-Var'!M19) -> 2457291.32
B19: ='4. Billing Det. for Def-Var'!B20 -> LARGE USE SERVICE CLASSIFICATION | C19: =IF(B19="","",IFERROR('4. Billing Det. for Def-Var'!D20/'4. Billing Det. for Def-Var'!D$28,"")) -> 0.02559752563 | D19: =IF(B19="","",IFERROR('4. Billing Det. for Def-Var'!F20/'4. Billing Det. for Def-Var'!F$28,"")) -> 0.04951018671 | E19: =IF(B19="","",IFERROR('4. Billing Det. for Def-Var'!N20/'4. Billing Det. for Def-Var'!N$28,""))*0 -> 0 | F19: =IF(B19="","",IFERROR('4. Billing Det. for Def-Var'!J20/'4. Billing Det. for Def-Var'!J$28,"")) -> 0.02566750783 | G19: -1267.596565 | H19: 0 | I19: 10399.56495 | J19: -6542.040174 | K19: -3585.907706 | L19: 4766.467488 | M19: =IF(B19="","",'4. Billing Det. for Def-Var'!L20*M$27) -> 0 | N19: =IF(B19="","",'4. Billing Det. for Def-Var'!M20) -> 40931.08786
B20: ='4. Billing Det. for Def-Var'!B21 -> UNMETERED SCATTERED LOAD SERVICE CLASSIFICATION | C20: =IF(B20="","",IFERROR('4. Billing Det. for Def-Var'!D21/'4. Billing Det. for Def-Var'!D$28,"")) -> 0.00166153905 | D20: =IF(B20="","",IFERROR('4. Billing Det. for Def-Var'!F21/'4. Billing Det. for Def-Var'!F$28,"")) -> 1.765903889e-05 | E20: =IF(B20="","",IFERROR('4. Billing Det. for Def-Var'!N21/'4. Billing Det. for Def-Var'!N$28,""))*0 -> 0 | F20: =IF(B20="","",IFERROR('4. Billing Det. for Def-Var'!J21/'4. Billing Det. for Def-Var'!J$28,"")) -> 0.001666081605 | G20: -82.27987434 | H20: 0 | I20: 675.0372486 | J20: -424.6447635 | K20: -232.7617822 | L20: 309.3920864 | M20: =IF(B20="","",'4. Billing Det. for Def-Var'!L21*M$27) -> 0 | N20: =IF(B20="","",'4. Billing Det. for Def-Var'!M21) -> 11775.14043
B21: ='4. Billing Det. for Def-Var'!B22 -> STREET LIGHTING SERVICE CLASSIFICATION | C21: =IF(B21="","",IFERROR('4. Billing Det. for Def-Var'!D22/'4. Billing Det. for Def-Var'!D$28,"")) -> 0.004348960373 | D21: =IF(B21="","",IFERROR('4. Billing Det. for Def-Var'!F22/'4. Billing Det. for Def-Var'!F$28,"")) -> 0.008285801843 | E21: =IF(B21="","",IFERROR('4. Billing Det. for Def-Var'!N22/'4. Billing Det. for Def-Var'!N$28,""))*0 -> 0 | F21: =IF(B21="","",IFERROR('4. Billing Det. for Def-Var'!J22/'4. Billing Det. for Def-Var'!J$28,"")) -> 0.004360850187 | G21: -215.3617232 | H21: 0 | I21: 1766.862021 | J21: -1111.477487 | K21: -609.2374216 | L21: 809.8117967 | M21: =IF(B21="","",'4. Billing Det. for Def-Var'!L22*M$27) -> 0 | N21: =IF(B21="","",'4. Billing Det. for Def-Var'!M22) -> 375877.5093
B22: ='4. Billing Det. for Def-Var'!B23 -> SENTINEL LIGHTING SERVICE CLASSIFICATION | C22: =IF(B22="","",IFERROR('4. Billing Det. for Def-Var'!D23/'4. Billing Det. for Def-Var'!D$28,"")) -> 2.518297617e-05 | D22: =IF(B22="","",IFERROR('4. Billing Det. for Def-Var'!F23/'4. Billing Det. for Def-Var'!F$28,"")) -> 1.335270813e-05 | E22: =IF(B22="","",IFERROR('4. Billing Det. for Def-Var'!N23/'4. Billing Det. for Def-Var'!N$28,""))*0 -> 0 | F22: =IF(B22="","",IFERROR('4. Billing Det. for Def-Var'!J23/'4. Billing Det. for Def-Var'!J$28,"")) -> 2.525182502e-05 | G22: -1.247067961 | H22: 0 | I22: 10.231145 | J22: -6.436092465 | K22: -3.527834277 | L22: 4.689275007 | M22: =IF(B22="","",'4. Billing Det. for Def-Var'!L23*M$27) -> 0 | N22: =IF(B22="","",'4. Billing Det. for Def-Var'!M23) -> 881.9588626
B23: ='4. Billing Det. for Def-Var'!B24 ->  | C23: =IF(B23="","",IFERROR('4. Billing Det. for Def-Var'!D24/'4. Billing Det. for Def-Var'!D$28,"")) ->  | D23: =IF(B23="","",IFERROR('4. Billing Det. for Def-Var'!F24/'4. Billing Det. for Def-Var'!F$28,"")) ->  | E23: =IF(B23="","",IFERROR('4. Billing Det. for Def-Var'!N24/'4. Billing Det. for Def-Var'!N$28,"")) ->  | F23: =IF(B23="","",IFERROR('4. Billing Det. for Def-Var'!J24/'4. Billing Det. for Def-Var'!J$28,"")) ->  | M23: =IF(B23="","",'4. Billing Det. for Def-Var'!L24*M$27) ->  | N23: =IF(B23="","",'4. Billing Det. for Def-Var'!M24) -> 
B24: ='4. Billing Det. for Def-Var'!B25 ->  | C24: =IF(B24="","",IFERROR('4. Billing Det. for Def-Var'!D25/'4. Billing Det. for Def-Var'!D$28,"")) ->  | D24: =IF(B24="","",IFERROR('4. Billing Det. for Def-Var'!F25/'4. Billing Det. for Def-Var'!F$28,"")) ->  | E24: =IF(B24="","",IFERROR('4. Billing Det. for Def-Var'!N25/'4. Billing Det. for Def-Var'!N$28,"")) ->  | F24: =IF(B24="","",IFERROR('4. Billing Det. for Def-Var'!J25/'4. Billing Det. for Def-Var'!J$28,"")) ->  | M24: =IF(B24="","",'4. Billing Det. for Def-Var'!L25*M$27) ->  | N24: =IF(B24="","",'4. Billing Det. for Def-Var'!M25) -> 
B25: ='4. Billing Det. for Def-Var'!B26 ->  | C25: =IF(B25="","",IFERROR('4. Billing Det. for Def-Var'!D26/'4. Billing Det. for Def-Var'!D$28,"")) ->  | D25: =IF(B25="","",IFERROR('4. Billing Det. for Def-Var'!F26/'4. Billing Det. for Def-Var'!F$28,"")) ->  | E25: =IF(B25="","",IFERROR('4. Billing Det. for Def-Var'!N26/'4. Billing Det. for Def-Var'!N$28,"")) ->  | F25: =IF(B25="","",IFERROR('4. Billing Det. for Def-Var'!J26/'4. Billing Det. for Def-Var'!J$28,"")) ->  | G25: =IF(B25="","",IFERROR(G$27*C25,"")) ->  | H25: =IF(B25="","",IFERROR(H$27*E25,"")) ->  | I25: =IF(B25="","",IFERROR(I$27*F25,"")) ->  | J25: =IF(B25="","",IFERROR(J$27*$C25,"")) ->  | K25: =IF(B25="","",IFERROR(K$27*$C25,"")) ->  | L25: =IF(B25="","",IFERROR(L$27*$F25,"")) ->  | M25: =IF(B25="","",'4. Billing Det. for Def-Var'!L26*M$27) ->  | N25: =IF(B25="","",'4. Billing Det. for Def-Var'!M26) -> 
C27: =SUM(C16:C26) -> 1 | D27: =SUM(D16:D26) -> 1 | E27: =SUM(E16:E26) -> 1 | F27: =SUM(F16:F26) -> 1 | G27: ='3. Continuity Schedule'!AQ21 -> -49520.2772 | H27: ='3. Continuity Schedule'!AQ22 -> 30271.59534 | I27: ='3. Continuity Schedule'!AQ23+(IF('6.2 CBR B'!$U$18="TRUE",'6.2a CBR B_Allocation'!D27,0)) -> 405164.5769 | J27: ='3. Continuity Schedule'!AQ26 -> -255573.1467 | K27: ='3. Continuity Schedule'!AQ27 -> -140088.06 | L27: ='3. Continuity Schedule'!AQ28 -> 185700.4396 | M27: =IF('3. Continuity Schedule'!$AP35="Yes",'3. Continuity Schedule'!$AQ35,0) -> 0 | N27: =SUM(N16:N26) -> 3413640.277
G28: =SUM(G16:G26)-G27 -> 0 | H28: 0 | I28: 0 | J28: 0 | K28: 0 | L28: 0 | N28: =SUM(N16:N26)-N27 -> 0
B31: ** Used to allocate Account 1551 as this account records the variances arising from the Smart Metering Entity Charges to Residential and GS<50 customers.

Sheet 6. Class A Consumption Data (hidden)
A1: Back to Index
B2: =+'1. Info'!B2 -> 2027-2031 RTSR Workform
A12: 1a | B12: The year Account 1589 GA was last disposed | C12: ='1. Info'!G34 -> 2023
C14: Years since Account 1589 GA balance was last disposed (up to 2016) | F14: 2016 | H14: 2015 | J14: 2014 | L14: 2013 | N14: 2012
A15: 1b | B15: The year Account 1580 CBR Class B was last disposed | C15: ='1. Info'!G41 -> 2023 | D15: Note that the sub-account was established in 2015.
A17: 2a | B17: Did you have any customers who transitioned between Class A and Class B (transition customers) during the period the Account 1589 GA balance accumulated (i.e. from the year after the balance was last disposed per #1a above to the current year requested for disposition)? | C17: Yes | D17: (If you received approval to dispose of the CBR Class B account balance as at December 31, 2017, the period the GA variance accumulated would be 2018 to 2020.)
A19: 2b | B19: Did you have any customers who transitioned between Class A and Class B (transition customers) during the period the Account 1580, sub-account CBR Class B balance accumulated (i.e. from the year after the balance was last disposed per #1b above to the current year requested for disposition)? | C19: Yes | D19: (If you received approval to dispose of the CBR Class B account balance as at December 31, 2017, the period the GA variance accumulated would be 2018 to 2020.)
A23: 3a | B23: Enter the number of transition customer you had during the period the Account 1589 GA or Account 1580 CBR B balance accumulated (i.e. from the year after the balance was last disposed per #1a/1b above to the current year requested for disposition). | C23: =COUNTA(D29:D478) -> 0
C26: Transition Customers - Non-loss Adjusted Billing Determinants by Customer
C27: Customer | D27: Rate Class | F27: ='3. Continuity Schedule'!AI16-1 -> 2024 | H27: Do NOT Delete These Columns
F28: January to June | G28: July to December | K28: CC | L28: CC
C29: Customer 1 | E29: kWh | H29: =F31 -> 0 | I29: =G31 -> 0 | J29: =IF(E29="kw",D28&E29,"") -> 
E30: kW | J30: =IF(E30="kw",D29&E30,"") -> kW
E31: Class A/B
C32: ="Customer "&RIGHT(C29,1)+1 -> Customer 2 | E32: kWh | H32: =F34 -> 0 | I32: =G34 -> 0
E33: kW | J33: kW
E34: Class A/B
C35: ="Customer "&RIGHT(C32,1)+1 -> Customer 3 | E35: kWh | H35: =F37 -> 0 | I35: =G37 -> 0
E36: kW | J36: kW
E37: Class A/B
C38: ="Customer "&RIGHT(C35,1)+1 -> Customer 4 | E38: kWh | H38: =F40 -> 0 | I38: =G40 -> 0
E39: kW | J39: kW
E40: Class A/B
C41: ="Customer "&RIGHT(C38,1)+1 -> Customer 5 | E41: kWh | H41: =F43 -> 0 | I41: =G43 -> 0
E42: kW | J42: kW
E43: Class A/B
C44: ="Customer "&RIGHT(C41,1)+1 -> Customer 6 | E44: kWh | H44: =F46 -> 0 | I44: =G46 -> 0
E45: kW | J45: kW
E46: Class A/B
C47: ="Customer "&RIGHT(C44,1)+1 -> Customer 7 | E47: kWh | H47: =F49 -> 0 | I47: =G49 -> 0
E48: kW | J48: kW
E49: Class A/B
C50: ="Customer "&RIGHT(C47,1)+1 -> Customer 8 | E50: kWh | H50: =F52 -> 0 | I50: =G52 -> 0
E51: kW | J51: kW
E52: Class A/B
C53: ="Customer "&RIGHT(C50,1)+1 -> Customer 9 | E53: kWh | H53: =F55 -> 0 | I53: =G55 -> 0
E54: kW | J54: kW
E55: Class A/B
C56: ="Customer "&RIGHT(C53,1)+1 -> Customer 10 | E56: kWh | H56: =F58 -> 0 | I56: =G58 -> 0
E57: kW | J57: kW
E58: Class A/B
C59: ="Customer "&RIGHT(C56,2)+1 -> Customer 11 | E59: kWh | H59: =F61 -> 0 | I59: =G61 -> 0
E60: kW | J60: kW
E61: Class A/B
C62: ="Customer "&RIGHT(C59,2)+1 -> Customer 12 | E62: kWh | H62: =F64 -> 0 | I62: =G64 -> 0
E63: kW | J63: kW
E64: Class A/B
C65: ="Customer "&RIGHT(C62,2)+1 -> Customer 13 | E65: kWh | H65: =F67 -> 0 | I65: =G67 -> 0
E66: kW | J66: kW
E67: Class A/B
C68: ="Customer "&RIGHT(C65,2)+1 -> Customer 14 | E68: kWh | H68: =F70 -> 0 | I68: =G70 -> 0
E69: kW | J69: kW
E70: Class A/B
C71: ="Customer "&RIGHT(C68,2)+1 -> Customer 15 | E71: kWh | H71: =F73 -> 0 | I71: =G73 -> 0
E72: kW | J72: kW
E73: Class A/B
C74: ="Customer "&RIGHT(C71,2)+1 -> Customer 16 | E74: kWh | H74: =F76 -> 0 | I74: =G76 -> 0
E75: kW | J75: kW
E76: Class A/B
C77: ="Customer "&RIGHT(C74,2)+1 -> Customer 17 | E77: kWh | H77: =F79 -> 0 | I77: =G79 -> 0
E78: kW | J78: kW
E79: Class A/B
C80: ="Customer "&RIGHT(C77,2)+1 -> Customer 18 | E80: kWh | H80: =F82 -> 0 | I80: =G82 -> 0
E81: kW | J81: kW
E82: Class A/B
C83: ="Customer "&RIGHT(C80,2)+1 -> Customer 19 | E83: kWh | H83: =F85 -> 0 | I83: =G85 -> 0
E84: kW | J84: kW
E85: Class A/B
C86: ="Customer "&RIGHT(C83,2)+1 -> Customer 20 | E86: kWh | H86: =F88 -> 0 | I86: =G88 -> 0
E87: kW | J87: kW
E88: Class A/B
C89: ="Customer "&RIGHT(C86,2)+1 -> Customer 21 | E89: kWh | H89: =F91 -> 0 | I89: =G91 -> 0
E90: kW | J90: kW
E91: Class A/B
C92: ="Customer "&RIGHT(C89,2)+1 -> Customer 22 | E92: kWh | H92: =F94 -> 0 | I92: =G94 -> 0
E93: kW | J93: kW
E94: Class A/B | J94: =IF(E94="kw",D93&E94,"") -> 
C95: ="Customer "&RIGHT(C92,2)+1 -> Customer 23 | E95: kWh | H95: =F97 -> 0 | I95: =G97 -> 0
E96: kW | J96: kW
E97: Class A/B
C98: ="Customer "&RIGHT(C95,2)+1 -> Customer 24 | E98: kWh | H98: =F100 -> 0 | I98: =G100 -> 0
E99: kW | J99: kW
E100: Class A/B
C101: ="Customer "&RIGHT(C98,2)+1 -> Customer 25 | E101: kWh | H101: =F103 -> 0 | I101: =G103 -> 0
E102: kW | J102: kW
E103: Class A/B
C104: ="Customer "&RIGHT(C101,2)+1 -> Customer 26 | E104: kWh | H104: =F106 -> 0 | I104: =G106 -> 0
E105: kW | J105: kW
E106: Class A/B
C107: ="Customer "&RIGHT(C104,2)+1 -> Customer 27 | E107: kWh | H107: =F109 -> 0 | I107: =G109 -> 0
E108: kW | J108: kW
E109: Class A/B
C110: ="Customer "&RIGHT(C107,2)+1 -> Customer 28 | E110: kWh | H110: =F112 -> 0 | I110: =G112 -> 0
E111: kW | J111: kW
E112: Class A/B
C113: ="Customer "&RIGHT(C110,2)+1 -> Customer 29 | E113: kWh | H113: =F115 -> 0 | I113: =G115 -> 0
E114: kW | J114: kW
E115: Class A/B
C116: ="Customer "&RIGHT(C113,2)+1 -> Customer 30 | E116: kWh | H116: =F118 -> 0 | I116: =G118 -> 0
E117: kW | J117: kW
E118: Class A/B
C119: ="Customer "&RIGHT(C116,2)+1 -> Customer 31 | E119: kWh | H119: =F121 -> 0 | I119: =G121 -> 0
E120: kW | J120: kW
E121: Class A/B
C122: ="Customer "&RIGHT(C119,2)+1 -> Customer 32 | E122: kWh | H122: =F124 -> 0 | I122: =G124 -> 0
E123: kW | J123: kW
E124: Class A/B
C125: ="Customer "&RIGHT(C122,2)+1 -> Customer 33 | E125: kWh | H125: =F127 -> 0 | I125: =G127 -> 0
E126: kW | J126: kW
E127: Class A/B
C128: ="Customer "&RIGHT(C125,2)+1 -> Customer 34 | E128: kWh | H128: =F130 -> 0 | I128: =G130 -> 0
E129: kW | J129: kW
E130: Class A/B
C131: ="Customer "&RIGHT(C128,2)+1 -> Customer 35 | E131: kWh | H131: =F133 -> 0 | I131: =G133 -> 0
E132: kW | J132: kW
E133: Class A/B
C134: ="Customer "&RIGHT(C131,2)+1 -> Customer 36 | E134: kWh | H134: =F136 -> 0 | I134: =G136 -> 0
E135: kW | J135: kW
E136: Class A/B
C137: ="Customer "&RIGHT(C134,2)+1 -> Customer 37 | E137: kWh | H137: =F139 -> 0 | I137: =G139 -> 0
E138: kW | J138: kW
E139: Class A/B
C140: ="Customer "&RIGHT(C137,2)+1 -> Customer 38 | E140: kWh | H140: =F142 -> 0 | I140: =G142 -> 0
E141: kW | J141: kW
E142: Class A/B
C143: ="Customer "&RIGHT(C140,2)+1 -> Customer 39 | E143: kWh | H143: =F145 -> 0 | I143: =G145 -> 0
E144: kW | J144: kW
E145: Class A/B
C146: ="Customer "&RIGHT(C143,2)+1 -> Customer 40 | E146: kWh | H146: =F148 -> 0 | I146: =G148 -> 0
E147: kW | J147: kW
E148: Class A/B
C149: ="Customer "&RIGHT(C146,2)+1 -> Customer 41 | E149: kWh | H149: =F151 -> 0 | I149: =G151 -> 0
E150: kW | J150: kW
E151: Class A/B
C152: ="Customer "&RIGHT(C149,2)+1 -> Customer 42 | E152: kWh | H152: =F154 -> 0 | I152: =G154 -> 0
E153: kW | J153: kW
E154: Class A/B
C155: ="Customer "&RIGHT(C152,2)+1 -> Customer 43 | E155: kWh | H155: =F157 -> 0 | I155: =G157 -> 0
E156: kW | J156: kW
E157: Class A/B
C158: ="Customer "&RIGHT(C155,2)+1 -> Customer 44 | E158: kWh | H158: =F160 -> 0 | I158: =G160 -> 0 | J158: =IF(E158="kw",D157&E158,"") -> 
E159: kW | J159: kW
E160: Class A/B
C161: ="Customer "&RIGHT(C158,2)+1 -> Customer 45 | E161: kWh | H161: =F163 -> 0 | I161: =G163 -> 0
E162: kW | J162: kW
E163: Class A/B
C164: ="Customer "&RIGHT(C161,2)+1 -> Customer 46 | E164: kWh | H164: =F166 -> 0 | I164: =G166 -> 0
E165: kW | J165: kW
E166: Class A/B
C167: ="Customer "&RIGHT(C164,2)+1 -> Customer 47 | E167: kWh | H167: =F169 -> 0 | I167: =G169 -> 0
E168: kW | J168: kW
E169: Class A/B
C170: ="Customer "&RIGHT(C167,2)+1 -> Customer 48 | E170: kWh | H170: =F172 -> 0 | I170: =G172 -> 0
E171: kW | J171: kW
E172: Class A/B
C173: ="Customer "&RIGHT(C170,2)+1 -> Customer 49 | E173: kWh | H173: =F175 -> 0 | I173: =G175 -> 0
E174: kW | J174: kW
E175: Class A/B
C176: ="Customer "&RIGHT(C173,2)+1 -> Customer 50 | E176: kWh | H176: =F178 -> 0 | I176: =G178 -> 0
E177: kW | J177: kW
E178: Class A/B
C179: ="Customer "&RIGHT(C176,2)+1 -> Customer 51 | E179: kWh | H179: =F181 -> 0 | I179: =G181 -> 0
E180: kW | J180: kW
E181: Class A/B
C182: ="Customer "&RIGHT(C179,2)+1 -> Customer 52 | E182: kWh | H182: =F184 -> 0 | I182: =G184 -> 0
E183: kW | J183: kW
E184: Class A/B
C185: ="Customer "&RIGHT(C182,2)+1 -> Customer 53 | E185: kWh | H185: =F187 -> 0 | I185: =G187 -> 0
E186: kW | J186: kW
E187: Class A/B
C188: ="Customer "&RIGHT(C185,2)+1 -> Customer 54 | E188: kWh | H188: =F190 -> 0 | I188: =G190 -> 0
E189: kW | J189: kW
E190: Class A/B
C191: ="Customer "&RIGHT(C188,2)+1 -> Customer 55 | E191: kWh | H191: =F193 -> 0 | I191: =G193 -> 0
E192: kW | J192: kW
E193: Class A/B
C194: ="Customer "&RIGHT(C191,2)+1 -> Customer 56 | E194: kWh | H194: =F196 -> 0 | I194: =G196 -> 0
E195: kW | J195: kW
E196: Class A/B
C197: ="Customer "&RIGHT(C194,2)+1 -> Customer 57 | E197: kWh | H197: =F199 -> 0 | I197: =G199 -> 0
E198: kW | J198: kW
E199: Class A/B
C200: ="Customer "&RIGHT(C197,2)+1 -> Customer 58 | E200: kWh | H200: =F202 -> 0 | I200: =G202 -> 0
E201: kW | J201: kW
E202: Class A/B
C203: ="Customer "&RIGHT(C200,2)+1 -> Customer 59 | E203: kWh | H203: =F205 -> 0 | I203: =G205 -> 0
E204: kW | J204: kW
E205: Class A/B
C206: ="Customer "&RIGHT(C203,2)+1 -> Customer 60 | E206: kWh | H206: =F208 -> 0 | I206: =G208 -> 0
E207: kW | J207: kW
E208: Class A/B
C209: ="Customer "&RIGHT(C206,2)+1 -> Customer 61 | E209: kWh | H209: =F211 -> 0 | I209: =G211 -> 0
E210: kW | J210: kW
E211: Class A/B
C212: ="Customer "&RIGHT(C209,2)+1 -> Customer 62 | E212: kWh | H212: =F214 -> 0 | I212: =G214 -> 0
E213: kW | J213: kW
E214: Class A/B
C215: ="Customer "&RIGHT(C212,2)+1 -> Customer 63 | E215: kWh | H215: =F217 -> 0 | I215: =G217 -> 0
E216: kW | J216: kW
E217: Class A/B
... 565 more rows

Sheet 6.1a GA Allocation (hidden)
A1: Back to Index
B2: =+'1. Info'!B2 -> 2027-2031 RTSR Workform
B11: This tab allocates the GA balance to transition customers (i.e Class A customers who were former Class B customers and Class B customers who were former Class A customers) who contributed to the current GA balance. The tables below calculate specific amounts for each customer who made the change. The general GA rate rider to non-RPP customers is not to be charged to the transition customers that are allocated amounts in the table below. Consistent with prior decisions, distributors are generally expected to settle the amount through 12 equal adjustments to bills.
B14: Year the Account 1589 GA Balance Last Disposed | C14: ='1. Info'!G36 -> 2023
B16: Allocation of total Non-RPP Consumption (kWh) between Current Class B and Class A/B Transition Customers
D17: Total | E17: ='6. Class A Consumption Data'!F27 -> 2024 | F17: =E17-1 -> 2023 | G17: =F17-1 -> 2022
B18: Non-RPP Consumption Less WMP Consumption | C18: A | D18: =SUM(E18:G18) -> 4732137925 | E18: ='4. Billing Det. for Def-Var'!F28 -> 4732137925
B19: Less Class A Consumption for Partial Year Class A Customers | C19: B | D19: =SUM(E19:G19) -> 0 | E19: =SUM(IF('6. Class A Consumption Data'!$H:$I="a",'6. Class A Consumption Data'!$F:$G)) -> 0
B20: Less Consumption for Full Year Class A Customers | C20: C | D20: =SUM(E20:G20) -> 1712019027 | E20: ='6.1 GA'!E27 -> 1712019027
B21: Total Class B Consumption for Years During Balance Accumulation | C21: D = A-B-C | D21: =SUM(E21:G21) -> 3020118898 | E21: =E18-E19-E20 -> 3020118898
B22: All Class B Consumption for Transition Customers | C22: E | D22: =SUM(E22:G22) -> 0 | E22: =E192 -> 0
B23: Transition Customers' Portion of Total Consumption | C23: F = E/D | D23: =D22/D21 -> 0 | F23: =IFERROR(+#REF!/F18,0) -> 0
B26: Allocation of Total GA Balance $
B28: Total GA Balance | C28: G | D28: ='3. Continuity Schedule'!AQ29 -> -411003.4174
B29: Transition Customers Portion of GA Balance | C29: H=F*G | D29: =+D23*D28 -> 0
B30: GA Balance to be disposed to Current Class B Customers through Rate Rider | C30: I=G-H | D30: =+D28-D29 -> -411003.4174
B32: Allocation of GA Balances to Class A/B Transition Customers
B34: Default Monthly Equal Payments Recovery Period (in months) | D34: 12
B36: Proposed Monthly Equal Payments Recovery Period (in months) | D36: 12
B40: # of Class A/B Transition Customers | C40: =COUNT($E$42:$E$191)-COUNTIF($E$42:$E$191,0) -> 0
B41: Customer | D41: Total Metered Consumption (kWh) for Transition Customers During the Period WhenThey Were Class B Customers | E41: ="Metered Consumption (kWh) for Transition Customers During the Period When They Were Class B Customers in "&E17 -> Metered Consumption (kWh) for Transition Customers During the Period When They Were Class B Customers in 2024 | F41: Metered Consumption (kWh) for Transition Customers During the Period When They Were Class B Customers in 2017 | G41: Metered Consumption (kWh) for Transition Customers During the Period When They Were Class B Customers in 2016 | H41: % of kWh | I41: Customer Specific GA Allocation for the Period When They Were a Class B customer | J41: Monthly Equal Payments
B42: Customer 1 | D42: =SUM(E42:G42) -> 0 | E42: =SUM(IF('6. Class A Consumption Data'!F31:G31="B",'6. Class A Consumption Data'!F29:G29)) -> 0 | H42: =IFERROR(+D42/$D$192,0) -> 0 | I42: =H42*$D$29 -> 0 | J42: =ROUND(IF(ISERROR(I42),0,IF(OR(ISBLANK($D$36), OR($D$36=0, $D$36="")), I42/($D$34), I42/($D$36))),2) -> 0
B43: Customer 2 | D43: 0 | E43: =SUM(IF('6. Class A Consumption Data'!F34:G34="B",'6. Class A Consumption Data'!F32:G32)) -> 0 | H43: =IFERROR(+D43/$D$192,0) -> 0 | I43: =H43*$D$29 -> 0 | J43: 0
B44: Customer 3 | D44: 0 | E44: =SUM(IF('6. Class A Consumption Data'!F37:G37="B",'6. Class A Consumption Data'!F35:G35)) -> 0 | H44: 0 | I44: 0 | J44: 0
B45: Customer 4 | D45: 0 | E45: =SUM(IF('6. Class A Consumption Data'!F40:G40="B",'6. Class A Consumption Data'!F38:G38)) -> 0 | H45: 0 | I45: 0 | J45: 0
B46: Customer 5 | D46: 0 | E46: =SUM(IF('6. Class A Consumption Data'!F43:G43="B",'6. Class A Consumption Data'!F41:G41)) -> 0 | H46: 0 | I46: 0 | J46: 0
B47: Customer 6 | D47: 0 | E47: =SUM(IF('6. Class A Consumption Data'!F46:G46="B",'6. Class A Consumption Data'!F44:G44)) -> 0 | H47: 0 | I47: 0 | J47: 0
B48: Customer 7 | D48: 0 | E48: =SUM(IF('6. Class A Consumption Data'!F49:G49="B",'6. Class A Consumption Data'!F47:G47)) -> 0 | H48: 0 | I48: 0 | J48: 0
B49: Customer 8 | D49: 0 | E49: =SUM(IF('6. Class A Consumption Data'!F52:G52="B",'6. Class A Consumption Data'!F50:G50)) -> 0 | H49: 0 | I49: 0 | J49: 0
B50: Customer 9 | D50: 0 | E50: =SUM(IF('6. Class A Consumption Data'!F55:G55="B",'6. Class A Consumption Data'!F53:G53)) -> 0 | H50: 0 | I50: 0 | J50: 0
B51: Customer 10 | D51: 0 | E51: =SUM(IF('6. Class A Consumption Data'!F58:G58="B",'6. Class A Consumption Data'!F56:G56)) -> 0 | H51: 0 | I51: 0 | J51: 0
B52: Customer 11 | D52: 0 | E52: =SUM(IF('6. Class A Consumption Data'!F61:G61="B",'6. Class A Consumption Data'!F59:G59)) -> 0 | H52: 0 | I52: 0 | J52: 0
B53: Customer 12 | D53: 0 | E53: =SUM(IF('6. Class A Consumption Data'!F64:G64="B",'6. Class A Consumption Data'!F62:G62)) -> 0 | H53: 0 | I53: 0 | J53: 0
B54: Customer 13 | D54: 0 | E54: =SUM(IF('6. Class A Consumption Data'!F67:G67="B",'6. Class A Consumption Data'!F65:G65)) -> 0 | H54: 0 | I54: 0 | J54: 0
B55: Customer 14 | D55: 0 | E55: =SUM(IF('6. Class A Consumption Data'!F70:G70="B",'6. Class A Consumption Data'!F68:G68)) -> 0 | H55: 0 | I55: 0 | J55: 0
B56: Customer 15 | D56: 0 | E56: =SUM(IF('6. Class A Consumption Data'!F73:G73="B",'6. Class A Consumption Data'!F71:G71)) -> 0 | H56: 0 | I56: 0 | J56: 0
B57: Customer 16 | D57: 0 | E57: =SUM(IF('6. Class A Consumption Data'!F76:G76="B",'6. Class A Consumption Data'!F74:G74)) -> 0 | H57: 0 | I57: 0 | J57: 0
B58: Customer 17 | D58: 0 | E58: =SUM(IF('6. Class A Consumption Data'!F79:G79="B",'6. Class A Consumption Data'!F77:G77)) -> 0 | H58: 0 | I58: 0 | J58: 0
B59: Customer 18 | D59: 0 | E59: =SUM(IF('6. Class A Consumption Data'!F82:G82="B",'6. Class A Consumption Data'!F80:G80)) -> 0 | H59: 0 | I59: 0 | J59: 0
B60: Customer 19 | D60: 0 | E60: =SUM(IF('6. Class A Consumption Data'!F85:G85="B",'6. Class A Consumption Data'!F83:G83)) -> 0 | H60: 0 | I60: 0 | J60: 0
B61: Customer 20 | D61: 0 | E61: =SUM(IF('6. Class A Consumption Data'!F88:G88="B",'6. Class A Consumption Data'!F86:G86)) -> 0 | H61: 0 | I61: 0 | J61: 0
B62: Customer 21 | D62: 0 | E62: =SUM(IF('6. Class A Consumption Data'!F91:G91="B",'6. Class A Consumption Data'!F89:G89)) -> 0 | H62: 0 | I62: 0 | J62: 0
B63: Customer 22 | D63: 0 | E63: =SUM(IF('6. Class A Consumption Data'!F94:G94="B",'6. Class A Consumption Data'!F92:G92)) -> 0 | H63: 0 | I63: 0 | J63: 0
B64: Customer 23 | D64: 0 | E64: =SUM(IF('6. Class A Consumption Data'!F97:G97="B",'6. Class A Consumption Data'!F95:G95)) -> 0 | H64: 0 | I64: 0 | J64: 0
B65: Customer 24 | D65: 0 | E65: =SUM(IF('6. Class A Consumption Data'!F100:G100="B",'6. Class A Consumption Data'!F98:G98)) -> 0 | H65: 0 | I65: 0 | J65: 0
B66: Customer 25 | D66: 0 | E66: =SUM(IF('6. Class A Consumption Data'!F103:G103="B",'6. Class A Consumption Data'!F101:G101)) -> 0 | H66: 0 | I66: 0 | J66: 0
B67: Customer 26 | D67: 0 | E67: =SUM(IF('6. Class A Consumption Data'!F106:G106="B",'6. Class A Consumption Data'!F104:G104)) -> 0 | H67: 0 | I67: 0 | J67: 0
B68: Customer 27 | D68: 0 | E68: =SUM(IF('6. Class A Consumption Data'!F109:G109="B",'6. Class A Consumption Data'!F107:G107)) -> 0 | H68: 0 | I68: 0 | J68: 0
B69: Customer 28 | D69: 0 | E69: =SUM(IF('6. Class A Consumption Data'!F112:G112="B",'6. Class A Consumption Data'!F110:G110)) -> 0 | H69: 0 | I69: 0 | J69: 0
B70: Customer 29 | D70: 0 | E70: =SUM(IF('6. Class A Consumption Data'!F115:G115="B",'6. Class A Consumption Data'!F113:G113)) -> 0 | H70: 0 | I70: 0 | J70: 0
B71: Customer 30 | D71: 0 | E71: =SUM(IF('6. Class A Consumption Data'!F118:G118="B",'6. Class A Consumption Data'!F116:G116)) -> 0 | H71: 0 | I71: 0 | J71: 0
B72: Customer 31 | D72: 0 | E72: =SUM(IF('6. Class A Consumption Data'!F121:G121="B",'6. Class A Consumption Data'!F119:G119)) -> 0 | H72: 0 | I72: 0 | J72: 0
B73: Customer 32 | D73: 0 | E73: =SUM(IF('6. Class A Consumption Data'!F124:G124="B",'6. Class A Consumption Data'!F122:G122)) -> 0 | H73: 0 | I73: 0 | J73: 0
B74: Customer 33 | D74: =SUM(E74:G74) -> 0 | E74: =SUM(IF('6. Class A Consumption Data'!F127:G127="B",'6. Class A Consumption Data'!F125:G125)) -> 0 | H74: 0 | I74: 0 | J74: =ROUND(IF(ISERROR(I74),0,IF(OR(ISBLANK($D$36), OR($D$36=0, $D$36="")), I74/($D$34), I74/($D$36))),2) -> 0
B75: Customer 34 | D75: 0 | E75: =SUM(IF('6. Class A Consumption Data'!F130:G130="B",'6. Class A Consumption Data'!F128:G128)) -> 0 | H75: 0 | I75: 0 | J75: 0
B76: Customer 35 | D76: 0 | E76: =SUM(IF('6. Class A Consumption Data'!F133:G133="B",'6. Class A Consumption Data'!F131:G131)) -> 0 | H76: 0 | I76: 0 | J76: 0
B77: Customer 36 | D77: 0 | E77: =SUM(IF('6. Class A Consumption Data'!F136:G136="B",'6. Class A Consumption Data'!F134:G134)) -> 0 | H77: 0 | I77: 0 | J77: 0
B78: Customer 37 | D78: 0 | E78: =SUM(IF('6. Class A Consumption Data'!F139:G139="B",'6. Class A Consumption Data'!F137:G137)) -> 0 | H78: 0 | I78: 0 | J78: 0
B79: Customer 38 | D79: 0 | E79: =SUM(IF('6. Class A Consumption Data'!F142:G142="B",'6. Class A Consumption Data'!F140:G140)) -> 0 | H79: 0 | I79: 0 | J79: 0
B80: Customer 39 | D80: 0 | E80: =SUM(IF('6. Class A Consumption Data'!F145:G145="B",'6. Class A Consumption Data'!F143:G143)) -> 0 | H80: 0 | I80: 0 | J80: 0
B81: Customer 40 | D81: 0 | E81: =SUM(IF('6. Class A Consumption Data'!F148:G148="B",'6. Class A Consumption Data'!F146:G146)) -> 0 | H81: 0 | I81: 0 | J81: 0
B82: Customer 41 | D82: 0 | E82: =SUM(IF('6. Class A Consumption Data'!F151:G151="B",'6. Class A Consumption Data'!F149:G149)) -> 0 | H82: 0 | I82: 0 | J82: 0
B83: Customer 42 | D83: 0 | E83: =SUM(IF('6. Class A Consumption Data'!F154:G154="B",'6. Class A Consumption Data'!F152:G152)) -> 0 | H83: 0 | I83: 0 | J83: 0
B84: Customer 43 | D84: 0 | E84: =SUM(IF('6. Class A Consumption Data'!F157:G157="B",'6. Class A Consumption Data'!F155:G155)) -> 0 | H84: 0 | I84: 0 | J84: 0
B85: Customer 44 | D85: 0 | E85: =SUM(IF('6. Class A Consumption Data'!F160:G160="B",'6. Class A Consumption Data'!F158:G158)) -> 0 | H85: 0 | I85: 0 | J85: 0
B86: Customer 45 | D86: 0 | E86: =SUM(IF('6. Class A Consumption Data'!F163:G163="B",'6. Class A Consumption Data'!F161:G161)) -> 0 | H86: 0 | I86: 0 | J86: 0
B87: Customer 46 | D87: 0 | E87: =SUM(IF('6. Class A Consumption Data'!F166:G166="B",'6. Class A Consumption Data'!F164:G164)) -> 0 | H87: 0 | I87: 0 | J87: 0
B88: Customer 47 | D88: 0 | E88: =SUM(IF('6. Class A Consumption Data'!F169:G169="B",'6. Class A Consumption Data'!F167:G167)) -> 0 | H88: 0 | I88: 0 | J88: 0
B89: Customer 48 | D89: 0 | E89: =SUM(IF('6. Class A Consumption Data'!F172:G172="B",'6. Class A Consumption Data'!F170:G170)) -> 0 | H89: 0 | I89: 0 | J89: 0
B90: Customer 49 | D90: 0 | E90: =SUM(IF('6. Class A Consumption Data'!F175:G175="B",'6. Class A Consumption Data'!F173:G173)) -> 0 | H90: 0 | I90: 0 | J90: 0
B91: Customer 50 | D91: 0 | E91: =SUM(IF('6. Class A Consumption Data'!F178:G178="B",'6. Class A Consumption Data'!F176:G176)) -> 0 | H91: 0 | I91: 0 | J91: 0
B92: Customer 51 | D92: 0 | E92: =SUM(IF('6. Class A Consumption Data'!F181:G181="B",'6. Class A Consumption Data'!F179:G179)) -> 0 | H92: 0 | I92: 0 | J92: 0
B93: Customer 52 | D93: 0 | E93: =SUM(IF('6. Class A Consumption Data'!F184:G184="B",'6. Class A Consumption Data'!F182:G182)) -> 0 | H93: 0 | I93: 0 | J93: 0
B94: Customer 53 | D94: 0 | E94: =SUM(IF('6. Class A Consumption Data'!F187:G187="B",'6. Class A Consumption Data'!F185:G185)) -> 0 | H94: 0 | I94: 0 | J94: 0
B95: Customer 54 | D95: 0 | E95: =SUM(IF('6. Class A Consumption Data'!F190:G190="B",'6. Class A Consumption Data'!F188:G188)) -> 0 | H95: 0 | I95: 0 | J95: 0
B96: Customer 55 | D96: 0 | E96: =SUM(IF('6. Class A Consumption Data'!F193:G193="B",'6. Class A Consumption Data'!F191:G191)) -> 0 | H96: 0 | I96: 0 | J96: 0
B97: Customer 56 | D97: 0 | E97: =SUM(IF('6. Class A Consumption Data'!F196:G196="B",'6. Class A Consumption Data'!F194:G194)) -> 0 | H97: 0 | I97: 0 | J97: 0
B98: Customer 57 | D98: 0 | E98: =SUM(IF('6. Class A Consumption Data'!F199:G199="B",'6. Class A Consumption Data'!F197:G197)) -> 0 | H98: 0 | I98: 0 | J98: 0
B99: Customer 58 | D99: 0 | E99: =SUM(IF('6. Class A Consumption Data'!F202:G202="B",'6. Class A Consumption Data'!F200:G200)) -> 0 | H99: 0 | I99: 0 | J99: 0
B100: Customer 59 | D100: 0 | E100: =SUM(IF('6. Class A Consumption Data'!F205:G205="B",'6. Class A Consumption Data'!F203:G203)) -> 0 | H100: 0 | I100: 0 | J100: 0
B101: Customer 60 | D101: 0 | E101: =SUM(IF('6. Class A Consumption Data'!F208:G208="B",'6. Class A Consumption Data'!F206:G206)) -> 0 | H101: 0 | I101: 0 | J101: 0
B102: Customer 61 | D102: 0 | E102: =SUM(IF('6. Class A Consumption Data'!F211:G211="B",'6. Class A Consumption Data'!F209:G209)) -> 0 | H102: 0 | I102: 0 | J102: 0
B103: Customer 62 | D103: 0 | E103: =SUM(IF('6. Class A Consumption Data'!F214:G214="B",'6. Class A Consumption Data'!F212:G212)) -> 0 | H103: 0 | I103: 0 | J103: 0
B104: Customer 63 | D104: 0 | E104: =SUM(IF('6. Class A Consumption Data'!F217:G217="B",'6. Class A Consumption Data'!F215:G215)) -> 0 | H104: 0 | I104: 0 | J104: 0
B105: Customer 64 | D105: 0 | E105: =SUM(IF('6. Class A Consumption Data'!F220:G220="B",'6. Class A Consumption Data'!F218:G218)) -> 0 | H105: 0 | I105: 0 | J105: 0
B106: Customer 65 | D106: =SUM(E106:G106) -> 0 | E106: =SUM(IF('6. Class A Consumption Data'!F223:G223="B",'6. Class A Consumption Data'!F221:G221)) -> 0 | H106: 0 | I106: 0 | J106: =ROUND(IF(ISERROR(I106),0,IF(OR(ISBLANK($D$36), OR($D$36=0, $D$36="")), I106/($D$34), I106/($D$36))),2) -> 0
B107: Customer 66 | D107: 0 | E107: =SUM(IF('6. Class A Consumption Data'!F226:G226="B",'6. Class A Consumption Data'!F224:G224)) -> 0 | H107: =IFERROR(+D107/$D$192,0) -> 0 | I107: =H107*$D$29 -> 0 | J107: 0
B108: Customer 67 | D108: 0 | E108: =SUM(IF('6. Class A Consumption Data'!F229:G229="B",'6. Class A Consumption Data'!F227:G227)) -> 0 | H108: 0 | I108: 0 | J108: 0
B109: Customer 68 | D109: 0 | E109: =SUM(IF('6. Class A Consumption Data'!F232:G232="B",'6. Class A Consumption Data'!F230:G230)) -> 0 | H109: 0 | I109: 0 | J109: 0
B110: Customer 69 | D110: 0 | E110: =SUM(IF('6. Class A Consumption Data'!F235:G235="B",'6. Class A Consumption Data'!F233:G233)) -> 0 | H110: 0 | I110: 0 | J110: 0
B111: Customer 70 | D111: 0 | E111: =SUM(IF('6. Class A Consumption Data'!F238:G238="B",'6. Class A Consumption Data'!F236:G236)) -> 0 | H111: 0 | I111: 0 | J111: 0
B112: Customer 71 | D112: 0 | E112: =SUM(IF('6. Class A Consumption Data'!F241:G241="B",'6. Class A Consumption Data'!F239:G239)) -> 0 | H112: 0 | I112: 0 | J112: 0
B113: Customer 72 | D113: 0 | E113: =SUM(IF('6. Class A Consumption Data'!F244:G244="B",'6. Class A Consumption Data'!F242:G242)) -> 0 | H113: 0 | I113: 0 | J113: 0
B114: Customer 73 | D114: 0 | E114: =SUM(IF('6. Class A Consumption Data'!F247:G247="B",'6. Class A Consumption Data'!F245:G245)) -> 0 | H114: 0 | I114: 0 | J114: 0
B115: Customer 74 | D115: 0 | E115: =SUM(IF('6. Class A Consumption Data'!F250:G250="B",'6. Class A Consumption Data'!F248:G248)) -> 0 | H115: 0 | I115: 0 | J115: 0
B116: Customer 75 | D116: 0 | E116: =SUM(IF('6. Class A Consumption Data'!F253:G253="B",'6. Class A Consumption Data'!F251:G251)) -> 0 | H116: 0 | I116: 0 | J116: 0
B117: Customer 76 | D117: 0 | E117: =SUM(IF('6. Class A Consumption Data'!F256:G256="B",'6. Class A Consumption Data'!F254:G254)) -> 0 | H117: 0 | I117: 0 | J117: 0
B118: Customer 77 | D118: 0 | E118: =SUM(IF('6. Class A Consumption Data'!F259:G259="B",'6. Class A Consumption Data'!F257:G257)) -> 0 | H118: 0 | I118: 0 | J118: 0
B119: Customer 78 | D119: 0 | E119: =SUM(IF('6. Class A Consumption Data'!F262:G262="B",'6. Class A Consumption Data'!F260:G260)) -> 0 | H119: 0 | I119: 0 | J119: 0
B120: Customer 79 | D120: 0 | E120: =SUM(IF('6. Class A Consumption Data'!F265:G265="B",'6. Class A Consumption Data'!F263:G263)) -> 0 | H120: 0 | I120: 0 | J120: 0
B121: Customer 80 | D121: 0 | E121: =SUM(IF('6. Class A Consumption Data'!F268:G268="B",'6. Class A Consumption Data'!F266:G266)) -> 0 | H121: 0 | I121: 0 | J121: 0
B122: Customer 81 | D122: 0 | E122: =SUM(IF('6. Class A Consumption Data'!F271:G271="B",'6. Class A Consumption Data'!F269:G269)) -> 0 | H122: 0 | I122: 0 | J122: 0
B123: Customer 82 | D123: 0 | E123: =SUM(IF('6. Class A Consumption Data'!F274:G274="B",'6. Class A Consumption Data'!F272:G272)) -> 0 | H123: 0 | I123: 0 | J123: 0
B124: Customer 83 | D124: 0 | E124: =SUM(IF('6. Class A Consumption Data'!F277:G277="B",'6. Class A Consumption Data'!F275:G275)) -> 0 | H124: 0 | I124: 0 | J124: 0
B125: Customer 84 | D125: 0 | E125: =SUM(IF('6. Class A Consumption Data'!F280:G280="B",'6. Class A Consumption Data'!F278:G278)) -> 0 | H125: 0 | I125: 0 | J125: 0
B126: Customer 85 | D126: 0 | E126: =SUM(IF('6. Class A Consumption Data'!F283:G283="B",'6. Class A Consumption Data'!F281:G281)) -> 0 | H126: 0 | I126: 0 | J126: 0
B127: Customer 86 | D127: 0 | E127: =SUM(IF('6. Class A Consumption Data'!F286:G286="B",'6. Class A Consumption Data'!F284:G284)) -> 0 | H127: 0 | I127: 0 | J127: 0
B128: Customer 87 | D128: 0 | E128: =SUM(IF('6. Class A Consumption Data'!F289:G289="B",'6. Class A Consumption Data'!F287:G287)) -> 0 | H128: 0 | I128: 0 | J128: 0
B129: Customer 88 | D129: 0 | E129: =SUM(IF('6. Class A Consumption Data'!F292:G292="B",'6. Class A Consumption Data'!F290:G290)) -> 0 | H129: 0 | I129: 0 | J129: 0
B130: Customer 89 | D130: 0 | E130: =SUM(IF('6. Class A Consumption Data'!F295:G295="B",'6. Class A Consumption Data'!F293:G293)) -> 0 | H130: 0 | I130: 0 | J130: 0
B131: Customer 90 | D131: 0 | E131: =SUM(IF('6. Class A Consumption Data'!F298:G298="B",'6. Class A Consumption Data'!F296:G296)) -> 0 | H131: 0 | I131: 0 | J131: 0
B132: Customer 91 | D132: 0 | E132: =SUM(IF('6. Class A Consumption Data'!F301:G301="B",'6. Class A Consumption Data'!F299:G299)) -> 0 | H132: 0 | I132: 0 | J132: 0
B133: Customer 92 | D133: 0 | E133: =SUM(IF('6. Class A Consumption Data'!F304:G304="B",'6. Class A Consumption Data'!F302:G302)) -> 0 | H133: 0 | I133: 0 | J133: 0
B134: Customer 93 | D134: 0 | E134: =SUM(IF('6. Class A Consumption Data'!F307:G307="B",'6. Class A Consumption Data'!F305:G305)) -> 0 | H134: 0 | I134: 0 | J134: 0
B135: Customer 94 | D135: 0 | E135: =SUM(IF('6. Class A Consumption Data'!F310:G310="B",'6. Class A Consumption Data'!F308:G308)) -> 0 | H135: 0 | I135: 0 | J135: 0
B136: Customer 95 | D136: 0 | E136: =SUM(IF('6. Class A Consumption Data'!F313:G313="B",'6. Class A Consumption Data'!F311:G311)) -> 0 | H136: 0 | I136: 0 | J136: 0
B137: Customer 96 | D137: 0 | E137: =SUM(IF('6. Class A Consumption Data'!F316:G316="B",'6. Class A Consumption Data'!F314:G314)) -> 0 | H137: 0 | I137: 0 | J137: 0
B138: Customer 97 | D138: =SUM(E138:G138) -> 0 | E138: =SUM(IF('6. Class A Consumption Data'!F319:G319="B",'6. Class A Consumption Data'!F317:G317)) -> 0 | H138: 0 | I138: 0 | J138: =ROUND(IF(ISERROR(I138),0,IF(OR(ISBLANK($D$36), OR($D$36=0, $D$36="")), I138/($D$34), I138/($D$36))),2) -> 0
B139: Customer 98 | D139: =SUM(E139:G139) -> 0 | E139: =SUM(IF('6. Class A Consumption Data'!F322:G322="B",'6. Class A Consumption Data'!F320:G320)) -> 0 | H139: 0 | I139: 0 | J139: 0
B140: Customer 99 | D140: =SUM(E140:G140) -> 0 | E140: =SUM(IF('6. Class A Consumption Data'!F325:G325="B",'6. Class A Consumption Data'!F323:G323)) -> 0 | H140: 0 | I140: 0 | J140: 0
B141: Customer 100 | D141: =SUM(E141:G141) -> 0 | E141: =SUM(IF('6. Class A Consumption Data'!F328:G328="B",'6. Class A Consumption Data'!F326:G326)) -> 0 | H141: 0 | I141: 0 | J141: 0
B142: Customer 101 | D142: =SUM(E142:G142) -> 0 | E142: =SUM(IF('6. Class A Consumption Data'!F331:G331="B",'6. Class A Consumption Data'!F329:G329)) -> 0 | H142: 0 | I142: 0 | J142: 0
B143: Customer 102 | D143: =SUM(E143:G143) -> 0 | E143: =SUM(IF('6. Class A Consumption Data'!F334:G334="B",'6. Class A Consumption Data'!F332:G332)) -> 0 | H143: 0 | I143: 0 | J143: 0
B144: Customer 103 | D144: 0 | E144: =SUM(IF('6. Class A Consumption Data'!F337:G337="B",'6. Class A Consumption Data'!F335:G335)) -> 0 | H144: 0 | I144: 0 | J144: 0
B145: Customer 104 | D145: 0 | E145: =SUM(IF('6. Class A Consumption Data'!F340:G340="B",'6. Class A Consumption Data'!F338:G338)) -> 0 | H145: 0 | I145: 0 | J145: 0
B146: Customer 105 | D146: 0 | E146: =SUM(IF('6. Class A Consumption Data'!F343:G343="B",'6. Class A Consumption Data'!F341:G341)) -> 0 | H146: 0 | I146: 0 | J146: 0
B147: Customer 106 | D147: 0 | E147: =SUM(IF('6. Class A Consumption Data'!F346:G346="B",'6. Class A Consumption Data'!F344:G344)) -> 0 | H147: 0 | I147: 0 | J147: 0
B148: Customer 107 | D148: 0 | E148: =SUM(IF('6. Class A Consumption Data'!F349:G349="B",'6. Class A Consumption Data'!F347:G347)) -> 0 | H148: 0 | I148: 0 | J148: 0
B149: Customer 108 | D149: 0 | E149: =SUM(IF('6. Class A Consumption Data'!F352:G352="B",'6. Class A Consumption Data'!F350:G350)) -> 0 | H149: 0 | I149: 0 | J149: 0
B150: Customer 109 | D150: 0 | E150: =SUM(IF('6. Class A Consumption Data'!F355:G355="B",'6. Class A Consumption Data'!F353:G353)) -> 0 | H150: 0 | I150: 0 | J150: 0
B151: Customer 110 | D151: 0 | E151: =SUM(IF('6. Class A Consumption Data'!F358:G358="B",'6. Class A Consumption Data'!F356:G356)) -> 0 | H151: 0 | I151: 0 | J151: 0
B152: Customer 111 | D152: 0 | E152: =SUM(IF('6. Class A Consumption Data'!F361:G361="B",'6. Class A Consumption Data'!F359:G359)) -> 0 | H152: 0 | I152: 0 | J152: 0
B153: Customer 112 | D153: 0 | E153: =SUM(IF('6. Class A Consumption Data'!F364:G364="B",'6. Class A Consumption Data'!F362:G362)) -> 0 | H153: 0 | I153: 0 | J153: 0
B154: Customer 113 | D154: 0 | E154: =SUM(IF('6. Class A Consumption Data'!F367:G367="B",'6. Class A Consumption Data'!F365:G365)) -> 0 | H154: 0 | I154: 0 | J154: 0
B155: Customer 114 | D155: 0 | E155: =SUM(IF('6. Class A Consumption Data'!F370:G370="B",'6. Class A Consumption Data'!F368:G368)) -> 0 | H155: 0 | I155: 0 | J155: 0
B156: Customer 115 | D156: 0 | E156: =SUM(IF('6. Class A Consumption Data'!F373:G373="B",'6. Class A Consumption Data'!F371:G371)) -> 0 | H156: 0 | I156: 0 | J156: 0
B157: Customer 116 | D157: 0 | E157: =SUM(IF('6. Class A Consumption Data'!F376:G376="B",'6. Class A Consumption Data'!F374:G374)) -> 0 | H157: 0 | I157: 0 | J157: 0
B158: Customer 117 | D158: 0 | E158: =SUM(IF('6. Class A Consumption Data'!F379:G379="B",'6. Class A Consumption Data'!F377:G377)) -> 0 | H158: 0 | I158: 0 | J158: 0
B159: Customer 118 | D159: 0 | E159: =SUM(IF('6. Class A Consumption Data'!F382:G382="B",'6. Class A Consumption Data'!F380:G380)) -> 0 | H159: 0 | I159: 0 | J159: 0
B160: Customer 119 | D160: 0 | E160: =SUM(IF('6. Class A Consumption Data'!F385:G385="B",'6. Class A Consumption Data'!F383:G383)) -> 0 | H160: 0 | I160: 0 | J160: 0
B161: Customer 120 | D161: 0 | E161: =SUM(IF('6. Class A Consumption Data'!F388:G388="B",'6. Class A Consumption Data'!F386:G386)) -> 0 | H161: 0 | I161: 0 | J161: 0
B162: Customer 121 | D162: 0 | E162: =SUM(IF('6. Class A Consumption Data'!F391:G391="B",'6. Class A Consumption Data'!F389:G389)) -> 0 | H162: 0 | I162: 0 | J162: 0
B163: Customer 122 | D163: 0 | E163: =SUM(IF('6. Class A Consumption Data'!F394:G394="B",'6. Class A Consumption Data'!F392:G392)) -> 0 | H163: 0 | I163: 0 | J163: 0
B164: Customer 123 | D164: 0 | E164: =SUM(IF('6. Class A Consumption Data'!F397:G397="B",'6. Class A Consumption Data'!F395:G395)) -> 0 | H164: 0 | I164: 0 | J164: 0
B165: Customer 124 | D165: 0 | E165: =SUM(IF('6. Class A Consumption Data'!F400:G400="B",'6. Class A Consumption Data'!F398:G398)) -> 0 | H165: 0 | I165: 0 | J165: 0
B166: Customer 125 | D166: 0 | E166: =SUM(IF('6. Class A Consumption Data'!F403:G403="B",'6. Class A Consumption Data'!F401:G401)) -> 0 | H166: 0 | I166: 0 | J166: 0
B167: Customer 126 | D167: 0 | E167: =SUM(IF('6. Class A Consumption Data'!F406:G406="B",'6. Class A Consumption Data'!F404:G404)) -> 0 | H167: 0 | I167: 0 | J167: 0
B168: Customer 127 | D168: 0 | E168: =SUM(IF('6. Class A Consumption Data'!F409:G409="B",'6. Class A Consumption Data'!F407:G407)) -> 0 | H168: 0 | I168: 0 | J168: 0
B169: Customer 128 | D169: 0 | E169: =SUM(IF('6. Class A Consumption Data'!F412:G412="B",'6. Class A Consumption Data'!F410:G410)) -> 0 | H169: 0 | I169: 0 | J169: 0
B170: Customer 129 | D170: 0 | E170: =SUM(IF('6. Class A Consumption Data'!F415:G415="B",'6. Class A Consumption Data'!F413:G413)) -> 0 | H170: 0 | I170: 0 | J170: =ROUND(IF(ISERROR(I170),0,IF(OR(ISBLANK($D$36), OR($D$36=0, $D$36="")), I170/($D$34), I170/($D$36))),2) -> 0
B171: Customer 130 | D171: 0 | E171: =SUM(IF('6. Class A Consumption Data'!F418:G418="B",'6. Class A Consumption Data'!F416:G416)) -> 0 | H171: =IFERROR(+D171/$D$192,0) -> 0 | I171: =H171*$D$29 -> 0 | J171: 0
B172: Customer 131 | D172: 0 | E172: =SUM(IF('6. Class A Consumption Data'!F421:G421="B",'6. Class A Consumption Data'!F419:G419)) -> 0 | H172: 0 | I172: 0 | J172: 0
B173: Customer 132 | D173: 0 | E173: =SUM(IF('6. Class A Consumption Data'!F424:G424="B",'6. Class A Consumption Data'!F422:G422)) -> 0 | H173: 0 | I173: 0 | J173: 0
B174: Customer 133 | D174: 0 | E174: =SUM(IF('6. Class A Consumption Data'!F427:G427="B",'6. Class A Consumption Data'!F425:G425)) -> 0 | H174: 0 | I174: 0 | J174: 0
B175: Customer 134 | D175: 0 | E175: =SUM(IF('6. Class A Consumption Data'!F430:G430="B",'6. Class A Consumption Data'!F428:G428)) -> 0 | H175: 0 | I175: 0 | J175: 0
B176: Customer 135 | D176: 0 | E176: =SUM(IF('6. Class A Consumption Data'!F433:G433="B",'6. Class A Consumption Data'!F431:G431)) -> 0 | H176: 0 | I176: 0 | J176: 0
B177: Customer 136 | D177: 0 | E177: =SUM(IF('6. Class A Consumption Data'!F436:G436="B",'6. Class A Consumption Data'!F434:G434)) -> 0 | H177: 0 | I177: 0 | J177: 0
B178: Customer 137 | D178: 0 | E178: =SUM(IF('6. Class A Consumption Data'!F439:G439="B",'6. Class A Consumption Data'!F437:G437)) -> 0 | H178: 0 | I178: 0 | J178: 0
B179: Customer 138 | D179: 0 | E179: =SUM(IF('6. Class A Consumption Data'!F442:G442="B",'6. Class A Consumption Data'!F440:G440)) -> 0 | H179: 0 | I179: 0 | J179: 0
B180: Customer 139 | D180: 0 | E180: =SUM(IF('6. Class A Consumption Data'!F445:G445="B",'6. Class A Consumption Data'!F443:G443)) -> 0 | H180: 0 | I180: 0 | J180: 0
B181: Customer 140 | D181: 0 | E181: =SUM(IF('6. Class A Consumption Data'!F448:G448="B",'6. Class A Consumption Data'!F446:G446)) -> 0 | H181: 0 | I181: 0 | J181: 0
B182: Customer 141 | D182: 0 | E182: =SUM(IF('6. Class A Consumption Data'!F451:G451="B",'6. Class A Consumption Data'!F449:G449)) -> 0 | H182: 0 | I182: 0 | J182: 0
B183: Customer 142 | D183: 0 | E183: =SUM(IF('6. Class A Consumption Data'!F454:G454="B",'6. Class A Consumption Data'!F452:G452)) -> 0 | H183: 0 | I183: 0 | J183: 0
B184: Customer 143 | D184: 0 | E184: =SUM(IF('6. Class A Consumption Data'!F457:G457="B",'6. Class A Consumption Data'!F455:G455)) -> 0 | H184: 0 | I184: 0 | J184: 0
B185: Customer 144 | D185: 0 | E185: =SUM(IF('6. Class A Consumption Data'!F460:G460="B",'6. Class A Consumption Data'!F458:G458)) -> 0 | H185: 0 | I185: 0 | J185: 0
B186: Customer 145 | D186: 0 | E186: =SUM(IF('6. Class A Consumption Data'!F463:G463="B",'6. Class A Consumption Data'!F461:G461)) -> 0 | H186: 0 | I186: 0 | J186: 0
B187: Customer 146 | D187: 0 | E187: =SUM(IF('6. Class A Consumption Data'!F466:G466="B",'6. Class A Consumption Data'!F464:G464)) -> 0 | H187: 0 | I187: 0 | J187: 0
B188: Customer 147 | D188: 0 | E188: =SUM(IF('6. Class A Consumption Data'!F469:G469="B",'6. Class A Consumption Data'!F467:G467)) -> 0 | H188: 0 | I188: 0 | J188: 0
B189: Customer 148 | D189: 0 | E189: =SUM(IF('6. Class A Consumption Data'!F472:G472="B",'6. Class A Consumption Data'!F470:G470)) -> 0 | H189: 0 | I189: 0 | J189: 0
B190: Customer 149 | D190: 0 | E190: =SUM(IF('6. Class A Consumption Data'!F475:G475="B",'6. Class A Consumption Data'!F473:G473)) -> 0 | H190: 0 | I190: 0 | J190: 0
B191: Customer 150 | D191: 0 | E191: =SUM(IF('6. Class A Consumption Data'!F478:G478="B",'6. Class A Consumption Data'!F476:G476)) -> 0 | H191: 0 | I191: 0 | J191: 0
B192: Total for all Customers | D192: =SUM(D42:D191) -> 0 | E192: =SUM(E42:E191) -> 0 | F192: =SUM(F42:F191) -> 0 | G192: =SUM(G42:G191) -> 0 | H192: =SUM(F42:H191) -> 0 | I192: =SUM(I42:I191) -> 0

Sheet 6.1 GA (hidden)
A1: Back to Index
B2: =+'1. Info'!B2 -> 2027-2031 RTSR Workform
K9: Default Rate Rider Recovery Period (in months) | L9: 12
K10: Proposed Rate Rider Recovery Period (in months) | L10: 12 | M10: =IF(L10>0, "Rate Rider Recovery to be used below", "If no rate rider recovery period is proposed then the default recovery period of 12 months will be used") -> Rate Rider Recovery to be used below
B12: The purpose of this tab is to calculate the GA rate riders for all current Class B customers who did not transition between Class A and B in the period since the Account 1589 GA was last disposed. Calculations in this tab will be modified upon completion of tab 6.1a, which allocates a portion of the GA balance to transition customers, if applicable. Effective January 2017, the billing determinant and all rate riders for the disposition of GA balances will be calculated on an energy basis (kWhs) regardless of the billing determinant used for distribution rates for the particular class (see Chapter 3, Filing Requirements, section 3.2.5.2)
C13: ="Total Metered Non-RPP "&'6.1a GA Allocation'!E17&" Consumption excluding WMP" -> Total Metered Non-RPP 2024 Consumption excluding WMP | E13: ="Total Metered "&'6.1a GA Allocation'!E17&" Consumption for Class A Customers that were Class A for the entire period GA blance accumulated" -> Total Metered 2024 Consumption for Class A Customers that were Class A for the entire period GA blance accumulated | G13: ="Total Metered "&'6.1a GA Allocation'!E17&" Consumption for Customers that Transitioned Between Class A and B during the period GA balance accumulated " -> Total Metered 2024 Consumption for Customers that Transitioned Between Class A and B during the period GA balance accumulated | I13: Non-RPP Metered Consumption for Current Class B Customers (Non-RPP Consumption excluding WMP, Class A and Transition Customers' Consumption) | K13: % of total kWh | L13: Total GA $ allocated to Current Class B Customers | M13: GA Rate Rider | O13: Revenue Reconciliation | P13: Variance
C14: kWh | D14: kW | E14: kWh | F14: kW | G14: kWh | H14: kW | I14: kWh | J14: kW
A16: =IFERROR(VLOOKUP(B16,Reference!A:F,6,FALSE)&"_GAY2","") -> R_GAY2 | B16: ='4. Billing Det. for Def-Var'!B17 -> RESIDENTIAL SERVICE CLASSIFICATION | C16: =IF(B16="","",'4. Billing Det. for Def-Var'!F17) -> 21296144.45 | D16: ='4. Billing Det. for Def-Var'!G17 -> 0 | E16: =IF(B16="","",SUM(IF('6. Class A Consumption Data'!$D$484:$D$784=$B16,'6. Class A Consumption Data'!F$484:F$784))) -> 0 | G16: =IF(B16="","",SUM(IF('6. Class A Consumption Data'!$D$29:$D478=$B16,'6. Class A Consumption Data'!F$29:G$478))) -> 0 | I16: =IFERROR(ROUND(C16-E16-G16,0),"") -> 21296144 | K16: =IFERROR(I16/I$27,"") -> 0.007051425698 | L16: =ROUND(IFERROR(L$27*K16,""),0) -> -2898 | M16: =IF(B16="","",IF('4. Billing Det. for Def-Var'!$D$36="no",0,ROUND(IF(ISERROR(L16/I16),0,IF(OR(ISBLANK($L$10),OR($L$10=0,$L$10="")),L16/I16/($L$9/12),L16/I16/($L$10/12))),4))) -> -0.0001 | O16: =ROUND(M16,4)*I16 -> -2129.6144 | P16: =L16-O16 -> -768.3856
A17: =IFERROR(VLOOKUP(B17,Reference!A:F,6,FALSE)&"_GAY2","") -> GSL_GAY2 | B17: ='4. Billing Det. for Def-Var'!B18 -> GENERAL SERVICE LESS THAN 50 KW SERVICE CLASSIFICATION | C17: =IF(B17="","",'4. Billing Det. for Def-Var'!F18) -> 123500813.1 | D17: ='4. Billing Det. for Def-Var'!G18 -> 0 | E17: =IF(B17="","",SUM(IF('6. Class A Consumption Data'!$D$484:$D$784=$B17,'6. Class A Consumption Data'!F$484:F$784))) -> 0 | G17: =IF(B17="","",SUM(IF('6. Class A Consumption Data'!$D$29:$D479=$B17,'6. Class A Consumption Data'!F$29:G$478))) -> 0 | I17: 123500813 | K17: 0.040892699 | L17: =ROUND(IFERROR(L$27*K17,""),0) -> -16807 | M17: =IF(B17="","",IF('4. Billing Det. for Def-Var'!$D$36="no",0,ROUND(IF(ISERROR(L17/I17),0,IF(OR(ISBLANK($L$10),OR($L$10=0,$L$10="")),L17/I17/($L$9/12),L17/I17/($L$10/12))),4))) -> -0.0001 | O17: =ROUND(M17,4)*I17 -> -12350.0813 | P17: =L17-O17 -> -4456.9187
A18: =IFERROR(VLOOKUP(B18,Reference!A:F,6,FALSE)&"_GAY2","") -> GSG_GAY2 | B18: ='4. Billing Det. for Def-Var'!B19 -> GENERAL SERVICE 50 to 4,999 kW SERVICE CLASSIFICATION | C18: =IF(B18="","",'4. Billing Det. for Def-Var'!F19) -> 4313695626 | D18: ='4. Billing Det. for Def-Var'!G19 -> 11047785.63 | E18: =IF(B18="","",SUM(IF('6. Class A Consumption Data'!$D$484:$D$784=$B18,'6. Class A Consumption Data'!F$484:F$784))) -> 1547743438 | G18: =IF(B18="","",SUM(IF('6. Class A Consumption Data'!$D$29:$D480=$B18,'6. Class A Consumption Data'!F$29:G$478))) -> 0 | I18: 2765952188 | K18: 0.9158421514 | L18: -376414 | M18: =IF(B18="","",IF('4. Billing Det. for Def-Var'!$D$36="no",0,ROUND(IF(ISERROR(L18/I18),0,IF(OR(ISBLANK($L$10),OR($L$10=0,$L$10="")),L18/I18/($L$9/12),L18/I18/($L$10/12))),4))) -> -0.0001 | O18: -276595.2188 | P18: -99818.7812
A19: =IFERROR(VLOOKUP(B19,Reference!A:F,6,FALSE)&"_GAY2","") -> LU_GAY2 | B19: ='4. Billing Det. for Def-Var'!B20 -> LARGE USE SERVICE CLASSIFICATION | C19: =IF(B19="","",'4. Billing Det. for Def-Var'!F20) -> 234289032.2 | D19: ='4. Billing Det. for Def-Var'!G20 -> 434330.5732 | E19: =IF(B19="","",SUM(IF('6. Class A Consumption Data'!$D$484:$D$784=$B19,'6. Class A Consumption Data'!F$484:F$784))) -> 164275588.9 | G19: =IF(B19="","",SUM(IF('6. Class A Consumption Data'!$D$29:$D481=$B19,'6. Class A Consumption Data'!F$29:G$478))) -> 0 | I19: 70013443 | K19: 0.02318234659 | L19: -9528 | M19: =IF(B19="","",IF('4. Billing Det. for Def-Var'!$D$36="no",0,ROUND(IF(ISERROR(L19/I19),0,IF(OR(ISBLANK($L$10),OR($L$10=0,$L$10="")),L19/I19/($L$9/12),L19/I19/($L$10/12))),4))) -> -0.0001 | O19: -7001.3443 | P19: -2526.6557
A20: =IFERROR(VLOOKUP(B20,Reference!A:F,6,FALSE)&"_GAY2","") -> USL_GAY2 | B20: ='4. Billing Det. for Def-Var'!B21 -> UNMETERED SCATTERED LOAD SERVICE CLASSIFICATION | C20: =IF(B20="","",'4. Billing Det. for Def-Var'!F21) -> 83565.00764 | D20: ='4. Billing Det. for Def-Var'!G21 -> 0 | E20: =IF(B20="","",SUM(IF('6. Class A Consumption Data'!$D$484:$D$784=$B20,'6. Class A Consumption Data'!F$484:F$784))) -> 0 | G20: =IF(B20="","",SUM(IF('6. Class A Consumption Data'!$D$29:$D482=$B20,'6. Class A Consumption Data'!F$29:G$478))) -> 0 | I20: 83565 | K20: 2.766944046e-05 | L20: -11 | M20: =IF(B20="","",IF('4. Billing Det. for Def-Var'!$D$36="no",0,ROUND(IF(ISERROR(L20/I20),0,IF(OR(ISBLANK($L$10),OR($L$10=0,$L$10="")),L20/I20/($L$9/12),L20/I20/($L$10/12))),4))) -> -0.0001 | O20: -8.3565 | P20: -2.6435
A21: =IFERROR(VLOOKUP(B21,Reference!A:F,6,FALSE)&"_GAY2","") -> SL_GAY2 | B21: ='4. Billing Det. for Def-Var'!B22 -> STREET LIGHTING SERVICE CLASSIFICATION | C21: =IF(B21="","",'4. Billing Det. for Def-Var'!F22) -> 39209557.14 | D21: ='4. Billing Det. for Def-Var'!G22 -> 110032.26 | E21: =IF(B21="","",SUM(IF('6. Class A Consumption Data'!$D$484:$D$784=$B21,'6. Class A Consumption Data'!F$484:F$784))) -> 0 | G21: =IF(B21="","",SUM(IF('6. Class A Consumption Data'!$D$29:$D483=$B21,'6. Class A Consumption Data'!F$29:G$478))) -> 0 | I21: 39209557 | K21: 0.01298278589 | L21: -5336 | M21: =IF(B21="","",IF('4. Billing Det. for Def-Var'!$D$36="no",0,ROUND(IF(ISERROR(L21/I21),0,IF(OR(ISBLANK($L$10),OR($L$10=0,$L$10="")),L21/I21/($L$9/12),L21/I21/($L$10/12))),4))) -> -0.0001 | O21: -3920.9557 | P21: -1415.0443
A22: =IFERROR(VLOOKUP(B22,Reference!A:F,6,FALSE)&"_GAY2","") -> SEN_GAY2 | B22: ='4. Billing Det. for Def-Var'!B23 -> SENTINEL LIGHTING SERVICE CLASSIFICATION | C22: =IF(B22="","",'4. Billing Det. for Def-Var'!F23) -> 63186.85656 | D22: ='4. Billing Det. for Def-Var'!G23 -> 171.6077439 | E22: =IF(B22="","",SUM(IF('6. Class A Consumption Data'!$D$484:$D$784=$B22,'6. Class A Consumption Data'!F$484:F$784))) -> 0 | G22: =IF(B22="","",SUM(IF('6. Class A Consumption Data'!$D$29:$D484=$B22,'6. Class A Consumption Data'!F$29:G$478))) -> 0 | I22: 63187 | K22: 2.092202398e-05 | L22: -9 | M22: =IF(B22="","",IF('4. Billing Det. for Def-Var'!$D$36="no",0,ROUND(IF(ISERROR(L22/I22),0,IF(OR(ISBLANK($L$10),OR($L$10=0,$L$10="")),L22/I22/($L$9/12),L22/I22/($L$10/12))),4))) -> -0.0001 | O22: -6.3187 | P22: -2.6813
A23: =IFERROR(VLOOKUP(B23,Reference!A:F,6,FALSE)&"_GAY2","") ->  | B23: ='4. Billing Det. for Def-Var'!B24 ->  | C23: =IF(B23="","",'4. Billing Det. for Def-Var'!F24) ->  | D23: ='4. Billing Det. for Def-Var'!G24 ->  | E23: =IF(B23="","",SUM(IF('6. Class A Consumption Data'!$D$484:$D$784=$B23,'6. Class A Consumption Data'!F$484:F$784))) ->  | G23: =IF(B23="","",SUM(IF('6. Class A Consumption Data'!$D$29:$D485=$B23,'6. Class A Consumption Data'!F$29:G$478))) ->  | L23: =IFERROR(L$27*K23,"") ->  | M23: =IF(B23="","",IF('4. Billing Det. for Def-Var'!$D$36="no",0,ROUND(IF(ISERROR(L23/I23),0,IF(OR(ISBLANK($L$10),OR($L$10=0,$L$10="")),L23/I23/($L$9/12),L23/I23/($L$10/12))),4))) -> 
A24: =IFERROR(VLOOKUP(B24,Reference!A:F,6,FALSE)&"_GAY2","") ->  | B24: ='4. Billing Det. for Def-Var'!B25 ->  | C24: =IF(B24="","",'4. Billing Det. for Def-Var'!F25) ->  | D24: ='4. Billing Det. for Def-Var'!G25 ->  | E24: =IF(B24="","",SUM(IF('6. Class A Consumption Data'!$D$484:$D$784=$B24,'6. Class A Consumption Data'!F$484:F$784))) ->  | G24: =IF(B24="","",SUM(IF('6. Class A Consumption Data'!$D$29:$D486=$B24,'6. Class A Consumption Data'!F$29:G$478))) ->  | M24: =IF(B24="","",IF('4. Billing Det. for Def-Var'!$D$36="no",0,ROUND(IF(ISERROR(L24/I24),0,IF(OR(ISBLANK($L$10),OR($L$10=0,$L$10="")),L24/I24/($L$9/12),L24/I24/($L$10/12))),4))) -> 
A25: =IFERROR(VLOOKUP(B25,Reference!A:F,6,FALSE)&"_GAY2","") ->  | B25: ='4. Billing Det. for Def-Var'!B26 ->  | C25: =IF(B25="","",'4. Billing Det. for Def-Var'!F26) ->  | D25: ='4. Billing Det. for Def-Var'!G26 ->  | E25: =IF(B25="","",SUM(IF('6. Class A Consumption Data'!$D$484:$D$784=$B25,'6. Class A Consumption Data'!F$484:F$784))) ->  | G25: =IF(B25="","",SUM(IF('6. Class A Consumption Data'!$D$29:$D487=$B25,'6. Class A Consumption Data'!F$29:G$478))) ->  | I25: =IFERROR(ROUND(C25-E25-G25,0),"") ->  | M25: =IF(B25="","",IF('4. Billing Det. for Def-Var'!$D$36="no",0,ROUND(IF(ISERROR(L25/I25),0,IF(OR(ISBLANK($L$10),OR($L$10=0,$L$10="")),L25/I25/($L$9/12),L25/I25/($L$10/12))),4))) -> 
C27: =SUM(C16:C26) -> 4732137925 | D27: 11592320.07 | E27: 1712019027 | F27: 0 | G27: 0 | H27: 0 | I27: 3020118897 | J27: 0 | K27: 1 | L27: =ROUND('6.1a GA Allocation'!D30,4) -> -411003.4174 | O27: =SUM(O16:O26) ->  | P27: =SUM(P16:P26) -> 
L28: from Sheet 6.1a
O29: NOTE: if rate rider is at 5 decimal places, then the balance dispostion is in full

Sheet 6.2a CBR B_Allocation (hidden)
A1: Back to Index
B2: =+'1. Info'!B2 -> 2027-2031 RTSR Workform
B11: This tab allocates the CBR Class B balance to transition customers (i.e Class A customers who were former Class B customers and Class B customers who were former Class A customers) who contributed to the current CBR Class B balance. The tables below calculate specific amounts for each customer who made the change. The general CBR Class B rate rider is not to be charged to the transition customers that are allocated amounts in the table below. Consistent with prior decisions, distributors are generally expected to settle the amount through 12 equal adjustments to bills.
B13: Please enter the Year the Account 1580 CBR Class B was Last Disposed. | C13: ='1. Info'!G34 -> 2023 | D13: (Note: Account 1580, Sub-account CBR Class B was established starting in 2015)
B15: Allocation of totalConsumption (kWh) between Current Class B and Class A/B Transition Customers
D16: Total | E16: ='6. Class A Consumption Data'!F27 -> 2024 | F16: =E16-1 -> 2023 | G16: =F16-1 -> 2022
B17: Total Consumption Less WMP Consumption | C17: A | D17: =SUM(E17:G17) -> 9127844967 | E17: ='4. Billing Det. for Def-Var'!J28 -> 9127844967 | H17: from Cell N25
B18: Less Class A Consumption for Partial Year Class A Customers | C18: B | D18: =SUM(E18:G18) -> 0 | E18: =SUM(IF('6. Class A Consumption Data'!H:I="a",'6. Class A Consumption Data'!F:G)) -> 0
B19: Less Consumption for Full Year Class A Customers | C19: C | D19: =SUM(E19:G19) -> 1712019027 | E19: ='6.1 GA'!E27 -> 1712019027
B20: Total Class B Consumption for Years During Balance Accumulation | C20: D = A-B-C | D20: =SUM(E20:G20) -> 7415825940 | E20: =E17-E18-E19 -> 7415825940
B21: All Class B Consumption for Transition Customers | C21: E | D21: =SUM(E21:G21) -> 0 | E21: =E185 -> 0 | G21: =G185 -> 0
B22: Transition Customers' Portion of Total Consumption | C22: F = E/D | D22: =D21/D20 -> 0
B25: Allocation of Total CBR Class B Balance $
B27: Total CBR Class B Balance | C27: G | D27: ='3. Continuity Schedule'!AQ25 -> -55785.94926 | I27: =IF('6.2 CBR B'!U18="TRUE","NO MONTHLY EQUAL PAYMENTS. The entire OEB-approved CBR Class B amount is transferred into Account 1580 WMS control account to be disposed through the general purpose Group 1 DVA rate riders. ","") -> NO MONTHLY EQUAL PAYMENTS. The entire OEB-approved CBR Class B amount is transferred into Account 1580 WMS control account to be disposed through the general purpose Group 1 DVA rate riders.
B28: Transition Customers Portion of CBR Class B Balance | C28: H=F*G | D28: =+D22*D27 -> 0
B29: CBR Class B Balance to be disposed to Current Class B Customers through Rate Rider | C29: I=G-H | D29: =+D27-D28 -> -55785.94926
B31: Allocation of CBR Class B Balances to Transition Customers
B33: # of Class A/B Transition Customers | C33: ='6. Class A Consumption Data'!C23 -> 0
B34: Customer | D34: Total Metered Consumption (kWh) for Transition Customers During the Period WhenThey Were Class B Customers | E34: ="Metered Consumption (kWh) for Transition Customers During the Period When They Were Class B Customers in "&E16 -> Metered Consumption (kWh) for Transition Customers During the Period When They Were Class B Customers in 2024 | F34: Metered Consumption (kWh) for Transition Customers During the Period When They Were Class B Customers in 2018 | G34: Metered Consumption (kWh) for Transition Customers During the Period When They Were Class B Customers in 2017 | H34: Metered Consumption (kWh) for Transition Customers During the Period When They Were Class B Customers in 2016 | I34: % of kWh | J34: Customer Specific CBR Class B Allocation for the Period When They Were a Class B Customer | K34: Monthly Equal Payments
B35: Customer 1 | D35: =SUM(E35:H35) -> 0 | E35: =SUM(IF('6. Class A Consumption Data'!F31:G31="B",'6. Class A Consumption Data'!F29:G29)) -> 0 | I35: =IFERROR(+D35/$D$185,0) -> 0 | J35: =IF('6.2 CBR B'!U$18="TRUE","",+I35*$D$28) ->  | K35: =IF('6.2 CBR B'!U$18="TRUE","",+J35/12) -> 
B36: Customer 2 | D36: =SUM(E36:H36) -> 0 | E36: =SUM(IF('6. Class A Consumption Data'!F34:G34="B",'6. Class A Consumption Data'!F32:G32)) -> 0 | I36: 0 | J36: =IF('6.2 CBR B'!U$18="TRUE","",+I36*$D$28) ->  | K36: =IF('6.2 CBR B'!U$18="TRUE","",+J36/12) -> 
B37: Customer 3 | D37: 0 | E37: =SUM(IF('6. Class A Consumption Data'!F37:G37="B",'6. Class A Consumption Data'!F35:G35)) -> 0 | I37: 0 | J37: =IF('6.2 CBR B'!U$18="TRUE","",+I37*$D$28) ->  | K37: =IF('6.2 CBR B'!U$18="TRUE","",+J37/12) -> 
B38: Customer 4 | D38: 0 | E38: =SUM(IF('6. Class A Consumption Data'!F40:G40="B",'6. Class A Consumption Data'!F38:G38)) -> 0 | I38: 0 | J38: =IF('6.2 CBR B'!U$18="TRUE","",+I38*$D$28) ->  | K38: =IF('6.2 CBR B'!U$18="TRUE","",+J38/12) -> 
B39: Customer 5 | D39: 0 | E39: =SUM(IF('6. Class A Consumption Data'!F43:G43="B",'6. Class A Consumption Data'!F41:G41)) -> 0 | I39: 0 | J39: =IF('6.2 CBR B'!U$18="TRUE","",+I39*$D$28) ->  | K39: =IF('6.2 CBR B'!U$18="TRUE","",+J39/12) -> 
B40: Customer 6 | D40: 0 | E40: =SUM(IF('6. Class A Consumption Data'!F46:G46="B",'6. Class A Consumption Data'!F44:G44)) -> 0 | I40: 0 | J40: =IF('6.2 CBR B'!U$18="TRUE","",+I40*$D$28) ->  | K40: =IF('6.2 CBR B'!U$18="TRUE","",+J40/12) -> 
B41: Customer 7 | D41: 0 | E41: =SUM(IF('6. Class A Consumption Data'!F49:G49="B",'6. Class A Consumption Data'!F47:G47)) -> 0 | I41: 0 | J41: =IF('6.2 CBR B'!U$18="TRUE","",+I41*$D$28) ->  | K41: =IF('6.2 CBR B'!U$18="TRUE","",+J41/12) -> 
B42: Customer 8 | D42: 0 | E42: =SUM(IF('6. Class A Consumption Data'!F52:G52="B",'6. Class A Consumption Data'!F50:G50)) -> 0 | I42: 0 | J42: =IF('6.2 CBR B'!U$18="TRUE","",+I42*$D$28) ->  | K42: =IF('6.2 CBR B'!U$18="TRUE","",+J42/12) -> 
B43: Customer 9 | D43: 0 | E43: =SUM(IF('6. Class A Consumption Data'!F55:G55="B",'6. Class A Consumption Data'!F53:G53)) -> 0 | I43: 0 | J43: =IF('6.2 CBR B'!U$18="TRUE","",+I43*$D$28) ->  | K43: =IF('6.2 CBR B'!U$18="TRUE","",+J43/12) -> 
B44: Customer 10 | D44: 0 | E44: =SUM(IF('6. Class A Consumption Data'!F58:G58="B",'6. Class A Consumption Data'!F56:G56)) -> 0 | I44: 0 | J44: =IF('6.2 CBR B'!U$18="TRUE","",+I44*$D$28) ->  | K44: =IF('6.2 CBR B'!U$18="TRUE","",+J44/12) -> 
B45: Customer 11 | D45: 0 | E45: =SUM(IF('6. Class A Consumption Data'!F61:G61="B",'6. Class A Consumption Data'!F59:G59)) -> 0 | I45: 0 | J45: =IF('6.2 CBR B'!U$18="TRUE","",+I45*$D$28) ->  | K45: =IF('6.2 CBR B'!U$18="TRUE","",+J45/12) -> 
B46: Customer 12 | D46: 0 | E46: =SUM(IF('6. Class A Consumption Data'!F64:G64="B",'6. Class A Consumption Data'!F62:G62)) -> 0 | I46: 0 | J46: =IF('6.2 CBR B'!U$18="TRUE","",+I46*$D$28) ->  | K46: =IF('6.2 CBR B'!U$18="TRUE","",+J46/12) -> 
B47: Customer 13 | D47: 0 | E47: =SUM(IF('6. Class A Consumption Data'!F67:G67="B",'6. Class A Consumption Data'!F65:G65)) -> 0 | I47: 0 | J47: =IF('6.2 CBR B'!U$18="TRUE","",+I47*$D$28) ->  | K47: =IF('6.2 CBR B'!U$18="TRUE","",+J47/12) -> 
B48: Customer 14 | D48: 0 | E48: =SUM(IF('6. Class A Consumption Data'!F70:G70="B",'6. Class A Consumption Data'!F68:G68)) -> 0 | I48: 0 | J48: =IF('6.2 CBR B'!U$18="TRUE","",+I48*$D$28) ->  | K48: =IF('6.2 CBR B'!U$18="TRUE","",+J48/12) -> 
B49: Customer 15 | D49: 0 | E49: =SUM(IF('6. Class A Consumption Data'!F73:G73="B",'6. Class A Consumption Data'!F71:G71)) -> 0 | I49: 0 | J49: =IF('6.2 CBR B'!U$18="TRUE","",+I49*$D$28) ->  | K49: =IF('6.2 CBR B'!U$18="TRUE","",+J49/12) -> 
B50: Customer 16 | D50: 0 | E50: =SUM(IF('6. Class A Consumption Data'!F76:G76="B",'6. Class A Consumption Data'!F74:G74)) -> 0 | I50: 0 | J50: =IF('6.2 CBR B'!U$18="TRUE","",+I50*$D$28) ->  | K50: =IF('6.2 CBR B'!U$18="TRUE","",+J50/12) -> 
B51: Customer 17 | D51: 0 | E51: =SUM(IF('6. Class A Consumption Data'!F79:G79="B",'6. Class A Consumption Data'!F77:G77)) -> 0 | I51: 0 | J51: =IF('6.2 CBR B'!U$18="TRUE","",+I51*$D$28) ->  | K51: =IF('6.2 CBR B'!U$18="TRUE","",+J51/12) -> 
B52: Customer 18 | D52: 0 | E52: =SUM(IF('6. Class A Consumption Data'!F82:G82="B",'6. Class A Consumption Data'!F80:G80)) -> 0 | I52: 0 | J52: =IF('6.2 CBR B'!U$18="TRUE","",+I52*$D$28) ->  | K52: =IF('6.2 CBR B'!U$18="TRUE","",+J52/12) -> 
B53: Customer 19 | D53: 0 | E53: =SUM(IF('6. Class A Consumption Data'!F85:G85="B",'6. Class A Consumption Data'!F83:G83)) -> 0 | I53: 0 | J53: =IF('6.2 CBR B'!U$18="TRUE","",+I53*$D$28) ->  | K53: =IF('6.2 CBR B'!U$18="TRUE","",+J53/12) -> 
B54: Customer 20 | D54: 0 | E54: =SUM(IF('6. Class A Consumption Data'!F88:G88="B",'6. Class A Consumption Data'!F86:G86)) -> 0 | I54: 0 | J54: =IF('6.2 CBR B'!U$18="TRUE","",+I54*$D$28) ->  | K54: =IF('6.2 CBR B'!U$18="TRUE","",+J54/12) -> 
B55: Customer 21 | D55: 0 | E55: =SUM(IF('6. Class A Consumption Data'!F91:G91="B",'6. Class A Consumption Data'!F89:G89)) -> 0 | I55: 0 | J55: =IF('6.2 CBR B'!U$18="TRUE","",+I55*$D$28) ->  | K55: =IF('6.2 CBR B'!U$18="TRUE","",+J55/12) -> 
B56: Customer 22 | D56: 0 | E56: =SUM(IF('6. Class A Consumption Data'!F94:G94="B",'6. Class A Consumption Data'!F92:G92)) -> 0 | I56: 0 | J56: =IF('6.2 CBR B'!U$18="TRUE","",+I56*$D$28) ->  | K56: =IF('6.2 CBR B'!U$18="TRUE","",+J56/12) -> 
B57: Customer 23 | D57: 0 | E57: =SUM(IF('6. Class A Consumption Data'!F97:G97="B",'6. Class A Consumption Data'!F95:G95)) -> 0 | I57: 0 | J57: =IF('6.2 CBR B'!U$18="TRUE","",+I57*$D$28) ->  | K57: =IF('6.2 CBR B'!U$18="TRUE","",+J57/12) -> 
B58: Customer 24 | D58: 0 | E58: =SUM(IF('6. Class A Consumption Data'!F100:G100="B",'6. Class A Consumption Data'!F98:G98)) -> 0 | I58: 0 | J58: =IF('6.2 CBR B'!U$18="TRUE","",+I58*$D$28) ->  | K58: =IF('6.2 CBR B'!U$18="TRUE","",+J58/12) -> 
B59: Customer 25 | D59: 0 | E59: =SUM(IF('6. Class A Consumption Data'!F103:G103="B",'6. Class A Consumption Data'!F101:G101)) -> 0 | I59: 0 | J59: =IF('6.2 CBR B'!U$18="TRUE","",+I59*$D$28) ->  | K59: =IF('6.2 CBR B'!U$18="TRUE","",+J59/12) -> 
B60: Customer 26 | D60: 0 | E60: =SUM(IF('6. Class A Consumption Data'!F106:G106="B",'6. Class A Consumption Data'!F104:G104)) -> 0 | I60: 0 | J60: =IF('6.2 CBR B'!U$18="TRUE","",+I60*$D$28) ->  | K60: =IF('6.2 CBR B'!U$18="TRUE","",+J60/12) -> 
B61: Customer 27 | D61: 0 | E61: =SUM(IF('6. Class A Consumption Data'!F109:G109="B",'6. Class A Consumption Data'!F107:G107)) -> 0 | I61: 0 | J61: =IF('6.2 CBR B'!U$18="TRUE","",+I61*$D$28) ->  | K61: =IF('6.2 CBR B'!U$18="TRUE","",+J61/12) -> 
B62: Customer 28 | D62: 0 | E62: =SUM(IF('6. Class A Consumption Data'!F112:G112="B",'6. Class A Consumption Data'!F110:G110)) -> 0 | I62: 0 | J62: =IF('6.2 CBR B'!U$18="TRUE","",+I62*$D$28) ->  | K62: =IF('6.2 CBR B'!U$18="TRUE","",+J62/12) -> 
B63: Customer 29 | D63: 0 | E63: =SUM(IF('6. Class A Consumption Data'!F115:G115="B",'6. Class A Consumption Data'!F113:G113)) -> 0 | I63: 0 | J63: =IF('6.2 CBR B'!U$18="TRUE","",+I63*$D$28) ->  | K63: =IF('6.2 CBR B'!U$18="TRUE","",+J63/12) -> 
B64: Customer 30 | D64: 0 | E64: =SUM(IF('6. Class A Consumption Data'!F118:G118="B",'6. Class A Consumption Data'!F116:G116)) -> 0 | I64: 0 | J64: =IF('6.2 CBR B'!U$18="TRUE","",+I64*$D$28) ->  | K64: =IF('6.2 CBR B'!U$18="TRUE","",+J64/12) -> 
B65: Customer 31 | D65: 0 | E65: =SUM(IF('6. Class A Consumption Data'!F121:G121="B",'6. Class A Consumption Data'!F119:G119)) -> 0 | I65: 0 | J65: =IF('6.2 CBR B'!U$18="TRUE","",+I65*$D$28) ->  | K65: =IF('6.2 CBR B'!U$18="TRUE","",+J65/12) -> 
B66: Customer 32 | D66: 0 | E66: =SUM(IF('6. Class A Consumption Data'!F124:G124="B",'6. Class A Consumption Data'!F122:G122)) -> 0 | I66: 0 | J66: =IF('6.2 CBR B'!U$18="TRUE","",+I66*$D$28) ->  | K66: =IF('6.2 CBR B'!U$18="TRUE","",+J66/12) -> 
B67: Customer 33 | D67: 0 | E67: =SUM(IF('6. Class A Consumption Data'!F127:G127="B",'6. Class A Consumption Data'!F125:G125)) -> 0 | I67: =IFERROR(+D67/$D$185,0) -> 0 | J67: =IF('6.2 CBR B'!U$18="TRUE","",+I67*$D$28) ->  | K67: =IF('6.2 CBR B'!U$18="TRUE","",+J67/12) -> 
B68: Customer 34 | D68: 0 | E68: =SUM(IF('6. Class A Consumption Data'!F130:G130="B",'6. Class A Consumption Data'!F128:G128)) -> 0 | I68: 0 | J68: =IF('6.2 CBR B'!U$18="TRUE","",+I68*$D$28) ->  | K68: =IF('6.2 CBR B'!U$18="TRUE","",+J68/12) -> 
B69: Customer 35 | D69: 0 | E69: =SUM(IF('6. Class A Consumption Data'!F133:G133="B",'6. Class A Consumption Data'!F131:G131)) -> 0 | I69: 0 | J69: =IF('6.2 CBR B'!U$18="TRUE","",+I69*$D$28) ->  | K69: =IF('6.2 CBR B'!U$18="TRUE","",+J69/12) -> 
B70: Customer 36 | D70: 0 | E70: =SUM(IF('6. Class A Consumption Data'!F136:G136="B",'6. Class A Consumption Data'!F134:G134)) -> 0 | I70: 0 | J70: =IF('6.2 CBR B'!U$18="TRUE","",+I70*$D$28) ->  | K70: =IF('6.2 CBR B'!U$18="TRUE","",+J70/12) -> 
B71: Customer 37 | D71: 0 | E71: =SUM(IF('6. Class A Consumption Data'!F139:G139="B",'6. Class A Consumption Data'!F137:G137)) -> 0 | I71: 0 | J71: =IF('6.2 CBR B'!U$18="TRUE","",+I71*$D$28) ->  | K71: =IF('6.2 CBR B'!U$18="TRUE","",+J71/12) -> 
B72: Customer 38 | D72: 0 | E72: =SUM(IF('6. Class A Consumption Data'!F142:G142="B",'6. Class A Consumption Data'!F140:G140)) -> 0 | I72: 0 | J72: =IF('6.2 CBR B'!U$18="TRUE","",+I72*$D$28) ->  | K72: =IF('6.2 CBR B'!U$18="TRUE","",+J72/12) -> 
B73: Customer 39 | D73: 0 | E73: =SUM(IF('6. Class A Consumption Data'!F145:G145="B",'6. Class A Consumption Data'!F143:G143)) -> 0 | I73: 0 | J73: =IF('6.2 CBR B'!U$18="TRUE","",+I73*$D$28) ->  | K73: =IF('6.2 CBR B'!U$18="TRUE","",+J73/12) -> 
B74: Customer 40 | D74: 0 | E74: =SUM(IF('6. Class A Consumption Data'!F148:G148="B",'6. Class A Consumption Data'!F146:G146)) -> 0 | I74: 0 | J74: =IF('6.2 CBR B'!U$18="TRUE","",+I74*$D$28) ->  | K74: =IF('6.2 CBR B'!U$18="TRUE","",+J74/12) -> 
B75: Customer 41 | D75: 0 | E75: =SUM(IF('6. Class A Consumption Data'!F151:G151="B",'6. Class A Consumption Data'!F149:G149)) -> 0 | I75: 0 | J75: =IF('6.2 CBR B'!U$18="TRUE","",+I75*$D$28) ->  | K75: =IF('6.2 CBR B'!U$18="TRUE","",+J75/12) -> 
B76: Customer 42 | D76: 0 | E76: =SUM(IF('6. Class A Consumption Data'!F154:G154="B",'6. Class A Consumption Data'!F152:G152)) -> 0 | I76: 0 | J76: =IF('6.2 CBR B'!U$18="TRUE","",+I76*$D$28) ->  | K76: =IF('6.2 CBR B'!U$18="TRUE","",+J76/12) -> 
B77: Customer 43 | D77: 0 | E77: =SUM(IF('6. Class A Consumption Data'!F157:G157="B",'6. Class A Consumption Data'!F155:G155)) -> 0 | I77: 0 | J77: =IF('6.2 CBR B'!U$18="TRUE","",+I77*$D$28) ->  | K77: =IF('6.2 CBR B'!U$18="TRUE","",+J77/12) -> 
B78: Customer 44 | D78: 0 | E78: =SUM(IF('6. Class A Consumption Data'!F160:G160="B",'6. Class A Consumption Data'!F158:G158)) -> 0 | I78: 0 | J78: =IF('6.2 CBR B'!U$18="TRUE","",+I78*$D$28) ->  | K78: =IF('6.2 CBR B'!U$18="TRUE","",+J78/12) -> 
B79: Customer 45 | D79: 0 | E79: =SUM(IF('6. Class A Consumption Data'!F163:G163="B",'6. Class A Consumption Data'!F161:G161)) -> 0 | I79: 0 | J79: =IF('6.2 CBR B'!U$18="TRUE","",+I79*$D$28) ->  | K79: =IF('6.2 CBR B'!U$18="TRUE","",+J79/12) -> 
B80: Customer 46 | D80: 0 | E80: =SUM(IF('6. Class A Consumption Data'!F166:G166="B",'6. Class A Consumption Data'!F164:G164)) -> 0 | I80: 0 | J80: =IF('6.2 CBR B'!U$18="TRUE","",+I80*$D$28) ->  | K80: =IF('6.2 CBR B'!U$18="TRUE","",+J80/12) -> 
B81: Customer 47 | D81: 0 | E81: =SUM(IF('6. Class A Consumption Data'!F169:G169="B",'6. Class A Consumption Data'!F167:G167)) -> 0 | I81: 0 | J81: =IF('6.2 CBR B'!U$18="TRUE","",+I81*$D$28) ->  | K81: =IF('6.2 CBR B'!U$18="TRUE","",+J81/12) -> 
B82: Customer 48 | D82: 0 | E82: =SUM(IF('6. Class A Consumption Data'!F172:G172="B",'6. Class A Consumption Data'!F170:G170)) -> 0 | I82: 0 | J82: =IF('6.2 CBR B'!U$18="TRUE","",+I82*$D$28) ->  | K82: =IF('6.2 CBR B'!U$18="TRUE","",+J82/12) -> 
B83: Customer 49 | D83: 0 | E83: =SUM(IF('6. Class A Consumption Data'!F175:G175="B",'6. Class A Consumption Data'!F173:G173)) -> 0 | I83: 0 | J83: =IF('6.2 CBR B'!U$18="TRUE","",+I83*$D$28) ->  | K83: =IF('6.2 CBR B'!U$18="TRUE","",+J83/12) -> 
B84: Customer 50 | D84: 0 | E84: =SUM(IF('6. Class A Consumption Data'!F178:G178="B",'6. Class A Consumption Data'!F176:G176)) -> 0 | I84: 0 | J84: =IF('6.2 CBR B'!U$18="TRUE","",+I84*$D$28) ->  | K84: =IF('6.2 CBR B'!U$18="TRUE","",+J84/12) -> 
B85: Customer 51 | D85: 0 | E85: =SUM(IF('6. Class A Consumption Data'!F181:G181="B",'6. Class A Consumption Data'!F179:G179)) -> 0 | I85: 0 | J85: =IF('6.2 CBR B'!U$18="TRUE","",+I85*$D$28) ->  | K85: =IF('6.2 CBR B'!U$18="TRUE","",+J85/12) -> 
B86: Customer 52 | D86: 0 | E86: =SUM(IF('6. Class A Consumption Data'!F184:G184="B",'6. Class A Consumption Data'!F182:G182)) -> 0 | I86: 0 | J86: =IF('6.2 CBR B'!U$18="TRUE","",+I86*$D$28) ->  | K86: =IF('6.2 CBR B'!U$18="TRUE","",+J86/12) -> 
B87: Customer 53 | D87: 0 | E87: =SUM(IF('6. Class A Consumption Data'!F187:G187="B",'6. Class A Consumption Data'!F185:G185)) -> 0 | I87: 0 | J87: =IF('6.2 CBR B'!U$18="TRUE","",+I87*$D$28) ->  | K87: =IF('6.2 CBR B'!U$18="TRUE","",+J87/12) -> 
B88: Customer 54 | D88: 0 | E88: =SUM(IF('6. Class A Consumption Data'!F190:G190="B",'6. Class A Consumption Data'!F188:G188)) -> 0 | I88: 0 | J88: =IF('6.2 CBR B'!U$18="TRUE","",+I88*$D$28) ->  | K88: =IF('6.2 CBR B'!U$18="TRUE","",+J88/12) -> 
B89: Customer 55 | D89: 0 | E89: =SUM(IF('6. Class A Consumption Data'!F193:G193="B",'6. Class A Consumption Data'!F191:G191)) -> 0 | I89: 0 | J89: =IF('6.2 CBR B'!U$18="TRUE","",+I89*$D$28) ->  | K89: =IF('6.2 CBR B'!U$18="TRUE","",+J89/12) -> 
B90: Customer 56 | D90: 0 | E90: =SUM(IF('6. Class A Consumption Data'!F196:G196="B",'6. Class A Consumption Data'!F194:G194)) -> 0 | I90: 0 | J90: =IF('6.2 CBR B'!U$18="TRUE","",+I90*$D$28) ->  | K90: =IF('6.2 CBR B'!U$18="TRUE","",+J90/12) -> 
B91: Customer 57 | D91: 0 | E91: =SUM(IF('6. Class A Consumption Data'!F199:G199="B",'6. Class A Consumption Data'!F197:G197)) -> 0 | I91: 0 | J91: =IF('6.2 CBR B'!U$18="TRUE","",+I91*$D$28) ->  | K91: =IF('6.2 CBR B'!U$18="TRUE","",+J91/12) -> 
B92: Customer 58 | D92: 0 | E92: =SUM(IF('6. Class A Consumption Data'!F202:G202="B",'6. Class A Consumption Data'!F200:G200)) -> 0 | I92: 0 | J92: =IF('6.2 CBR B'!U$18="TRUE","",+I92*$D$28) ->  | K92: =IF('6.2 CBR B'!U$18="TRUE","",+J92/12) -> 
B93: Customer 59 | D93: 0 | E93: =SUM(IF('6. Class A Consumption Data'!F205:G205="B",'6. Class A Consumption Data'!F203:G203)) -> 0 | I93: 0 | J93: =IF('6.2 CBR B'!U$18="TRUE","",+I93*$D$28) ->  | K93: =IF('6.2 CBR B'!U$18="TRUE","",+J93/12) -> 
B94: Customer 60 | D94: 0 | E94: =SUM(IF('6. Class A Consumption Data'!F208:G208="B",'6. Class A Consumption Data'!F206:G206)) -> 0 | I94: 0 | J94: =IF('6.2 CBR B'!U$18="TRUE","",+I94*$D$28) ->  | K94: =IF('6.2 CBR B'!U$18="TRUE","",+J94/12) -> 
B95: Customer 61 | D95: 0 | E95: =SUM(IF('6. Class A Consumption Data'!F211:G211="B",'6. Class A Consumption Data'!F209:G209)) -> 0 | I95: 0 | J95: =IF('6.2 CBR B'!U$18="TRUE","",+I95*$D$28) ->  | K95: =IF('6.2 CBR B'!U$18="TRUE","",+J95/12) -> 
B96: Customer 62 | D96: 0 | E96: =SUM(IF('6. Class A Consumption Data'!F214:G214="B",'6. Class A Consumption Data'!F212:G212)) -> 0 | I96: 0 | J96: =IF('6.2 CBR B'!U$18="TRUE","",+I96*$D$28) ->  | K96: =IF('6.2 CBR B'!U$18="TRUE","",+J96/12) -> 
B97: Customer 63 | D97: 0 | E97: =SUM(IF('6. Class A Consumption Data'!F217:G217="B",'6. Class A Consumption Data'!F215:G215)) -> 0 | I97: 0 | J97: =IF('6.2 CBR B'!U$18="TRUE","",+I97*$D$28) ->  | K97: =IF('6.2 CBR B'!U$18="TRUE","",+J97/12) -> 
B98: Customer 64 | D98: 0 | E98: =SUM(IF('6. Class A Consumption Data'!F220:G220="B",'6. Class A Consumption Data'!F218:G218)) -> 0 | I98: 0 | J98: =IF('6.2 CBR B'!U$18="TRUE","",+I98*$D$28) ->  | K98: =IF('6.2 CBR B'!U$18="TRUE","",+J98/12) -> 
B99: Customer 65 | D99: 0 | E99: =SUM(IF('6. Class A Consumption Data'!F223:G223="B",'6. Class A Consumption Data'!F221:G221)) -> 0 | I99: =IFERROR(+D99/$D$185,0) -> 0 | J99: =IF('6.2 CBR B'!U$18="TRUE","",+I99*$D$28) ->  | K99: =IF('6.2 CBR B'!U$18="TRUE","",+J99/12) -> 
B100: Customer 66 | D100: =SUM(E100:H100) -> 0 | E100: =SUM(IF('6. Class A Consumption Data'!F226:G226="B",'6. Class A Consumption Data'!F224:G224)) -> 0 | I100: 0 | J100: =IF('6.2 CBR B'!U$18="TRUE","",+I100*$D$28) ->  | K100: =IF('6.2 CBR B'!U$18="TRUE","",+J100/12) -> 
B101: Customer 67 | D101: 0 | E101: =SUM(IF('6. Class A Consumption Data'!F229:G229="B",'6. Class A Consumption Data'!F227:G227)) -> 0 | I101: 0 | J101: =IF('6.2 CBR B'!U$18="TRUE","",+I101*$D$28) ->  | K101: =IF('6.2 CBR B'!U$18="TRUE","",+J101/12) -> 
B102: Customer 68 | D102: 0 | E102: =SUM(IF('6. Class A Consumption Data'!F232:G232="B",'6. Class A Consumption Data'!F230:G230)) -> 0 | I102: 0 | J102: =IF('6.2 CBR B'!U$18="TRUE","",+I102*$D$28) ->  | K102: =IF('6.2 CBR B'!U$18="TRUE","",+J102/12) -> 
B103: Customer 69 | D103: 0 | E103: =SUM(IF('6. Class A Consumption Data'!F235:G235="B",'6. Class A Consumption Data'!F233:G233)) -> 0 | I103: 0 | J103: =IF('6.2 CBR B'!U$18="TRUE","",+I103*$D$28) ->  | K103: =IF('6.2 CBR B'!U$18="TRUE","",+J103/12) -> 
B104: Customer 70 | D104: 0 | E104: =SUM(IF('6. Class A Consumption Data'!F238:G238="B",'6. Class A Consumption Data'!F236:G236)) -> 0 | I104: 0 | J104: =IF('6.2 CBR B'!U$18="TRUE","",+I104*$D$28) ->  | K104: =IF('6.2 CBR B'!U$18="TRUE","",+J104/12) -> 
B105: Customer 71 | D105: 0 | E105: =SUM(IF('6. Class A Consumption Data'!F241:G241="B",'6. Class A Consumption Data'!F239:G239)) -> 0 | I105: 0 | J105: =IF('6.2 CBR B'!U$18="TRUE","",+I105*$D$28) ->  | K105: =IF('6.2 CBR B'!U$18="TRUE","",+J105/12) -> 
B106: Customer 72 | D106: 0 | E106: =SUM(IF('6. Class A Consumption Data'!F244:G244="B",'6. Class A Consumption Data'!F242:G242)) -> 0 | I106: 0 | J106: =IF('6.2 CBR B'!U$18="TRUE","",+I106*$D$28) ->  | K106: =IF('6.2 CBR B'!U$18="TRUE","",+J106/12) -> 
B107: Customer 73 | D107: 0 | E107: =SUM(IF('6. Class A Consumption Data'!F247:G247="B",'6. Class A Consumption Data'!F245:G245)) -> 0 | I107: 0 | J107: =IF('6.2 CBR B'!U$18="TRUE","",+I107*$D$28) ->  | K107: =IF('6.2 CBR B'!U$18="TRUE","",+J107/12) -> 
B108: Customer 74 | D108: 0 | E108: =SUM(IF('6. Class A Consumption Data'!F250:G250="B",'6. Class A Consumption Data'!F248:G248)) -> 0 | I108: 0 | J108: =IF('6.2 CBR B'!U$18="TRUE","",+I108*$D$28) ->  | K108: =IF('6.2 CBR B'!U$18="TRUE","",+J108/12) -> 
B109: Customer 75 | D109: 0 | E109: =SUM(IF('6. Class A Consumption Data'!F253:G253="B",'6. Class A Consumption Data'!F251:G251)) -> 0 | I109: 0 | J109: =IF('6.2 CBR B'!U$18="TRUE","",+I109*$D$28) ->  | K109: =IF('6.2 CBR B'!U$18="TRUE","",+J109/12) -> 
B110: Customer 76 | D110: 0 | E110: =SUM(IF('6. Class A Consumption Data'!F256:G256="B",'6. Class A Consumption Data'!F254:G254)) -> 0 | I110: 0 | J110: =IF('6.2 CBR B'!U$18="TRUE","",+I110*$D$28) ->  | K110: =IF('6.2 CBR B'!U$18="TRUE","",+J110/12) -> 
B111: Customer 77 | D111: 0 | E111: =SUM(IF('6. Class A Consumption Data'!F259:G259="B",'6. Class A Consumption Data'!F257:G257)) -> 0 | I111: 0 | J111: =IF('6.2 CBR B'!U$18="TRUE","",+I111*$D$28) ->  | K111: =IF('6.2 CBR B'!U$18="TRUE","",+J111/12) -> 
B112: Customer 78 | D112: 0 | E112: =SUM(IF('6. Class A Consumption Data'!F262:G262="B",'6. Class A Consumption Data'!F260:G260)) -> 0 | I112: 0 | J112: =IF('6.2 CBR B'!U$18="TRUE","",+I112*$D$28) ->  | K112: =IF('6.2 CBR B'!U$18="TRUE","",+J112/12) -> 
B113: Customer 79 | D113: 0 | E113: =SUM(IF('6. Class A Consumption Data'!F265:G265="B",'6. Class A Consumption Data'!F263:G263)) -> 0 | I113: 0 | J113: =IF('6.2 CBR B'!U$18="TRUE","",+I113*$D$28) ->  | K113: =IF('6.2 CBR B'!U$18="TRUE","",+J113/12) -> 
B114: Customer 80 | D114: 0 | E114: =SUM(IF('6. Class A Consumption Data'!F268:G268="B",'6. Class A Consumption Data'!F266:G266)) -> 0 | I114: 0 | J114: =IF('6.2 CBR B'!U$18="TRUE","",+I114*$D$28) ->  | K114: =IF('6.2 CBR B'!U$18="TRUE","",+J114/12) -> 
B115: Customer 81 | D115: 0 | E115: =SUM(IF('6. Class A Consumption Data'!F271:G271="B",'6. Class A Consumption Data'!F269:G269)) -> 0 | I115: 0 | J115: =IF('6.2 CBR B'!U$18="TRUE","",+I115*$D$28) ->  | K115: =IF('6.2 CBR B'!U$18="TRUE","",+J115/12) -> 
B116: Customer 82 | D116: 0 | E116: =SUM(IF('6. Class A Consumption Data'!F274:G274="B",'6. Class A Consumption Data'!F272:G272)) -> 0 | I116: 0 | J116: =IF('6.2 CBR B'!U$18="TRUE","",+I116*$D$28) ->  | K116: =IF('6.2 CBR B'!U$18="TRUE","",+J116/12) -> 
B117: Customer 83 | D117: 0 | E117: =SUM(IF('6. Class A Consumption Data'!F277:G277="B",'6. Class A Consumption Data'!F275:G275)) -> 0 | I117: 0 | J117: =IF('6.2 CBR B'!U$18="TRUE","",+I117*$D$28) ->  | K117: =IF('6.2 CBR B'!U$18="TRUE","",+J117/12) -> 
B118: Customer 84 | D118: 0 | E118: =SUM(IF('6. Class A Consumption Data'!F280:G280="B",'6. Class A Consumption Data'!F278:G278)) -> 0 | I118: 0 | J118: =IF('6.2 CBR B'!U$18="TRUE","",+I118*$D$28) ->  | K118: =IF('6.2 CBR B'!U$18="TRUE","",+J118/12) -> 
B119: Customer 85 | D119: 0 | E119: =SUM(IF('6. Class A Consumption Data'!F283:G283="B",'6. Class A Consumption Data'!F281:G281)) -> 0 | I119: 0 | J119: =IF('6.2 CBR B'!U$18="TRUE","",+I119*$D$28) ->  | K119: =IF('6.2 CBR B'!U$18="TRUE","",+J119/12) -> 
B120: Customer 86 | D120: 0 | E120: =SUM(IF('6. Class A Consumption Data'!F286:G286="B",'6. Class A Consumption Data'!F284:G284)) -> 0 | I120: 0 | J120: =IF('6.2 CBR B'!U$18="TRUE","",+I120*$D$28) ->  | K120: =IF('6.2 CBR B'!U$18="TRUE","",+J120/12) -> 
B121: Customer 87 | D121: 0 | E121: =SUM(IF('6. Class A Consumption Data'!F289:G289="B",'6. Class A Consumption Data'!F287:G287)) -> 0 | I121: 0 | J121: =IF('6.2 CBR B'!U$18="TRUE","",+I121*$D$28) ->  | K121: =IF('6.2 CBR B'!U$18="TRUE","",+J121/12) -> 
B122: Customer 88 | D122: 0 | E122: =SUM(IF('6. Class A Consumption Data'!F292:G292="B",'6. Class A Consumption Data'!F290:G290)) -> 0 | I122: 0 | J122: =IF('6.2 CBR B'!U$18="TRUE","",+I122*$D$28) ->  | K122: =IF('6.2 CBR B'!U$18="TRUE","",+J122/12) -> 
B123: Customer 89 | D123: 0 | E123: =SUM(IF('6. Class A Consumption Data'!F295:G295="B",'6. Class A Consumption Data'!F293:G293)) -> 0 | I123: 0 | J123: =IF('6.2 CBR B'!U$18="TRUE","",+I123*$D$28) ->  | K123: =IF('6.2 CBR B'!U$18="TRUE","",+J123/12) -> 
B124: Customer 90 | D124: 0 | E124: =SUM(IF('6. Class A Consumption Data'!F298:G298="B",'6. Class A Consumption Data'!F296:G296)) -> 0 | I124: 0 | J124: =IF('6.2 CBR B'!U$18="TRUE","",+I124*$D$28) ->  | K124: =IF('6.2 CBR B'!U$18="TRUE","",+J124/12) -> 
B125: Customer 91 | D125: 0 | E125: =SUM(IF('6. Class A Consumption Data'!F301:G301="B",'6. Class A Consumption Data'!F299:G299)) -> 0 | I125: 0 | J125: =IF('6.2 CBR B'!U$18="TRUE","",+I125*$D$28) ->  | K125: =IF('6.2 CBR B'!U$18="TRUE","",+J125/12) -> 
B126: Customer 92 | D126: 0 | E126: =SUM(IF('6. Class A Consumption Data'!F304:G304="B",'6. Class A Consumption Data'!F302:G302)) -> 0 | I126: 0 | J126: =IF('6.2 CBR B'!U$18="TRUE","",+I126*$D$28) ->  | K126: =IF('6.2 CBR B'!U$18="TRUE","",+J126/12) -> 
B127: Customer 93 | D127: 0 | E127: =SUM(IF('6. Class A Consumption Data'!F307:G307="B",'6. Class A Consumption Data'!F305:G305)) -> 0 | I127: 0 | J127: =IF('6.2 CBR B'!U$18="TRUE","",+I127*$D$28) ->  | K127: =IF('6.2 CBR B'!U$18="TRUE","",+J127/12) -> 
B128: Customer 94 | D128: 0 | E128: =SUM(IF('6. Class A Consumption Data'!F310:G310="B",'6. Class A Consumption Data'!F308:G308)) -> 0 | I128: 0 | J128: =IF('6.2 CBR B'!U$18="TRUE","",+I128*$D$28) ->  | K128: =IF('6.2 CBR B'!U$18="TRUE","",+J128/12) -> 
B129: Customer 95 | D129: 0 | E129: =SUM(IF('6. Class A Consumption Data'!F313:G313="B",'6. Class A Consumption Data'!F311:G311)) -> 0 | I129: 0 | J129: =IF('6.2 CBR B'!U$18="TRUE","",+I129*$D$28) ->  | K129: =IF('6.2 CBR B'!U$18="TRUE","",+J129/12) -> 
B130: Customer 96 | D130: 0 | E130: =SUM(IF('6. Class A Consumption Data'!F316:G316="B",'6. Class A Consumption Data'!F314:G314)) -> 0 | I130: 0 | J130: =IF('6.2 CBR B'!U$18="TRUE","",+I130*$D$28) ->  | K130: =IF('6.2 CBR B'!U$18="TRUE","",+J130/12) -> 
B131: Customer 97 | D131: 0 | E131: =SUM(IF('6. Class A Consumption Data'!F319:G319="B",'6. Class A Consumption Data'!F317:G317)) -> 0 | I131: =IFERROR(+D131/$D$185,0) -> 0 | J131: =IF('6.2 CBR B'!U$18="TRUE","",+I131*$D$28) ->  | K131: =IF('6.2 CBR B'!U$18="TRUE","",+J131/12) -> 
B132: Customer 98 | D132: 0 | E132: =SUM(IF('6. Class A Consumption Data'!F322:G322="B",'6. Class A Consumption Data'!F320:G320)) -> 0 | I132: 0 | J132: =IF('6.2 CBR B'!U$18="TRUE","",+I132*$D$28) ->  | K132: =IF('6.2 CBR B'!U$18="TRUE","",+J132/12) -> 
B133: Customer 99 | D133: 0 | E133: =SUM(IF('6. Class A Consumption Data'!F325:G325="B",'6. Class A Consumption Data'!F323:G323)) -> 0 | I133: 0 | J133: =IF('6.2 CBR B'!U$18="TRUE","",+I133*$D$28) ->  | K133: =IF('6.2 CBR B'!U$18="TRUE","",+J133/12) -> 
B134: Customer 100 | D134: 0 | E134: =SUM(IF('6. Class A Consumption Data'!F328:G328="B",'6. Class A Consumption Data'!F326:G326)) -> 0 | I134: 0 | J134: =IF('6.2 CBR B'!U$18="TRUE","",+I134*$D$28) ->  | K134: =IF('6.2 CBR B'!U$18="TRUE","",+J134/12) -> 
B135: Customer 101 | D135: 0 | E135: =SUM(IF('6. Class A Consumption Data'!F331:G331="B",'6. Class A Consumption Data'!F329:G329)) -> 0 | I135: 0 | J135: =IF('6.2 CBR B'!U$18="TRUE","",+I135*$D$28) ->  | K135: =IF('6.2 CBR B'!U$18="TRUE","",+J135/12) -> 
B136: Customer 102 | D136: 0 | E136: =SUM(IF('6. Class A Consumption Data'!F334:G334="B",'6. Class A Consumption Data'!F332:G332)) -> 0 | I136: 0 | J136: =IF('6.2 CBR B'!U$18="TRUE","",+I136*$D$28) ->  | K136: =IF('6.2 CBR B'!U$18="TRUE","",+J136/12) -> 
B137: Customer 103 | D137: 0 | E137: =SUM(IF('6. Class A Consumption Data'!F337:G337="B",'6. Class A Consumption Data'!F335:G335)) -> 0 | I137: 0 | J137: =IF('6.2 CBR B'!U$18="TRUE","",+I137*$D$28) ->  | K137: =IF('6.2 CBR B'!U$18="TRUE","",+J137/12) -> 
B138: Customer 104 | D138: 0 | E138: =SUM(IF('6. Class A Consumption Data'!F340:G340="B",'6. Class A Consumption Data'!F338:G338)) -> 0 | I138: 0 | J138: =IF('6.2 CBR B'!U$18="TRUE","",+I138*$D$28) ->  | K138: =IF('6.2 CBR B'!U$18="TRUE","",+J138/12) -> 
B139: Customer 105 | D139: 0 | E139: =SUM(IF('6. Class A Consumption Data'!F343:G343="B",'6. Class A Consumption Data'!F341:G341)) -> 0 | I139: 0 | J139: =IF('6.2 CBR B'!U$18="TRUE","",+I139*$D$28) ->  | K139: =IF('6.2 CBR B'!U$18="TRUE","",+J139/12) -> 
B140: Customer 106 | D140: 0 | E140: =SUM(IF('6. Class A Consumption Data'!F346:G346="B",'6. Class A Consumption Data'!F344:G344)) -> 0 | I140: 0 | J140: =IF('6.2 CBR B'!U$18="TRUE","",+I140*$D$28) ->  | K140: =IF('6.2 CBR B'!U$18="TRUE","",+J140/12) -> 
B141: Customer 107 | D141: 0 | E141: =SUM(IF('6. Class A Consumption Data'!F349:G349="B",'6. Class A Consumption Data'!F347:G347)) -> 0 | I141: 0 | J141: =IF('6.2 CBR B'!U$18="TRUE","",+I141*$D$28) ->  | K141: =IF('6.2 CBR B'!U$18="TRUE","",+J141/12) -> 
B142: Customer 108 | D142: 0 | E142: =SUM(IF('6. Class A Consumption Data'!F352:G352="B",'6. Class A Consumption Data'!F350:G350)) -> 0 | I142: 0 | J142: =IF('6.2 CBR B'!U$18="TRUE","",+I142*$D$28) ->  | K142: =IF('6.2 CBR B'!U$18="TRUE","",+J142/12) -> 
B143: Customer 109 | D143: 0 | E143: =SUM(IF('6. Class A Consumption Data'!F355:G355="B",'6. Class A Consumption Data'!F353:G353)) -> 0 | I143: 0 | J143: =IF('6.2 CBR B'!U$18="TRUE","",+I143*$D$28) ->  | K143: =IF('6.2 CBR B'!U$18="TRUE","",+J143/12) -> 
B144: Customer 110 | D144: 0 | E144: =SUM(IF('6. Class A Consumption Data'!F358:G358="B",'6. Class A Consumption Data'!F356:G356)) -> 0 | I144: 0 | J144: =IF('6.2 CBR B'!U$18="TRUE","",+I144*$D$28) ->  | K144: =IF('6.2 CBR B'!U$18="TRUE","",+J144/12) -> 
B145: Customer 111 | D145: 0 | E145: =SUM(IF('6. Class A Consumption Data'!F361:G361="B",'6. Class A Consumption Data'!F359:G359)) -> 0 | I145: 0 | J145: =IF('6.2 CBR B'!U$18="TRUE","",+I145*$D$28) ->  | K145: =IF('6.2 CBR B'!U$18="TRUE","",+J145/12) -> 
B146: Customer 112 | D146: 0 | E146: =SUM(IF('6. Class A Consumption Data'!F364:G364="B",'6. Class A Consumption Data'!F362:G362)) -> 0 | I146: 0 | J146: =IF('6.2 CBR B'!U$18="TRUE","",+I146*$D$28) ->  | K146: =IF('6.2 CBR B'!U$18="TRUE","",+J146/12) -> 
B147: Customer 113 | D147: 0 | E147: =SUM(IF('6. Class A Consumption Data'!F367:G367="B",'6. Class A Consumption Data'!F365:G365)) -> 0 | I147: 0 | J147: =IF('6.2 CBR B'!U$18="TRUE","",+I147*$D$28) ->  | K147: =IF('6.2 CBR B'!U$18="TRUE","",+J147/12) -> 
B148: Customer 114 | D148: 0 | E148: =SUM(IF('6. Class A Consumption Data'!F370:G370="B",'6. Class A Consumption Data'!F368:G368)) -> 0 | I148: 0 | J148: =IF('6.2 CBR B'!U$18="TRUE","",+I148*$D$28) ->  | K148: =IF('6.2 CBR B'!U$18="TRUE","",+J148/12) -> 
B149: Customer 115 | D149: 0 | E149: =SUM(IF('6. Class A Consumption Data'!F373:G373="B",'6. Class A Consumption Data'!F371:G371)) -> 0 | I149: 0 | J149: =IF('6.2 CBR B'!U$18="TRUE","",+I149*$D$28) ->  | K149: =IF('6.2 CBR B'!U$18="TRUE","",+J149/12) -> 
B150: Customer 116 | D150: 0 | E150: =SUM(IF('6. Class A Consumption Data'!F376:G376="B",'6. Class A Consumption Data'!F374:G374)) -> 0 | I150: 0 | J150: =IF('6.2 CBR B'!U$18="TRUE","",+I150*$D$28) ->  | K150: =IF('6.2 CBR B'!U$18="TRUE","",+J150/12) -> 
B151: Customer 117 | D151: 0 | E151: =SUM(IF('6. Class A Consumption Data'!F379:G379="B",'6. Class A Consumption Data'!F377:G377)) -> 0 | I151: 0 | J151: =IF('6.2 CBR B'!U$18="TRUE","",+I151*$D$28) ->  | K151: =IF('6.2 CBR B'!U$18="TRUE","",+J151/12) -> 
B152: Customer 118 | D152: 0 | E152: =SUM(IF('6. Class A Consumption Data'!F382:G382="B",'6. Class A Consumption Data'!F380:G380)) -> 0 | I152: 0 | J152: =IF('6.2 CBR B'!U$18="TRUE","",+I152*$D$28) ->  | K152: =IF('6.2 CBR B'!U$18="TRUE","",+J152/12) -> 
B153: Customer 119 | D153: 0 | E153: =SUM(IF('6. Class A Consumption Data'!F385:G385="B",'6. Class A Consumption Data'!F383:G383)) -> 0 | I153: 0 | J153: =IF('6.2 CBR B'!U$18="TRUE","",+I153*$D$28) ->  | K153: =IF('6.2 CBR B'!U$18="TRUE","",+J153/12) -> 
B154: Customer 120 | D154: 0 | E154: =SUM(IF('6. Class A Consumption Data'!F388:G388="B",'6. Class A Consumption Data'!F386:G386)) -> 0 | I154: 0 | J154: =IF('6.2 CBR B'!U$18="TRUE","",+I154*$D$28) ->  | K154: =IF('6.2 CBR B'!U$18="TRUE","",+J154/12) -> 
B155: Customer 121 | D155: 0 | E155: =SUM(IF('6. Class A Consumption Data'!F391:G391="B",'6. Class A Consumption Data'!F389:G389)) -> 0 | I155: 0 | J155: =IF('6.2 CBR B'!U$18="TRUE","",+I155*$D$28) ->  | K155: =IF('6.2 CBR B'!U$18="TRUE","",+J155/12) -> 
B156: Customer 122 | D156: 0 | E156: =SUM(IF('6. Class A Consumption Data'!F394:G394="B",'6. Class A Consumption Data'!F392:G392)) -> 0 | I156: 0 | J156: =IF('6.2 CBR B'!U$18="TRUE","",+I156*$D$28) ->  | K156: =IF('6.2 CBR B'!U$18="TRUE","",+J156/12) -> 
B157: Customer 123 | D157: 0 | E157: =SUM(IF('6. Class A Consumption Data'!F397:G397="B",'6. Class A Consumption Data'!F395:G395)) -> 0 | I157: 0 | J157: =IF('6.2 CBR B'!U$18="TRUE","",+I157*$D$28) ->  | K157: =IF('6.2 CBR B'!U$18="TRUE","",+J157/12) -> 
B158: Customer 124 | D158: 0 | E158: =SUM(IF('6. Class A Consumption Data'!F400:G400="B",'6. Class A Consumption Data'!F398:G398)) -> 0 | I158: 0 | J158: =IF('6.2 CBR B'!U$18="TRUE","",+I158*$D$28) ->  | K158: =IF('6.2 CBR B'!U$18="TRUE","",+J158/12) -> 
B159: Customer 125 | D159: 0 | E159: =SUM(IF('6. Class A Consumption Data'!F403:G403="B",'6. Class A Consumption Data'!F401:G401)) -> 0 | I159: 0 | J159: =IF('6.2 CBR B'!U$18="TRUE","",+I159*$D$28) ->  | K159: =IF('6.2 CBR B'!U$18="TRUE","",+J159/12) -> 
B160: Customer 126 | D160: 0 | E160: =SUM(IF('6. Class A Consumption Data'!F406:G406="B",'6. Class A Consumption Data'!F404:G404)) -> 0 | I160: 0 | J160: =IF('6.2 CBR B'!U$18="TRUE","",+I160*$D$28) ->  | K160: =IF('6.2 CBR B'!U$18="TRUE","",+J160/12) -> 
B161: Customer 127 | D161: 0 | E161: =SUM(IF('6. Class A Consumption Data'!F409:G409="B",'6. Class A Consumption Data'!F407:G407)) -> 0 | I161: 0 | J161: =IF('6.2 CBR B'!U$18="TRUE","",+I161*$D$28) ->  | K161: =IF('6.2 CBR B'!U$18="TRUE","",+J161/12) -> 
B162: Customer 128 | D162: 0 | E162: =SUM(IF('6. Class A Consumption Data'!F412:G412="B",'6. Class A Consumption Data'!F410:G410)) -> 0 | I162: 0 | J162: =IF('6.2 CBR B'!U$18="TRUE","",+I162*$D$28) ->  | K162: =IF('6.2 CBR B'!U$18="TRUE","",+J162/12) -> 
B163: Customer 129 | D163: 0 | E163: =SUM(IF('6. Class A Consumption Data'!F415:G415="B",'6. Class A Consumption Data'!F413:G413)) -> 0 | I163: =IFERROR(+D163/$D$185,0) -> 0 | J163: =IF('6.2 CBR B'!U$18="TRUE","",+I163*$D$28) ->  | K163: =IF('6.2 CBR B'!U$18="TRUE","",+J163/12) -> 
B164: Customer 130 | D164: =SUM(E164:H164) -> 0 | E164: =SUM(IF('6. Class A Consumption Data'!F418:G418="B",'6. Class A Consumption Data'!F416:G416)) -> 0 | I164: 0 | J164: =IF('6.2 CBR B'!U$18="TRUE","",+I164*$D$28) ->  | K164: =IF('6.2 CBR B'!U$18="TRUE","",+J164/12) -> 
B165: Customer 131 | D165: 0 | E165: =SUM(IF('6. Class A Consumption Data'!F421:G421="B",'6. Class A Consumption Data'!F419:G419)) -> 0 | I165: 0 | J165: =IF('6.2 CBR B'!U$18="TRUE","",+I165*$D$28) ->  | K165: =IF('6.2 CBR B'!U$18="TRUE","",+J165/12) -> 
B166: Customer 132 | D166: 0 | E166: =SUM(IF('6. Class A Consumption Data'!F424:G424="B",'6. Class A Consumption Data'!F422:G422)) -> 0 | I166: 0 | J166: =IF('6.2 CBR B'!U$18="TRUE","",+I166*$D$28) ->  | K166: =IF('6.2 CBR B'!U$18="TRUE","",+J166/12) -> 
B167: Customer 133 | D167: 0 | E167: =SUM(IF('6. Class A Consumption Data'!F427:G427="B",'6. Class A Consumption Data'!F425:G425)) -> 0 | I167: 0 | J167: =IF('6.2 CBR B'!U$18="TRUE","",+I167*$D$28) ->  | K167: =IF('6.2 CBR B'!U$18="TRUE","",+J167/12) -> 
B168: Customer 134 | D168: 0 | E168: =SUM(IF('6. Class A Consumption Data'!F430:G430="B",'6. Class A Consumption Data'!F428:G428)) -> 0 | I168: 0 | J168: =IF('6.2 CBR B'!U$18="TRUE","",+I168*$D$28) ->  | K168: =IF('6.2 CBR B'!U$18="TRUE","",+J168/12) -> 
B169: Customer 135 | D169: 0 | E169: =SUM(IF('6. Class A Consumption Data'!F433:G433="B",'6. Class A Consumption Data'!F431:G431)) -> 0 | I169: 0 | J169: =IF('6.2 CBR B'!U$18="TRUE","",+I169*$D$28) ->  | K169: =IF('6.2 CBR B'!U$18="TRUE","",+J169/12) -> 
B170: Customer 136 | D170: 0 | E170: =SUM(IF('6. Class A Consumption Data'!F436:G436="B",'6. Class A Consumption Data'!F434:G434)) -> 0 | I170: 0 | J170: =IF('6.2 CBR B'!U$18="TRUE","",+I170*$D$28) ->  | K170: =IF('6.2 CBR B'!U$18="TRUE","",+J170/12) -> 
B171: Customer 137 | D171: 0 | E171: =SUM(IF('6. Class A Consumption Data'!F439:G439="B",'6. Class A Consumption Data'!F437:G437)) -> 0 | I171: 0 | J171: =IF('6.2 CBR B'!U$18="TRUE","",+I171*$D$28) ->  | K171: =IF('6.2 CBR B'!U$18="TRUE","",+J171/12) -> 
B172: Customer 138 | D172: 0 | E172: =SUM(IF('6. Class A Consumption Data'!F442:G442="B",'6. Class A Consumption Data'!F440:G440)) -> 0 | I172: 0 | J172: =IF('6.2 CBR B'!U$18="TRUE","",+I172*$D$28) ->  | K172: =IF('6.2 CBR B'!U$18="TRUE","",+J172/12) -> 
B173: Customer 139 | D173: 0 | E173: =SUM(IF('6. Class A Consumption Data'!F445:G445="B",'6. Class A Consumption Data'!F443:G443)) -> 0 | I173: 0 | J173: =IF('6.2 CBR B'!U$18="TRUE","",+I173*$D$28) ->  | K173: =IF('6.2 CBR B'!U$18="TRUE","",+J173/12) -> 
B174: Customer 140 | D174: 0 | E174: =SUM(IF('6. Class A Consumption Data'!F448:G448="B",'6. Class A Consumption Data'!F446:G446)) -> 0 | I174: 0 | J174: =IF('6.2 CBR B'!U$18="TRUE","",+I174*$D$28) ->  | K174: =IF('6.2 CBR B'!U$18="TRUE","",+J174/12) -> 
B175: Customer 141 | D175: 0 | E175: =SUM(IF('6. Class A Consumption Data'!F451:G451="B",'6. Class A Consumption Data'!F449:G449)) -> 0 | I175: 0 | J175: =IF('6.2 CBR B'!U$18="TRUE","",+I175*$D$28) ->  | K175: =IF('6.2 CBR B'!U$18="TRUE","",+J175/12) -> 
B176: Customer 142 | D176: 0 | E176: =SUM(IF('6. Class A Consumption Data'!F454:G454="B",'6. Class A Consumption Data'!F452:G452)) -> 0 | I176: 0 | J176: =IF('6.2 CBR B'!U$18="TRUE","",+I176*$D$28) ->  | K176: =IF('6.2 CBR B'!U$18="TRUE","",+J176/12) -> 
B177: Customer 143 | D177: 0 | E177: =SUM(IF('6. Class A Consumption Data'!F457:G457="B",'6. Class A Consumption Data'!F455:G455)) -> 0 | I177: 0 | J177: =IF('6.2 CBR B'!U$18="TRUE","",+I177*$D$28) ->  | K177: =IF('6.2 CBR B'!U$18="TRUE","",+J177/12) -> 
B178: Customer 144 | D178: 0 | E178: =SUM(IF('6. Class A Consumption Data'!F460:G460="B",'6. Class A Consumption Data'!F458:G458)) -> 0 | I178: 0 | J178: =IF('6.2 CBR B'!U$18="TRUE","",+I178*$D$28) ->  | K178: =IF('6.2 CBR B'!U$18="TRUE","",+J178/12) -> 
B179: Customer 145 | D179: 0 | E179: =SUM(IF('6. Class A Consumption Data'!F463:G463="B",'6. Class A Consumption Data'!F461:G461)) -> 0 | I179: 0 | J179: =IF('6.2 CBR B'!U$18="TRUE","",+I179*$D$28) ->  | K179: =IF('6.2 CBR B'!U$18="TRUE","",+J179/12) -> 
B180: Customer 146 | D180: 0 | E180: =SUM(IF('6. Class A Consumption Data'!F466:G466="B",'6. Class A Consumption Data'!F464:G464)) -> 0 | I180: 0 | J180: =IF('6.2 CBR B'!U$18="TRUE","",+I180*$D$28) ->  | K180: =IF('6.2 CBR B'!U$18="TRUE","",+J180/12) -> 
B181: Customer 147 | D181: 0 | E181: =SUM(IF('6. Class A Consumption Data'!F469:G469="B",'6. Class A Consumption Data'!F467:G467)) -> 0 | I181: 0 | J181: =IF('6.2 CBR B'!U$18="TRUE","",+I181*$D$28) ->  | K181: =IF('6.2 CBR B'!U$18="TRUE","",+J181/12) -> 
B182: Customer 148 | D182: 0 | E182: =SUM(IF('6. Class A Consumption Data'!F472:G472="B",'6. Class A Consumption Data'!F470:G470)) -> 0 | I182: 0 | J182: =IF('6.2 CBR B'!U$18="TRUE","",+I182*$D$28) ->  | K182: =IF('6.2 CBR B'!U$18="TRUE","",+J182/12) -> 
B183: Customer 149 | D183: 0 | E183: =SUM(IF('6. Class A Consumption Data'!F475:G475="B",'6. Class A Consumption Data'!F473:G473)) -> 0 | I183: 0 | J183: =IF('6.2 CBR B'!U$18="TRUE","",+I183*$D$28) ->  | K183: =IF('6.2 CBR B'!U$18="TRUE","",+J183/12) -> 
B184: Customer 150 | D184: 0 | E184: =SUM(IF('6. Class A Consumption Data'!F478:G478="B",'6. Class A Consumption Data'!F476:G476)) -> 0 | I184: 0 | J184: =IF('6.2 CBR B'!U$18="TRUE","",+I184*$D$28) ->  | K184: =IF('6.2 CBR B'!U$18="TRUE","",+J184/12) -> 
B185: Total for all Customers | D185: 0 | E185: =SUM(E35:E184) -> 0 | F185: 0 | G185: 0 | H185: 0 | I185: 0 | J185: 0

Sheet 6.2 CBR B (hidden)
A1: Back to Index
B2: =+'1. Info'!B2 -> 2027-2031 RTSR Workform
B13: The purpose of this tab is to calculate the CBR rate riders for all current Class B customers who did not transition between Class A and B in the period since the Account 1580, sub-account CBR Class B balance accumulated.
B15: Please select the Year the Account 1580 CBR Class B was Last Disposed. | C15: ='6.1a GA Allocation'!C14 -> 2023 | D15: (Note: Account 1580, Sub-account CBR Class B was established starting in 2015)
U18: =IF(ABS(MIN(W22:W26,W28:W30))<0.0001,"TRUE","FALSE") -> TRUE
C19: Total Metered Minus WMP | E19: ="Total Metered "&'6.2a CBR B_Allocation'!E16&" Consumption for Class A customers that were Class A for the entire period CBR Class B balance accumulated" -> Total Metered 2024 Consumption for Class A customers that were Class A for the entire period CBR Class B balance accumulated | G19: ="Total Metered "&'6.2a CBR B_Allocation'!E16&" Consumption for Customers that Transitioned Between Class A and B during the period CBR Class B balance accumulated" -> Total Metered 2024 Consumption for Customers that Transitioned Between Class A and B during the period CBR Class B balance accumulated | I19: Metered Consumption for Current Class B Customers (Total Consumption LESS WMP, Class A and Transition Customers' Consumption) | K19: % of total kWh | L19: Total CBR $ allocated to Current Class B Customers | M19: CBR Rate Rider | O19: Revenue Reconciliation | P19: Variance | U19: CBR Rate Rider
C20: kWh | D20: kW | E20: kWh | F20: kW | G20: kWh | H20: kW | I20: kWh | J20: kW
A22: =IFERROR(VLOOKUP(B22,Reference!A:F,6,FALSE)&"_CBRY2",0) -> R_CBRY2 | B22: ='4. Billing Det. for Def-Var'!B17 -> RESIDENTIAL SERVICE CLASSIFICATION | C22: =IF(B22="","",'4. Billing Det. for Def-Var'!D17-'4. Billing Det. for Def-Var'!H17) -> 3025132486 | D22: =IF(B22="","",'4. Billing Det. for Def-Var'!E17-'4. Billing Det. for Def-Var'!I17) -> 0 | E22: =IF(B22="","",SUM(IF('6. Class A Consumption Data'!$D$484:$D$784=$B22,'6. Class A Consumption Data'!$F$484:$G$784))) -> 0 | F22: =IF(B22="","",SUM(IF('6. Class A Consumption Data'!$H$484:$H$784=$B22&$F$20,'6. Class A Consumption Data'!$F$484:$G$784))) -> 0 | G22: =IF(B22="","",SUM(IF('6. Class A Consumption Data'!$D$29:$D$478=$B22,'6. Class A Consumption Data'!F$29:G$478))) -> 0 | H22: =IF(B22="","",SUM(IF('6. Class A Consumption Data'!$J$29:$J$478=$B22&$H$20,'6. Class A Consumption Data'!$F$29:$G$478))) -> 0 | I22: =IF(B22="","",ROUND(C22-E22-G22,0)) -> 3025132486 | J22: =IF(B22="","",ROUND(D22-F22-H22,0)) -> 0 | K22: =IF(B22="","",IFERROR(I22/I$33,"")) -> 0.4079292732 | L22: =IF(B22="","",IFERROR(L$33*K22,"")) -> -22756.72175 | M22: =IF(B22="","",IFERROR(IF(U$18="TRUE",0,ROUND(U22,4)),0)) -> 0 | N22: =VLOOKUP(B22,'4. Billing Det. for Def-Var'!B:G,2,FALSE) ->  | O22: =IFERROR(IF(J22=0,ROUND(M22,4)*I22,ROUND(M22,4)*J22),"") -> 0 | P22: =IFERROR(L22-O22,"") -> -22756.72175 | U22: =IFERROR(IF($J22=0,$L22/$I22,$L22/$J22),"") -> -7.522553759e-06 | V22: =N22 ->  | W22: =IF(U22="","",ABS(U22)) -> 7.522553759e-06
A23: =IFERROR(VLOOKUP(B23,Reference!A:F,6,FALSE)&"_CBRY2",0) -> GSL_CBRY2 | B23: ='4. Billing Det. for Def-Var'!B18 -> GENERAL SERVICE LESS THAN 50 KW SERVICE CLASSIFICATION | C23: =IF(B23="","",'4. Billing Det. for Def-Var'!D18-'4. Billing Det. for Def-Var'!H18) -> 1027917567 | D23: =IF(B23="","",'4. Billing Det. for Def-Var'!E18-'4. Billing Det. for Def-Var'!I18) -> 0 | E23: =IF(B23="","",SUM(IF('6. Class A Consumption Data'!$D$484:$D$784=$B23,'6. Class A Consumption Data'!$F$484:$G$784))) -> 0 | F23: =IF(B23="","",SUM(IF('6. Class A Consumption Data'!$H$484:$H$784=$B23&$F$20,'6. Class A Consumption Data'!$F$484:$G$784))) -> 0 | G23: =IF(B23="","",SUM(IF('6. Class A Consumption Data'!$D$29:$D$478=$B23,'6. Class A Consumption Data'!F$29:G$478))) -> 0 | H23: =IF(B23="","",SUM(IF('6. Class A Consumption Data'!$J$29:$J$478=$B23&$H$20,'6. Class A Consumption Data'!$F$29:$G$478))) -> 0 | I23: 1027917567 | J23: 0 | K23: 0.1386113395 | L23: -7732.565157 | M23: 0 | N23: =VLOOKUP(B23,'4. Billing Det. for Def-Var'!B:G,2,FALSE) ->  | O23: =IFERROR(IF(J23=0,ROUND(M23,4)*I23,ROUND(M23,4)*J23),"") -> 0 | P23: =IFERROR(L23-O23,"") -> -7732.565157 | U23: -7.522553759e-06 | V23: =N23 ->  | W23: =IF(U23="","",ABS(U23)) -> 7.522553759e-06
A24: =IFERROR(VLOOKUP(B24,Reference!A:F,6,FALSE)&"_CBRY2",0) -> GSG_CBRY2 | B24: ='4. Billing Det. for Def-Var'!B19 -> GENERAL SERVICE 50 to 4,999 kW SERVICE CLASSIFICATION | C24: =IF(B24="","",'4. Billing Det. for Def-Var'!D19-'4. Billing Det. for Def-Var'!H19) -> 4785262488 | D24: =IF(B24="","",'4. Billing Det. for Def-Var'!E19-'4. Billing Det. for Def-Var'!I19) -> 12241543.15 | E24: =IF(B24="","",SUM(IF('6. Class A Consumption Data'!$D$484:$D$784=$B24,'6. Class A Consumption Data'!$F$484:$G$784))) -> 1547743438 | F24: =IF(B24="","",SUM(IF('6. Class A Consumption Data'!$H$484:$H$784=$B24&$F$20,'6. Class A Consumption Data'!$F$484:$G$784))) -> 3213628.502 | G24: =IF(B24="","",SUM(IF('6. Class A Consumption Data'!$D$29:$D$478=$B24,'6. Class A Consumption Data'!F$29:G$478))) -> 0 | H24: =IF(B24="","",SUM(IF('6. Class A Consumption Data'!$J$29:$J$478=$B24&$H$20,'6. Class A Consumption Data'!$F$29:$G$478))) -> 0 | I24: 3237519050 | J24: 9027915 | K24: 0.4365689104 | L24: -24354.4111 | M24: 0 | N24: =VLOOKUP(B24,'4. Billing Det. for Def-Var'!B:G,2,FALSE) ->  | O24: 0 | P24: -24354.4111 | U24: -0.002697678379 | W24: 0.002697678379
A25: =IFERROR(VLOOKUP(B25,Reference!A:F,6,FALSE)&"_CBRY2",0) -> LU_CBRY2 | B25: ='4. Billing Det. for Def-Var'!B20 -> LARGE USE SERVICE CLASSIFICATION | C25: =IF(B25="","",'4. Billing Det. for Def-Var'!D20-'4. Billing Det. for Def-Var'!H20) -> 234289032.2 | D25: =IF(B25="","",'4. Billing Det. for Def-Var'!E20-'4. Billing Det. for Def-Var'!I20) -> 434330.5732 | E25: =IF(B25="","",SUM(IF('6. Class A Consumption Data'!$D$484:$D$784=$B25,'6. Class A Consumption Data'!$F$484:$G$784))) -> 164275588.9 | F25: =IF(B25="","",SUM(IF('6. Class A Consumption Data'!$H$484:$H$784=$B25&$F$20,'6. Class A Consumption Data'!$F$484:$G$784))) -> 264790.8272 | G25: =IF(B25="","",SUM(IF('6. Class A Consumption Data'!$D$29:$D$478=$B25,'6. Class A Consumption Data'!F$29:G$478))) -> 0 | H25: =IF(B25="","",SUM(IF('6. Class A Consumption Data'!$J$29:$J$478=$B25&$H$20,'6. Class A Consumption Data'!$F$29:$G$478))) -> 0 | I25: 70013443 | J25: 169540 | K25: 0.009441084994 | L25: -526.6798888 | M25: 0 | N25: =VLOOKUP(B25,'4. Billing Det. for Def-Var'!B:G,2,FALSE) ->  | O25: 0 | P25: -526.6798888 | U25: -0.003106522878 | W25: 0.003106522878
A26: =IFERROR(VLOOKUP(B26,Reference!A:F,6,FALSE)&"_CBRY2",0) -> USL_CBRY2 | B26: ='4. Billing Det. for Def-Var'!B21 -> UNMETERED SCATTERED LOAD SERVICE CLASSIFICATION | C26: =IF(B26="","",'4. Billing Det. for Def-Var'!D21-'4. Billing Det. for Def-Var'!H21) -> 15207734.59 | D26: =IF(B26="","",'4. Billing Det. for Def-Var'!E21-'4. Billing Det. for Def-Var'!I21) -> 0 | E26: =IF(B26="","",SUM(IF('6. Class A Consumption Data'!$D$484:$D$784=$B26,'6. Class A Consumption Data'!$F$484:$G$784))) -> 0 | F26: =IF(B26="","",SUM(IF('6. Class A Consumption Data'!$H$484:$H$784=$B26&$F$20,'6. Class A Consumption Data'!$F$484:$G$784))) -> 0 | G26: =IF(B26="","",SUM(IF('6. Class A Consumption Data'!$D$29:$D$478=$B26,'6. Class A Consumption Data'!F$29:G$478))) -> 0 | H26: =IF(B26="","",SUM(IF('6. Class A Consumption Data'!$J$29:$J$478=$B26&$H$20,'6. Class A Consumption Data'!$F$29:$G$478))) -> 0 | I26: 15207735 | J26: 0 | K26: 0.002050713585 | L26: -114.4010041 | M26: 0 | N26: =VLOOKUP(B26,'4. Billing Det. for Def-Var'!B:G,2,FALSE) ->  | O26: 0 | P26: -114.4010041 | U26: -7.522553759e-06 | W26: 7.522553759e-06
A27: =IFERROR(VLOOKUP(B27,Reference!A:F,6,FALSE)&"_CBRY2",0) -> SL_CBRY2 | B27: ='4. Billing Det. for Def-Var'!B22 -> STREET LIGHTING SERVICE CLASSIFICATION | C27: =IF(B27="","",'4. Billing Det. for Def-Var'!D22-'4. Billing Det. for Def-Var'!H22) -> 39805164.43 | D27: =IF(B27="","",'4. Billing Det. for Def-Var'!E22-'4. Billing Det. for Def-Var'!I22) -> 111703.6733 | E27: =IF(B27="","",SUM(IF('6. Class A Consumption Data'!$D$484:$D$784=$B27,'6. Class A Consumption Data'!$F$484:$G$784))) -> 0 | F27: =IF(B27="","",SUM(IF('6. Class A Consumption Data'!$H$484:$H$784=$B27&$F$20,'6. Class A Consumption Data'!$F$484:$G$784))) -> 0 | G27: =IF(B27="","",SUM(IF('6. Class A Consumption Data'!$D$29:$D$478=$B27,'6. Class A Consumption Data'!F$29:G$478))) -> 0 | H27: =IF(B27="","",SUM(IF('6. Class A Consumption Data'!$J$29:$J$478=$B27&$H$20,'6. Class A Consumption Data'!$F$29:$G$478))) -> 0 | I27: 39805164 | J27: 111704 | K27: 0.005367596856 | L27: -299.4364861 | M27: 0 | N27: =VLOOKUP(B27,'4. Billing Det. for Def-Var'!B:G,2,FALSE) ->  | O27: 0 | P27: -299.4364861 | U27: -0.002680624562 | W27: 0.002680624562
A28: =IFERROR(VLOOKUP(B28,Reference!A:F,6,FALSE)&"_CBRY2",0) -> SEN_CBRY2 | B28: ='4. Billing Det. for Def-Var'!B23 -> SENTINEL LIGHTING SERVICE CLASSIFICATION | C28: =IF(B28="","",ROUND('4. Billing Det. for Def-Var'!D23-'4. Billing Det. for Def-Var'!H23,0)) -> 230495 | D28: =IF(B28="","",ROUND('4. Billing Det. for Def-Var'!E23-'4. Billing Det. for Def-Var'!I23,0)) -> 626 | E28: =IF(B28="","",SUM(IF('6. Class A Consumption Data'!$D$484:$D$784=$B28,'6. Class A Consumption Data'!$F$484:$G$784))) -> 0 | F28: =IF(B28="","",SUM(IF('6. Class A Consumption Data'!$H$484:$H$784=$B28&$F$20,'6. Class A Consumption Data'!$F$484:$G$784))) -> 0 | G28: =IF(B28="","",SUM(IF('6. Class A Consumption Data'!$D$29:$D$478=$B28,'6. Class A Consumption Data'!F$29:G$478))) -> 0 | H28: =IF(B28="","",SUM(IF('6. Class A Consumption Data'!$J$29:$J$478=$B28&$H$20,'6. Class A Consumption Data'!$F$29:$G$478))) -> 0 | I28: 230495 | J28: 626 | K28: 3.108150082e-05 | L28: =IF(B28="","",IFERROR(ROUND(L$33*K28,0),"")) -> -2 | M28: =IF(B28="","",IFERROR(IF(U$18="TRUE",0,ROUND(U28,4)),0)) -> 0 | N28: =VLOOKUP(B28,'4. Billing Det. for Def-Var'!B:G,2,FALSE) ->  | O28: 0 | P28: -2 | U28: -0.003194888179 | W28: 0.003194888179
A29: =IFERROR(VLOOKUP(B29,Reference!A:F,6,FALSE)&"_CBRY2",0) -> 0 | B29: ='4. Billing Det. for Def-Var'!B24 ->  | C29: =IF(B29="","",'4. Billing Det. for Def-Var'!D24-'4. Billing Det. for Def-Var'!H24) ->  | D29: =IF(B29="","",'4. Billing Det. for Def-Var'!E24-'4. Billing Det. for Def-Var'!I24) ->  | E29: =IF(B29="","",SUM(IF('6. Class A Consumption Data'!$D$484:$D$784=$B29,'6. Class A Consumption Data'!$F$484:$G$784))) ->  | F29: =IF(B29="","",SUM(IF('6. Class A Consumption Data'!$H$484:$H$784=$B29&$F$20,'6. Class A Consumption Data'!$F$484:$G$784))) ->  | G29: =IF(B29="","",SUM(IF('6. Class A Consumption Data'!$D$29:$D$478=$B29,'6. Class A Consumption Data'!F$29:G$478))) ->  | H29: =IF(B29="","",SUM(IF('6. Class A Consumption Data'!$J$29:$J$478=$B29&$H$20,'6. Class A Consumption Data'!$F$29:$G$478))) ->  | N29: =VLOOKUP(B29,'4. Billing Det. for Def-Var'!B:G,2,FALSE) -> 
A30: =IFERROR(VLOOKUP(B30,Reference!A:F,6,FALSE)&"_CBRY2",0) -> 0 | B30: ='4. Billing Det. for Def-Var'!B25 ->  | C30: =IF(B30="","",'4. Billing Det. for Def-Var'!D25-'4. Billing Det. for Def-Var'!H25) ->  | D30: =IF(B30="","",'4. Billing Det. for Def-Var'!E25-'4. Billing Det. for Def-Var'!I25) ->  | E30: =IF(B30="","",SUM(IF('6. Class A Consumption Data'!$D$484:$D$784=$B30,'6. Class A Consumption Data'!$F$484:$G$784))) ->  | F30: =IF(B30="","",SUM(IF('6. Class A Consumption Data'!$H$484:$H$784=$B30&$F$20,'6. Class A Consumption Data'!$F$484:$G$784))) ->  | G30: =IF(B30="","",SUM(IF('6. Class A Consumption Data'!$D$29:$D$478=$B30,'6. Class A Consumption Data'!F$29:G$478))) ->  | H30: =IF(B30="","",SUM(IF('6. Class A Consumption Data'!$J$29:$J$478=$B30&$H$20,'6. Class A Consumption Data'!$F$29:$G$478))) ->  | N30: =VLOOKUP(B30,'4. Billing Det. for Def-Var'!B:G,2,FALSE) -> 
A31: =IFERROR(VLOOKUP(B31,Reference!A:F,6,FALSE)&"_CBRY2",0) -> 0 | B31: ='4. Billing Det. for Def-Var'!B26 ->  | C31: =IF(B31="","",'4. Billing Det. for Def-Var'!D26-'4. Billing Det. for Def-Var'!H26) ->  | D31: =IF(B31="","",'4. Billing Det. for Def-Var'!E26-'4. Billing Det. for Def-Var'!I26) ->  | E31: =IF(B31="","",SUM(IF('6. Class A Consumption Data'!$D$484:$D$784=$B31,'6. Class A Consumption Data'!$F$484:$G$784))) ->  | F31: =IF(B31="","",SUM(IF('6. Class A Consumption Data'!$H$484:$H$784=$B31&$F$20,'6. Class A Consumption Data'!$F$484:$G$784))) ->  | G31: =IF(B31="","",SUM(IF('6. Class A Consumption Data'!$D$29:$D$478=$B31,'6. Class A Consumption Data'!F$29:G$478))) ->  | H31: =IF(B31="","",SUM(IF('6. Class A Consumption Data'!$J$29:$J$478=$B31&$H$20,'6. Class A Consumption Data'!$F$29:$G$478))) ->  | I31: =IF(B31="","",ROUND(C31-E31-G31,0)) ->  | J31: =IF(B31="","",ROUND(D31-F31-H31,0)) ->  | K31: =IF(B31="","",IFERROR(I31/I$33,"")) ->  | L31: =IF(B31="","",IFERROR(L$33*K31,"")) ->  | M31: =IF(B31="","",IFERROR(IF(U$18="TRUE",0,ROUND(U31,4)),0)) ->  | N31: =VLOOKUP(B31,'4. Billing Det. for Def-Var'!B:G,2,FALSE) ->  | O31: =IFERROR(IF(J31=0,ROUND(M31,4)*I31,ROUND(M31,4)*J31),"") ->  | P31: =IFERROR(L31-O31,"") ->  | V31: =N31 ->  | W31: =IF(U31="","",ABS(U31)) -> 
C33: =SUM(C22:C32) -> 9127844967 | D33: 12788203.39 | E33: 1712019027 | F33: 3478419.329 | G33: 0 | H33: 0 | I33: 7415825940 | J33: 9309785 | K33: 1 | L33: =ROUND('6.2a CBR B_Allocation'!D29,4) -> -55785.9493 | O33: =SUM(O22:O32) -> 0 | P33: =SUM(P22:P32) -> -55786.21539
L34: from Sheet 6.2a
J36: 39116765
J37: 7044910670
J38: =+J37-I33 -> -370915270

Sheet 7. Calculation of Def-Var RR (hidden)
B1: Back to Index
C2: =+'1. Info'!B2 -> 2027-2031 RTSR Workform
C11: IInput required at cells D14 and D15. This workshseet calculates rate riders related to the Deferral/Variance Account Disposition (if applicable) and rate riders for Account 1568. Rate Riders will not be generated for the microFIT class.
C13: Default Rate Rider Recovery Period (in months) | E13: 12
C14: DVA Proposed Rate Rider Recovery Period (in months) | E14: 12 | F14: =IF(E14>0, "Rate Rider Recovery to be used below", "If no rate rider recovery period is proposed then the default recovery period of 12 months will be used") -> Rate Rider Recovery to be used below
C15: LRAM Proposed Rate Rider Recovery Period (in months) | E15: 12 | F15: =IF(E15>0, "Rate Rider Recovery to be used below", "If no rate rider recovery period is proposed then the default recovery period of 12 months will be used") -> Rate Rider Recovery to be used below
E17: Total Metered kWh | F17: Metered kW or kVA | G17: Total Metered kWh less WMP consumption | H17: Total Metered kW less WMP consumption | I17: Allocation of Group 1 Account Balances to All Classes 2 | J17: Allocation of Group 1 Account Balances to Non-WMP Classes Only (if Applicable) 2 | K17: Deferral/Variance Account Rate Rider 2 | L17: Deferral/Variance Account Rate Rider for Non-WMP (if applicable) 2 | M17: Account 1568 Rate Rider
C18: Rate Class | D18: Unit | N18: Revenue Reconciliation: | P18: Revenue Reconcilation 1
A19: =IFERROR(VLOOKUP(C19,Reference!A:F,6,FALSE)&"_LRVY2",0) -> R_LRVY2 | B19: =IFERROR(VLOOKUP(C19,Reference!A:F,6,FALSE)&"_DVA",0) -> R_DVA | C19: ='4. Billing Det. for Def-Var'!B17 -> RESIDENTIAL SERVICE CLASSIFICATION | D19: ='4. Billing Det. for Def-Var'!C17 ->  | E19: =IF(C19="","",'4. Billing Det. for Def-Var'!D17) -> 3025132486 | F19: =IF(C19="","",'4. Billing Det. for Def-Var'!E17) -> 0 | G19: =IF(C19="","",'4. Billing Det. for Def-Var'!J17) -> 3025132486 | H19: =IF(C19="","",'4. Billing Det. for Def-Var'!K17) -> 0 | I19: =IF(C19="","",IFERROR(SUM('5. Allocating Def-Var Balances'!G16:M16)-J19,"")) -> 76253.60335 | J19: =IF(C19="","",IFERROR(IF('4. Billing Det. for Def-Var'!H17=0,0,'5. Allocating Def-Var Balances'!I16+'5. Allocating Def-Var Balances'!L16),"")) -> 0 | K19: =IF(C19="","",IF('4. Billing Det. for Def-Var'!$D$36="no",0,ROUND(IF(D19="kWh",IF(ISERROR(I19/E19),0,IF(OR(ISBLANK(E$14),OR(E$14=0,E$14="")),I19/E19/(E$13/12),I19/E19/(E$14/12))),IF(ISERROR(I19/F19),0,IF(OR(ISBLANK(E$14),OR(E$14=0,E$14="")),I19/F19/(E$13/12),I19/F19/(E$14/12)))),4))) ->  | L19: =IF(C19="","",IF('4. Billing Det. for Def-Var'!$D$36="no",0,ROUND(IF(D19="kWh",IF(ISERROR(J19/G19),0,IF(OR(ISBLANK(E$14),OR(E$14=0,E$14="")),J19/G19/(E$13/12),J19/G19/(E$14/12))),IF(ISERROR(J19/H19),0,IF(OR(ISBLANK(E$14),OR(E$14=0,E$14="")),J19/H19/(E$13/12),J19/H19/(E$14/12)))),4))) ->  | M19: =IF(C19="","",IF(D19="kWh",ROUND(IF(ISERROR('4. Billing Det. for Def-Var'!M17/E19),0,IF(OR(ISBLANK(E$15),OR(E$15=0,E$15="")),('4. Billing Det. for Def-Var'!M17/E19)/(E$13/12),('4. Billing Det. for Def-Var'!M17/E19)/(E$15/12))),4),ROUND(IF(ISERROR('4. Billing Det. for Def-Var'!M17/F19),0,IF(OR(ISBLANK(E$15),OR(E$15=0,E$15="")),('4. Billing Det. for Def-Var'!M17/F19)/(E$13/12),('4. Billing Det. for Def-Var'!M17/F19)/(E$15/12))),4))) ->  | N19: =IF(C19="","",IF(D19="kWh",K19*E19,F19*K19)) ->  | O19: =IF(C19="","",L19*H19) -> 
A20: =IFERROR(VLOOKUP(C20,Reference!A:F,6,FALSE)&"_LRVY2",0) -> GSL_LRVY2 | B20: =IFERROR(VLOOKUP(C20,Reference!A:F,6,FALSE)&"_DVA",0) -> GSL_DVA | C20: ='4. Billing Det. for Def-Var'!B18 -> GENERAL SERVICE LESS THAN 50 KW SERVICE CLASSIFICATION | D20: ='4. Billing Det. for Def-Var'!C18 ->  | E20: =IF(C20="","",'4. Billing Det. for Def-Var'!D18) -> 1027917567 | F20: =IF(C20="","",'4. Billing Det. for Def-Var'!E18) -> 0 | G20: =IF(C20="","",'4. Billing Det. for Def-Var'!J18) -> 1027917567 | H20: =IF(C20="","",'4. Billing Det. for Def-Var'!K18) -> 0 | I20: =IF(C20="","",IFERROR(SUM('5. Allocating Def-Var Balances'!G17:M17)-J20,"")) -> 19245.01701 | J20: =IF(C20="","",IFERROR(IF('4. Billing Det. for Def-Var'!H18=0,0,'5. Allocating Def-Var Balances'!I17+'5. Allocating Def-Var Balances'!L17),"")) -> 0 | K20: =IF(C20="","",IF('4. Billing Det. for Def-Var'!$D$36="no",0,ROUND(IF(D20="kWh",IF(ISERROR(I20/E20),0,IF(OR(ISBLANK(E$14),OR(E$14=0,E$14="")),I20/E20/(E$13/12),I20/E20/(E$14/12))),IF(ISERROR(I20/F20),0,IF(OR(ISBLANK(E$14),OR(E$14=0,E$14="")),I20/F20/(E$13/12),I20/F20/(E$14/12)))),4))) ->  | L20: =IF(C20="","",IF('4. Billing Det. for Def-Var'!$D$36="no",0,ROUND(IF(D20="kWh",IF(ISERROR(J20/G20),0,IF(OR(ISBLANK(E$14),OR(E$14=0,E$14="")),J20/G20/(E$13/12),J20/G20/(E$14/12))),IF(ISERROR(J20/H20),0,IF(OR(ISBLANK(E$14),OR(E$14=0,E$14="")),J20/H20/(E$13/12),J20/H20/(E$14/12)))),4))) ->  | M20: =IF(C20="","",IF(D20="kWh",ROUND(IF(ISERROR('4. Billing Det. for Def-Var'!M18/E20),0,IF(OR(ISBLANK(E$15),OR(E$15=0,E$15="")),('4. Billing Det. for Def-Var'!M18/E20)/(E$13/12),('4. Billing Det. for Def-Var'!M18/E20)/(E$15/12))),4),ROUND(IF(ISERROR('4. Billing Det. for Def-Var'!M18/F20),0,IF(OR(ISBLANK(E$15),OR(E$15=0,E$15="")),('4. Billing Det. for Def-Var'!M18/F20)/(E$13/12),('4. Billing Det. for Def-Var'!M18/F20)/(E$15/12))),4))) -> 
A21: =IFERROR(VLOOKUP(C21,Reference!A:F,6,FALSE)&"_LRVY2",0) -> GSG_LRVY2 | B21: =IFERROR(VLOOKUP(C21,Reference!A:F,6,FALSE)&"_DVA",0) -> GSG_DVA | C21: ='4. Billing Det. for Def-Var'!B19 -> GENERAL SERVICE 50 to 4,999 kW SERVICE CLASSIFICATION | D21: ='4. Billing Det. for Def-Var'!C19 ->  | E21: =IF(C21="","",'4. Billing Det. for Def-Var'!D19) -> 4810217506 | F21: =IF(C21="","",'4. Billing Det. for Def-Var'!E19) -> 12300261.72 | G21: =IF(C21="","",'4. Billing Det. for Def-Var'!J19) -> 4785262488 | H21: =IF(C21="","",'4. Billing Det. for Def-Var'!K19) -> 12241543.15 | I21: =IF(C21="","",IFERROR(SUM('5. Allocating Def-Var Balances'!G18:M18)-J21,"")) -> -233963.3523 | J21: =IF(C21="","",IFERROR(IF('4. Billing Det. for Def-Var'!H19=0,0,'5. Allocating Def-Var Balances'!I18+'5. Allocating Def-Var Balances'!L18),"")) -> 309760.3223 | K21: =IF(C21="","",IF('4. Billing Det. for Def-Var'!$D$36="no",0,ROUND(IF(D21="kWh",IF(ISERROR(I21/E21),0,IF(OR(ISBLANK(E$14),OR(E$14=0,E$14="")),I21/E21/(E$13/12),I21/E21/(E$14/12))),IF(ISERROR(I21/F21),0,IF(OR(ISBLANK(E$14),OR(E$14=0,E$14="")),I21/F21/(E$13/12),I21/F21/(E$14/12)))),4))) ->  | L21: =IF(C21="","",IF('4. Billing Det. for Def-Var'!$D$36="no",0,ROUND(IF(D21="kWh",IF(ISERROR(J21/G21),0,IF(OR(ISBLANK(E$14),OR(E$14=0,E$14="")),J21/G21/(E$13/12),J21/G21/(E$14/12))),IF(ISERROR(J21/H21),0,IF(OR(ISBLANK(E$14),OR(E$14=0,E$14="")),J21/H21/(E$13/12),J21/H21/(E$14/12)))),4))) ->  | M21: =IF(C21="","",IF(D21="kWh",ROUND(IF(ISERROR('4. Billing Det. for Def-Var'!M19/E21),0,IF(OR(ISBLANK(E$15),OR(E$15=0,E$15="")),('4. Billing Det. for Def-Var'!M19/E21)/(E$13/12),('4. Billing Det. for Def-Var'!M19/E21)/(E$15/12))),4),ROUND(IF(ISERROR('4. Billing Det. for Def-Var'!M19/F21),0,IF(OR(ISBLANK(E$15),OR(E$15=0,E$15="")),('4. Billing Det. for Def-Var'!M19/F21)/(E$13/12),('4. Billing Det. for Def-Var'!M19/F21)/(E$15/12))),4))) -> 
A22: =IFERROR(VLOOKUP(C22,Reference!A:F,6,FALSE)&"_LRVY2",0) -> LU_LRVY2 | B22: =IFERROR(VLOOKUP(C22,Reference!A:F,6,FALSE)&"_DVA",0) -> LU_DVA | C22: ='4. Billing Det. for Def-Var'!B20 -> LARGE USE SERVICE CLASSIFICATION | D22: ='4. Billing Det. for Def-Var'!C20 ->  | E22: =IF(C22="","",'4. Billing Det. for Def-Var'!D20) -> 234289032.2 | F22: =IF(C22="","",'4. Billing Det. for Def-Var'!E20) -> 434330.5732 | G22: =IF(C22="","",'4. Billing Det. for Def-Var'!J20) -> 234289032.2 | H22: =IF(C22="","",'4. Billing Det. for Def-Var'!K20) -> 434330.5732 | I22: =IF(C22="","",IFERROR(SUM('5. Allocating Def-Var Balances'!G19:M19)-J22,"")) -> 3770.487994 | J22: =IF(C22="","",IFERROR(IF('4. Billing Det. for Def-Var'!H20=0,0,'5. Allocating Def-Var Balances'!I19+'5. Allocating Def-Var Balances'!L19),"")) -> 0 | K22: =IF(C22="","",IF('4. Billing Det. for Def-Var'!$D$36="no",0,ROUND(IF(D22="kWh",IF(ISERROR(I22/E22),0,IF(OR(ISBLANK(E$14),OR(E$14=0,E$14="")),I22/E22/(E$13/12),I22/E22/(E$14/12))),IF(ISERROR(I22/F22),0,IF(OR(ISBLANK(E$14),OR(E$14=0,E$14="")),I22/F22/(E$13/12),I22/F22/(E$14/12)))),4))) ->  | L22: =IF(C22="","",IF('4. Billing Det. for Def-Var'!$D$36="no",0,ROUND(IF(D22="kWh",IF(ISERROR(J22/G22),0,IF(OR(ISBLANK(E$14),OR(E$14=0,E$14="")),J22/G22/(E$13/12),J22/G22/(E$14/12))),IF(ISERROR(J22/H22),0,IF(OR(ISBLANK(E$14),OR(E$14=0,E$14="")),J22/H22/(E$13/12),J22/H22/(E$14/12)))),4))) ->  | M22: =IF(C22="","",IF(D22="kWh",ROUND(IF(ISERROR('4. Billing Det. for Def-Var'!M20/E22),0,IF(OR(ISBLANK(E$15),OR(E$15=0,E$15="")),('4. Billing Det. for Def-Var'!M20/E22)/(E$13/12),('4. Billing Det. for Def-Var'!M20/E22)/(E$15/12))),4),ROUND(IF(ISERROR('4. Billing Det. for Def-Var'!M20/F22),0,IF(OR(ISBLANK(E$15),OR(E$15=0,E$15="")),('4. Billing Det. for Def-Var'!M20/F22)/(E$13/12),('4. Billing Det. for Def-Var'!M20/F22)/(E$15/12))),4))) -> 
A23: =IFERROR(VLOOKUP(C23,Reference!A:F,6,FALSE)&"_LRVY2",0) -> USL_LRVY2 | B23: =IFERROR(VLOOKUP(C23,Reference!A:F,6,FALSE)&"_DVA",0) -> USL_DVA | C23: ='4. Billing Det. for Def-Var'!B21 -> UNMETERED SCATTERED LOAD SERVICE CLASSIFICATION | D23: ='4. Billing Det. for Def-Var'!C21 ->  | E23: =IF(C23="","",'4. Billing Det. for Def-Var'!D21) -> 15207734.59 | F23: =IF(C23="","",'4. Billing Det. for Def-Var'!E21) -> 0 | G23: =IF(C23="","",'4. Billing Det. for Def-Var'!J21) -> 15207734.59 | H23: =IF(C23="","",'4. Billing Det. for Def-Var'!K21) -> 0 | I23: =IF(C23="","",IFERROR(SUM('5. Allocating Def-Var Balances'!G20:M20)-J23,"")) -> 244.7429151 | J23: =IF(C23="","",IFERROR(IF('4. Billing Det. for Def-Var'!H21=0,0,'5. Allocating Def-Var Balances'!I20+'5. Allocating Def-Var Balances'!L20),"")) -> 0 | K23: =IF(C23="","",IF('4. Billing Det. for Def-Var'!$D$36="no",0,ROUND(IF(D23="kWh",IF(ISERROR(I23/E23),0,IF(OR(ISBLANK(E$14),OR(E$14=0,E$14="")),I23/E23/(E$13/12),I23/E23/(E$14/12))),IF(ISERROR(I23/F23),0,IF(OR(ISBLANK(E$14),OR(E$14=0,E$14="")),I23/F23/(E$13/12),I23/F23/(E$14/12)))),4))) ->  | L23: =IF(C23="","",IF('4. Billing Det. for Def-Var'!$D$36="no",0,ROUND(IF(D23="kWh",IF(ISERROR(J23/G23),0,IF(OR(ISBLANK(E$14),OR(E$14=0,E$14="")),J23/G23/(E$13/12),J23/G23/(E$14/12))),IF(ISERROR(J23/H23),0,IF(OR(ISBLANK(E$14),OR(E$14=0,E$14="")),J23/H23/(E$13/12),J23/H23/(E$14/12)))),4))) ->  | M23: =IF(C23="","",IF(D23="kWh",ROUND(IF(ISERROR('4. Billing Det. for Def-Var'!M21/E23),0,IF(OR(ISBLANK(E$15),OR(E$15=0,E$15="")),('4. Billing Det. for Def-Var'!M21/E23)/(E$13/12),('4. Billing Det. for Def-Var'!M21/E23)/(E$15/12))),4),ROUND(IF(ISERROR('4. Billing Det. for Def-Var'!M21/F23),0,IF(OR(ISBLANK(E$15),OR(E$15=0,E$15="")),('4. Billing Det. for Def-Var'!M21/F23)/(E$13/12),('4. Billing Det. for Def-Var'!M21/F23)/(E$15/12))),4))) -> 
A24: =IFERROR(VLOOKUP(C24,Reference!A:F,6,FALSE)&"_LRVY2",0) -> SL_LRVY2 | B24: =IFERROR(VLOOKUP(C24,Reference!A:F,6,FALSE)&"_DVA",0) -> SL_DVA | C24: ='4. Billing Det. for Def-Var'!B22 -> STREET LIGHTING SERVICE CLASSIFICATION | D24: ='4. Billing Det. for Def-Var'!C22 ->  | E24: =IF(C24="","",'4. Billing Det. for Def-Var'!D22) -> 39805164.43 | F24: =IF(C24="","",'4. Billing Det. for Def-Var'!E22) -> 111703.6733 | G24: =IF(C24="","",'4. Billing Det. for Def-Var'!J22) -> 39805164.43 | H24: =IF(C24="","",'4. Billing Det. for Def-Var'!K22) -> 111703.6733 | I24: =IF(C24="","",IFERROR(SUM('5. Allocating Def-Var Balances'!G21:M21)-J24,"")) -> 640.5971854 | J24: =IF(C24="","",IFERROR(IF('4. Billing Det. for Def-Var'!H22=0,0,'5. Allocating Def-Var Balances'!I21+'5. Allocating Def-Var Balances'!L21),"")) -> 0 | K24: =IF(C24="","",IF('4. Billing Det. for Def-Var'!$D$36="no",0,ROUND(IF(D24="kWh",IF(ISERROR(I24/E24),0,IF(OR(ISBLANK(E$14),OR(E$14=0,E$14="")),I24/E24/(E$13/12),I24/E24/(E$14/12))),IF(ISERROR(I24/F24),0,IF(OR(ISBLANK(E$14),OR(E$14=0,E$14="")),I24/F24/(E$13/12),I24/F24/(E$14/12)))),4))) ->  | L24: =IF(C24="","",IF('4. Billing Det. for Def-Var'!$D$36="no",0,ROUND(IF(D24="kWh",IF(ISERROR(J24/G24),0,IF(OR(ISBLANK(E$14),OR(E$14=0,E$14="")),J24/G24/(E$13/12),J24/G24/(E$14/12))),IF(ISERROR(J24/H24),0,IF(OR(ISBLANK(E$14),OR(E$14=0,E$14="")),J24/H24/(E$13/12),J24/H24/(E$14/12)))),4))) ->  | M24: =IF(C24="","",IF(D24="kWh",ROUND(IF(ISERROR('4. Billing Det. for Def-Var'!M22/E24),0,IF(OR(ISBLANK(E$15),OR(E$15=0,E$15="")),('4. Billing Det. for Def-Var'!M22/E24)/(E$13/12),('4. Billing Det. for Def-Var'!M22/E24)/(E$15/12))),4),ROUND(IF(ISERROR('4. Billing Det. for Def-Var'!M22/F24),0,IF(OR(ISBLANK(E$15),OR(E$15=0,E$15="")),('4. Billing Det. for Def-Var'!M22/F24)/(E$13/12),('4. Billing Det. for Def-Var'!M22/F24)/(E$15/12))),4))) -> 
A25: =IFERROR(VLOOKUP(C25,Reference!A:F,6,FALSE)&"_LRVY2",0) -> SEN_LRVY2 | B25: =IFERROR(VLOOKUP(C25,Reference!A:F,6,FALSE)&"_DVA",0) -> SEN_DVA | C25: ='4. Billing Det. for Def-Var'!B23 -> SENTINEL LIGHTING SERVICE CLASSIFICATION | D25: ='4. Billing Det. for Def-Var'!C23 ->  | E25: =IF(C25="","",ROUND('4. Billing Det. for Def-Var'!D23,0)) -> 230495 | F25: =IF(C25="","",ROUND('4. Billing Det. for Def-Var'!E23,0)) -> 626 | G25: =IF(C25="","",'4. Billing Det. for Def-Var'!J23) -> 230494.7439 | H25: =IF(C25="","",'4. Billing Det. for Def-Var'!K23) -> 625.9954229 | I25: =IF(C25="","",IFERROR(SUM('5. Allocating Def-Var Balances'!G22:M22)-J25,"")) -> 3.709425305 | J25: =IF(C25="","",IFERROR(IF('4. Billing Det. for Def-Var'!H23=0,0,'5. Allocating Def-Var Balances'!I22+'5. Allocating Def-Var Balances'!L22),"")) -> 0 | K25: =IF(C25="","",IF('4. Billing Det. for Def-Var'!$D$36="no",0,ROUND(IF(D25="kWh",IF(ISERROR(I25/E25),0,IF(OR(ISBLANK(E$14),OR(E$14=0,E$14="")),I25/E25/(E$13/12),I25/E25/(E$14/12))),IF(ISERROR(I25/F25),0,IF(OR(ISBLANK(E$14),OR(E$14=0,E$14="")),I25/F25/(E$13/12),I25/F25/(E$14/12)))),4))) ->  | L25: =IF(C25="","",IF('4. Billing Det. for Def-Var'!$D$36="no",0,ROUND(IF(D25="kWh",IF(ISERROR(J25/G25),0,IF(OR(ISBLANK(E$14),OR(E$14=0,E$14="")),J25/G25/(E$13/12),J25/G25/(E$14/12))),IF(ISERROR(J25/H25),0,IF(OR(ISBLANK(E$14),OR(E$14=0,E$14="")),J25/H25/(E$13/12),J25/H25/(E$14/12)))),4))) ->  | M25: =IF(C25="","",IF(D25="kWh",ROUND(IF(ISERROR('4. Billing Det. for Def-Var'!M23/E25),0,IF(OR(ISBLANK(E$15),OR(E$15=0,E$15="")),('4. Billing Det. for Def-Var'!M23/E25)/(E$13/12),('4. Billing Det. for Def-Var'!M23/E25)/(E$15/12))),4),ROUND(IF(ISERROR('4. Billing Det. for Def-Var'!M23/F25),0,IF(OR(ISBLANK(E$15),OR(E$15=0,E$15="")),('4. Billing Det. for Def-Var'!M23/F25)/(E$13/12),('4. Billing Det. for Def-Var'!M23/F25)/(E$15/12))),4))) -> 
A26: =IFERROR(VLOOKUP(C26,Reference!A:F,6,FALSE)&"_LRVY2",0) -> 0 | B26: =IFERROR(VLOOKUP(C26,Reference!A:F,6,FALSE)&"_DVA",0) -> 0 | C26: ='4. Billing Det. for Def-Var'!B24 ->  | D26: ='4. Billing Det. for Def-Var'!C24 ->  | E26: =IF(C26="","",'4. Billing Det. for Def-Var'!D24) ->  | F26: =IF(C26="","",'4. Billing Det. for Def-Var'!E24) ->  | G26: =IF(C26="","",'4. Billing Det. for Def-Var'!J24) ->  | H26: =IF(C26="","",'4. Billing Det. for Def-Var'!K24) ->  | I26: =IF(C26="","",IFERROR(SUM('5. Allocating Def-Var Balances'!G23:M23)-J26,"")) ->  | J26: =IF(C26="","",IFERROR(IF('4. Billing Det. for Def-Var'!H24=0,0,'5. Allocating Def-Var Balances'!I23+'5. Allocating Def-Var Balances'!L23),"")) ->  | K26: =IF(C26="","",IF('4. Billing Det. for Def-Var'!$D$36="no",0,ROUND(IF(D26="kWh",IF(ISERROR(I26/E26),0,IF(OR(ISBLANK(E$14),OR(E$14=0,E$14="")),I26/E26/(E$13/12),I26/E26/(E$14/12))),IF(ISERROR(I26/F26),0,IF(OR(ISBLANK(E$14),OR(E$14=0,E$14="")),I26/F26/(E$13/12),I26/F26/(E$14/12)))),4))) ->  | L26: =IF(C26="","",IF('4. Billing Det. for Def-Var'!$D$36="no",0,ROUND(IF(D26="kWh",IF(ISERROR(J26/G26),0,IF(OR(ISBLANK(E$14),OR(E$14=0,E$14="")),J26/G26/(E$13/12),J26/G26/(E$14/12))),IF(ISERROR(J26/H26),0,IF(OR(ISBLANK(E$14),OR(E$14=0,E$14="")),J26/H26/(E$13/12),J26/H26/(E$14/12)))),4))) ->  | M26: =IF(C26="","",IF(D26="kWh",ROUND(IF(ISERROR('4. Billing Det. for Def-Var'!M24/E26),0,IF(OR(ISBLANK(E$15),OR(E$15=0,E$15="")),('4. Billing Det. for Def-Var'!M24/E26)/(E$13/12),('4. Billing Det. for Def-Var'!M24/E26)/(E$15/12))),4),ROUND(IF(ISERROR('4. Billing Det. for Def-Var'!M24/F26),0,IF(OR(ISBLANK(E$15),OR(E$15=0,E$15="")),('4. Billing Det. for Def-Var'!M24/F26)/(E$13/12),('4. Billing Det. for Def-Var'!M24/F26)/(E$15/12))),4))) -> 
A27: =IFERROR(VLOOKUP(C27,Reference!A:F,6,FALSE)&"_LRVY2",0) -> 0 | B27: =IFERROR(VLOOKUP(C27,Reference!A:F,6,FALSE)&"_DVA",0) -> 0 | C27: ='4. Billing Det. for Def-Var'!B25 ->  | D27: ='4. Billing Det. for Def-Var'!C25 ->  | E27: =IF(C27="","",'4. Billing Det. for Def-Var'!D25) ->  | F27: =IF(C27="","",'4. Billing Det. for Def-Var'!E25) ->  | G27: =IF(C27="","",'4. Billing Det. for Def-Var'!J25) ->  | H27: =IF(C27="","",'4. Billing Det. for Def-Var'!K25) ->  | I27: =IF(C27="","",IFERROR(SUM('5. Allocating Def-Var Balances'!G24:M24)-J27,"")) ->  | J27: =IF(C27="","",IFERROR(IF('4. Billing Det. for Def-Var'!H25=0,0,'5. Allocating Def-Var Balances'!I24+'5. Allocating Def-Var Balances'!L24),"")) ->  | K27: =IF(C27="","",IF('4. Billing Det. for Def-Var'!$D$36="no",0,ROUND(IF(D27="kWh",IF(ISERROR(I27/E27),0,IF(OR(ISBLANK(E$14),OR(E$14=0,E$14="")),I27/E27/(E$13/12),I27/E27/(E$14/12))),IF(ISERROR(I27/F27),0,IF(OR(ISBLANK(E$14),OR(E$14=0,E$14="")),I27/F27/(E$13/12),I27/F27/(E$14/12)))),4))) ->  | L27: =IF(C27="","",IF('4. Billing Det. for Def-Var'!$D$36="no",0,ROUND(IF(D27="kWh",IF(ISERROR(J27/G27),0,IF(OR(ISBLANK(E$14),OR(E$14=0,E$14="")),J27/G27/(E$13/12),J27/G27/(E$14/12))),IF(ISERROR(J27/H27),0,IF(OR(ISBLANK(E$14),OR(E$14=0,E$14="")),J27/H27/(E$13/12),J27/H27/(E$14/12)))),4))) ->  | M27: =IF(C27="","",IF(D27="kWh",ROUND(IF(ISERROR('4. Billing Det. for Def-Var'!M25/E27),0,IF(OR(ISBLANK(E$15),OR(E$15=0,E$15="")),('4. Billing Det. for Def-Var'!M25/E27)/(E$13/12),('4. Billing Det. for Def-Var'!M25/E27)/(E$15/12))),4),ROUND(IF(ISERROR('4. Billing Det. for Def-Var'!M25/F27),0,IF(OR(ISBLANK(E$15),OR(E$15=0,E$15="")),('4. Billing Det. for Def-Var'!M25/F27)/(E$13/12),('4. Billing Det. for Def-Var'!M25/F27)/(E$15/12))),4))) -> 
A28: =IFERROR(VLOOKUP(C28,Reference!A:F,6,FALSE)&"_LRVY2",0) -> 0 | B28: =IFERROR(VLOOKUP(C28,Reference!A:F,6,FALSE)&"_DVA",0) -> 0 | C28: ='4. Billing Det. for Def-Var'!B26 ->  | D28: ='4. Billing Det. for Def-Var'!C26 ->  | E28: =IF(C28="","",'4. Billing Det. for Def-Var'!D26) ->  | F28: =IF(C28="","",'4. Billing Det. for Def-Var'!E26) ->  | G28: =IF(C28="","",'4. Billing Det. for Def-Var'!J26) ->  | H28: =IF(C28="","",'4. Billing Det. for Def-Var'!K26) ->  | I28: =IF(C28="","",IFERROR(SUM('5. Allocating Def-Var Balances'!G25:M25)-J28,"")) ->  | J28: =IF(C28="","",IFERROR(IF('4. Billing Det. for Def-Var'!H26=0,0,'5. Allocating Def-Var Balances'!I25+'5. Allocating Def-Var Balances'!L25),"")) ->  | K28: =IF(C28="","",IF('4. Billing Det. for Def-Var'!$D$36="no",0,ROUND(IF(D28="kWh",IF(ISERROR(I28/E28),0,IF(OR(ISBLANK(E$14),OR(E$14=0,E$14="")),I28/E28/(E$13/12),I28/E28/(E$14/12))),IF(ISERROR(I28/F28),0,IF(OR(ISBLANK(E$14),OR(E$14=0,E$14="")),I28/F28/(E$13/12),I28/F28/(E$14/12)))),4))) ->  | L28: =IF(C28="","",IF('4. Billing Det. for Def-Var'!$D$36="no",0,ROUND(IF(D28="kWh",IF(ISERROR(J28/G28),0,IF(OR(ISBLANK(E$14),OR(E$14=0,E$14="")),J28/G28/(E$13/12),J28/G28/(E$14/12))),IF(ISERROR(J28/H28),0,IF(OR(ISBLANK(E$14),OR(E$14=0,E$14="")),J28/H28/(E$13/12),J28/H28/(E$14/12)))),4))) ->  | M28: =IF(C28="","",IF(D28="kWh",ROUND(IF(ISERROR('4. Billing Det. for Def-Var'!M26/E28),0,IF(OR(ISBLANK(E$15),OR(E$15=0,E$15="")),('4. Billing Det. for Def-Var'!M26/E28)/(E$13/12),('4. Billing Det. for Def-Var'!M26/E28)/(E$15/12))),4),ROUND(IF(ISERROR('4. Billing Det. for Def-Var'!M26/F28),0,IF(OR(ISBLANK(E$15),OR(E$15=0,E$15="")),('4. Billing Det. for Def-Var'!M26/F28)/(E$13/12),('4. Billing Det. for Def-Var'!M26/F28)/(E$15/12))),4))) ->  | N28: =IF(C28="","",IF(D28="kWh",K28*E28,F28*K28)) ->  | O28: =IF(C28="","",L28*H28) -> 
N29: =SUM(N19:N27) ->  | O29: =SUM(O19:O27) ->  | P29: =SUM(N29:O29) -> 
C31: 1 When calculating the revenue reconciliation for distributors with Class A customers, the balances of sub-account 1580-CBR Class B will not be taken into consideration if there are Class A customers since the rate riders, if any, are calculated separately.
C32: 2 Only for rate classes with WMP customers are the Deferral/Variance Account Rate Riders for Non-WMP (column H and J) calculated separately. For all rate classes without WMP customers, balances in account 1580 and 1588 are included in column H and disposed through a combined Deferral/Variance Account and Rate Rider.

Sheet 8. STS-Tax Change (hidden)
A1: Back to Index | U1: Tax Rates | V1: Effective
B2: =+'1. Info'!B2 -> 2027-2031 RTSR Workform | U2: Federal & Provincial | V2: 2016-01-01
U3: As of June 20, 2012
U5: Federal income tax | V5: 0.38
U6: General corporate rate | V6: -0.1
U7: Federal tax abatement | V7: =SUM(V5:V6) -> 0.28
U8: Adjusted federal rate | V8: -0.13
U9: Rate reduction | V9: =V7+V8 -> 0.15
U10: Ontario income tax | V10: 0.115
U12: Combined federal and Ontario | V12: =V9+V10 -> 0.265
B13: Summary - Sharing of Tax Change Forecast Amounts
U14: Federal & Ontario Small Business
B15: ="For the " & '1. Info'!G32 & " year, enter any Tax Credits from the Cost of Service Tax Calculation (Positive #)" ->  | U15: Federal small business threshold | V15: 500000
U16: Ontario Small Business Threshold | V16: 500000
B18: 1. Tax Related Amounts Forecast from Capital Tax Rate Changes | M18: ='1. Info'!G32 ->  | O18: =YEAR('1. Info'!G28) -> 2026 | U18: Federal small business rate | V18: 0.105
B19: Taxable Capital (if you are not claiming capital tax, please enter your OEB-Approved Rate Base) | O19: =M19 -> 0
U20: Ontario small business rate | V20: 0.045
B21: Deduction from taxable capital up to $15,000,000 | O21: =M21 -> 0
B23: Net Taxable Capital | M23: =M19-M21 -> 0 | O23: =O19-O21 -> 0
B25: Rate | O25: 0 | U25: Ontario Tax Rate (Maximum 11.5%)
U26: Federal tax rate (Maximum 15%)
B27: Ontario Capital Tax (Deductible, not grossed-up) | M27: =IF(M23>0, M23*M25, 0)*181/365 -> 0 | O27: 0 | U27: Combined tax rate (Maximum 26.5%)
B29: 2. Tax Related Amounts Forecast from lncome Tax Rate Changes
B30: Regulatory Taxable Income | O30: =M30 -> 0
B32: Corporate Tax Rate | O32: =IF(ratebase>15000000, 26.5%, IF(ratebase<10000000, 12.5%, 12.5%+11.5%*((ratebase-10000000)/5000000))) -> 0.125
B34: Tax Impact | M34: =M30*M32-M15 -> 0 | O34: =O30*O32-M15 -> 0
B36: Grossed-up Tax Amount | M36: =M34/(1-M32) -> 0 | O36: =O34/(1-O32) -> 0
B38: Tax Related Amounts Forecast from Capital Tax Rate Changes | M38: =M27 -> 0 | O38: =O27 -> 0
B40: Tax Related Amounts Forecast from lncome Tax Rate Changes | M40: =M36 -> 0 | O40: =O36 -> 0
B42: Total Tax Related Amounts | M42: =SUM(M40,M38) -> 0 | O42: =SUM(O40,O38) -> 0
B44: Incremental Tax Savings | O44: =O42-M42 -> 0
B46: Sharing of Tax Amount (50%) | O46: =0.5*O44 -> 0

Sheet 9. Shared Tax - RR (hidden)
A1: Back to Index
B2: =+'1. Info'!B2 -> 2027-2031 RTSR Workform
B12: Calculation of Rebased Revenue Requirement and Allocation of Tax Sharing Amount. Enter data from the last OEB-Approved Cost of Service application in columns D through I.
B13: As per Chapter 3 Filing Requirements, shared tax rate riders are based on a 1 year disposition.
B15: Rate Class | D15: Re-based Billed Customers or Connections | E15: Re-based Billed kWh | F15: Re-based Billed kW | G15: Re-based Service Charge | H15: Re-based Distribution Volumetric Rate kWh | I15: Re-based Distribution Volumetric Rate kW | J15: Service Charge Revenue | K15: Distribution Volumetric Rate Revenue kWh | L15: Distribution Volumetric Rate Revenue kW | M15: Revenue Requirement from Rates | N15: Service Charge % Revenue | O15: Distribution Volumetric Rate % Revenue kWh | P15: Distribution Volumetric Rate % Revenue kW | Q15: Total % Revenue
D16: A | E16: B | F16: C | G16: D | H16: E | I16: F | J16: G = A * D *12 | K16: H = B * E | L16: I = C * F | M16: J = G + H + I | N16: K = G / J | O16: L = H / J | P16: M = I / J | Q16: N = J / R
B17: ='4. Billing Det. for Def-Var'!B17 -> RESIDENTIAL SERVICE CLASSIFICATION | C17: ='4. Billing Det. for Def-Var'!C17 ->  | J17: =G17*D17*12 -> 0 | K17: =E17*H17 -> 0 | L17: =F17*I17 -> 0 | M17: =J17+K17+L17 -> 0 | N17: =IF(ISERROR(J17/M17),0,J17/M17) -> 0 | O17: =IF(ISERROR(K17/M17),0,K17/M17) -> 0 | P17: =IF(ISERROR(L17/M17),0,L17/M17) -> 0 | Q17: =IF(ISERROR(M17/M30),0,M17/M30) -> 0
B18: ='4. Billing Det. for Def-Var'!B18 -> GENERAL SERVICE LESS THAN 50 KW SERVICE CLASSIFICATION | C18: ='4. Billing Det. for Def-Var'!C18 ->  | J18: 0 | K18: 0 | L18: 0 | M18: 0 | N18: 0 | O18: 0 | P18: 0 | Q18: =IF(ISERROR(M18/M30),0,M18/M30) -> 0
B19: ='4. Billing Det. for Def-Var'!B19 -> GENERAL SERVICE 50 to 4,999 kW SERVICE CLASSIFICATION | C19: ='4. Billing Det. for Def-Var'!C19 ->  | J19: 0 | K19: 0 | L19: 0 | M19: 0 | N19: 0 | O19: 0 | P19: 0 | Q19: =IF(ISERROR(M19/M30),0,M19/M30) -> 0
B20: ='4. Billing Det. for Def-Var'!B20 -> LARGE USE SERVICE CLASSIFICATION | C20: ='4. Billing Det. for Def-Var'!C20 ->  | J20: 0 | K20: 0 | L20: 0 | M20: 0 | N20: 0 | O20: 0 | P20: 0 | Q20: =IF(ISERROR(M20/M30),0,M20/M30) -> 0
B21: ='4. Billing Det. for Def-Var'!B21 -> UNMETERED SCATTERED LOAD SERVICE CLASSIFICATION | C21: ='4. Billing Det. for Def-Var'!C21 ->  | J21: 0 | K21: 0 | L21: 0 | M21: 0 | N21: 0 | O21: 0 | P21: 0 | Q21: =IF(ISERROR(M21/M30),0,M21/M30) -> 0
B22: ='4. Billing Det. for Def-Var'!B22 -> STREET LIGHTING SERVICE CLASSIFICATION | C22: ='4. Billing Det. for Def-Var'!C22 ->  | J22: 0 | K22: 0 | L22: 0 | M22: 0 | N22: 0 | O22: 0 | P22: 0 | Q22: =IF(ISERROR(M22/M30),0,M22/M30) -> 0
B23: ='4. Billing Det. for Def-Var'!B23 -> SENTINEL LIGHTING SERVICE CLASSIFICATION | C23: ='4. Billing Det. for Def-Var'!C23 ->  | J23: 0 | K23: 0 | L23: 0 | M23: 0 | N23: 0 | O23: 0 | P23: 0 | Q23: =IF(ISERROR(M23/M30),0,M23/M30) -> 0
B24: ='4. Billing Det. for Def-Var'!B24 ->  | C24: ='4. Billing Det. for Def-Var'!C24 ->  | J24: 0 | K24: 0 | L24: 0 | M24: 0 | N24: =IF(ISERROR(J24/M24),0,J24/M24) -> 0 | O24: 0 | P24: 0 | Q24: =IF(ISERROR(M24/M30),0,M24/M30) -> 0
B25: ='4. Billing Det. for Def-Var'!B25 ->  | C25: ='4. Billing Det. for Def-Var'!C25 ->  | J25: 0 | K25: 0 | L25: 0 | M25: 0 | N25: =IF(ISERROR(J25/M25),0,J25/M25) -> 0 | O25: =IF(ISERROR(K25/M25),0,K25/M25) -> 0 | P25: =IF(ISERROR(L25/M25),0,L25/M25) -> 0 | Q25: =IF(ISERROR(M25/M$30),0,M25/M$30) -> 0
B26: ='4. Billing Det. for Def-Var'!B26 ->  | C26: ='4. Billing Det. for Def-Var'!C26 ->  | J26: =G26*D26*12 -> 0 | K26: =E26*H26 -> 0 | L26: =F26*I26 -> 0 | M26: =J26+K26+L26 -> 0 | N26: =IF(ISERROR(J26/M26),0,J26/M26) -> 0 | O26: =IF(ISERROR(K26/M26),0,K26/M26) -> 0 | P26: =IF(ISERROR(L26/M26),0,L26/M26) -> 0 | Q26: =IF(ISERROR(M26/M$30),0,M26/M$30) -> 0
C27: ='4. Billing Det. for Def-Var'!C27 -> 0 | J27: =G27*D27*12 -> 0 | K27: =E27*H27 -> 0 | L27: =F27*I27 -> 0 | M27: =J27+K27+L27 -> 0 | N27: =IF(ISERROR(J27/M27),0,J27/M27) -> 0 | O27: =IF(ISERROR(K27/M27),0,K27/M27) -> 0 | P27: =IF(ISERROR(L27/M27),0,L27/M27) -> 0 | Q27: =IF(ISERROR(M27/M$30),0,M27/M$30) -> 0
B30: Total | D30: =SUM(D17:D29) -> 0 | E30: =SUM(E17:E29) -> 0 | F30: =SUM(F17:F29) -> 0 | J30: =SUM(J17:J29) -> 0 | K30: =SUM(K17:K29) -> 0 | L30: =SUM(L17:L29) -> 0 | M30: =SUM(M17:M29) -> 0 | Q30: =SUM(Q17:Q29) -> 0
B33: Rate Class | D33: Total kWh (most recent RRR filing) | E33: Total kW (most recent RRR filing) | F33: Allocation of Tax Savings by Rate Class | G33: Distribution Rate Rider
B34: =B17 -> RESIDENTIAL SERVICE CLASSIFICATION | D34: ='4. Billing Det. for Def-Var'!D17 -> 3025132486 | E34: ='4. Billing Det. for Def-Var'!E17 -> 0 | F34: =F$48*Q17 -> 0 | G34: =IFERROR(ROUND(F34/'4. Billing Det. for Def-Var'!N17,2),"") -> 0 | H34: $/Customer
B35: GENERAL SERVICE LESS THAN 50 KW SERVICE CLASSIFICATION | D35: ='4. Billing Det. for Def-Var'!D18 -> 1027917567 | E35: ='4. Billing Det. for Def-Var'!E18 -> 0 | F35: =F$48*Q18 -> 0 | G35: =IFERROR(ROUND(IF(E35<>0,F35/E35,F35/D35),4),"") -> 0 | H35: $/kWh
B36: GENERAL SERVICE 50 to 4,999 kW SERVICE CLASSIFICATION | D36: ='4. Billing Det. for Def-Var'!D19 -> 4810217506 | E36: ='4. Billing Det. for Def-Var'!E19 -> 12300261.72 | F36: 0 | G36: =IFERROR(ROUND(IF(E36<>0,F36/E36,F36/D36),4),"") -> 0 | H36: $/kW
B37: LARGE USE SERVICE CLASSIFICATION | D37: ='4. Billing Det. for Def-Var'!D20 -> 234289032.2 | E37: ='4. Billing Det. for Def-Var'!E20 -> 434330.5732 | F37: 0 | G37: 0 | H37: $/kW
B38: UNMETERED SCATTERED LOAD SERVICE CLASSIFICATION | D38: ='4. Billing Det. for Def-Var'!D21 -> 15207734.59 | E38: ='4. Billing Det. for Def-Var'!E21 -> 0 | F38: 0 | G38: 0 | H38: $/kWh
B39: STREET LIGHTING SERVICE CLASSIFICATION | D39: ='4. Billing Det. for Def-Var'!D22 -> 39805164.43 | E39: ='4. Billing Det. for Def-Var'!E22 -> 111703.6733 | F39: 0 | G39: 0 | H39: $/kWh
B40: SENTINEL LIGHTING SERVICE CLASSIFICATION | D40: ='4. Billing Det. for Def-Var'!D23 -> 230494.7439 | E40: ='4. Billing Det. for Def-Var'!E23 -> 625.9954229 | F40: 0 | G40: 0 | H40: $/kW
D41: ='4. Billing Det. for Def-Var'!D24 ->  | E41: ='4. Billing Det. for Def-Var'!E24 ->  | F41: 0 | H41: $/kW
D42: ='4. Billing Det. for Def-Var'!D25 ->  | E42: ='4. Billing Det. for Def-Var'!E25 ->  | F42: 0 | G42: =IFERROR(ROUND(IF(E42<>0,F42/E42,F42/D42),4),"") ->  | H42: $/kWh
B43: =B26 ->  | C43: =C26 ->  | F43: =F$48*Q30 -> 0 | G43: =IFERROR(ROUND(IF(E43<>0,F43/E43,F43/D43),4),"") ->  | H43: $/kWh
B44: =B27 -> 0 | C44: =C27 -> 0 | F44: =F$48*Q31 -> 0 | G44: =IFERROR(ROUND(IF(E44<>0,F44/E44,F44/D44),4),"") ->  | H44: $/kW
F45: =F$48*Q32 -> 0 | G45: =IFERROR(ROUND(IF(E45<>"",F45/E45,F45/D45),4),"") -> 
F46: =F$48*Q33 -> 0
D48: =SUM(D34:D47) -> 9152799985 | E48: =SUM(E34:E47) -> 12846921.96 | F48: =ROUND('8. STS-Tax Change'!O46,2) -> 0

Sheet 10. RTSR - Current Rates (hidden)
A1: Back to Index | BA1: 1
B2: =+'1. Info'!B2 -> 2027-2031 RTSR Workform
B13: Columns F and G must match the data from the most recent RRR filing (Tab 4). Rates have been imported from Tab "RATES". Loss Factor has been imported from "Model Specs" tab. If the data needs to be modified, please make the necessary adjustments and note the changes in your manager's summary.
B15: Rate Class | C15: Rate Description | D15: Unit | E15: Rate | F15: Non-Loss Adjusted Metered kWh | G15: Non-Loss Adjusted Metered kW | H15: Applicable Loss Factor | I15: Loss Adjusted Billed kWh
A16: =IFERROR(VLOOKUP(B16,'Model Specs'!K$16:N$35,3,FALSE),"") -> R_TN | B16: ='4. Billing Det. for Def-Var'!B17 -> RESIDENTIAL SERVICE CLASSIFICATION | C16: Retail Transmission Rate – Network Service Rate | D16: =IF(B16="","","$/"&VLOOKUP(B16,'4. Billing Det. for Def-Var'!B:G,2,FALSE)) ->  | E16: =IFERROR(VLOOKUP(A16,_xlnm.Database,8,FALSE),"") ->  | F16: =IF(B16="","",'4. Billing Det. for Def-Var'!D17) -> 3025132486 | G16: =IF(C16="","",'4. Billing Det. for Def-Var'!E17) -> 0 | H16: =IF('1. Info'!$L$18="ERZ",1,IF(D16="$/kwh",LLF,"")) ->  | I16: =IF(D16="$/kwh",F16*H16,"") -> 
A17: =IFERROR(VLOOKUP(B17,'Model Specs'!K$16:N$35,3,FALSE),"") -> GSL_TN | B17: ='4. Billing Det. for Def-Var'!B18 -> GENERAL SERVICE LESS THAN 50 KW SERVICE CLASSIFICATION | C17: Retail Transmission Rate – Network Service Rate | D17: =IF(B17="","","$/"&VLOOKUP(B17,'4. Billing Det. for Def-Var'!B:G,2,FALSE)) ->  | F17: =IF(B17="","",'4. Billing Det. for Def-Var'!D18) -> 1027917567 | G17: =IF(C17="","",'4. Billing Det. for Def-Var'!E18) -> 0 | H17: =IF('1. Info'!$L$18="ERZ",1,IF(D17="$/kwh",LLF,"")) ->  | I17: =IF(D17="$/kwh",F17*H17,"") -> 
A18: =IFERROR(VLOOKUP(B18,'Model Specs'!K$16:N$35,3,FALSE),"") -> GSG_TN | B18: ='4. Billing Det. for Def-Var'!B19 -> GENERAL SERVICE 50 to 4,999 kW SERVICE CLASSIFICATION | C18: Retail Transmission Rate – Network Service Rate | D18: =IF(B18="","","$/"&VLOOKUP(B18,'4. Billing Det. for Def-Var'!B:G,2,FALSE)) ->  | F18: =IF(B18="","",'4. Billing Det. for Def-Var'!D19)-F27 -> 630367746.3 | G18: =IF(C18="","",'4. Billing Det. for Def-Var'!E19)-G27 -> 97397.41402 | H18: =IF('1. Info'!$L$18="ERZ",1,IF(D18="$/kwh",LLF,"")) -> 
A19: =IFERROR(VLOOKUP(B19,'Model Specs'!K$16:N$35,3,FALSE),"") -> LU_TN | B19: ='4. Billing Det. for Def-Var'!B20 -> LARGE USE SERVICE CLASSIFICATION | C19: Retail Transmission Rate – Network Service Rate | D19: =IF(B19="","","$/"&VLOOKUP(B19,'4. Billing Det. for Def-Var'!B:G,2,FALSE)) ->  | F19: =IF(B19="","",'4. Billing Det. for Def-Var'!D20) -> 234289032.2 | G19: =IF(C19="","",'4. Billing Det. for Def-Var'!E20) -> 434330.5732 | H19: =IF('1. Info'!$L$18="ERZ",1,IF(D19="$/kwh",LLF,"")) -> 
A20: =IFERROR(VLOOKUP(B20,'Model Specs'!K$16:N$35,3,FALSE),"") -> USL_TN | B20: ='4. Billing Det. for Def-Var'!B21 -> UNMETERED SCATTERED LOAD SERVICE CLASSIFICATION | C20: Retail Transmission Rate – Network Service Rate | D20: =IF(B20="","","$/"&VLOOKUP(B20,'4. Billing Det. for Def-Var'!B:G,2,FALSE)) ->  | F20: =IF(B20="","",'4. Billing Det. for Def-Var'!D21) -> 15207734.59 | G20: =IF(C20="","",'4. Billing Det. for Def-Var'!E21) -> 0 | H20: =IF('1. Info'!$L$18="ERZ",1,IF(D20="$/kwh",LLF,"")) -> 
A21: =IFERROR(VLOOKUP(B21,'Model Specs'!K$16:N$35,3,FALSE),"") -> SL_TN | B21: ='4. Billing Det. for Def-Var'!B22 -> STREET LIGHTING SERVICE CLASSIFICATION | C21: =IF(B21="","",$C$17) -> Retail Transmission Rate – Network Service Rate | D21: =IF(B21="","","$/"&VLOOKUP(B21,'4. Billing Det. for Def-Var'!B:G,2,FALSE)) ->  | F21: =IF(B21="","",'4. Billing Det. for Def-Var'!D22) -> 39805164.43 | G21: =IF(C21="","",'4. Billing Det. for Def-Var'!E22) -> 111703.6733 | H21: =IF('1. Info'!$L$18="ERZ",1,IF(D21="$/kwh",LLF,"")) -> 
A22: =IFERROR(VLOOKUP(B22,'Model Specs'!K$16:N$35,3,FALSE),"") -> SEN_TN | B22: ='4. Billing Det. for Def-Var'!B23 -> SENTINEL LIGHTING SERVICE CLASSIFICATION | C22: Retail Transmission Rate – Network Service Rate | D22: =IF(B22="","","$/"&VLOOKUP(B22,'4. Billing Det. for Def-Var'!B:G,2,FALSE)) ->  | F22: =IF(B22="","",'4. Billing Det. for Def-Var'!D23) -> 230494.7439 | G22: =IF(C22="","",'4. Billing Det. for Def-Var'!E23) -> 625.9954229 | H22: =IF('1. Info'!$L$18="ERZ",1,IF(D22="$/kwh",LLF,"")) -> 
A24: =IFERROR(VLOOKUP(B24,'Model Specs'!K$16:N$35,3,FALSE),"") ->  | B24: ='4. Billing Det. for Def-Var'!B24 ->  | D24: =IF(B24="","","$/"&VLOOKUP(B24,'4. Billing Det. for Def-Var'!B:G,2,FALSE)) ->  | F24: =IF(B24="","",'4. Billing Det. for Def-Var'!D24) ->  | G24: =IF(C24="","",'4. Billing Det. for Def-Var'!E24) ->  | H24: =IF('1. Info'!$L$18="ERZ",1,IF(D24="$/kwh",LLF,"")) -> 
A25: =IFERROR(VLOOKUP(B25,'Model Specs'!K$16:N$35,3,FALSE),"") ->  | B25: ='4. Billing Det. for Def-Var'!B25 ->  | D25: =IF(B25="","","$/"&VLOOKUP(B25,'4. Billing Det. for Def-Var'!B:G,2,FALSE)) ->  | F25: =IF(B25="","",'4. Billing Det. for Def-Var'!D25) ->  | G25: =IF(C25="","",'4. Billing Det. for Def-Var'!E25) ->  | H25: =IF('1. Info'!$L$18="ERZ",1,IF(D25="$/kwh",LLF,"")) -> 
A26: =IFERROR(VLOOKUP(B26,'Model Specs'!K$16:N$35,3,FALSE),"") ->  | B26: ='4. Billing Det. for Def-Var'!B26 ->  | D26: =IF(B26="","","$/"&VLOOKUP(B26,'4. Billing Det. for Def-Var'!B:G,2,FALSE)) ->  | F26: =IF(B26="","",'4. Billing Det. for Def-Var'!D26) ->  | G26: =IF(C26="","",'4. Billing Det. for Def-Var'!E26) ->  | H26: =IF('1. Info'!$L$18="ERZ",1,IF(D26="$/kwh",LLF,"")) ->  | I26: =IF(D26="$/kwh",F26*H26,"") -> 
A27: =IFERROR(VLOOKUP(B27,'Model Specs'!K$16:N$35,3,FALSE),"") ->  | B27: =IF('1. Info'!L18="PRZ",'10. RTSR - Current Rates'!B18&" INTERVAL",IF('1. Info'!L18="PRZ",'10. RTSR - Current Rates'!B18&" INTERVAL","")) ->  | D27: =IF(B27="","",D18) ->  | F27: 4179849760 | G27: 12202864.31 | H27: =IF('1. Info'!$L$18="ERZ",1,IF(D27="$/kwh",LLF,"")) -> 
A29: =IFERROR(VLOOKUP(B29,'Model Specs'!K$16:N$35,4,FALSE),"") -> R_TC | B29: =B16 -> RESIDENTIAL SERVICE CLASSIFICATION | C29: Retail Transmission Rate – Line and Transformation Connection Service Rate | D29: =D16 ->  | E29: =IFERROR(VLOOKUP(A29,_xlnm.Database,8,FALSE),"") ->  | F29: =F16 -> 3025132486 | G29: 0 | H29: =IF('1. Info'!$L$18="ERZ",1,IF(D29="$/kwh",LLF,"")) ->  | I29: =IF(D29="$/kwh",F29*H29,"") -> 
A30: =IFERROR(VLOOKUP(B30,'Model Specs'!K$16:N$35,4,FALSE),"") -> GSL_TC | B30: GENERAL SERVICE LESS THAN 50 KW SERVICE CLASSIFICATION | C30: Retail Transmission Rate – Line and Transformation Connection Service Rate | F30: 1027917567 | G30: 0 | H30: =IF('1. Info'!$L$18="ERZ",1,IF(D30="$/kwh",LLF,"")) ->  | I30: =IF(D30="$/kwh",F30*H30,"") -> 
A31: =IFERROR(VLOOKUP(B31,'Model Specs'!K$16:N$35,4,FALSE),"") -> GSG_TC | B31: GENERAL SERVICE 50 to 4,999 kW SERVICE CLASSIFICATION | C31: Retail Transmission Rate – Line and Transformation Connection Service Rate | F31: 630367746.3 | G31: 97397.41402 | H31: =IF('1. Info'!$L$18="ERZ",1,IF(D31="$/kwh",LLF,"")) -> 
A32: =IFERROR(VLOOKUP(B32,'Model Specs'!K$16:N$35,4,FALSE),"") -> LU_TC | B32: LARGE USE SERVICE CLASSIFICATION | C32: Retail Transmission Rate – Line and Transformation Connection Service Rate | F32: 234289032.2 | G32: 434330.5732 | H32: =IF('1. Info'!$L$18="ERZ",1,IF(D32="$/kwh",LLF,"")) -> 
A33: =IFERROR(VLOOKUP(B33,'Model Specs'!K$16:N$35,4,FALSE),"") -> USL_TC | B33: UNMETERED SCATTERED LOAD SERVICE CLASSIFICATION | C33: Retail Transmission Rate – Line and Transformation Connection Service Rate | F33: 15207734.59 | G33: 0 | H33: =IF('1. Info'!$L$18="ERZ",1,IF(D33="$/kwh",LLF,"")) -> 
A34: =IFERROR(VLOOKUP(B34,'Model Specs'!K$16:N$35,4,FALSE),"") -> SL_TC | B34: STREET LIGHTING SERVICE CLASSIFICATION | C34: =IF(B34="","",$C$29) -> Retail Transmission Rate – Line and Transformation Connection Service Rate | F34: 39805164.43 | G34: 111703.6733 | H34: =IF('1. Info'!$L$18="ERZ",1,IF(D34="$/kwh",LLF,"")) -> 
A35: =IFERROR(VLOOKUP(B35,'Model Specs'!K$16:N$35,4,FALSE),"") -> SEN_TC | B35: SENTINEL LIGHTING SERVICE CLASSIFICATION | C35: =IF(B35="","",$C$29) -> Retail Transmission Rate – Line and Transformation Connection Service Rate | F35: 230494.7439 | G35: 625.9954229 | H35: =IF('1. Info'!$L$18="ERZ",1,IF(D35="$/kwh",LLF,"")) -> 
A36: =IFERROR(VLOOKUP(B36,'Model Specs'!K$16:N$35,4,FALSE),"") ->  | B36: =B24 ->  | C36: =IF(B36="","",$C$29) ->  | F36: =F24 ->  | H36: =IF('1. Info'!$L$18="ERZ",1,IF(D36="$/kwh",LLF,"")) -> 
A37: =IFERROR(VLOOKUP(B37,'Model Specs'!K$16:N$35,4,FALSE),"") ->  | C37: =IF(B37="","",$C$29) ->  | H37: =IF('1. Info'!$L$18="ERZ",1,IF(D37="$/kwh",LLF,"")) -> 
A38: =IFERROR(VLOOKUP(B38,'Model Specs'!K$16:N$35,4,FALSE),"") ->  | H38: =IF('1. Info'!$L$18="ERZ",1,IF(D38="$/kwh",LLF,"")) ->  | I38: =IF(D38="$/kwh",F38*H38,"") -> 
A39: =IFERROR(VLOOKUP(B39,'Model Specs'!K$16:N$35,4,FALSE),"") ->  | C39: =IF(B39="","",$C$29) ->  | E39: =IFERROR(VLOOKUP(A39,_xlnm.Database,8,FALSE),"") ->  | F39: 4179849760 | G39: 12202864.31 | H39: =IF('1. Info'!$L$18="ERZ",1,IF(D39="$/kwh",LLF,"")) ->  | I39: =IF(D39="$/kwh",F39*H39,"") -> 

Sheet 11. RTSR-UTRs & Sub-Tx
A1: Back to Index
B2: =+'1. Info'!B2 -> 2027-2031 RTSR Workform
B12: Uniform Transmission Rates | C12: Unit | E12: ='1. Info'!G34+1&" Jan to Jun" -> 2024 Jan to Jun | G12: ='1. Info'!G34+1&" Jul to Dec" -> 2024 Jul to Dec | I12: ='1. Info'!G34+2&" Jan to Jun" -> 2025 Jan to Jun | K12: ='1. Info'!G34+2 -> 2025 | M12: ='1. Info'!G34+2&" Jul to Dec" -> 2025 Jul to Dec | O12: ='1. Info'!G34+3 -> 2026
B14: Rate Description | E14: Rate | G14: Rate | I14: Rate | K14: Rate | M14: Rate | O14: Rate
B16: Network Service Rate | C16: kW | E16: 5.78 | G16: 6.12 | K16: 6.37 | O16: 6.37
B18: Line Connection Service Rate | C18: kW | E18: 0.95 | G18: 0.95 | K18: 1 | O18: 1
B20: Transformation Connection Service Rate | C20: kW | E20: 3.21 | G20: 3.21 | K20: 3.39 | O20: 3.39
B23: Hydro One Sub-Transmission Rates | C23: Unit | E23: ='1. Info'!G34+1 -> 2024 | I23: =+E23+1 -> 2025 | O23: =+O12 -> 2026
B27: Rate Description | E27: Rate | I27: Rate | O27: Rate
B29: Network Service Rate | C29: kW | E29: 4.9103 | K29: 5.328 | O29: 5.328
B31: Line Connection Service Rate | C31: kW | E31: 0.6537 | K31: 0.6882 | O31: 0.6882
B33: Transformation Connection Service Rate | C33: kW | E33: 3.3041 | K33: 3.4894 | O33: 3.4894
B35: Both Line and Transformation Connection Service Rate | C35: kW | E35: =+E31+E33 -> 3.9578 | K35: 4.1776 | O35: =+O31+O33 -> 4.1776
B38: If needed, add extra host here. (I) | C38: Unit | E38: =E23 -> 2024 | I38: =+I23 -> 2025 | O38: =O23 -> 2026
B42: Rate Description | E42: Rate | I42: Rate | O42: Rate
B44: Network Service Rate | C44: kW
B46: Line Connection Service Rate | C46: kW
B48: Transformation Connection Service Rate | C48: kW
B50: Both Line and Transformation Connection Service Rate | C50: kW | E50: =E48+E46 -> 0 | G50: =G48+G46 -> 0 | M50: =M48+M46 -> 0 | O50: =O48+O46 -> 0
B53: If needed, add extra host here. (II) | C53: Unit | E53: =E38 -> 2024 | I53: =+I38 -> 2025 | O53: =O38 -> 2026
B57: Rate Description | E57: Rate | I57: Rate | O57: Rate
B59: Network Service Rate | C59: kW
B61: Line Connection Service Rate | C61: kW
B63: Transformation Connection Service Rate | C63: kW
B65: Both Line and Transformation Connection Service Rate | C65: kW | E65: =E63+E61 -> 0 | G65: =G63+G61 -> 0 | M65: =M63+M61 -> 0 | O65: =O63+O61 -> 0
I67: ="Current "&'6. Class A Consumption Data'!F27+1 -> Current 2025 | O67: ="Forecast "&'6. Class A Consumption Data'!F27+2 -> Forecast 2026
B68: Low Voltage Switchgear Credit (if applicable, enter as a negative value) | C68: $

Sheet 12. RTSR-Historic Wholesale
A1: Back to Index
B2: =+'1. Info'!B2 -> 2027-2031 RTSR Workform
B13: In the green shaded cells, enter billing detail for wholesale transmission for the same reporting period as the billing determinants on Tab 10. For Hydro One Sub-transmission Rates, if you are charged a combined Line and Transformer connection rate, please ensure that both the Line Connection and Transformation Connection columns are completed. If any of the Hydro One Sub-transmission rates (column E, I and M) are highlighted in orange, please double check the billing data entered in "Units Billed" and "Amount" columns. The highlighted rates do not match the Hydro One Sub-transmission rates approved for that time period. If data has been entered correctly, please provide explanation for the discrepancy in rates.
B16: IESO | D16: Network | H16: Line Connection | L16: Transformation Connection | P16: Total Line
B17: Month | D17: Units Billed | E17: Rate | F17: Amount | H17: Units Billed | I17: Rate | J17: Amount | L17: Units Billed | M17: Rate | N17: Amount | P17: Amount
B19: January | D19: 3573241 | E19: =IF(D19<>0,F19/D19,0) -> 5.78 | F19: 20653332.98 | H19: 3737947 | I19: =IF(H19<>0,J19/H19,0) -> 0.95 | J19: 3551049.65 | L19: 2759149 | M19: =IF(L19<>0,N19/L19,0) -> 3.21 | N19: 8856868.29 | P19: =J19+N19 -> 12407917.94
B20: February | D20: 3410231 | E20: 5.78 | F20: 19711135.18 | H20: 3614455 | I20: 0.95 | J20: 3433732.25 | L20: 2687860 | M20: 3.21 | N20: 8628030.6 | P20: 12061762.85
B21: March | D21: 3278958 | E21: 5.78 | F21: 18952377.24 | H21: 3471453 | I21: 0.95 | J21: 3297880.35 | L21: 2577203 | M21: 3.21 | N21: 8272821.63 | P21: 11570701.98
B22: April | D22: 3135226 | E22: 5.78 | F22: 18121606.28 | H22: 3500255.768 | I22: 0.95 | J22: 3325242.98 | L22: 2618907.1 | M22: 3.21 | N22: 8406691.79 | P22: 11731934.77
B23: May | D23: 4049527 | E23: 5.78 | F23: 23406266.06 | H23: 4152245 | I23: 0.95 | J23: 3944632.75 | L23: 3055932 | M23: 3.21 | N23: 9809541.72 | P23: 13754174.47
B24: June | D24: 4928345 | E24: 5.78 | F24: 28485834.1 | H24: 5119868 | I24: 0.95 | J24: 4863874.6 | L24: 3742712 | M24: 3.21 | N24: 12014105.52 | P24: 16877980.12
B25: July | D25: 4767956 | E25: 6.12 | F25: 29179890.72 | H25: 4902306 | I25: 0.95 | J25: 4657190.7 | L25: 3580257 | M25: 3.21 | N25: 11492624.97 | P25: 16149815.67
B26: August | D26: 4560796 | E26: 6.12 | F26: 27912071.52 | H26: 4874353 | I26: 0.95 | J26: 4630635.35 | L26: 3550675 | M26: 3.21 | N26: 11397666.75 | P26: 16028302.1
B27: September | D27: 4122148 | E27: 6.12 | F27: 25227545.76 | H27: 4213220 | I27: 0.95 | J27: 4002559 | L27: 3115771 | M27: 3.21 | N27: 10001624.91 | P27: 14004183.91
B28: October | D28: 3287009 | E28: 6.12 | F28: 20116495.08 | H28: 3483785 | I28: 0.95 | J28: 3309595.75 | L28: 2554708 | M28: 3.21 | N28: 8200612.68 | P28: 11510208.43
B29: November | D29: 3275137 | E29: 6.12 | F29: 20043838.44 | H29: 3499261 | I29: 0.95 | J29: 3324297.95 | L29: 2590837 | M29: 3.21 | N29: 8316586.77 | P29: 11640884.72
B30: December | D30: 3544961 | E30: 6.12 | F30: 21695161.32 | H30: 3686697 | I30: 0.95 | J30: 3502362.15 | L30: 2719355 | M30: 3.21 | N30: 8729129.55 | P30: 12231491.7
B32: Total | D32: =SUM(D19:D30) -> 45933535 | E32: =IF(D32<>0,F32/D32,0) -> 5.954376354 | F32: =SUM(F19:F30) -> 273505554.7 | H32: =SUM(H19:H30) -> 48255845.77 | I32: =IF(H32<>0,J32/H32,0) -> 0.95 | J32: =SUM(J19:J30) -> 45843053.48 | L32: =SUM(L19:L30) -> 35553366.1 | M32: =IF(L32<>0,N32/L32,0) -> 3.21 | N32: =SUM(N19:N30) -> 114126305.2 | P32: =SUM(P19:P30) -> 159969358.7
B34: Hydro One | D34: Network | H34: Line Connection | L34: Transformation Connection | P34: Total Line
B36: Month | D36: Units Billed | E36: Rate | F36: Amount | H36: Units Billed | I36: Rate | J36: Amount | L36: Units Billed | M36: Rate | N36: Amount | P36: Amount
B38: January | D38: 471870.3 | E38: =IF(D38<>0,F38/D38,0) -> 4.910300118 | F38: 2317024.79 | H38: 446285.514 | I38: =IF(H38<>0,J38/H38,0) -> 0.6537000438 | J38: 291736.86 | L38: 473682.144 | M38: =IF(L38<>0,N38/L38,0) -> 3.304099975 | N38: 1565093.16 | P38: =J38+N38 -> 1856830.02
B39: February | D39: 462881.2 | E39: =IF(D39<>0,F39/D39,0) -> 4.910299943 | F39: 2272885.53 | H39: 440194.9037 | I39: 0.6536999579 | J39: 287755.39 | L39: 466336.3837 | M39: 3.30409986 | N39: 1540821.98 | P39: =J39+N39 -> 1828577.37
B40: March | D40: 450564.41 | E40: 4.91030015 | F40: 2212406.49 | H40: 432235.3467 | I40: 0.6537000552 | J40: 282552.27 | L40: 458004.6967 | M40: 3.304100047 | N40: 1513293.34 | P40: 1795845.61
B41: April | D41: 448943.29 | E41: 4.910299784 | F41: 2204446.14 | H41: 428775.641 | I41: 0.6537000081 | J41: 280290.64 | L41: 453065.211 | M41: 3.304099881 | N41: 1496972.71 | P41: 1777263.35
B42: May | D42: 498780.77 | E42: 4.91030009 | F42: 2449163.26 | H42: 477171.1131 | I42: 0.6537000489 | J42: 311926.78 | L42: 502516.8531 | M42: 3.304100091 | N42: 1660365.98 | P42: 1972292.76
B43: June | D43: 605880.24 | E43: 4.910300045 | F43: 2975053.77 | H43: 596299.6764 | I43: 0.6537000026 | J43: 389801.1 | L43: 622250.1464 | M43: 3.304099986 | N43: 2055976.7 | P43: 2445777.8
B44: July | D44: 574919.76 | E44: 4.910299935 | F44: 2823028.46 | H44: 561612.8692 | I44: 0.6536999954 | J44: 367126.33 | L44: 587989.9892 | M44: 3.304099944 | N44: 1942777.69 | P44: 2309904.02
B45: August | D45: 553498.16 | E45: 4.910300045 | F45: 2717842.04 | H45: 544308.6033 | I45: 0.6536999927 | J45: 355814.53 | L45: 570001.7233 | M45: 3.304099975 | N45: 1883342.68 | P45: 2239157.21
B46: September | D46: 487462.14 | E46: 4.910300029 | F46: 2393585.36 | H46: 468505.1931 | I46: 0.6536999686 | J46: 306261.83 | L46: 493246.4131 | M46: 3.304100013 | N46: 1629735.48 | P46: 1935997.31
B47: October | D47: 420368.98 | E47: 4.910299923 | F47: 2064137.77 | H47: 398813.1049 | I47: 0.6537000084 | J47: 260704.13 | L47: 422772.5549 | M47: 3.304099909 | N47: 1396882.76 | P47: 1657586.89
B48: November | D48: 417247.65 | E48: 4.910300154 | F48: 2048811.2 | H48: 395809.6418 | I48: 0.6536999424 | J48: 258740.74 | L48: 419596.2218 | M48: 3.304099913 | N48: 1386387.84 | P48: 1645128.58
B49: December | D49: 452484.59 | E49: 4.910299929 | F49: 2221835.05 | H49: 429671.4827 | I49: 0.6536999342 | J49: 280876.22 | L49: 456619.8327 | M49: 3.304099936 | N49: 1508717.56 | P49: 1789593.78
B51: Total | D51: =SUM(D38:D49) -> 5844901.49 | E51: =IF(D51<>0,F51/D51,0) -> 4.910300013 | F51: =SUM(F38:F49) -> 28700219.86 | H51: =SUM(H38:H49) -> 5619683.09 | I51: =IF(H51<>0,J51/H51,0) -> 0.6536999972 | J51: =SUM(J38:J49) -> 3673586.82 | L51: =SUM(L38:L49) -> 5926082.17 | M51: =IF(L51<>0,N51/L51,0) -> 3.304099963 | N51: =SUM(N38:N49) -> 19580367.88 | P51: =SUM(P38:P49) -> 23253954.7
B53: Add Extra Host Here (I) | D53: Network | H53: Line Connection | L53: Transformation Connection | P53: Total Line
B54: (if needed)
B55: Month | D55: Units Billed | E55: Rate | F55: Amount | H55: Units Billed | I55: Rate | J55: Amount | L55: Units Billed | M55: Rate | N55: Amount | P55: Amount
B57: January | E57: =IF(D57<>0,F57/D57,0) -> 0 | I57: =IF(H57<>0,J57/H57,0) -> 0 | M57: =IF(L57<>0,N57/L57,0) -> 0 | P57: =J57+N57 -> 0
B58: February | E58: 0 | I58: 0 | M58: 0 | P58: 0
B59: March | E59: 0 | I59: 0 | M59: 0 | P59: 0
B60: April | E60: 0 | I60: 0 | M60: 0 | P60: 0
B61: May | E61: 0 | I61: 0 | M61: 0 | P61: 0
B62: June | E62: 0 | I62: 0 | M62: 0 | P62: 0
B63: July | E63: 0 | I63: 0 | M63: 0 | P63: 0
B64: August | E64: 0 | I64: 0 | M64: 0 | P64: 0
B65: September | E65: 0 | I65: 0 | M65: 0 | P65: 0
B66: October | E66: 0 | I66: 0 | M66: 0 | P66: 0
B67: November | E67: 0 | I67: 0 | M67: 0 | P67: 0
B68: December | E68: 0 | I68: 0 | M68: 0 | P68: 0
B70: Total | D70: =SUM(D57:D68) -> 0 | E70: =IF(D70<>0,F70/D70,0) -> 0 | F70: =SUM(F57:F68) -> 0 | H70: =SUM(H57:H68) -> 0 | I70: =IF(H70<>0,J70/H70,0) -> 0 | J70: =SUM(J57:J68) -> 0 | L70: =SUM(L57:L68) -> 0 | M70: =IF(L70<>0,N70/L70,0) -> 0 | N70: =SUM(N57:N68) -> 0 | P70: =SUM(P57:P68) -> 0
B72: Add Extra Host Here (II) | D72: Network | H72: Line Connection | L72: Transformation Connection | P72: Total Line
B73: (if needed)
B74: Month | D74: Units Billed | E74: Rate | F74: Amount | H74: Units Billed | I74: Rate | J74: Amount | L74: Units Billed | M74: Rate | N74: Amount | P74: Amount
B76: January | E76: =IF(D76<>0,F76/D76,0) -> 0 | I76: =IF(H76<>0,J76/H76,0) -> 0 | M76: =IF(L76<>0,N76/L76,0) -> 0 | P76: =J76+N76 -> 0
B77: February | E77: 0 | I77: 0 | M77: 0 | P77: 0
B78: March | E78: 0 | I78: 0 | M78: 0 | P78: 0
B79: April | E79: 0 | I79: 0 | M79: 0 | P79: 0
B80: May | E80: 0 | I80: 0 | M80: 0 | P80: 0
B81: June | E81: 0 | I81: 0 | M81: 0 | P81: 0
B82: July | E82: 0 | I82: 0 | M82: 0 | P82: 0
B83: August | E83: 0 | I83: 0 | M83: 0 | P83: 0
B84: September | E84: 0 | I84: 0 | M84: 0 | P84: 0
B85: October | E85: 0 | I85: 0 | M85: 0 | P85: 0
B86: November | E86: 0 | I86: 0 | M86: 0 | P86: 0
B87: December | E87: 0 | I87: 0 | M87: 0 | P87: 0
B89: Total | D89: =SUM(D76:D87) -> 0 | E89: =IF(D89<>0,F89/D89,0) -> 0 | F89: =SUM(F76:F87) -> 0 | H89: =SUM(H76:H87) -> 0 | I89: =IF(H89<>0,J89/H89,0) -> 0 | J89: =SUM(J76:J87) -> 0 | L89: =SUM(L76:L87) -> 0 | M89: =IF(L89<>0,N89/L89,0) -> 0 | N89: =SUM(N76:N87) -> 0 | P89: =SUM(P76:P87) -> 0
B91: Total | D91: Network | H91: Line Connection | L91: Transformation Connection | P91: Total Line
B93: Month | D93: Units Billed | E93: Rate | F93: Amount | H93: Units Billed | I93: Rate | J93: Amount | L93: Units Billed | M93: Rate | N93: Amount | P93: Amount
B95: January | D95: =D19+D38+D57+D76 -> 4045111.3 | E95: =IF(D95<>0,F95/D95,0) -> 5.678547774 | F95: =F19+F38+F57+F76 -> 22970357.77 | H95: =H19+H38+H57+H76 -> 4184232.514 | I95: =IF(H95<>0,J95/H95,0) -> 0.9183969813 | J95: =J19+J38+J57+J76 -> 3842786.51 | L95: =L19+L38+L57+L76 -> 3232831.144 | M95: =IF(L95<>0,N95/L95,0) -> 3.223787753 | N95: =N19+N38+N57+N76 -> 10421961.45 | P95: =J95+N95 -> 14264747.96
B96: February | D96: =D20+D39+D58+D77 -> 3873112.2 | E96: 5.676060897 | F96: =F20+F39+F58+F77 -> 21984020.71 | H96: =H20+H39+H58+H77 -> 4054649.904 | I96: 0.9178320517 | J96: =J20+J39+J58+J77 -> 3721487.64 | L96: =L20+L39+L58+L77 -> 3154196.384 | M96: 3.22391232 | N96: =N20+N39+N58+N77 -> 10168852.58 | P96: 13890340.22
B97: March | D97: 3729522.41 | E97: 5.674931373 | F97: 21164783.73 | H97: 3903688.347 | I97: 0.91719223 | J97: 3580432.62 | L97: 3035207.697 | M97: 3.224199445 | N97: 9786114.97 | P97: 13366547.59
B98: April | D98: 3584169.29 | E98: 5.671063718 | F98: 20326052.42 | H98: 3929031.409 | I98: 0.9176647484 | J98: 3605533.62 | L98: 3071972.311 | M98: 3.223878179 | N98: 9903664.5 | P98: 13509198.12
B99: May | D99: 4548307.77 | E99: 5.684626157 | F99: 25855429.32 | H99: 4629416.113 | I99: 0.9194592635 | J99: 4256559.53 | L99: 3558448.853 | M99: 3.223288622 | N99: 11469907.7 | P99: 15726467.23
B100: June | D100: 5534225.24 | E100: 5.684786308 | F100: 31460887.87 | H100: 5716167.676 | I100: 0.9190905511 | J100: 5253675.7 | L100: 4364962.146 | M100: 3.223414487 | N100: 14070082.22 | P100: 19323757.92
B101: July | D101: 5342875.76 | E101: 5.989830312 | F101: 32002919.18 | H101: 5463918.869 | I101: 0.9195445888 | J101: 5024317.03 | L101: 4168246.989 | M101: 3.223274123 | N101: 13435402.66 | P101: 18459719.69
B102: August | D102: 5114294.16 | E102: 5.989079353 | F102: 30629913.56 | H102: 5418661.603 | I102: 0.9202364431 | J102: 4986449.88 | L102: 4120676.723 | M102: 3.223016587 | N102: 13281009.43 | P102: 18267459.31
B103: September | D103: 4609610.14 | E103: 5.992075312 | F103: 27621131.12 | H103: 4681725.193 | I103: 0.9203489424 | J103: 4308820.83 | L103: 3609017.413 | M103: 3.222860701 | N103: 11631360.39 | P103: 15940181.22
B104: October | D104: 3707377.98 | E104: 5.98283557 | F104: 22180632.85 | H104: 3882598.105 | I104: 0.9195646275 | J104: 3570299.88 | L104: 2977480.555 | M104: 3.223361249 | N104: 9597495.44 | P104: 13167795.32
B105: November | D105: 3692384.65 | E105: 5.983301236 | F105: 22092649.64 | H105: 3895070.642 | I105: 0.9198905539 | J105: 3583038.69 | L105: 3010433.222 | M105: 3.22311571 | N105: 9702974.61 | P105: 13286013.3
B106: December | D106: 3997445.59 | E106: 5.983069896 | F106: 23916996.37 | H106: 4116368.483 | I106: 0.9190718435 | J106: 3783238.37 | L106: 3175974.833 | M106: 3.223529042 | N106: 10237847.11 | P106: 14021085.48
B108: Total | D108: =SUM(D95:D106) -> 51778436.49 | E108: =IF(D108<>0,F108/D108,0) -> 5.83651796 | F108: =SUM(F95:F106) -> 302205774.5 | H108: =SUM(H95:H106) -> 53875528.86 | I108: =IF(H108<>0,J108/H108,0) -> 0.91909335 | J108: =SUM(J95:J106) -> 49516640.3 | L108: =SUM(L95:L106) -> 41479448.27 | M108: =IF(L108<>0,N108/L108,0) -> 3.223443865 | N108: =SUM(N95:N106) -> 133706673.1 | P108: =SUM(P95:P106) -> 183223313.4
N110: Low Voltage Switchgear Credit (if applicable) | P110: 0
N112: Total including deduction for Low Voltage Switchgear Credit | P112: =P108+P110 -> 183223313.4

Sheet 13. RTSR-Current Wholesale
A1: Back to Index
B2: =+'1. Info'!B2 -> 2027-2031 RTSR Workform
B13: ="The purpose of this sheet is to calculate the expected billing when current "&'11. RTSR-UTRs & Sub-Tx'!K12&" Uniform Transmission Rates are applied against historical "&'11. RTSR-UTRs & Sub-Tx'!K12-1&" transmission units." -> The purpose of this sheet is to calculate the expected billing when current 2025 Uniform Transmission Rates are applied against historical 2024 transmission units.
B16: IESO | D16: Network | H16: Line Connection | L16: Transformation Connection | P16: Total Line
B18: Month | D18: Units Billed | E18: Rate | F18: Amount | H18: Units Billed | I18: Rate | J18: Amount | L18: Units Billed | M18: Rate | N18: Amount | P18: Amount
B20: January | D20: ='12. RTSR-Historic Wholesale'!D19 -> 3573241 | E20: ='11. RTSR-UTRs & Sub-Tx'!K16 -> 6.37 | F20: =D20*E20 -> 22761545.17 | H20: ='12. RTSR-Historic Wholesale'!H19 -> 3737947 | I20: ='11. RTSR-UTRs & Sub-Tx'!K18 -> 1 | J20: =H20*I20 -> 3737947 | L20: ='12. RTSR-Historic Wholesale'!L19 -> 2759149 | M20: ='11. RTSR-UTRs & Sub-Tx'!K20 -> 3.39 | N20: =L20*M20 -> 9353515.11 | P20: =J20+N20 -> 13091462.11
B21: February | D21: ='12. RTSR-Historic Wholesale'!D20 -> 3410231 | E21: =E20 -> 6.37 | F21: =D21*E21 -> 21723171.47 | H21: ='12. RTSR-Historic Wholesale'!H20 -> 3614455 | I21: =I20 -> 1 | J21: =H21*I21 -> 3614455 | L21: ='12. RTSR-Historic Wholesale'!L20 -> 2687860 | M21: =M20 -> 3.39 | N21: =L21*M21 -> 9111845.4 | P21: =J21+N21 -> 12726300.4
B22: March | D22: ='12. RTSR-Historic Wholesale'!D21 -> 3278958 | E22: =E21 -> 6.37 | F22: 20886962.46 | H22: ='12. RTSR-Historic Wholesale'!H21 -> 3471453 | I22: =I21 -> 1 | J22: 3471453 | L22: ='12. RTSR-Historic Wholesale'!L21 -> 2577203 | M22: =M21 -> 3.39 | N22: 8736718.17 | P22: 12208171.17
B23: April | D23: ='12. RTSR-Historic Wholesale'!D22 -> 3135226 | E23: 6.37 | F23: 19971389.62 | H23: ='12. RTSR-Historic Wholesale'!H22 -> 3500255.768 | I23: 1 | J23: 3500255.768 | L23: ='12. RTSR-Historic Wholesale'!L22 -> 2618907.1 | M23: 3.39 | N23: 8878095.068 | P23: 12378350.84
B24: May | D24: ='12. RTSR-Historic Wholesale'!D23 -> 4049527 | E24: 6.37 | F24: 25795486.99 | H24: ='12. RTSR-Historic Wholesale'!H23 -> 4152245 | I24: 1 | J24: 4152245 | L24: ='12. RTSR-Historic Wholesale'!L23 -> 3055932 | M24: 3.39 | N24: 10359609.48 | P24: 14511854.48
B25: June | D25: ='12. RTSR-Historic Wholesale'!D24 -> 4928345 | E25: 6.37 | F25: 31393557.65 | H25: ='12. RTSR-Historic Wholesale'!H24 -> 5119868 | I25: 1 | J25: 5119868 | L25: ='12. RTSR-Historic Wholesale'!L24 -> 3742712 | M25: 3.39 | N25: 12687793.68 | P25: 17807661.68
B26: July | D26: ='12. RTSR-Historic Wholesale'!D25 -> 4767956 | E26: 6.37 | F26: 30371879.72 | H26: ='12. RTSR-Historic Wholesale'!H25 -> 4902306 | I26: 1 | J26: 4902306 | L26: ='12. RTSR-Historic Wholesale'!L25 -> 3580257 | M26: 3.39 | N26: 12137071.23 | P26: 17039377.23
B27: August | D27: ='12. RTSR-Historic Wholesale'!D26 -> 4560796 | E27: 6.37 | F27: 29052270.52 | H27: ='12. RTSR-Historic Wholesale'!H26 -> 4874353 | I27: 1 | J27: 4874353 | L27: ='12. RTSR-Historic Wholesale'!L26 -> 3550675 | M27: 3.39 | N27: 12036788.25 | P27: 16911141.25
B28: September | D28: ='12. RTSR-Historic Wholesale'!D27 -> 4122148 | E28: 6.37 | F28: 26258082.76 | H28: ='12. RTSR-Historic Wholesale'!H27 -> 4213220 | I28: 1 | J28: 4213220 | L28: ='12. RTSR-Historic Wholesale'!L27 -> 3115771 | M28: 3.39 | N28: 10562463.69 | P28: 14775683.69
B29: October | D29: ='12. RTSR-Historic Wholesale'!D28 -> 3287009 | E29: 6.37 | F29: 20938247.33 | H29: ='12. RTSR-Historic Wholesale'!H28 -> 3483785 | I29: 1 | J29: 3483785 | L29: ='12. RTSR-Historic Wholesale'!L28 -> 2554708 | M29: 3.39 | N29: 8660460.12 | P29: 12144245.12
B30: November | D30: ='12. RTSR-Historic Wholesale'!D29 -> 3275137 | E30: 6.37 | F30: 20862622.69 | H30: ='12. RTSR-Historic Wholesale'!H29 -> 3499261 | I30: 1 | J30: 3499261 | L30: ='12. RTSR-Historic Wholesale'!L29 -> 2590837 | M30: 3.39 | N30: 8782937.43 | P30: 12282198.43
B31: December | D31: ='12. RTSR-Historic Wholesale'!D30 -> 3544961 | E31: 6.37 | F31: 22581401.57 | H31: ='12. RTSR-Historic Wholesale'!H30 -> 3686697 | I31: 1 | J31: 3686697 | L31: ='12. RTSR-Historic Wholesale'!L30 -> 2719355 | M31: 3.39 | N31: 9218613.45 | P31: 12905310.45
B33: Total | D33: =SUM(D20:D31) -> 45933535 | E33: =IF(D33<>0,F33/D33,0) -> 6.37 | F33: =SUM(F20:F31) -> 292596617.9 | H33: =SUM(H20:H31) -> 48255845.77 | I33: =IF(H33<>0,J33/H33,0) -> 1 | J33: =SUM(J20:J31) -> 48255845.77 | L33: =SUM(L20:L31) -> 35553366.1 | M33: =IF(L33<>0,N33/L33,0) -> 3.39 | N33: =SUM(N20:N31) -> 120525911.1 | P33: =SUM(P20:P31) -> 168781756.8
B35: Hydro One | D35: Network | H35: Line Connection | L35: Transformation Connection | P35: Total Line
B37: Month | D37: Units Billed | E37: Rate | F37: Amount | H37: Units Billed | I37: Rate | J37: Amount | L37: Units Billed | M37: Rate | N37: Amount | P37: Amount
B39: January | D39: ='12. RTSR-Historic Wholesale'!D38 -> 471870.3 | E39: ='11. RTSR-UTRs & Sub-Tx'!K29 -> 5.328 | F39: =D39*E39 -> 2514124.958 | H39: ='12. RTSR-Historic Wholesale'!H38 -> 446285.514 | I39: ='11. RTSR-UTRs & Sub-Tx'!K31 -> 0.6882 | J39: =H39*I39 -> 307133.6907 | L39: ='12. RTSR-Historic Wholesale'!L38 -> 473682.144 | M39: ='11. RTSR-UTRs & Sub-Tx'!K33 -> 3.4894 | N39: =L39*M39 -> 1652866.473 | P39: =J39+N39 -> 1960000.164
B40: February | D40: ='12. RTSR-Historic Wholesale'!D39 -> 462881.2 | E40: =E39 -> 5.328 | F40: =D40*E40 -> 2466231.034 | H40: ='12. RTSR-Historic Wholesale'!H39 -> 440194.9037 | I40: =I39 -> 0.6882 | J40: =H40*I40 -> 302942.1327 | L40: ='12. RTSR-Historic Wholesale'!L39 -> 466336.3837 | M40: =M39 -> 3.4894 | N40: =L40*M40 -> 1627234.177 | P40: 1930176.31
B41: March | D41: ='12. RTSR-Historic Wholesale'!D40 -> 450564.41 | E41: =E40 -> 5.328 | F41: 2400607.176 | H41: ='12. RTSR-Historic Wholesale'!H40 -> 432235.3467 | I41: =I40 -> 0.6882 | J41: 297464.3656 | L41: ='12. RTSR-Historic Wholesale'!L40 -> 458004.6967 | M41: =M40 -> 3.4894 | N41: 1598161.589 | P41: 1895625.954
B42: April | D42: ='12. RTSR-Historic Wholesale'!D41 -> 448943.29 | E42: 5.328 | F42: 2391969.849 | H42: ='12. RTSR-Historic Wholesale'!H41 -> 428775.641 | I42: 0.6882 | J42: 295083.3962 | L42: ='12. RTSR-Historic Wholesale'!L41 -> 453065.211 | M42: 3.4894 | N42: 1580925.747 | P42: 1876009.144
B43: May | D43: ='12. RTSR-Historic Wholesale'!D42 -> 498780.77 | E43: 5.328 | F43: 2657503.943 | H43: ='12. RTSR-Historic Wholesale'!H42 -> 477171.1131 | I43: 0.6882 | J43: 328389.1601 | L43: ='12. RTSR-Historic Wholesale'!L42 -> 502516.8531 | M43: 3.4894 | N43: 1753482.307 | P43: 2081871.467
B44: June | D44: ='12. RTSR-Historic Wholesale'!D43 -> 605880.24 | E44: 5.328 | F44: 3228129.919 | H44: ='12. RTSR-Historic Wholesale'!H43 -> 596299.6764 | I44: 0.6882 | J44: 410373.4373 | L44: ='12. RTSR-Historic Wholesale'!L43 -> 622250.1464 | M44: 3.4894 | N44: 2171279.661 | P44: 2581653.098
B45: July | D45: ='12. RTSR-Historic Wholesale'!D44 -> 574919.76 | E45: 5.328 | F45: 3063172.481 | H45: ='12. RTSR-Historic Wholesale'!H44 -> 561612.8692 | I45: 0.6882 | J45: 386501.9766 | L45: ='12. RTSR-Historic Wholesale'!L44 -> 587989.9892 | M45: 3.4894 | N45: 2051732.268 | P45: 2438234.245
B46: August | D46: ='12. RTSR-Historic Wholesale'!D45 -> 553498.16 | E46: 5.328 | F46: 2949038.196 | H46: ='12. RTSR-Historic Wholesale'!H45 -> 544308.6033 | I46: 0.6882 | J46: 374593.1808 | L46: ='12. RTSR-Historic Wholesale'!L45 -> 570001.7233 | M46: 3.4894 | N46: 1988964.013 | P46: 2363557.194
B47: September | D47: ='12. RTSR-Historic Wholesale'!D46 -> 487462.14 | E47: 5.328 | F47: 2597198.282 | H47: ='12. RTSR-Historic Wholesale'!H46 -> 468505.1931 | I47: 0.6882 | J47: 322425.2739 | L47: ='12. RTSR-Historic Wholesale'!L46 -> 493246.4131 | M47: 3.4894 | N47: 1721134.034 | P47: 2043559.308
B48: October | D48: ='12. RTSR-Historic Wholesale'!D47 -> 420368.98 | E48: 5.328 | F48: 2239725.925 | H48: ='12. RTSR-Historic Wholesale'!H47 -> 398813.1049 | I48: 0.6882 | J48: 274463.1788 | L48: ='12. RTSR-Historic Wholesale'!L47 -> 422772.5549 | M48: 3.4894 | N48: 1475222.553 | P48: 1749685.732
B49: November | D49: ='12. RTSR-Historic Wholesale'!D48 -> 417247.65 | E49: 5.328 | F49: 2223095.479 | H49: ='12. RTSR-Historic Wholesale'!H48 -> 395809.6418 | I49: 0.6882 | J49: 272396.1955 | L49: ='12. RTSR-Historic Wholesale'!L48 -> 419596.2218 | M49: 3.4894 | N49: 1464139.056 | P49: 1736535.252
B50: December | D50: ='12. RTSR-Historic Wholesale'!D49 -> 452484.59 | E50: 5.328 | F50: 2410837.896 | H50: ='12. RTSR-Historic Wholesale'!H49 -> 429671.4827 | I50: 0.6882 | J50: 295699.9144 | L50: ='12. RTSR-Historic Wholesale'!L49 -> 456619.8327 | M50: 3.4894 | N50: 1593329.244 | P50: 1889029.159
B52: Total | D52: =SUM(D39:D50) -> 5844901.49 | E52: =IF(D52<>0,F52/D52,0) -> 5.328 | F52: =SUM(F39:F50) -> 31141635.14 | H52: =SUM(H39:H50) -> 5619683.09 | I52: =IF(H52<>0,J52/H52,0) -> 0.6882 | J52: =SUM(J39:J50) -> 3867465.902 | L52: =SUM(L39:L50) -> 5926082.17 | M52: =IF(L52<>0,N52/L52,0) -> 3.4894 | N52: =SUM(N39:N50) -> 20678471.12 | P52: =SUM(P39:P50) -> 24545937.03
B54: Add Extra Host Here (I) | D54: Network | H54: Line Connection | L54: Transformation Connection | P54: Total Line
B56: Month | D56: Units Billed | E56: Rate | F56: Amount | H56: Units Billed | I56: Rate | J56: Amount | L56: Units Billed | M56: Rate | N56: Amount | P56: Amount
B58: January | D58: ='12. RTSR-Historic Wholesale'!D57 -> 0 | E58: ='11. RTSR-UTRs & Sub-Tx'!G44 -> 0 | F58: =D58*E58 -> 0 | H58: ='12. RTSR-Historic Wholesale'!H57 -> 0 | I58: ='11. RTSR-UTRs & Sub-Tx'!G46 -> 0 | J58: =H58*I58 -> 0 | L58: ='12. RTSR-Historic Wholesale'!L57 -> 0 | M58: ='11. RTSR-UTRs & Sub-Tx'!G48 -> 0 | N58: =L58*M58 -> 0 | P58: =J58+N58 -> 0
B59: February | D59: ='12. RTSR-Historic Wholesale'!D58 -> 0 | E59: =E58 -> 0 | F59: =D59*E59 -> 0 | H59: ='12. RTSR-Historic Wholesale'!H58 -> 0 | I59: =I58 -> 0 | J59: =H59*I59 -> 0 | L59: ='12. RTSR-Historic Wholesale'!L58 -> 0 | M59: =M58 -> 0 | N59: =L59*M59 -> 0 | P59: 0
B60: March | D60: ='12. RTSR-Historic Wholesale'!D59 -> 0 | E60: =E59 -> 0 | F60: 0 | H60: ='12. RTSR-Historic Wholesale'!H59 -> 0 | I60: =I59 -> 0 | J60: 0 | L60: ='12. RTSR-Historic Wholesale'!L59 -> 0 | M60: =M59 -> 0 | N60: 0 | P60: 0
B61: April | D61: ='12. RTSR-Historic Wholesale'!D60 -> 0 | E61: 0 | F61: 0 | H61: ='12. RTSR-Historic Wholesale'!H60 -> 0 | I61: 0 | J61: 0 | L61: ='12. RTSR-Historic Wholesale'!L60 -> 0 | M61: 0 | N61: 0 | P61: 0
B62: May | D62: ='12. RTSR-Historic Wholesale'!D61 -> 0 | E62: 0 | F62: 0 | H62: ='12. RTSR-Historic Wholesale'!H61 -> 0 | I62: 0 | J62: 0 | L62: ='12. RTSR-Historic Wholesale'!L61 -> 0 | M62: 0 | N62: 0 | P62: 0
B63: June | D63: ='12. RTSR-Historic Wholesale'!D62 -> 0 | E63: 0 | F63: 0 | H63: ='12. RTSR-Historic Wholesale'!H62 -> 0 | I63: 0 | J63: 0 | L63: ='12. RTSR-Historic Wholesale'!L62 -> 0 | M63: 0 | N63: 0 | P63: 0
B64: July | D64: ='12. RTSR-Historic Wholesale'!D63 -> 0 | E64: 0 | F64: 0 | H64: ='12. RTSR-Historic Wholesale'!H63 -> 0 | I64: 0 | J64: 0 | L64: ='12. RTSR-Historic Wholesale'!L63 -> 0 | M64: 0 | N64: 0 | P64: 0
B65: August | D65: ='12. RTSR-Historic Wholesale'!D64 -> 0 | E65: 0 | F65: 0 | H65: ='12. RTSR-Historic Wholesale'!H64 -> 0 | I65: 0 | J65: 0 | L65: ='12. RTSR-Historic Wholesale'!L64 -> 0 | M65: 0 | N65: 0 | P65: 0
B66: September | D66: ='12. RTSR-Historic Wholesale'!D65 -> 0 | E66: 0 | F66: 0 | H66: ='12. RTSR-Historic Wholesale'!H65 -> 0 | I66: 0 | J66: 0 | L66: ='12. RTSR-Historic Wholesale'!L65 -> 0 | M66: 0 | N66: 0 | P66: 0
B67: October | D67: ='12. RTSR-Historic Wholesale'!D66 -> 0 | E67: 0 | F67: 0 | H67: ='12. RTSR-Historic Wholesale'!H66 -> 0 | I67: 0 | J67: 0 | L67: ='12. RTSR-Historic Wholesale'!L66 -> 0 | M67: 0 | N67: 0 | P67: 0
B68: November | D68: ='12. RTSR-Historic Wholesale'!D67 -> 0 | E68: 0 | F68: 0 | H68: ='12. RTSR-Historic Wholesale'!H67 -> 0 | I68: 0 | J68: 0 | L68: ='12. RTSR-Historic Wholesale'!L67 -> 0 | M68: 0 | N68: 0 | P68: 0
B69: December | D69: ='12. RTSR-Historic Wholesale'!D68 -> 0 | E69: 0 | F69: 0 | H69: ='12. RTSR-Historic Wholesale'!H68 -> 0 | I69: 0 | J69: 0 | L69: ='12. RTSR-Historic Wholesale'!L68 -> 0 | M69: 0 | N69: 0 | P69: 0
B71: Total | D71: =SUM(D58:D69) -> 0 | E71: =IF(D71<>0,F71/D71,0) -> 0 | F71: =SUM(F58:F69) -> 0 | H71: =SUM(H58:H69) -> 0 | I71: =IF(H71<>0,J71/H71,0) -> 0 | J71: =SUM(J58:J69) -> 0 | L71: =SUM(L58:L69) -> 0 | M71: =IF(L71<>0,N71/L71,0) -> 0 | N71: =SUM(N58:N69) -> 0 | P71: =SUM(P58:P69) -> 0
B73: Add Extra Host Here (II) | D73: Network | H73: Line Connection | L73: Transformation Connection | P73: Total Line
B75: Month | D75: Units Billed | E75: Rate | F75: Amount | H75: Units Billed | I75: Rate | J75: Amount | L75: Units Billed | M75: Rate | N75: Amount | P75: Amount
B77: January | D77: ='12. RTSR-Historic Wholesale'!D76 -> 0 | E77: ='11. RTSR-UTRs & Sub-Tx'!G59 -> 0 | F77: =D77*E77 -> 0 | H77: ='12. RTSR-Historic Wholesale'!H76 -> 0 | I77: ='11. RTSR-UTRs & Sub-Tx'!G61 -> 0 | J77: =H77*I77 -> 0 | L77: ='12. RTSR-Historic Wholesale'!L76 -> 0 | M77: ='11. RTSR-UTRs & Sub-Tx'!G63 -> 0 | N77: =L77*M77 -> 0 | P77: =J77+N77 -> 0
B78: February | D78: ='12. RTSR-Historic Wholesale'!D77 -> 0 | E78: =E77 -> 0 | F78: =D78*E78 -> 0 | H78: ='12. RTSR-Historic Wholesale'!H77 -> 0 | I78: =I77 -> 0 | J78: =H78*I78 -> 0 | L78: ='12. RTSR-Historic Wholesale'!L77 -> 0 | M78: =M77 -> 0 | N78: =L78*M78 -> 0 | P78: 0
B79: March | D79: ='12. RTSR-Historic Wholesale'!D78 -> 0 | E79: =E78 -> 0 | F79: 0 | H79: ='12. RTSR-Historic Wholesale'!H78 -> 0 | I79: =I78 -> 0 | J79: 0 | L79: ='12. RTSR-Historic Wholesale'!L78 -> 0 | M79: =M78 -> 0 | N79: 0 | P79: 0
B80: April | D80: ='12. RTSR-Historic Wholesale'!D79 -> 0 | E80: 0 | F80: 0 | H80: ='12. RTSR-Historic Wholesale'!H79 -> 0 | I80: 0 | J80: 0 | L80: ='12. RTSR-Historic Wholesale'!L79 -> 0 | M80: =M79 -> 0 | N80: 0 | P80: 0
B81: May | D81: ='12. RTSR-Historic Wholesale'!D80 -> 0 | E81: 0 | F81: 0 | H81: ='12. RTSR-Historic Wholesale'!H80 -> 0 | I81: 0 | J81: 0 | L81: ='12. RTSR-Historic Wholesale'!L80 -> 0 | M81: 0 | N81: 0 | P81: 0
B82: June | D82: ='12. RTSR-Historic Wholesale'!D81 -> 0 | E82: 0 | F82: 0 | H82: ='12. RTSR-Historic Wholesale'!H81 -> 0 | I82: 0 | J82: 0 | L82: ='12. RTSR-Historic Wholesale'!L81 -> 0 | M82: 0 | N82: 0 | P82: 0
B83: July | D83: ='12. RTSR-Historic Wholesale'!D82 -> 0 | E83: 0 | F83: 0 | H83: ='12. RTSR-Historic Wholesale'!H82 -> 0 | I83: 0 | J83: 0 | L83: ='12. RTSR-Historic Wholesale'!L82 -> 0 | M83: 0 | N83: 0 | P83: 0
B84: August | D84: ='12. RTSR-Historic Wholesale'!D83 -> 0 | E84: 0 | F84: 0 | H84: ='12. RTSR-Historic Wholesale'!H83 -> 0 | I84: 0 | J84: 0 | L84: ='12. RTSR-Historic Wholesale'!L83 -> 0 | M84: 0 | N84: 0 | P84: 0
B85: September | D85: ='12. RTSR-Historic Wholesale'!D84 -> 0 | E85: 0 | F85: 0 | H85: ='12. RTSR-Historic Wholesale'!H84 -> 0 | I85: 0 | J85: 0 | L85: ='12. RTSR-Historic Wholesale'!L84 -> 0 | M85: 0 | N85: 0 | P85: 0
B86: October | D86: ='12. RTSR-Historic Wholesale'!D85 -> 0 | E86: 0 | F86: 0 | H86: ='12. RTSR-Historic Wholesale'!H85 -> 0 | I86: 0 | J86: 0 | L86: ='12. RTSR-Historic Wholesale'!L85 -> 0 | M86: 0 | N86: 0 | P86: 0
B87: November | D87: ='12. RTSR-Historic Wholesale'!D86 -> 0 | E87: 0 | F87: 0 | H87: ='12. RTSR-Historic Wholesale'!H86 -> 0 | I87: 0 | J87: 0 | L87: ='12. RTSR-Historic Wholesale'!L86 -> 0 | M87: 0 | N87: 0 | P87: 0
B88: December | D88: ='12. RTSR-Historic Wholesale'!D87 -> 0 | E88: 0 | F88: 0 | H88: ='12. RTSR-Historic Wholesale'!H87 -> 0 | I88: 0 | J88: 0 | L88: ='12. RTSR-Historic Wholesale'!L87 -> 0 | M88: 0 | N88: 0 | P88: 0
B90: Total | D90: =SUM(D77:D88) -> 0 | E90: =IF(D90<>0,F90/D90,0) -> 0 | F90: =SUM(F77:F88) -> 0 | H90: =SUM(H77:H88) -> 0 | I90: =IF(H90<>0,J90/H90,0) -> 0 | J90: =SUM(J77:J88) -> 0 | L90: =SUM(L77:L88) -> 0 | M90: =IF(L90<>0,N90/L90,0) -> 0 | N90: =SUM(N77:N88) -> 0 | P90: =SUM(P77:P88) -> 0
B92: Total | D92: Network | H92: Line Connection | L92: Transformation Connection | P92: Total Line
B94: Month | D94: Units Billed | E94: Rate | F94: Amount | H94: Units Billed | I94: Rate | J94: Amount | L94: Units Billed | M94: Rate | N94: Amount | P94: Amount
B96: January | D96: =D20+D39+D58+D77 -> 4045111.3 | E96: =IF(D96<>0,F96/D96,0) -> 6.248448622 | F96: =F20+F39+F58+F77 -> 25275670.13 | H96: =H20+H39+H58+H77 -> 4184232.514 | I96: =IF(H96<>0,J96/H96,0) -> 0.9667437642 | J96: =J20+J39+J58+J77 -> 4045080.691 | L96: =L20+L39+L58+L77 -> 3232831.144 | M96: =IF(L96<>0,N96/L96,0) -> 3.404564326 | N96: =N20+N39+N58+N77 -> 11006381.58 | P96: =J96+N96 -> 15051462.27
B97: February | D97: =D21+D40+D59+D78 -> 3873112.2 | E97: 6.245469084 | F97: =F21+F40+F59+F78 -> 24189402.5 | H97: =H21+H40+H59+H78 -> 4054649.904 | I97: 0.9661492917 | J97: =J21+J40+J59+J78 -> 3917397.133 | L97: =L21+L40+L59+L78 -> 3154196.384 | M97: 3.404695926 | N97: =N21+N40+N59+N78 -> 10739079.58 | P97: 14656476.71
B98: March | D98: 3729522.41 | E98: 6.244115754 | F98: 23287569.64 | H98: 3903688.347 | I98: 0.9654759886 | J98: 3768917.366 | L98: 3035207.697 | M98: 3.404999193 | N98: 10334879.76 | P98: 14103797.12
B99: April | D99: 3584169.29 | E99: 6.239481916 | F99: 22363359.47 | H99: 3929031.409 | I99: 0.9659732308 | J99: 3795339.165 | L99: 3071972.311 | M99: 3.404659859 | N99: 10459020.82 | P99: 14254359.98
B100: May | D100: 4548307.77 | E100: 6.255731224 | F100: 28452990.93 | H100: 4629416.113 | I100: 0.9678616159 | J100: 4480634.16 | L100: 3558448.853 | M100: 3.404037064 | N100: 12113091.79 | P100: 16593725.95
B101: June | D101: 5534225.24 | E101: 6.255923109 | F101: 34621687.57 | H101: 5716167.676 | I101: 0.9674736205 | J101: 5530241.437 | L101: 4364962.146 | M101: 3.404170035 | N101: 14859073.34 | P101: 20389314.78
B102: July | D102: 5342875.76 | E102: 6.257875665 | F102: 33435052.2 | H102: 5463918.869 | I102: 0.9679514106 | J102: 5288807.977 | L102: 4168246.989 | M102: 3.404021771 | N102: 14188803.5 | P102: 19477611.47
B103: August | D103: 5114294.16 | E103: 6.257228801 | F103: 32001308.72 | H103: 5418661.603 | I103: 0.9686794572 | J103: 5248946.181 | L103: 4120676.723 | M103: 3.403749725 | N103: 14025752.26 | P103: 19274698.44
B104: September | D104: 4609610.14 | E104: 6.259809434 | F104: 28855281.04 | H104: 4681725.193 | I104: 0.9687978441 | J104: 4535645.274 | L104: 3609017.413 | M104: 3.403585053 | N104: 12283597.72 | P104: =J104+N104 -> 16819243
B105: October | D105: 3707377.98 | E105: 6.251850602 | F105: 23177973.26 | H105: 3882598.105 | I105: 0.9679724961 | J105: 3758248.179 | L105: 2977480.555 | M105: 3.404113809 | N105: 10135682.67 | P105: 13893930.85
B106: November | D106: 3692384.65 | E106: 6.25225169 | F106: 23085718.17 | H106: 3895070.642 | I106: 0.9683154793 | J106: 3771657.195 | L106: 3010433.222 | M106: 3.403854439 | N106: 10247076.49 | P106: 14018733.68
B107: December | D107: 3997445.59 | E107: 6.252052443 | F107: 24992239.47 | H107: 4116368.483 | I107: 0.9674539418 | J107: 3982396.914 | L107: 3175974.833 | M107: 3.404291049 | N107: 10811942.69 | P107: 14794339.61
B109: Total | D109: =SUM(D96:D107) -> 51778436.49 | E109: =IF(D109<>0,F109/D109,0) -> 6.25237599 | F109: =SUM(F96:F107) -> 323738253.1 | H109: =SUM(H96:H107) -> 53875528.86 | I109: =IF(H109<>0,J109/H109,0) -> 0.9674765664 | J109: =SUM(J96:J107) -> 52123311.67 | L109: =SUM(L96:L107) -> 41479448.27 | M109: =IF(L109<>0,N109/L109,0) -> 3.40420107 | N109: =SUM(N96:N107) -> 141204382.2 | P109: =SUM(P96:P107) -> 193327693.9
N111: Low Voltage Switchgear Credit (if applicable) | P111: ='11. RTSR-UTRs & Sub-Tx'!G68 -> 0
N113: Total including deduction for Low Voltage Switchgear Credit | P113: =P109+P111 -> 193327693.9

Sheet 14. RTSR-Forecast Wholesale
A1: Back to Index
B2: =+'1. Info'!B2 -> 2027-2031 RTSR Workform
B13: ="The purpose of this sheet is to calculate the expected billing when current "&'11. RTSR-UTRs & Sub-Tx'!O12&" Uniform Transmission Rates are applied against historical "&'11. RTSR-UTRs & Sub-Tx'!O12-1&" transmission units." -> The purpose of this sheet is to calculate the expected billing when current 2026 Uniform Transmission Rates are applied against historical 2025 transmission units.
B16: IESO | D16: Network | H16: Line Connection | L16: Transformation Connection | P16: Total Line
B18: Month | D18: Units Billed | E18: Rate | F18: Amount | H18: Units Billed | I18: Rate | J18: Amount | L18: Units Billed | M18: Rate | N18: Amount | P18: Amount
B20: January | D20: ='12. RTSR-Historic Wholesale'!D19 -> 3573241 | E20: ='11. RTSR-UTRs & Sub-Tx'!O16 -> 6.37 | F20: =D20*E20 -> 22761545.17 | H20: ='12. RTSR-Historic Wholesale'!H19 -> 3737947 | I20: ='11. RTSR-UTRs & Sub-Tx'!O18 -> 1 | J20: =H20*I20 -> 3737947 | L20: ='12. RTSR-Historic Wholesale'!L19 -> 2759149 | M20: ='11. RTSR-UTRs & Sub-Tx'!O20 -> 3.39 | N20: =L20*M20 -> 9353515.11 | P20: =J20+N20 -> 13091462.11
B21: February | D21: ='12. RTSR-Historic Wholesale'!D20 -> 3410231 | E21: =E20 -> 6.37 | F21: 21723171.47 | H21: ='12. RTSR-Historic Wholesale'!H20 -> 3614455 | I21: =I20 -> 1 | J21: 3614455 | L21: ='12. RTSR-Historic Wholesale'!L20 -> 2687860 | M21: =M20 -> 3.39 | N21: 9111845.4 | P21: 12726300.4
B22: March | D22: ='12. RTSR-Historic Wholesale'!D21 -> 3278958 | E22: 6.37 | F22: 20886962.46 | H22: ='12. RTSR-Historic Wholesale'!H21 -> 3471453 | I22: 1 | J22: 3471453 | L22: ='12. RTSR-Historic Wholesale'!L21 -> 2577203 | M22: 3.39 | N22: 8736718.17 | P22: 12208171.17
B23: April | D23: ='12. RTSR-Historic Wholesale'!D22 -> 3135226 | E23: 6.37 | F23: 19971389.62 | H23: ='12. RTSR-Historic Wholesale'!H22 -> 3500255.768 | I23: 1 | J23: 3500255.768 | L23: ='12. RTSR-Historic Wholesale'!L22 -> 2618907.1 | M23: 3.39 | N23: 8878095.068 | P23: 12378350.84
B24: May | D24: ='12. RTSR-Historic Wholesale'!D23 -> 4049527 | E24: 6.37 | F24: 25795486.99 | H24: ='12. RTSR-Historic Wholesale'!H23 -> 4152245 | I24: 1 | J24: 4152245 | L24: ='12. RTSR-Historic Wholesale'!L23 -> 3055932 | M24: 3.39 | N24: 10359609.48 | P24: 14511854.48
B25: June | D25: ='12. RTSR-Historic Wholesale'!D24 -> 4928345 | E25: 6.37 | F25: 31393557.65 | H25: ='12. RTSR-Historic Wholesale'!H24 -> 5119868 | I25: 1 | J25: 5119868 | L25: ='12. RTSR-Historic Wholesale'!L24 -> 3742712 | M25: 3.39 | N25: 12687793.68 | P25: 17807661.68
B26: July | D26: ='12. RTSR-Historic Wholesale'!D25 -> 4767956 | E26: 6.37 | F26: 30371879.72 | H26: ='12. RTSR-Historic Wholesale'!H25 -> 4902306 | I26: 1 | J26: 4902306 | L26: ='12. RTSR-Historic Wholesale'!L25 -> 3580257 | M26: 3.39 | N26: 12137071.23 | P26: 17039377.23
B27: August | D27: ='12. RTSR-Historic Wholesale'!D26 -> 4560796 | E27: 6.37 | F27: 29052270.52 | H27: ='12. RTSR-Historic Wholesale'!H26 -> 4874353 | I27: 1 | J27: 4874353 | L27: ='12. RTSR-Historic Wholesale'!L26 -> 3550675 | M27: 3.39 | N27: 12036788.25 | P27: 16911141.25
B28: September | D28: ='12. RTSR-Historic Wholesale'!D27 -> 4122148 | E28: 6.37 | F28: 26258082.76 | H28: ='12. RTSR-Historic Wholesale'!H27 -> 4213220 | I28: 1 | J28: 4213220 | L28: ='12. RTSR-Historic Wholesale'!L27 -> 3115771 | M28: 3.39 | N28: 10562463.69 | P28: 14775683.69
B29: October | D29: ='12. RTSR-Historic Wholesale'!D28 -> 3287009 | E29: 6.37 | F29: 20938247.33 | H29: ='12. RTSR-Historic Wholesale'!H28 -> 3483785 | I29: 1 | J29: 3483785 | L29: ='12. RTSR-Historic Wholesale'!L28 -> 2554708 | M29: 3.39 | N29: 8660460.12 | P29: 12144245.12
B30: November | D30: ='12. RTSR-Historic Wholesale'!D29 -> 3275137 | E30: 6.37 | F30: 20862622.69 | H30: ='12. RTSR-Historic Wholesale'!H29 -> 3499261 | I30: 1 | J30: 3499261 | L30: ='12. RTSR-Historic Wholesale'!L29 -> 2590837 | M30: 3.39 | N30: 8782937.43 | P30: 12282198.43
B31: December | D31: ='12. RTSR-Historic Wholesale'!D30 -> 3544961 | E31: 6.37 | F31: 22581401.57 | H31: ='12. RTSR-Historic Wholesale'!H30 -> 3686697 | I31: 1 | J31: 3686697 | L31: ='12. RTSR-Historic Wholesale'!L30 -> 2719355 | M31: 3.39 | N31: 9218613.45 | P31: 12905310.45
B33: Total | D33: =SUM(D20:D31) -> 45933535 | E33: =IF(D33<>0,F33/D33,0) -> 6.37 | F33: =SUM(F20:F31) -> 292596617.9 | H33: =SUM(H20:H31) -> 48255845.77 | I33: =IF(H33<>0,J33/H33,0) -> 1 | J33: =SUM(J20:J31) -> 48255845.77 | L33: =SUM(L20:L31) -> 35553366.1 | M33: =IF(L33<>0,N33/L33,0) -> 3.39 | N33: =SUM(N20:N31) -> 120525911.1 | P33: =SUM(P20:P31) -> 168781756.8
B35: Hydro One | D35: Network | H35: Line Connection | L35: Transformation Connection | P35: Total Line
B37: Month | D37: Units Billed | E37: Rate | F37: Amount | H37: Units Billed | I37: Rate | J37: Amount | L37: Units Billed | M37: Rate | N37: Amount | P37: Amount
B39: January | D39: ='12. RTSR-Historic Wholesale'!D38 -> 471870.3 | E39: ='11. RTSR-UTRs & Sub-Tx'!O29 -> 5.328 | F39: =D39*E39 -> 2514124.958 | H39: ='12. RTSR-Historic Wholesale'!H38 -> 446285.514 | I39: ='11. RTSR-UTRs & Sub-Tx'!O31 -> 0.6882 | J39: =H39*I39 -> 307133.6907 | L39: ='12. RTSR-Historic Wholesale'!L38 -> 473682.144 | M39: ='11. RTSR-UTRs & Sub-Tx'!O33 -> 3.4894 | N39: =L39*M39 -> 1652866.473 | P39: =J39+N39 -> 1960000.164
B40: February | D40: ='12. RTSR-Historic Wholesale'!D39 -> 462881.2 | E40: =E39 -> 5.328 | F40: 2466231.034 | H40: ='12. RTSR-Historic Wholesale'!H39 -> 440194.9037 | I40: =I39 -> 0.6882 | J40: 302942.1327 | L40: ='12. RTSR-Historic Wholesale'!L39 -> 466336.3837 | M40: =M39 -> 3.4894 | N40: 1627234.177 | P40: 1930176.31
B41: March | D41: ='12. RTSR-Historic Wholesale'!D40 -> 450564.41 | E41: 5.328 | F41: 2400607.176 | H41: ='12. RTSR-Historic Wholesale'!H40 -> 432235.3467 | I41: 0.6882 | J41: 297464.3656 | L41: ='12. RTSR-Historic Wholesale'!L40 -> 458004.6967 | M41: 3.4894 | N41: 1598161.589 | P41: 1895625.954
B42: April | D42: ='12. RTSR-Historic Wholesale'!D41 -> 448943.29 | E42: 5.328 | F42: 2391969.849 | H42: ='12. RTSR-Historic Wholesale'!H41 -> 428775.641 | I42: 0.6882 | J42: 295083.3962 | L42: ='12. RTSR-Historic Wholesale'!L41 -> 453065.211 | M42: 3.4894 | N42: 1580925.747 | P42: 1876009.144
B43: May | D43: ='12. RTSR-Historic Wholesale'!D42 -> 498780.77 | E43: 5.328 | F43: 2657503.943 | H43: ='12. RTSR-Historic Wholesale'!H42 -> 477171.1131 | I43: 0.6882 | J43: 328389.1601 | L43: ='12. RTSR-Historic Wholesale'!L42 -> 502516.8531 | M43: 3.4894 | N43: 1753482.307 | P43: 2081871.467
B44: June | D44: ='12. RTSR-Historic Wholesale'!D43 -> 605880.24 | E44: 5.328 | F44: 3228129.919 | H44: ='12. RTSR-Historic Wholesale'!H43 -> 596299.6764 | I44: 0.6882 | J44: 410373.4373 | L44: ='12. RTSR-Historic Wholesale'!L43 -> 622250.1464 | M44: 3.4894 | N44: 2171279.661 | P44: 2581653.098
B45: July | D45: ='12. RTSR-Historic Wholesale'!D44 -> 574919.76 | E45: 5.328 | F45: 3063172.481 | H45: ='12. RTSR-Historic Wholesale'!H44 -> 561612.8692 | I45: 0.6882 | J45: 386501.9766 | L45: ='12. RTSR-Historic Wholesale'!L44 -> 587989.9892 | M45: 3.4894 | N45: 2051732.268 | P45: 2438234.245
B46: August | D46: ='12. RTSR-Historic Wholesale'!D45 -> 553498.16 | E46: 5.328 | F46: 2949038.196 | H46: ='12. RTSR-Historic Wholesale'!H45 -> 544308.6033 | I46: 0.6882 | J46: 374593.1808 | L46: ='12. RTSR-Historic Wholesale'!L45 -> 570001.7233 | M46: 3.4894 | N46: 1988964.013 | P46: 2363557.194
B47: September | D47: ='12. RTSR-Historic Wholesale'!D46 -> 487462.14 | E47: 5.328 | F47: 2597198.282 | H47: ='12. RTSR-Historic Wholesale'!H46 -> 468505.1931 | I47: 0.6882 | J47: 322425.2739 | L47: ='12. RTSR-Historic Wholesale'!L46 -> 493246.4131 | M47: 3.4894 | N47: 1721134.034 | P47: 2043559.308
B48: October | D48: ='12. RTSR-Historic Wholesale'!D47 -> 420368.98 | E48: 5.328 | F48: 2239725.925 | H48: ='12. RTSR-Historic Wholesale'!H47 -> 398813.1049 | I48: 0.6882 | J48: 274463.1788 | L48: ='12. RTSR-Historic Wholesale'!L47 -> 422772.5549 | M48: 3.4894 | N48: 1475222.553 | P48: 1749685.732
B49: November | D49: ='12. RTSR-Historic Wholesale'!D48 -> 417247.65 | E49: 5.328 | F49: 2223095.479 | H49: ='12. RTSR-Historic Wholesale'!H48 -> 395809.6418 | I49: 0.6882 | J49: 272396.1955 | L49: ='12. RTSR-Historic Wholesale'!L48 -> 419596.2218 | M49: 3.4894 | N49: 1464139.056 | P49: 1736535.252
B50: December | D50: ='12. RTSR-Historic Wholesale'!D49 -> 452484.59 | E50: 5.328 | F50: 2410837.896 | H50: ='12. RTSR-Historic Wholesale'!H49 -> 429671.4827 | I50: 0.6882 | J50: 295699.9144 | L50: ='12. RTSR-Historic Wholesale'!L49 -> 456619.8327 | M50: 3.4894 | N50: 1593329.244 | P50: 1889029.159
B52: Total | D52: =SUM(D39:D50) -> 5844901.49 | E52: =IF(D52<>0,F52/D52,0) -> 5.328 | F52: =SUM(F39:F50) -> 31141635.14 | H52: =SUM(H39:H50) -> 5619683.09 | I52: =IF(H52<>0,J52/H52,0) -> 0.6882 | J52: =SUM(J39:J50) -> 3867465.902 | L52: =SUM(L39:L50) -> 5926082.17 | M52: =IF(L52<>0,N52/L52,0) -> 3.4894 | N52: =SUM(N39:N50) -> 20678471.12 | P52: =SUM(P39:P50) -> 24545937.03
B54: Add Extra Host Here (I) | D54: Network | H54: Line Connection | L54: Transformation Connection | P54: Total Line
B56: Month | D56: Units Billed | E56: Rate | F56: Amount | H56: Units Billed | I56: Rate | J56: Amount | L56: Units Billed | M56: Rate | N56: Amount | P56: Amount
B58: January | D58: ='12. RTSR-Historic Wholesale'!D57 -> 0 | E58: ='11. RTSR-UTRs & Sub-Tx'!O44 -> 0 | F58: =D58*E58 -> 0 | H58: ='12. RTSR-Historic Wholesale'!H57 -> 0 | I58: ='11. RTSR-UTRs & Sub-Tx'!O46 -> 0 | J58: =H58*I58 -> 0 | L58: ='12. RTSR-Historic Wholesale'!L57 -> 0 | M58: ='11. RTSR-UTRs & Sub-Tx'!O48 -> 0 | N58: =L58*M58 -> 0 | P58: =J58+N58 -> 0
B59: February | D59: ='12. RTSR-Historic Wholesale'!D58 -> 0 | E59: =E58 -> 0 | F59: 0 | H59: ='12. RTSR-Historic Wholesale'!H58 -> 0 | I59: =I58 -> 0 | J59: 0 | L59: ='12. RTSR-Historic Wholesale'!L58 -> 0 | M59: =M58 -> 0 | N59: 0 | P59: 0
B60: March | D60: ='12. RTSR-Historic Wholesale'!D59 -> 0 | E60: 0 | F60: 0 | H60: ='12. RTSR-Historic Wholesale'!H59 -> 0 | I60: 0 | J60: 0 | L60: ='12. RTSR-Historic Wholesale'!L59 -> 0 | M60: 0 | N60: 0 | P60: 0
B61: April | D61: ='12. RTSR-Historic Wholesale'!D60 -> 0 | E61: 0 | F61: 0 | H61: ='12. RTSR-Historic Wholesale'!H60 -> 0 | I61: 0 | J61: 0 | L61: ='12. RTSR-Historic Wholesale'!L60 -> 0 | M61: 0 | N61: 0 | P61: 0
B62: May | D62: ='12. RTSR-Historic Wholesale'!D61 -> 0 | E62: 0 | F62: 0 | H62: ='12. RTSR-Historic Wholesale'!H61 -> 0 | I62: 0 | J62: 0 | L62: ='12. RTSR-Historic Wholesale'!L61 -> 0 | M62: 0 | N62: 0 | P62: 0
B63: June | D63: ='12. RTSR-Historic Wholesale'!D62 -> 0 | E63: 0 | F63: 0 | H63: ='12. RTSR-Historic Wholesale'!H62 -> 0 | I63: 0 | J63: 0 | L63: ='12. RTSR-Historic Wholesale'!L62 -> 0 | M63: 0 | N63: 0 | P63: 0
B64: July | D64: ='12. RTSR-Historic Wholesale'!D63 -> 0 | E64: 0 | F64: 0 | H64: ='12. RTSR-Historic Wholesale'!H63 -> 0 | I64: 0 | J64: 0 | L64: ='12. RTSR-Historic Wholesale'!L63 -> 0 | M64: 0 | N64: 0 | P64: 0
B65: August | D65: ='12. RTSR-Historic Wholesale'!D64 -> 0 | E65: 0 | F65: 0 | H65: ='12. RTSR-Historic Wholesale'!H64 -> 0 | I65: 0 | J65: 0 | L65: ='12. RTSR-Historic Wholesale'!L64 -> 0 | M65: 0 | N65: 0 | P65: 0
B66: September | D66: ='12. RTSR-Historic Wholesale'!D65 -> 0 | E66: 0 | F66: 0 | H66: ='12. RTSR-Historic Wholesale'!H65 -> 0 | I66: 0 | J66: 0 | L66: ='12. RTSR-Historic Wholesale'!L65 -> 0 | M66: 0 | N66: 0 | P66: 0
B67: October | D67: ='12. RTSR-Historic Wholesale'!D66 -> 0 | E67: 0 | F67: 0 | H67: ='12. RTSR-Historic Wholesale'!H66 -> 0 | I67: 0 | J67: 0 | L67: ='12. RTSR-Historic Wholesale'!L66 -> 0 | M67: 0 | N67: 0 | P67: 0
B68: November | D68: ='12. RTSR-Historic Wholesale'!D67 -> 0 | E68: 0 | F68: 0 | H68: ='12. RTSR-Historic Wholesale'!H67 -> 0 | I68: 0 | J68: 0 | L68: ='12. RTSR-Historic Wholesale'!L67 -> 0 | M68: 0 | N68: 0 | P68: 0
B69: December | D69: ='12. RTSR-Historic Wholesale'!D68 -> 0 | E69: 0 | F69: 0 | H69: ='12. RTSR-Historic Wholesale'!H68 -> 0 | I69: 0 | J69: 0 | L69: ='12. RTSR-Historic Wholesale'!L68 -> 0 | M69: 0 | N69: 0 | P69: 0
B71: Total | D71: =SUM(D58:D69) -> 0 | E71: =IF(D71<>0,F71/D71,0) -> 0 | F71: =SUM(F58:F69) -> 0 | H71: =SUM(H58:H69) -> 0 | I71: =IF(H71<>0,J71/H71,0) -> 0 | J71: =SUM(J58:J69) -> 0 | L71: =SUM(L58:L69) -> 0 | M71: =IF(L71<>0,N71/L71,0) -> 0 | N71: =SUM(N58:N69) -> 0 | P71: =SUM(P58:P69) -> 0
B73: Add Extra Host Here (II) | D73: Network | H73: Line Connection | L73: Transformation Connection | P73: Total Line
B75: Month | D75: Units Billed | E75: Rate | F75: Amount | H75: Units Billed | I75: Rate | J75: Amount | L75: Units Billed | M75: Rate | N75: Amount | P75: Amount
B77: January | D77: ='12. RTSR-Historic Wholesale'!D76 -> 0 | E77: ='11. RTSR-UTRs & Sub-Tx'!O59 -> 0 | F77: =D77*E77 -> 0 | H77: ='12. RTSR-Historic Wholesale'!H76 -> 0 | I77: ='11. RTSR-UTRs & Sub-Tx'!O61 -> 0 | J77: =H77*I77 -> 0 | L77: ='12. RTSR-Historic Wholesale'!L76 -> 0 | M77: ='11. RTSR-UTRs & Sub-Tx'!O63 -> 0 | N77: =L77*M77 -> 0 | P77: =J77+N77 -> 0
B78: February | D78: ='12. RTSR-Historic Wholesale'!D77 -> 0 | E78: =E77 -> 0 | F78: 0 | H78: ='12. RTSR-Historic Wholesale'!H77 -> 0 | I78: =I77 -> 0 | J78: 0 | L78: ='12. RTSR-Historic Wholesale'!L77 -> 0 | M78: =M77 -> 0 | N78: 0 | P78: 0
B79: March | D79: ='12. RTSR-Historic Wholesale'!D78 -> 0 | E79: 0 | F79: 0 | H79: ='12. RTSR-Historic Wholesale'!H78 -> 0 | I79: 0 | J79: 0 | L79: ='12. RTSR-Historic Wholesale'!L78 -> 0 | M79: 0 | N79: 0 | P79: 0
B80: April | D80: ='12. RTSR-Historic Wholesale'!D79 -> 0 | E80: 0 | F80: 0 | H80: ='12. RTSR-Historic Wholesale'!H79 -> 0 | I80: 0 | J80: 0 | L80: ='12. RTSR-Historic Wholesale'!L79 -> 0 | M80: 0 | N80: 0 | P80: 0
B81: May | D81: ='12. RTSR-Historic Wholesale'!D80 -> 0 | E81: 0 | F81: 0 | H81: ='12. RTSR-Historic Wholesale'!H80 -> 0 | I81: 0 | J81: 0 | L81: ='12. RTSR-Historic Wholesale'!L80 -> 0 | M81: 0 | N81: 0 | P81: 0
B82: June | D82: ='12. RTSR-Historic Wholesale'!D81 -> 0 | E82: 0 | F82: 0 | H82: ='12. RTSR-Historic Wholesale'!H81 -> 0 | I82: 0 | J82: 0 | L82: ='12. RTSR-Historic Wholesale'!L81 -> 0 | M82: 0 | N82: 0 | P82: 0
B83: July | D83: ='12. RTSR-Historic Wholesale'!D82 -> 0 | E83: 0 | F83: 0 | H83: ='12. RTSR-Historic Wholesale'!H82 -> 0 | I83: 0 | J83: 0 | L83: ='12. RTSR-Historic Wholesale'!L82 -> 0 | M83: 0 | N83: 0 | P83: 0
B84: August | D84: ='12. RTSR-Historic Wholesale'!D83 -> 0 | E84: 0 | F84: 0 | H84: ='12. RTSR-Historic Wholesale'!H83 -> 0 | I84: 0 | J84: 0 | L84: ='12. RTSR-Historic Wholesale'!L83 -> 0 | M84: 0 | N84: 0 | P84: 0
B85: September | D85: ='12. RTSR-Historic Wholesale'!D84 -> 0 | E85: 0 | F85: 0 | H85: ='12. RTSR-Historic Wholesale'!H84 -> 0 | I85: 0 | J85: 0 | L85: ='12. RTSR-Historic Wholesale'!L84 -> 0 | M85: 0 | N85: 0 | P85: 0
B86: October | D86: ='12. RTSR-Historic Wholesale'!D85 -> 0 | E86: 0 | F86: 0 | H86: ='12. RTSR-Historic Wholesale'!H85 -> 0 | I86: 0 | J86: 0 | L86: ='12. RTSR-Historic Wholesale'!L85 -> 0 | M86: 0 | N86: 0 | P86: 0
B87: November | D87: ='12. RTSR-Historic Wholesale'!D86 -> 0 | E87: 0 | F87: 0 | H87: ='12. RTSR-Historic Wholesale'!H86 -> 0 | I87: 0 | J87: 0 | L87: ='12. RTSR-Historic Wholesale'!L86 -> 0 | M87: 0 | N87: 0 | P87: 0
B88: December | D88: ='12. RTSR-Historic Wholesale'!D87 -> 0 | E88: 0 | F88: 0 | H88: ='12. RTSR-Historic Wholesale'!H87 -> 0 | I88: 0 | J88: 0 | L88: ='12. RTSR-Historic Wholesale'!L87 -> 0 | M88: 0 | N88: 0 | P88: 0
L89: ='12. RTSR-Historic Wholesale'!L88 -> 0
B90: Total | D90: =SUM(D77:D88) -> 0 | E90: =IF(D90<>0,F90/D90,0) -> 0 | F90: =SUM(F77:F88) -> 0 | H90: =SUM(H77:H88) -> 0 | I90: =IF(H90<>0,J90/H90,0) -> 0 | J90: =SUM(J77:J88) -> 0 | L90: =SUM(L77:L88) -> 0 | M90: =IF(L90<>0,N90/L90,0) -> 0 | N90: =SUM(N77:N88) -> 0 | P90: =SUM(P77:P88) -> 0
B92: Total | D92: Network | H92: Line Connection | L92: Transformation Connection | P92: Total Line
B94: Month | D94: Units Billed | E94: Rate | F94: Amount | H94: Units Billed | I94: Rate | J94: Amount | L94: Units Billed | M94: Rate | N94: Amount | P94: Amount
B96: January | D96: =D20+D39+D58+D77 -> 4045111.3 | E96: =IF(D96<>0,F96/D96,0) -> 6.248448622 | F96: =F20+F39+F58+F77 -> 25275670.13 | H96: =H20+H39+H58+H77 -> 4184232.514 | I96: =IF(H96<>0,J96/H96,0) -> 0.9667437642 | J96: =J20+J39+J58+J77 -> 4045080.691 | L96: =L20+L39+L58+L77 -> 3232831.144 | M96: =IF(L96<>0,N96/L96,0) -> 3.404564326 | N96: =N20+N39+N58+N77 -> 11006381.58 | P96: =J96+N96 -> 15051462.27
B97: February | D97: =D21+D40+D59+D78 -> 3873112.2 | E97: 6.245469084 | F97: =F21+F40+F59+F78 -> 24189402.5 | H97: =H21+H40+H59+H78 -> 4054649.904 | I97: 0.9661492917 | J97: =J21+J40+J59+J78 -> 3917397.133 | L97: =L21+L40+L59+L78 -> 3154196.384 | M97: 3.404695926 | N97: =N21+N40+N59+N78 -> 10739079.58 | P97: 14656476.71
B98: March | D98: 3729522.41 | E98: 6.244115754 | F98: 23287569.64 | H98: 3903688.347 | I98: 0.9654759886 | J98: 3768917.366 | L98: 3035207.697 | M98: 3.404999193 | N98: 10334879.76 | P98: 14103797.12
B99: April | D99: 3584169.29 | E99: 6.239481916 | F99: 22363359.47 | H99: 3929031.409 | I99: 0.9659732308 | J99: 3795339.165 | L99: 3071972.311 | M99: 3.404659859 | N99: 10459020.82 | P99: 14254359.98
B100: May | D100: 4548307.77 | E100: 6.255731224 | F100: 28452990.93 | H100: 4629416.113 | I100: 0.9678616159 | J100: 4480634.16 | L100: 3558448.853 | M100: 3.404037064 | N100: 12113091.79 | P100: 16593725.95
B101: June | D101: 5534225.24 | E101: 6.255923109 | F101: 34621687.57 | H101: 5716167.676 | I101: 0.9674736205 | J101: 5530241.437 | L101: 4364962.146 | M101: 3.404170035 | N101: 14859073.34 | P101: 20389314.78
B102: July | D102: 5342875.76 | E102: 6.257875665 | F102: 33435052.2 | H102: 5463918.869 | I102: 0.9679514106 | J102: 5288807.977 | L102: 4168246.989 | M102: 3.404021771 | N102: 14188803.5 | P102: 19477611.47
B103: August | D103: 5114294.16 | E103: 6.257228801 | F103: 32001308.72 | H103: 5418661.603 | I103: 0.9686794572 | J103: 5248946.181 | L103: 4120676.723 | M103: 3.403749725 | N103: 14025752.26 | P103: 19274698.44
B104: September | D104: 4609610.14 | E104: 6.259809434 | F104: 28855281.04 | H104: 4681725.193 | I104: 0.9687978441 | J104: 4535645.274 | L104: 3609017.413 | M104: 3.403585053 | N104: 12283597.72 | P104: 16819243
B105: October | D105: 3707377.98 | E105: 6.251850602 | F105: 23177973.26 | H105: 3882598.105 | I105: 0.9679724961 | J105: 3758248.179 | L105: 2977480.555 | M105: 3.404113809 | N105: 10135682.67 | P105: 13893930.85
B106: November | D106: 3692384.65 | E106: 6.25225169 | F106: 23085718.17 | H106: 3895070.642 | I106: 0.9683154793 | J106: 3771657.195 | L106: 3010433.222 | M106: 3.403854439 | N106: 10247076.49 | P106: 14018733.68
B107: December | D107: 3997445.59 | E107: 6.252052443 | F107: 24992239.47 | H107: 4116368.483 | I107: 0.9674539418 | J107: 3982396.914 | L107: 3175974.833 | M107: 3.404291049 | N107: 10811942.69 | P107: 14794339.61
B109: Total | D109: =SUM(D96:D107) -> 51778436.49 | E109: =IF(D109<>0,F109/D109,0) -> 6.25237599 | F109: =SUM(F96:F107) -> 323738253.1 | H109: =SUM(H96:H107) -> 53875528.86 | I109: =IF(H109<>0,J109/H109,0) -> 0.9674765664 | J109: =SUM(J96:J107) -> 52123311.67 | L109: =SUM(L96:L107) -> 41479448.27 | M109: =IF(L109<>0,N109/L109,0) -> 3.40420107 | N109: =SUM(N96:N107) -> 141204382.2 | P109: =SUM(P96:P107) -> 193327693.9
N111: Low Voltage Switchgear Credit (if applicable) | P111: ='11. RTSR-UTRs & Sub-Tx'!O68 -> 0
N113: Total including deduction for Low Voltage Switchgear Credit | P113: =P109+P111 -> 193327693.9
D115: Forecast | F115: 4714 - Charges- NW | P115: 4716 - Charges - CN | S115: 4750 - Charges-LV
D116: 2027 | F116: 371526539.6 | P116: 221144024.8 | S116: 11094754.22
D117: =D116+1 -> 2028 | F117: 386649820.5 | P117: 229851442.2 | S117: 11327517.11
D118: =D117+1 -> 2029 | F118: 402300761.8 | P118: 238855001.5 | S118: 11555684.35
D119: 2030 | F119: 420581197.3 | P119: 249370580 | S119: 11833736.17
D120: 2031 | F120: 438275600.8 | P120: 259496111.7 | S120: 12102318.57

Sheet 15.2027 RTSR-Rates to Forecast
A1: Back to Index
B2: =+'1. Info'!B2 -> 2027-2031 RTSR Workform
B13: The purpose of this table is to re-align the current RTS Network Rates to recover current wholesale network costs.
I14: Same %
B15: Rate Class | C15: Rate Description | D15: Unit | E15: Current RTSR-Network | F15: Loss Adjusted Billed kWh | G15: Billed kW | H15: Billed Amount | I15: Billed Amount % | J15: Current Wholesale Billing | K15: Adjusted RTSR Network
A17: ='10. RTSR - Current Rates'!A16 -> R_TN | B17: RESIDENTIAL SERVICE CLASSIFICATION | C17: Retail Transmission Rate – Network Service Rate | D17: $/kWh | H17: 109857922.8 | I17: =IF(B17="","",IFERROR(H17/SUM(H$17:H$27),"")) -> 0.3336818437 | J17: =I17*total_wholesale_TN -> 108025577.2 | K17: =IF(B17="","",IF(G17=0,IF(ISERROR(J17/F17),0,J17/F17),IF(ISERROR(J17/G17),0,J17/G17))) -> 0
A18: ='10. RTSR - Current Rates'!A17 -> GSL_TN | B18: GENERAL SERVICE LESS THAN 50 KW SERVICE CLASSIFICATION | C18: Retail Transmission Rate – Network Service Rate | D18: $/kWh | H18: 33376208.99 | I18: 0.1013767116 | J18: 32819519.5 | K18: =IF(B18="","",IF(G18=0,IF(ISERROR(J18/F18),0,J18/F18),IF(ISERROR(J18/G18),0,J18/G18))) -> 0
A19: ='10. RTSR - Current Rates'!A18 -> GSG_TN | B19: GENERAL SERVICE 50 TO 5000 KW SERVICE CLASSIFICATION | C19: Retail Transmission Rate – Network Service Rate | D19: $/kW | H19: 157635680.1 | I19: 0.478801738 | J19: 155006438.2 | K19: 0
B20: GENERAL SERVICE 50 TO 5000 KW SERVICE CLASSIFICATION - EVC | C20: Retail Transmission Rate – Network Service Rate | D20: $/kW | H20: 126611.38 | I20: 0.0003845687014 | J20: 124499.5996 | K20: 0
A21: ='10. RTSR - Current Rates'!A19 -> LU_TN | B21: LARGE USE SERVICE CLASSIFICATION | C21: Retail Transmission Rate – Network Service Rate | D21: $/kW | H21: 18503791.82 | I21: 0.05620331436 | J21: 18195162.81 | K21: 0
A22: ='10. RTSR - Current Rates'!A20 -> USL_TN | B22: LARGE USE WITH DEDICATED ASSETS SERVICE CLASSIFICATION | C22: Retail Transmission Rate – Network Service Rate | D22: $/kW | H22: 8124596.75 | I22: 0.02467760498 | J22: 7989084.727 | K22: 0
A23: ='10. RTSR - Current Rates'!A21 -> SL_TN | B23: UNMETERED SCATTERED LOAD SERVICE CLASSIFICATION | C23: Retail Transmission Rate – Network Service Rate | D23: $/kWh | H23: 547997.07 | I23: 0.001664483253 | J23: 538856.9005 | K23: 0
A24: ='10. RTSR - Current Rates'!A22 -> SEN_TN | B24: STREET LIGHTING SERVICE CLASSIFICATION | C24: Retail Transmission Rate – Network Service Rate | D24: $/kW | H24: 1049496.37 | I24: 0.003187734437 | J24: 1031991.578 | K24: 0
A25: ='10. RTSR - Current Rates'!A24 ->  | B25: SENTINEL LIGHTING SERVICE CLASSIFICATION | C25: Retail Transmission Rate – Network Service Rate | D25: $/kW | H25: 7243.38 | I25: 2.200100213e-05 | J25: 7122.565995 | K25: 0
A26: ='10. RTSR - Current Rates'!A25 ->  | B26: EMBEDDED DISTRIBUTOR SERVICE CLASSIFICATION | C26: Retail Transmission Rate – Network Service Rate | D26: $/kW | H26: 0 | I26: 0 | J26: 0 | K26: 0
A27: ='10. RTSR - Current Rates'!A26 -> 
A28: ='10. RTSR - Current Rates'!A27 ->  | C28: =IF(B28="","",IFERROR(VLOOKUP(A28,RTSR,3,FALSE),"")) ->  | D28: =IF(B28="","",IFERROR(VLOOKUP(A28,RTSR,4,FALSE),"")) ->  | E28: =IF(B28="","",IFERROR(VLOOKUP(A28,_xlnm.Database,8,FALSE),0)) ->  | F28: =IF(B28="","",IF(D28="$/kWh",IFERROR(VLOOKUP(A28,RTSR,9,FALSE),0),"")) ->  | G28: =IF(B28="","",IFERROR(VLOOKUP(A28,RTSR,7,FALSE),0)) ->  | H28: =SUM(H17:H27) -> 329229548.6 | I28: =SUM(I17:I27) -> 1 | J28: =SUM(J17:J27) -> 323738253.1 | K28: =IF(B28="","",IF(G28=0,IF(ISERROR(J28/F28),0,J28/F28),IF(ISERROR(J28/G28),0,J28/G28))) -> 
C29: =IF(B29="","",IFERROR(VLOOKUP(A29,RTSR,3,FALSE),"")) ->  | H29: 0 | J29: =J28-total_wholesale_TN -> 0
B32: The purpose of this table is to re-align the current RTS Connection Rates to recover current wholesale connection costs.
B33: Rate Class | C33: Rate Description | D33: Unit | E33: Current RTSR-Connection | F33: Loss Adjusted Billed kWh | G33: Billed kW | H33: Billed Amount | I33: Billed Amount % | J33: Current Wholesale Billing | K33: Adjusted RTSR-Connection
A35: ='10. RTSR - Current Rates'!A29 -> R_TC | B35: RESIDENTIAL SERVICE CLASSIFICATION | C35: Retail Transmission Rate – Line and Transformation Connection Service Rate | D35: $/kWh | H35: 65424232.65 | I35: =IF(B35="","",IFERROR(H35/SUM(H$35:H$45),"")) -> 0.330778492 | J35: =IF(B35="","",IFERROR(I35*total_wholesale_TC,"")) -> 63948643.04 | K35: =IF(B35="","",IF(G35=0,IF(ISERROR(J35/F35),0,J35/F35),IF(ISERROR(J35/G35),0,J35/G35))) -> 0
A36: ='10. RTSR - Current Rates'!A30 -> GSL_TC | B36: GENERAL SERVICE LESS THAN 50 KW SERVICE CLASSIFICATION | C36: Retail Transmission Rate – Line and Transformation Connection Service Rate | D36: $/kWh | H36: 19642281.01 | I36: =IF(B36="","",IFERROR(H36/SUM(H$35:H$45),"")) -> 0.09930944283 | J36: 19199265.56 | K36: =IF(B36="","",IF(G36=0,IF(ISERROR(J36/F36),0,J36/F36),IF(ISERROR(J36/G36),0,J36/G36))) -> 0
A37: ='10. RTSR - Current Rates'!A31 -> GSG_TC | B37: GENERAL SERVICE 50 TO 5000 KW SERVICE CLASSIFICATION | C37: Retail Transmission Rate – Line and Transformation Connection Service Rate | D37: $/kW | H37: 93190411.4 | I37: 0.4711615636 | J37: 91088578.53 | K37: 0
B38: GENERAL SERVICE 50 TO 5000 KW SERVICE CLASSIFICATION - EVC | C38: Retail Transmission Rate – Line and Transformation Connection Service Rate | D38: $/kW | H38: 66327.88 | I38: 0.0003353472442 | J38: 64831.90937 | K38: 0
A39: ='10. RTSR - Current Rates'!A32 -> LU_TC | B39: LARGE USE SERVICE CLASSIFICATION | C39: Retail Transmission Rate – Line and Transformation Connection Service Rate | D39: $/kW | H39: 12479664.92 | I39: 0.06309595964 | J39: 12198196.37 | K39: 0
A40: ='10. RTSR - Current Rates'!A33 -> USL_TC | B40: LARGE USE WITH DEDICATED ASSETS SERVICE CLASSIFICATION | C40: Retail Transmission Rate – Line and Transformation Connection Service Rate | D40: $/kW | H40: 6061217.27 | I40: 0.03064491897 | J40: 5924511.514 | K40: 0
A41: ='10. RTSR - Current Rates'!A34 -> SL_TC | B41: UNMETERED SCATTERED LOAD SERVICE CLASSIFICATION | C41: Retail Transmission Rate – Line and Transformation Connection Service Rate | D41: $/kWh | H41: 337982.33 | I41: 0.001708805452 | J41: 330359.4173 | K41: 0
A42: ='10. RTSR - Current Rates'!A35 -> SEN_TC | B42: STREET LIGHTING SERVICE CLASSIFICATION | C42: Retail Transmission Rate – Line and Transformation Connection Service Rate | D42: $/kW | H42: 582160.88 | I42: 0.002943348209 | J42: 569030.7215 | K42: 0
A43: ='10. RTSR - Current Rates'!A36 ->  | B43: SENTINEL LIGHTING SERVICE CLASSIFICATION | C43: Retail Transmission Rate – Line and Transformation Connection Service Rate | D43: $/kW | H43: 4375.49 | I43: 2.212204753e-05 | J43: 4276.804432 | K43: 0
A44: ='10. RTSR - Current Rates'!A37 ->  | B44: EMBEDDED DISTRIBUTOR SERVICE CLASSIFICATION | C44: Retail Transmission Rate – Line and Transformation Connection Service Rate | D44: $/kW | H44: 0 | I44: 0 | J44: 0 | K44: 0
A45: ='10. RTSR - Current Rates'!A38 -> 
H46: =SUM(H35:H45) -> 197788653.8 | I46: =SUM(I35:I45) -> 1 | J46: =SUM(J35:J45) -> 193327693.9
J47: =J46-total_wholesale_TC -> 0
B49: The purpose of this table is to update the re-aligned RTS Network Rates to recover future wholesale network costs. | I49: Same %
B50: Rate Class | C50: Rate Description | D50: Unit | E50: Adjusted RTSR-Network | F50: Loss Adjusted Billed kWh | G50: Billed kW | H50: Billed Amount | I50: Billed Amount % | J50: Forecast Wholesale Billing | K50: Proposed RTSR-Network
